Workbook

Sheet Turma
B1: Ano: | C1: 2 | F1: Média Global: | G1: =IF(COUNTA(G4:G53)>0,AVERAGE(G4:G53),"") -> 34.8 | H1: =IF(COUNTA(H4:H53)>0,AVERAGE(H4:H53),"") -> 134.5 | I1: =IF(COUNTA(I4:I53)>0,AVERAGE(I4:I53),"") -> 78 | J1: =IF(COUNTA(J4:J53)>0,AVERAGE(J4:J53),"") -> 19.30126719
A2: =COUNTIF(B4:B53,"x") -> 1 | B2: Turma: | C2: A | F2: Desvio Padrão Global: | G2: =IF(COUNTA(G4:G53)>0,_xlfn.STDEV.P(G4:G53),"") -> 4.496665431 | H2: =IF(COUNTA(H4:H53)>0,_xlfn.STDEV.P(H4:H53),"") -> 5.220153254 | I2: =IF(COUNTA(I4:I53)>0,_xlfn.STDEV.P(I4:I53),"") -> 6.123724357 | J2: =IF(COUNTA(J4:J53)>0,_xlfn.STDEV.P(J4:J53),"") -> 2.887432627
A3: ID Aluno | B3: =_xlfn.CONCAT("Ver: ",A2) -> Ver: 1 | C3: Nome | D3: Género | E3: Data de nascimento | F3: Data de avaliação | G3: Peso | H3: Altura | I3: Idade | J3: IMC
A4: 1 | C4: Manuel Lopes | D4: Menino | E4: 2014-05-11 | F4: 2020-08-07 | G4: 32 | H4: 134 | I4: =IF(AND(E4<>"",F4<>""),INT(12*_xlfn.DAYS(F4,E4)/365),"") -> 74 | J4: =IF(H4<>0,G4/(H4/100*H4/100),"") -> 17.82134106
A5: =A4+1 -> 2 | B5: x | C5: Amélia Costa | D5: Menina | E5: 2013-12-04 | F5: 2020-08-07 | G5: 40.2 | H5: 129 | I5: =IF(AND(E5<>"",F5<>""),INT(12*_xlfn.DAYS(F5,E5)/365),"") -> 80 | J5: =IF(H5<>0,G5/(H5/100*H5/100),"") -> 24.15720209
A6: =A5+1 -> 3 | C6: Rui Silva | D6: Menino | E6: 2014-08-10 | F6: 2020-08-07 | G6: 38 | H6: 143 | I6: 71 | J6: 18.58281579
A7: 4 | C7: Maria Santos | D7: Menina | E7: 2012-01-01 | F7: 2019-04-10 | G7: 29 | H7: 132 | I7: 87 | J7: 16.64370983
A8: 5
A9: 6
A10: 7
A11: 8
A12: 9
A13: 10
A14: 11
A15: 12
A16: 13
A17: 14
A18: 15
A19: 16
A20: 17
A21: 18
A22: 19
A23: 20
A24: 21
A25: 22
A26: 23
A27: 24
A28: 25
A29: 26
A30: 27
A31: 28
A32: 29
A33: 30
A34: 31
A35: 32
A36: 33
A37: 34
A38: 35
A39: 36
A40: 37
A41: 38
A42: 39
A43: 40
A44: 41
A45: 42
A46: 43
A47: 44
A48: 45
A49: 46
A50: 47
A51: 48
A52: 49
A53: 50

Sheet Relatório
A1: RELATÓRIO INDIVIDUAL - PESO E ÍNDICE DE MASSA CORPORAL
A2: =IF(Turma!A2=1,VLOOKUP("x",Turma!B4:G53,2,0),"") -> Amélia Costa
A3: =IF(Turma!A2=1,_xlfn.CONCAT(TEXT(VLOOKUP("x",Turma!B$4:G$53,4,0),"dd-mm-aaaa")," | ",Turma!C1,"º ano"," | ",Turma!C2),"") -> 04-12-2013 | 2º ano | A
B5: Resultado | D5: Média | F5: Mínimo | H5: Máximo
B6: da criança | D6: da turma | F6: da turma | H6: da turma
A7: Peso (kg) | B7: =IF(Turma!$A$2=1,VLOOKUP("x",Turma!B4:J53,6,0),0) -> 40.2 | D7: =IF(Turma!$A$2=1,Turma!$G$1,0) -> 34.8 | F7: =IF(Turma!$A$2=1,SMALL(Turma!$G$4:$G$53,1),0) -> 29 | H7: =IF(Turma!$A$2=1,LARGE(Turma!$G$4:$G$53,1),0) -> 40.2
A9: IMC (kg/m2) | B9: =IF(Turma!$A$2=1,VLOOKUP("x",Turma!B4:J53,9,0),0) -> 24.15720209 | D9: =IF(Turma!$A$2=1,Turma!$J$1,0) -> 19.30126719 | F9: =IF(Turma!$A$2=1,SMALL(Turma!$J$4:$J$53,1),0) -> 16.64370983 | H9: =IF(Turma!$A$2=1,SMALL(Turma!$J$4:$J$53,1),0) -> 16.64370983
A12: Cartas de Referência da Organização Mundial de Saúde
A14: PESO
A32: ÍNDICE DE MASSA CORPORAL

Sheet dadosPercentis (hidden)
A1: meses | B1: anos | C1: P3 | D1: P15 | E1: P50 | F1: P85 | G1: P97 | H1: Género | I1: Meses | J1: Peso
A2: 60 | B2: =IF(A2/12=INT(A2/12),A2/12,"") -> 5 | H2: =IF(Turma!A2=1,VLOOKUP("x",Turma!B4:H53,3,0),"") -> Menina | I2: =IF(Turma!A2=1,VLOOKUP("x",Turma!B4:I53,8,0),"") -> 80 | J2: =IF(Turma!A2=1,VLOOKUP("x",Turma!B4:I53,6,0),"") -> 40.2
A3: 61 | B3: =IF(A3/12=INT(A3/12),A3/12,"") ->  | C3: =IF(Turma!A$2=1,IF(VLOOKUP("x",Turma!$B$4:$H$53,3,0)="Menina",mlsPeso!J2,mlsPeso!J62),"") -> 14.173 | D3: =IF(Turma!A$2=1,IF(VLOOKUP("x",Turma!$B$4:$H$53,3,0)="Menina",mlsPeso!M2,mlsPeso!M62),"") -> 15.821 | E3: =IF(Turma!A$2=1,IF(VLOOKUP("x",Turma!$B$4:$H$53,3,0)="Menina",mlsPeso!O2,mlsPeso!O62),"") -> 18.258 | F3: =IF(Turma!A$2=1,IF(VLOOKUP("x",Turma!$B$4:$H$53,3,0)="Menina",mlsPeso!Q2,mlsPeso!Q62),"") -> 21.288 | G3: =IF(Turma!A$2=1,IF(VLOOKUP("x",Turma!$B$4:$H$53,3,0)="Menina",mlsPeso!T2,mlsPeso!T62),"") -> 24.336
A4: 62 | C4: =IF(Turma!A$2=1,IF(VLOOKUP("x",Turma!$B$4:$H$53,3,0)="Menina",mlsPeso!J3,mlsPeso!J63),"") -> 14.297 | D4: =IF(Turma!A$2=1,IF(VLOOKUP("x",Turma!$B$4:$H$53,3,0)="Menina",mlsPeso!M3,mlsPeso!M63),"") -> 15.965 | E4: =IF(Turma!A$2=1,IF(VLOOKUP("x",Turma!$B$4:$H$53,3,0)="Menina",mlsPeso!O3,mlsPeso!O63),"") -> 18.433 | F4: =IF(Turma!A$2=1,IF(VLOOKUP("x",Turma!$B$4:$H$53,3,0)="Menina",mlsPeso!Q3,mlsPeso!Q63),"") -> 21.506 | G4: =IF(Turma!A$2=1,IF(VLOOKUP("x",Turma!$B$4:$H$53,3,0)="Menina",mlsPeso!T3,mlsPeso!T63),"") -> 24.601
A5: 63 | C5: =IF(Turma!A$2=1,IF(VLOOKUP("x",Turma!$B$4:$H$53,3,0)="Menina",mlsPeso!J4,mlsPeso!J64),"") -> 14.421 | D5: =IF(Turma!A$2=1,IF(VLOOKUP("x",Turma!$B$4:$H$53,3,0)="Menina",mlsPeso!M4,mlsPeso!M64),"") -> 16.108 | E5: =IF(Turma!A$2=1,IF(VLOOKUP("x",Turma!$B$4:$H$53,3,0)="Menina",mlsPeso!O4,mlsPeso!O64),"") -> 18.607 | F5: =IF(Turma!A$2=1,IF(VLOOKUP("x",Turma!$B$4:$H$53,3,0)="Menina",mlsPeso!Q4,mlsPeso!Q64),"") -> 21.723 | G5: =IF(Turma!A$2=1,IF(VLOOKUP("x",Turma!$B$4:$H$53,3,0)="Menina",mlsPeso!T4,mlsPeso!T64),"") -> 24.866
A6: 64 | C6: =IF(Turma!A$2=1,IF(VLOOKUP("x",Turma!$B$4:$H$53,3,0)="Menina",mlsPeso!J5,mlsPeso!J65),"") -> 14.544 | D6: =IF(Turma!A$2=1,IF(VLOOKUP("x",Turma!$B$4:$H$53,3,0)="Menina",mlsPeso!M5,mlsPeso!M65),"") -> 16.25 | E6: =IF(Turma!A$2=1,IF(VLOOKUP("x",Turma!$B$4:$H$53,3,0)="Menina",mlsPeso!O5,mlsPeso!O65),"") -> 18.781 | F6: =IF(Turma!A$2=1,IF(VLOOKUP("x",Turma!$B$4:$H$53,3,0)="Menina",mlsPeso!Q5,mlsPeso!Q65),"") -> 21.941 | G6: =IF(Turma!A$2=1,IF(VLOOKUP("x",Turma!$B$4:$H$53,3,0)="Menina",mlsPeso!T5,mlsPeso!T65),"") -> 25.132
A7: 65 | C7: =IF(Turma!A$2=1,IF(VLOOKUP("x",Turma!$B$4:$H$53,3,0)="Menina",mlsPeso!J6,mlsPeso!J66),"") -> 14.666 | D7: =IF(Turma!A$2=1,IF(VLOOKUP("x",Turma!$B$4:$H$53,3,0)="Menina",mlsPeso!M6,mlsPeso!M66),"") -> 16.392 | E7: =IF(Turma!A$2=1,IF(VLOOKUP("x",Turma!$B$4:$H$53,3,0)="Menina",mlsPeso!O6,mlsPeso!O66),"") -> 18.954 | F7: =IF(Turma!A$2=1,IF(VLOOKUP("x",Turma!$B$4:$H$53,3,0)="Menina",mlsPeso!Q6,mlsPeso!Q66),"") -> 22.158 | G7: =IF(Turma!A$2=1,IF(VLOOKUP("x",Turma!$B$4:$H$53,3,0)="Menina",mlsPeso!T6,mlsPeso!T66),"") -> 25.398
A8: 66 | C8: =IF(Turma!A$2=1,IF(VLOOKUP("x",Turma!$B$4:$H$53,3,0)="Menina",mlsPeso!J7,mlsPeso!J67),"") -> 14.788 | D8: =IF(Turma!A$2=1,IF(VLOOKUP("x",Turma!$B$4:$H$53,3,0)="Menina",mlsPeso!M7,mlsPeso!M67),"") -> 16.534 | E8: =IF(Turma!A$2=1,IF(VLOOKUP("x",Turma!$B$4:$H$53,3,0)="Menina",mlsPeso!O7,mlsPeso!O67),"") -> 19.128 | F8: =IF(Turma!A$2=1,IF(VLOOKUP("x",Turma!$B$4:$H$53,3,0)="Menina",mlsPeso!Q7,mlsPeso!Q67),"") -> 22.375 | G8: =IF(Turma!A$2=1,IF(VLOOKUP("x",Turma!$B$4:$H$53,3,0)="Menina",mlsPeso!T7,mlsPeso!T67),"") -> 25.664
A9: 67 | C9: =IF(Turma!A$2=1,IF(VLOOKUP("x",Turma!$B$4:$H$53,3,0)="Menina",mlsPeso!J8,mlsPeso!J68),"") -> 14.909 | D9: =IF(Turma!A$2=1,IF(VLOOKUP("x",Turma!$B$4:$H$53,3,0)="Menina",mlsPeso!M8,mlsPeso!M68),"") -> 16.675 | E9: =IF(Turma!A$2=1,IF(VLOOKUP("x",Turma!$B$4:$H$53,3,0)="Menina",mlsPeso!O8,mlsPeso!O68),"") -> 19.3 | F9: =IF(Turma!A$2=1,IF(VLOOKUP("x",Turma!$B$4:$H$53,3,0)="Menina",mlsPeso!Q8,mlsPeso!Q68),"") -> 22.591 | G9: =IF(Turma!A$2=1,IF(VLOOKUP("x",Turma!$B$4:$H$53,3,0)="Menina",mlsPeso!T8,mlsPeso!T68),"") -> 25.93
A10: 68 | C10: =IF(Turma!A$2=1,IF(VLOOKUP("x",Turma!$B$4:$H$53,3,0)="Menina",mlsPeso!J9,mlsPeso!J69),"") -> 15.03 | D10: =IF(Turma!A$2=1,IF(VLOOKUP("x",Turma!$B$4:$H$53,3,0)="Menina",mlsPeso!M9,mlsPeso!M69),"") -> 16.815 | E10: =IF(Turma!A$2=1,IF(VLOOKUP("x",Turma!$B$4:$H$53,3,0)="Menina",mlsPeso!O9,mlsPeso!O69),"") -> 19.473 | F10: =IF(Turma!A$2=1,IF(VLOOKUP("x",Turma!$B$4:$H$53,3,0)="Menina",mlsPeso!Q9,mlsPeso!Q69),"") -> 22.808 | G10: =IF(Turma!A$2=1,IF(VLOOKUP("x",Turma!$B$4:$H$53,3,0)="Menina",mlsPeso!T9,mlsPeso!T69),"") -> 26.197
A11: 69 | C11: =IF(Turma!A$2=1,IF(VLOOKUP("x",Turma!$B$4:$H$53,3,0)="Menina",mlsPeso!J10,mlsPeso!J70),"") -> 15.151 | D11: =IF(Turma!A$2=1,IF(VLOOKUP("x",Turma!$B$4:$H$53,3,0)="Menina",mlsPeso!M10,mlsPeso!M70),"") -> 16.956 | E11: =IF(Turma!A$2=1,IF(VLOOKUP("x",Turma!$B$4:$H$53,3,0)="Menina",mlsPeso!O10,mlsPeso!O70),"") -> 19.646 | F11: =IF(Turma!A$2=1,IF(VLOOKUP("x",Turma!$B$4:$H$53,3,0)="Menina",mlsPeso!Q10,mlsPeso!Q70),"") -> 23.026 | G11: =IF(Turma!A$2=1,IF(VLOOKUP("x",Turma!$B$4:$H$53,3,0)="Menina",mlsPeso!T10,mlsPeso!T70),"") -> 26.465
A12: 70 | C12: =IF(Turma!A$2=1,IF(VLOOKUP("x",Turma!$B$4:$H$53,3,0)="Menina",mlsPeso!J11,mlsPeso!J71),"") -> 15.272 | D12: =IF(Turma!A$2=1,IF(VLOOKUP("x",Turma!$B$4:$H$53,3,0)="Menina",mlsPeso!M11,mlsPeso!M71),"") -> 17.096 | E12: =IF(Turma!A$2=1,IF(VLOOKUP("x",Turma!$B$4:$H$53,3,0)="Menina",mlsPeso!O11,mlsPeso!O71),"") -> 19.818 | F12: =IF(Turma!A$2=1,IF(VLOOKUP("x",Turma!$B$4:$H$53,3,0)="Menina",mlsPeso!Q11,mlsPeso!Q71),"") -> 23.243 | G12: =IF(Turma!A$2=1,IF(VLOOKUP("x",Turma!$B$4:$H$53,3,0)="Menina",mlsPeso!T11,mlsPeso!T71),"") -> 26.733
A13: 71 | C13: =IF(Turma!A$2=1,IF(VLOOKUP("x",Turma!$B$4:$H$53,3,0)="Menina",mlsPeso!J12,mlsPeso!J72),"") -> 15.392 | D13: =IF(Turma!A$2=1,IF(VLOOKUP("x",Turma!$B$4:$H$53,3,0)="Menina",mlsPeso!M12,mlsPeso!M72),"") -> 17.236 | E13: =IF(Turma!A$2=1,IF(VLOOKUP("x",Turma!$B$4:$H$53,3,0)="Menina",mlsPeso!O12,mlsPeso!O72),"") -> 19.991 | F13: =IF(Turma!A$2=1,IF(VLOOKUP("x",Turma!$B$4:$H$53,3,0)="Menina",mlsPeso!Q12,mlsPeso!Q72),"") -> 23.461 | G13: =IF(Turma!A$2=1,IF(VLOOKUP("x",Turma!$B$4:$H$53,3,0)="Menina",mlsPeso!T12,mlsPeso!T72),"") -> 27.002
A14: 72 | B14: 6 | C14: =IF(Turma!A$2=1,IF(VLOOKUP("x",Turma!$B$4:$H$53,3,0)="Menina",mlsPeso!J13,mlsPeso!J73),"") -> 15.513 | D14: =IF(Turma!A$2=1,IF(VLOOKUP("x",Turma!$B$4:$H$53,3,0)="Menina",mlsPeso!M13,mlsPeso!M73),"") -> 17.377 | E14: =IF(Turma!A$2=1,IF(VLOOKUP("x",Turma!$B$4:$H$53,3,0)="Menina",mlsPeso!O13,mlsPeso!O73),"") -> 20.164 | F14: =IF(Turma!A$2=1,IF(VLOOKUP("x",Turma!$B$4:$H$53,3,0)="Menina",mlsPeso!Q13,mlsPeso!Q73),"") -> 23.68 | G14: =IF(Turma!A$2=1,IF(VLOOKUP("x",Turma!$B$4:$H$53,3,0)="Menina",mlsPeso!T13,mlsPeso!T73),"") -> 27.273
A15: 73 | C15: =IF(Turma!A$2=1,IF(VLOOKUP("x",Turma!$B$4:$H$53,3,0)="Menina",mlsPeso!J14,mlsPeso!J74),"") -> 15.634 | D15: =IF(Turma!A$2=1,IF(VLOOKUP("x",Turma!$B$4:$H$53,3,0)="Menina",mlsPeso!M14,mlsPeso!M74),"") -> 17.518 | E15: =IF(Turma!A$2=1,IF(VLOOKUP("x",Turma!$B$4:$H$53,3,0)="Menina",mlsPeso!O14,mlsPeso!O74),"") -> 20.338 | F15: =IF(Turma!A$2=1,IF(VLOOKUP("x",Turma!$B$4:$H$53,3,0)="Menina",mlsPeso!Q14,mlsPeso!Q74),"") -> 23.9 | G15: =IF(Turma!A$2=1,IF(VLOOKUP("x",Turma!$B$4:$H$53,3,0)="Menina",mlsPeso!T14,mlsPeso!T74),"") -> 27.545
A16: 74 | C16: =IF(Turma!A$2=1,IF(VLOOKUP("x",Turma!$B$4:$H$53,3,0)="Menina",mlsPeso!J15,mlsPeso!J75),"") -> 15.756 | D16: =IF(Turma!A$2=1,IF(VLOOKUP("x",Turma!$B$4:$H$53,3,0)="Menina",mlsPeso!M15,mlsPeso!M75),"") -> 17.66 | E16: =IF(Turma!A$2=1,IF(VLOOKUP("x",Turma!$B$4:$H$53,3,0)="Menina",mlsPeso!O15,mlsPeso!O75),"") -> 20.512 | F16: =IF(Turma!A$2=1,IF(VLOOKUP("x",Turma!$B$4:$H$53,3,0)="Menina",mlsPeso!Q15,mlsPeso!Q75),"") -> 24.121 | G16: =IF(Turma!A$2=1,IF(VLOOKUP("x",Turma!$B$4:$H$53,3,0)="Menina",mlsPeso!T15,mlsPeso!T75),"") -> 27.819
A17: 75 | C17: =IF(Turma!A$2=1,IF(VLOOKUP("x",Turma!$B$4:$H$53,3,0)="Menina",mlsPeso!J16,mlsPeso!J76),"") -> 15.878 | D17: =IF(Turma!A$2=1,IF(VLOOKUP("x",Turma!$B$4:$H$53,3,0)="Menina",mlsPeso!M16,mlsPeso!M76),"") -> 17.803 | E17: =IF(Turma!A$2=1,IF(VLOOKUP("x",Turma!$B$4:$H$53,3,0)="Menina",mlsPeso!O16,mlsPeso!O76),"") -> 20.688 | F17: =IF(Turma!A$2=1,IF(VLOOKUP("x",Turma!$B$4:$H$53,3,0)="Menina",mlsPeso!Q16,mlsPeso!Q76),"") -> 24.344 | G17: =IF(Turma!A$2=1,IF(VLOOKUP("x",Turma!$B$4:$H$53,3,0)="Menina",mlsPeso!T16,mlsPeso!T76),"") -> 28.095
A18: 76 | C18: =IF(Turma!A$2=1,IF(VLOOKUP("x",Turma!$B$4:$H$53,3,0)="Menina",mlsPeso!J17,mlsPeso!J77),"") -> 16.001 | D18: =IF(Turma!A$2=1,IF(VLOOKUP("x",Turma!$B$4:$H$53,3,0)="Menina",mlsPeso!M17,mlsPeso!M77),"") -> 17.947 | E18: =IF(Turma!A$2=1,IF(VLOOKUP("x",Turma!$B$4:$H$53,3,0)="Menina",mlsPeso!O17,mlsPeso!O77),"") -> 20.866 | F18: =IF(Turma!A$2=1,IF(VLOOKUP("x",Turma!$B$4:$H$53,3,0)="Menina",mlsPeso!Q17,mlsPeso!Q77),"") -> 24.569 | G18: =IF(Turma!A$2=1,IF(VLOOKUP("x",Turma!$B$4:$H$53,3,0)="Menina",mlsPeso!T17,mlsPeso!T77),"") -> 28.375
A19: 77 | C19: =IF(Turma!A$2=1,IF(VLOOKUP("x",Turma!$B$4:$H$53,3,0)="Menina",mlsPeso!J18,mlsPeso!J78),"") -> 16.126 | D19: =IF(Turma!A$2=1,IF(VLOOKUP("x",Turma!$B$4:$H$53,3,0)="Menina",mlsPeso!M18,mlsPeso!M78),"") -> 18.092 | E19: =IF(Turma!A$2=1,IF(VLOOKUP("x",Turma!$B$4:$H$53,3,0)="Menina",mlsPeso!O18,mlsPeso!O78),"") -> 21.046 | F19: =IF(Turma!A$2=1,IF(VLOOKUP("x",Turma!$B$4:$H$53,3,0)="Menina",mlsPeso!Q18,mlsPeso!Q78),"") -> 24.797 | G19: =IF(Turma!A$2=1,IF(VLOOKUP("x",Turma!$B$4:$H$53,3,0)="Menina",mlsPeso!T18,mlsPeso!T78),"") -> 28.658
A20: 78 | C20: =IF(Turma!A$2=1,IF(VLOOKUP("x",Turma!$B$4:$H$53,3,0)="Menina",mlsPeso!J19,mlsPeso!J79),"") -> 16.252 | D20: =IF(Turma!A$2=1,IF(VLOOKUP("x",Turma!$B$4:$H$53,3,0)="Menina",mlsPeso!M19,mlsPeso!M79),"") -> 18.239 | E20: =IF(Turma!A$2=1,IF(VLOOKUP("x",Turma!$B$4:$H$53,3,0)="Menina",mlsPeso!O19,mlsPeso!O79),"") -> 21.227 | F20: =IF(Turma!A$2=1,IF(VLOOKUP("x",Turma!$B$4:$H$53,3,0)="Menina",mlsPeso!Q19,mlsPeso!Q79),"") -> 25.028 | G20: =IF(Turma!A$2=1,IF(VLOOKUP("x",Turma!$B$4:$H$53,3,0)="Menina",mlsPeso!T19,mlsPeso!T79),"") -> 28.945
A21: 79 | C21: =IF(Turma!A$2=1,IF(VLOOKUP("x",Turma!$B$4:$H$53,3,0)="Menina",mlsPeso!J20,mlsPeso!J80),"") -> 16.38 | D21: =IF(Turma!A$2=1,IF(VLOOKUP("x",Turma!$B$4:$H$53,3,0)="Menina",mlsPeso!M20,mlsPeso!M80),"") -> 18.388 | E21: =IF(Turma!A$2=1,IF(VLOOKUP("x",Turma!$B$4:$H$53,3,0)="Menina",mlsPeso!O20,mlsPeso!O80),"") -> 21.411 | F21: =IF(Turma!A$2=1,IF(VLOOKUP("x",Turma!$B$4:$H$53,3,0)="Menina",mlsPeso!Q20,mlsPeso!Q80),"") -> 25.261 | G21: =IF(Turma!A$2=1,IF(VLOOKUP("x",Turma!$B$4:$H$53,3,0)="Menina",mlsPeso!T20,mlsPeso!T80),"") -> 29.234
A22: 80 | C22: =IF(Turma!A$2=1,IF(VLOOKUP("x",Turma!$B$4:$H$53,3,0)="Menina",mlsPeso!J21,mlsPeso!J81),"") -> 16.509 | D22: =IF(Turma!A$2=1,IF(VLOOKUP("x",Turma!$B$4:$H$53,3,0)="Menina",mlsPeso!M21,mlsPeso!M81),"") -> 18.539 | E22: =IF(Turma!A$2=1,IF(VLOOKUP("x",Turma!$B$4:$H$53,3,0)="Menina",mlsPeso!O21,mlsPeso!O81),"") -> 21.598 | F22: =IF(Turma!A$2=1,IF(VLOOKUP("x",Turma!$B$4:$H$53,3,0)="Menina",mlsPeso!Q21,mlsPeso!Q81),"") -> 25.498 | G22: =IF(Turma!A$2=1,IF(VLOOKUP("x",Turma!$B$4:$H$53,3,0)="Menina",mlsPeso!T21,mlsPeso!T81),"") -> 29.529
A23: 81 | C23: =IF(Turma!A$2=1,IF(VLOOKUP("x",Turma!$B$4:$H$53,3,0)="Menina",mlsPeso!J22,mlsPeso!J82),"") -> 16.641 | D23: =IF(Turma!A$2=1,IF(VLOOKUP("x",Turma!$B$4:$H$53,3,0)="Menina",mlsPeso!M22,mlsPeso!M82),"") -> 18.693 | E23: =IF(Turma!A$2=1,IF(VLOOKUP("x",Turma!$B$4:$H$53,3,0)="Menina",mlsPeso!O22,mlsPeso!O82),"") -> 21.787 | F23: =IF(Turma!A$2=1,IF(VLOOKUP("x",Turma!$B$4:$H$53,3,0)="Menina",mlsPeso!Q22,mlsPeso!Q82),"") -> 25.738 | G23: =IF(Turma!A$2=1,IF(VLOOKUP("x",Turma!$B$4:$H$53,3,0)="Menina",mlsPeso!T22,mlsPeso!T82),"") -> 29.828
A24: 82 | C24: =IF(Turma!A$2=1,IF(VLOOKUP("x",Turma!$B$4:$H$53,3,0)="Menina",mlsPeso!J23,mlsPeso!J83),"") -> 16.774 | D24: =IF(Turma!A$2=1,IF(VLOOKUP("x",Turma!$B$4:$H$53,3,0)="Menina",mlsPeso!M23,mlsPeso!M83),"") -> 18.848 | E24: =IF(Turma!A$2=1,IF(VLOOKUP("x",Turma!$B$4:$H$53,3,0)="Menina",mlsPeso!O23,mlsPeso!O83),"") -> 21.98 | F24: =IF(Turma!A$2=1,IF(VLOOKUP("x",Turma!$B$4:$H$53,3,0)="Menina",mlsPeso!Q23,mlsPeso!Q83),"") -> 25.982 | G24: =IF(Turma!A$2=1,IF(VLOOKUP("x",Turma!$B$4:$H$53,3,0)="Menina",mlsPeso!T23,mlsPeso!T83),"") -> 30.132
A25: 83 | C25: =IF(Turma!A$2=1,IF(VLOOKUP("x",Turma!$B$4:$H$53,3,0)="Menina",mlsPeso!J24,mlsPeso!J84),"") -> 16.91 | D25: =IF(Turma!A$2=1,IF(VLOOKUP("x",Turma!$B$4:$H$53,3,0)="Menina",mlsPeso!M24,mlsPeso!M84),"") -> 19.007 | E25: =IF(Turma!A$2=1,IF(VLOOKUP("x",Turma!$B$4:$H$53,3,0)="Menina",mlsPeso!O24,mlsPeso!O84),"") -> 22.175 | F25: =IF(Turma!A$2=1,IF(VLOOKUP("x",Turma!$B$4:$H$53,3,0)="Menina",mlsPeso!Q24,mlsPeso!Q84),"") -> 26.231 | G25: =IF(Turma!A$2=1,IF(VLOOKUP("x",Turma!$B$4:$H$53,3,0)="Menina",mlsPeso!T24,mlsPeso!T84),"") -> 30.441
A26: 84 | B26: 7 | C26: =IF(Turma!A$2=1,IF(VLOOKUP("x",Turma!$B$4:$H$53,3,0)="Menina",mlsPeso!J25,mlsPeso!J85),"") -> 17.049 | D26: =IF(Turma!A$2=1,IF(VLOOKUP("x",Turma!$B$4:$H$53,3,0)="Menina",mlsPeso!M25,mlsPeso!M85),"") -> 19.168 | E26: =IF(Turma!A$2=1,IF(VLOOKUP("x",Turma!$B$4:$H$53,3,0)="Menina",mlsPeso!O25,mlsPeso!O85),"") -> 22.374 | F26: =IF(Turma!A$2=1,IF(VLOOKUP("x",Turma!$B$4:$H$53,3,0)="Menina",mlsPeso!Q25,mlsPeso!Q85),"") -> 26.483 | G26: =IF(Turma!A$2=1,IF(VLOOKUP("x",Turma!$B$4:$H$53,3,0)="Menina",mlsPeso!T25,mlsPeso!T85),"") -> 30.755
A27: 85 | C27: =IF(Turma!A$2=1,IF(VLOOKUP("x",Turma!$B$4:$H$53,3,0)="Menina",mlsPeso!J26,mlsPeso!J86),"") -> 17.189 | D27: =IF(Turma!A$2=1,IF(VLOOKUP("x",Turma!$B$4:$H$53,3,0)="Menina",mlsPeso!M26,mlsPeso!M86),"") -> 19.332 | E27: =IF(Turma!A$2=1,IF(VLOOKUP("x",Turma!$B$4:$H$53,3,0)="Menina",mlsPeso!O26,mlsPeso!O86),"") -> 22.576 | F27: =IF(Turma!A$2=1,IF(VLOOKUP("x",Turma!$B$4:$H$53,3,0)="Menina",mlsPeso!Q26,mlsPeso!Q86),"") -> 26.74 | G27: =IF(Turma!A$2=1,IF(VLOOKUP("x",Turma!$B$4:$H$53,3,0)="Menina",mlsPeso!T26,mlsPeso!T86),"") -> 31.075
A28: 86 | C28: =IF(Turma!A$2=1,IF(VLOOKUP("x",Turma!$B$4:$H$53,3,0)="Menina",mlsPeso!J27,mlsPeso!J87),"") -> 17.332 | D28: =IF(Turma!A$2=1,IF(VLOOKUP("x",Turma!$B$4:$H$53,3,0)="Menina",mlsPeso!M27,mlsPeso!M87),"") -> 19.499 | E28: =IF(Turma!A$2=1,IF(VLOOKUP("x",Turma!$B$4:$H$53,3,0)="Menina",mlsPeso!O27,mlsPeso!O87),"") -> 22.782 | F28: =IF(Turma!A$2=1,IF(VLOOKUP("x",Turma!$B$4:$H$53,3,0)="Menina",mlsPeso!Q27,mlsPeso!Q87),"") -> 27 | G28: =IF(Turma!A$2=1,IF(VLOOKUP("x",Turma!$B$4:$H$53,3,0)="Menina",mlsPeso!T27,mlsPeso!T87),"") -> 31.399
A29: 87 | C29: =IF(Turma!A$2=1,IF(VLOOKUP("x",Turma!$B$4:$H$53,3,0)="Menina",mlsPeso!J28,mlsPeso!J88),"") -> 17.477 | D29: =IF(Turma!A$2=1,IF(VLOOKUP("x",Turma!$B$4:$H$53,3,0)="Menina",mlsPeso!M28,mlsPeso!M88),"") -> 19.668 | E29: =IF(Turma!A$2=1,IF(VLOOKUP("x",Turma!$B$4:$H$53,3,0)="Menina",mlsPeso!O28,mlsPeso!O88),"") -> 22.99 | F29: =IF(Turma!A$2=1,IF(VLOOKUP("x",Turma!$B$4:$H$53,3,0)="Menina",mlsPeso!Q28,mlsPeso!Q88),"") -> 27.265 | G29: =IF(Turma!A$2=1,IF(VLOOKUP("x",Turma!$B$4:$H$53,3,0)="Menina",mlsPeso!T28,mlsPeso!T88),"") -> 31.73
A30: 88 | C30: =IF(Turma!A$2=1,IF(VLOOKUP("x",Turma!$B$4:$H$53,3,0)="Menina",mlsPeso!J29,mlsPeso!J89),"") -> 17.625 | D30: =IF(Turma!A$2=1,IF(VLOOKUP("x",Turma!$B$4:$H$53,3,0)="Menina",mlsPeso!M29,mlsPeso!M89),"") -> 19.84 | E30: =IF(Turma!A$2=1,IF(VLOOKUP("x",Turma!$B$4:$H$53,3,0)="Menina",mlsPeso!O29,mlsPeso!O89),"") -> 23.202 | F30: =IF(Turma!A$2=1,IF(VLOOKUP("x",Turma!$B$4:$H$53,3,0)="Menina",mlsPeso!Q29,mlsPeso!Q89),"") -> 27.535 | G30: =IF(Turma!A$2=1,IF(VLOOKUP("x",Turma!$B$4:$H$53,3,0)="Menina",mlsPeso!T29,mlsPeso!T89),"") -> 32.065
A31: 89 | C31: =IF(Turma!A$2=1,IF(VLOOKUP("x",Turma!$B$4:$H$53,3,0)="Menina",mlsPeso!J30,mlsPeso!J90),"") -> 17.775 | D31: =IF(Turma!A$2=1,IF(VLOOKUP("x",Turma!$B$4:$H$53,3,0)="Menina",mlsPeso!M30,mlsPeso!M90),"") -> 20.014 | E31: =IF(Turma!A$2=1,IF(VLOOKUP("x",Turma!$B$4:$H$53,3,0)="Menina",mlsPeso!O30,mlsPeso!O90),"") -> 23.418 | F31: =IF(Turma!A$2=1,IF(VLOOKUP("x",Turma!$B$4:$H$53,3,0)="Menina",mlsPeso!Q30,mlsPeso!Q90),"") -> 27.808 | G31: =IF(Turma!A$2=1,IF(VLOOKUP("x",Turma!$B$4:$H$53,3,0)="Menina",mlsPeso!T30,mlsPeso!T90),"") -> 32.406
A32: 90 | C32: =IF(Turma!A$2=1,IF(VLOOKUP("x",Turma!$B$4:$H$53,3,0)="Menina",mlsPeso!J31,mlsPeso!J91),"") -> 17.927 | D32: =IF(Turma!A$2=1,IF(VLOOKUP("x",Turma!$B$4:$H$53,3,0)="Menina",mlsPeso!M31,mlsPeso!M91),"") -> 20.192 | E32: =IF(Turma!A$2=1,IF(VLOOKUP("x",Turma!$B$4:$H$53,3,0)="Menina",mlsPeso!O31,mlsPeso!O91),"") -> 23.637 | F32: =IF(Turma!A$2=1,IF(VLOOKUP("x",Turma!$B$4:$H$53,3,0)="Menina",mlsPeso!Q31,mlsPeso!Q91),"") -> 28.086 | G32: =IF(Turma!A$2=1,IF(VLOOKUP("x",Turma!$B$4:$H$53,3,0)="Menina",mlsPeso!T31,mlsPeso!T91),"") -> 32.752
A33: 91 | C33: =IF(Turma!A$2=1,IF(VLOOKUP("x",Turma!$B$4:$H$53,3,0)="Menina",mlsPeso!J32,mlsPeso!J92),"") -> 18.082 | D33: =IF(Turma!A$2=1,IF(VLOOKUP("x",Turma!$B$4:$H$53,3,0)="Menina",mlsPeso!M32,mlsPeso!M92),"") -> 20.372 | E33: =IF(Turma!A$2=1,IF(VLOOKUP("x",Turma!$B$4:$H$53,3,0)="Menina",mlsPeso!O32,mlsPeso!O92),"") -> 23.859 | F33: =IF(Turma!A$2=1,IF(VLOOKUP("x",Turma!$B$4:$H$53,3,0)="Menina",mlsPeso!Q32,mlsPeso!Q92),"") -> 28.368 | G33: =IF(Turma!A$2=1,IF(VLOOKUP("x",Turma!$B$4:$H$53,3,0)="Menina",mlsPeso!T32,mlsPeso!T92),"") -> 33.103
A34: 92 | C34: =IF(Turma!A$2=1,IF(VLOOKUP("x",Turma!$B$4:$H$53,3,0)="Menina",mlsPeso!J33,mlsPeso!J93),"") -> 18.24 | D34: =IF(Turma!A$2=1,IF(VLOOKUP("x",Turma!$B$4:$H$53,3,0)="Menina",mlsPeso!M33,mlsPeso!M93),"") -> 20.556 | E34: =IF(Turma!A$2=1,IF(VLOOKUP("x",Turma!$B$4:$H$53,3,0)="Menina",mlsPeso!O33,mlsPeso!O93),"") -> 24.085 | F34: =IF(Turma!A$2=1,IF(VLOOKUP("x",Turma!$B$4:$H$53,3,0)="Menina",mlsPeso!Q33,mlsPeso!Q93),"") -> 28.655 | G34: =IF(Turma!A$2=1,IF(VLOOKUP("x",Turma!$B$4:$H$53,3,0)="Menina",mlsPeso!T33,mlsPeso!T93),"") -> 33.46
A35: 93 | C35: =IF(Turma!A$2=1,IF(VLOOKUP("x",Turma!$B$4:$H$53,3,0)="Menina",mlsPeso!J34,mlsPeso!J94),"") -> 18.4 | D35: =IF(Turma!A$2=1,IF(VLOOKUP("x",Turma!$B$4:$H$53,3,0)="Menina",mlsPeso!M34,mlsPeso!M94),"") -> 20.742 | E35: =IF(Turma!A$2=1,IF(VLOOKUP("x",Turma!$B$4:$H$53,3,0)="Menina",mlsPeso!O34,mlsPeso!O94),"") -> 24.315 | F35: =IF(Turma!A$2=1,IF(VLOOKUP("x",Turma!$B$4:$H$53,3,0)="Menina",mlsPeso!Q34,mlsPeso!Q94),"") -> 28.946 | G35: =IF(Turma!A$2=1,IF(VLOOKUP("x",Turma!$B$4:$H$53,3,0)="Menina",mlsPeso!T34,mlsPeso!T94),"") -> 33.823
A36: 94 | C36: =IF(Turma!A$2=1,IF(VLOOKUP("x",Turma!$B$4:$H$53,3,0)="Menina",mlsPeso!J35,mlsPeso!J95),"") -> 18.562 | D36: =IF(Turma!A$2=1,IF(VLOOKUP("x",Turma!$B$4:$H$53,3,0)="Menina",mlsPeso!M35,mlsPeso!M95),"") -> 20.931 | E36: =IF(Turma!A$2=1,IF(VLOOKUP("x",Turma!$B$4:$H$53,3,0)="Menina",mlsPeso!O35,mlsPeso!O95),"") -> 24.548 | F36: =IF(Turma!A$2=1,IF(VLOOKUP("x",Turma!$B$4:$H$53,3,0)="Menina",mlsPeso!Q35,mlsPeso!Q95),"") -> 29.242 | G36: =IF(Turma!A$2=1,IF(VLOOKUP("x",Turma!$B$4:$H$53,3,0)="Menina",mlsPeso!T35,mlsPeso!T95),"") -> 34.192
A37: 95 | C37: =IF(Turma!A$2=1,IF(VLOOKUP("x",Turma!$B$4:$H$53,3,0)="Menina",mlsPeso!J36,mlsPeso!J96),"") -> 18.728 | D37: =IF(Turma!A$2=1,IF(VLOOKUP("x",Turma!$B$4:$H$53,3,0)="Menina",mlsPeso!M36,mlsPeso!M96),"") -> 21.124 | E37: =IF(Turma!A$2=1,IF(VLOOKUP("x",Turma!$B$4:$H$53,3,0)="Menina",mlsPeso!O36,mlsPeso!O96),"") -> 24.785 | F37: =IF(Turma!A$2=1,IF(VLOOKUP("x",Turma!$B$4:$H$53,3,0)="Menina",mlsPeso!Q36,mlsPeso!Q96),"") -> 29.543 | G37: =IF(Turma!A$2=1,IF(VLOOKUP("x",Turma!$B$4:$H$53,3,0)="Menina",mlsPeso!T36,mlsPeso!T96),"") -> 34.567
A38: 96 | B38: 8 | C38: =IF(Turma!A$2=1,IF(VLOOKUP("x",Turma!$B$4:$H$53,3,0)="Menina",mlsPeso!J37,mlsPeso!J97),"") -> 18.896 | D38: =IF(Turma!A$2=1,IF(VLOOKUP("x",Turma!$B$4:$H$53,3,0)="Menina",mlsPeso!M37,mlsPeso!M97),"") -> 21.319 | E38: =IF(Turma!A$2=1,IF(VLOOKUP("x",Turma!$B$4:$H$53,3,0)="Menina",mlsPeso!O37,mlsPeso!O97),"") -> 25.026 | F38: =IF(Turma!A$2=1,IF(VLOOKUP("x",Turma!$B$4:$H$53,3,0)="Menina",mlsPeso!Q37,mlsPeso!Q97),"") -> 29.849 | G38: =IF(Turma!A$2=1,IF(VLOOKUP("x",Turma!$B$4:$H$53,3,0)="Menina",mlsPeso!T37,mlsPeso!T97),"") -> 34.947
A39: 97 | C39: =IF(Turma!A$2=1,IF(VLOOKUP("x",Turma!$B$4:$H$53,3,0)="Menina",mlsPeso!J38,mlsPeso!J98),"") -> 19.066 | D39: =IF(Turma!A$2=1,IF(VLOOKUP("x",Turma!$B$4:$H$53,3,0)="Menina",mlsPeso!M38,mlsPeso!M98),"") -> 21.518 | E39: =IF(Turma!A$2=1,IF(VLOOKUP("x",Turma!$B$4:$H$53,3,0)="Menina",mlsPeso!O38,mlsPeso!O98),"") -> 25.271 | F39: =IF(Turma!A$2=1,IF(VLOOKUP("x",Turma!$B$4:$H$53,3,0)="Menina",mlsPeso!Q38,mlsPeso!Q98),"") -> 30.159 | G39: =IF(Turma!A$2=1,IF(VLOOKUP("x",Turma!$B$4:$H$53,3,0)="Menina",mlsPeso!T38,mlsPeso!T98),"") -> 35.334
A40: 98 | C40: =IF(Turma!A$2=1,IF(VLOOKUP("x",Turma!$B$4:$H$53,3,0)="Menina",mlsPeso!J39,mlsPeso!J99),"") -> 19.24 | D40: =IF(Turma!A$2=1,IF(VLOOKUP("x",Turma!$B$4:$H$53,3,0)="Menina",mlsPeso!M39,mlsPeso!M99),"") -> 21.72 | E40: =IF(Turma!A$2=1,IF(VLOOKUP("x",Turma!$B$4:$H$53,3,0)="Menina",mlsPeso!O39,mlsPeso!O99),"") -> 25.52 | F40: =IF(Turma!A$2=1,IF(VLOOKUP("x",Turma!$B$4:$H$53,3,0)="Menina",mlsPeso!Q39,mlsPeso!Q99),"") -> 30.474 | G40: =IF(Turma!A$2=1,IF(VLOOKUP("x",Turma!$B$4:$H$53,3,0)="Menina",mlsPeso!T39,mlsPeso!T99),"") -> 35.727
A41: 99 | C41: =IF(Turma!A$2=1,IF(VLOOKUP("x",Turma!$B$4:$H$53,3,0)="Menina",mlsPeso!J40,mlsPeso!J100),"") -> 19.416 | D41: =IF(Turma!A$2=1,IF(VLOOKUP("x",Turma!$B$4:$H$53,3,0)="Menina",mlsPeso!M40,mlsPeso!M100),"") -> 21.925 | E41: =IF(Turma!A$2=1,IF(VLOOKUP("x",Turma!$B$4:$H$53,3,0)="Menina",mlsPeso!O40,mlsPeso!O100),"") -> 25.772 | F41: =IF(Turma!A$2=1,IF(VLOOKUP("x",Turma!$B$4:$H$53,3,0)="Menina",mlsPeso!Q40,mlsPeso!Q100),"") -> 30.794 | G41: =IF(Turma!A$2=1,IF(VLOOKUP("x",Turma!$B$4:$H$53,3,0)="Menina",mlsPeso!T40,mlsPeso!T100),"") -> 36.126
A42: 100 | C42: =IF(Turma!A$2=1,IF(VLOOKUP("x",Turma!$B$4:$H$53,3,0)="Menina",mlsPeso!J41,mlsPeso!J101),"") -> 19.595 | D42: =IF(Turma!A$2=1,IF(VLOOKUP("x",Turma!$B$4:$H$53,3,0)="Menina",mlsPeso!M41,mlsPeso!M101),"") -> 22.133 | E42: =IF(Turma!A$2=1,IF(VLOOKUP("x",Turma!$B$4:$H$53,3,0)="Menina",mlsPeso!O41,mlsPeso!O101),"") -> 26.028 | F42: =IF(Turma!A$2=1,IF(VLOOKUP("x",Turma!$B$4:$H$53,3,0)="Menina",mlsPeso!Q41,mlsPeso!Q101),"") -> 31.119 | G42: =IF(Turma!A$2=1,IF(VLOOKUP("x",Turma!$B$4:$H$53,3,0)="Menina",mlsPeso!T41,mlsPeso!T101),"") -> 36.53
A43: 101 | C43: =IF(Turma!A$2=1,IF(VLOOKUP("x",Turma!$B$4:$H$53,3,0)="Menina",mlsPeso!J42,mlsPeso!J102),"") -> 19.777 | D43: =IF(Turma!A$2=1,IF(VLOOKUP("x",Turma!$B$4:$H$53,3,0)="Menina",mlsPeso!M42,mlsPeso!M102),"") -> 22.345 | E43: =IF(Turma!A$2=1,IF(VLOOKUP("x",Turma!$B$4:$H$53,3,0)="Menina",mlsPeso!O42,mlsPeso!O102),"") -> 26.288 | F43: =IF(Turma!A$2=1,IF(VLOOKUP("x",Turma!$B$4:$H$53,3,0)="Menina",mlsPeso!Q42,mlsPeso!Q102),"") -> 31.448 | G43: =IF(Turma!A$2=1,IF(VLOOKUP("x",Turma!$B$4:$H$53,3,0)="Menina",mlsPeso!T42,mlsPeso!T102),"") -> 36.94
A44: 102 | C44: =IF(Turma!A$2=1,IF(VLOOKUP("x",Turma!$B$4:$H$53,3,0)="Menina",mlsPeso!J43,mlsPeso!J103),"") -> 19.961 | D44: =IF(Turma!A$2=1,IF(VLOOKUP("x",Turma!$B$4:$H$53,3,0)="Menina",mlsPeso!M43,mlsPeso!M103),"") -> 22.559 | E44: =IF(Turma!A$2=1,IF(VLOOKUP("x",Turma!$B$4:$H$53,3,0)="Menina",mlsPeso!O43,mlsPeso!O103),"") -> 26.552 | F44: =IF(Turma!A$2=1,IF(VLOOKUP("x",Turma!$B$4:$H$53,3,0)="Menina",mlsPeso!Q43,mlsPeso!Q103),"") -> 31.782 | G44: =IF(Turma!A$2=1,IF(VLOOKUP("x",Turma!$B$4:$H$53,3,0)="Menina",mlsPeso!T43,mlsPeso!T103),"") -> 37.355
A45: 103 | C45: =IF(Turma!A$2=1,IF(VLOOKUP("x",Turma!$B$4:$H$53,3,0)="Menina",mlsPeso!J44,mlsPeso!J104),"") -> 20.147 | D45: =IF(Turma!A$2=1,IF(VLOOKUP("x",Turma!$B$4:$H$53,3,0)="Menina",mlsPeso!M44,mlsPeso!M104),"") -> 22.776 | E45: =IF(Turma!A$2=1,IF(VLOOKUP("x",Turma!$B$4:$H$53,3,0)="Menina",mlsPeso!O44,mlsPeso!O104),"") -> 26.819 | F45: =IF(Turma!A$2=1,IF(VLOOKUP("x",Turma!$B$4:$H$53,3,0)="Menina",mlsPeso!Q44,mlsPeso!Q104),"") -> 32.121 | G45: =IF(Turma!A$2=1,IF(VLOOKUP("x",Turma!$B$4:$H$53,3,0)="Menina",mlsPeso!T44,mlsPeso!T104),"") -> 37.778
A46: 104 | C46: =IF(Turma!A$2=1,IF(VLOOKUP("x",Turma!$B$4:$H$53,3,0)="Menina",mlsPeso!J45,mlsPeso!J105),"") -> 20.337 | D46: =IF(Turma!A$2=1,IF(VLOOKUP("x",Turma!$B$4:$H$53,3,0)="Menina",mlsPeso!M45,mlsPeso!M105),"") -> 22.996 | E46: =IF(Turma!A$2=1,IF(VLOOKUP("x",Turma!$B$4:$H$53,3,0)="Menina",mlsPeso!O45,mlsPeso!O105),"") -> 27.09 | F46: =IF(Turma!A$2=1,IF(VLOOKUP("x",Turma!$B$4:$H$53,3,0)="Menina",mlsPeso!Q45,mlsPeso!Q105),"") -> 32.463 | G46: =IF(Turma!A$2=1,IF(VLOOKUP("x",Turma!$B$4:$H$53,3,0)="Menina",mlsPeso!T45,mlsPeso!T105),"") -> 38.204
A47: 105 | C47: =IF(Turma!A$2=1,IF(VLOOKUP("x",Turma!$B$4:$H$53,3,0)="Menina",mlsPeso!J46,mlsPeso!J106),"") -> 20.528 | D47: =IF(Turma!A$2=1,IF(VLOOKUP("x",Turma!$B$4:$H$53,3,0)="Menina",mlsPeso!M46,mlsPeso!M106),"") -> 23.219 | E47: =IF(Turma!A$2=1,IF(VLOOKUP("x",Turma!$B$4:$H$53,3,0)="Menina",mlsPeso!O46,mlsPeso!O106),"") -> 27.364 | F47: =IF(Turma!A$2=1,IF(VLOOKUP("x",Turma!$B$4:$H$53,3,0)="Menina",mlsPeso!Q46,mlsPeso!Q106),"") -> 32.81 | G47: =IF(Turma!A$2=1,IF(VLOOKUP("x",Turma!$B$4:$H$53,3,0)="Menina",mlsPeso!T46,mlsPeso!T106),"") -> 38.636
A48: 106 | C48: =IF(Turma!A$2=1,IF(VLOOKUP("x",Turma!$B$4:$H$53,3,0)="Menina",mlsPeso!J47,mlsPeso!J107),"") -> 20.722 | D48: =IF(Turma!A$2=1,IF(VLOOKUP("x",Turma!$B$4:$H$53,3,0)="Menina",mlsPeso!M47,mlsPeso!M107),"") -> 23.444 | E48: =IF(Turma!A$2=1,IF(VLOOKUP("x",Turma!$B$4:$H$53,3,0)="Menina",mlsPeso!O47,mlsPeso!O107),"") -> 27.641 | F48: =IF(Turma!A$2=1,IF(VLOOKUP("x",Turma!$B$4:$H$53,3,0)="Menina",mlsPeso!Q47,mlsPeso!Q107),"") -> 33.161 | G48: =IF(Turma!A$2=1,IF(VLOOKUP("x",Turma!$B$4:$H$53,3,0)="Menina",mlsPeso!T47,mlsPeso!T107),"") -> 39.073
A49: 107 | C49: =IF(Turma!A$2=1,IF(VLOOKUP("x",Turma!$B$4:$H$53,3,0)="Menina",mlsPeso!J48,mlsPeso!J108),"") -> 20.918 | D49: =IF(Turma!A$2=1,IF(VLOOKUP("x",Turma!$B$4:$H$53,3,0)="Menina",mlsPeso!M48,mlsPeso!M108),"") -> 23.672 | E49: =IF(Turma!A$2=1,IF(VLOOKUP("x",Turma!$B$4:$H$53,3,0)="Menina",mlsPeso!O48,mlsPeso!O108),"") -> 27.921 | F49: =IF(Turma!A$2=1,IF(VLOOKUP("x",Turma!$B$4:$H$53,3,0)="Menina",mlsPeso!Q48,mlsPeso!Q108),"") -> 33.516 | G49: =IF(Turma!A$2=1,IF(VLOOKUP("x",Turma!$B$4:$H$53,3,0)="Menina",mlsPeso!T48,mlsPeso!T108),"") -> 39.514
A50: 108 | B50: 9 | C50: =IF(Turma!A$2=1,IF(VLOOKUP("x",Turma!$B$4:$H$53,3,0)="Menina",mlsPeso!J49,mlsPeso!J109),"") -> 21.116 | D50: =IF(Turma!A$2=1,IF(VLOOKUP("x",Turma!$B$4:$H$53,3,0)="Menina",mlsPeso!M49,mlsPeso!M109),"") -> 23.902 | E50: =IF(Turma!A$2=1,IF(VLOOKUP("x",Turma!$B$4:$H$53,3,0)="Menina",mlsPeso!O49,mlsPeso!O109),"") -> 28.204 | F50: =IF(Turma!A$2=1,IF(VLOOKUP("x",Turma!$B$4:$H$53,3,0)="Menina",mlsPeso!Q49,mlsPeso!Q109),"") -> 33.874 | G50: =IF(Turma!A$2=1,IF(VLOOKUP("x",Turma!$B$4:$H$53,3,0)="Menina",mlsPeso!T49,mlsPeso!T109),"") -> 39.96
A51: 109 | C51: =IF(Turma!A$2=1,IF(VLOOKUP("x",Turma!$B$4:$H$53,3,0)="Menina",mlsPeso!J50,mlsPeso!J110),"") -> 21.316 | D51: =IF(Turma!A$2=1,IF(VLOOKUP("x",Turma!$B$4:$H$53,3,0)="Menina",mlsPeso!M50,mlsPeso!M110),"") -> 24.135 | E51: =IF(Turma!A$2=1,IF(VLOOKUP("x",Turma!$B$4:$H$53,3,0)="Menina",mlsPeso!O50,mlsPeso!O110),"") -> 28.49 | F51: =IF(Turma!A$2=1,IF(VLOOKUP("x",Turma!$B$4:$H$53,3,0)="Menina",mlsPeso!Q50,mlsPeso!Q110),"") -> 34.237 | G51: =IF(Turma!A$2=1,IF(VLOOKUP("x",Turma!$B$4:$H$53,3,0)="Menina",mlsPeso!T50,mlsPeso!T110),"") -> 40.411
A52: 110 | C52: =IF(Turma!A$2=1,IF(VLOOKUP("x",Turma!$B$4:$H$53,3,0)="Menina",mlsPeso!J51,mlsPeso!J111),"") -> 21.518 | D52: =IF(Turma!A$2=1,IF(VLOOKUP("x",Turma!$B$4:$H$53,3,0)="Menina",mlsPeso!M51,mlsPeso!M111),"") -> 24.37 | E52: =IF(Turma!A$2=1,IF(VLOOKUP("x",Turma!$B$4:$H$53,3,0)="Menina",mlsPeso!O51,mlsPeso!O111),"") -> 28.779 | F52: =IF(Turma!A$2=1,IF(VLOOKUP("x",Turma!$B$4:$H$53,3,0)="Menina",mlsPeso!Q51,mlsPeso!Q111),"") -> 34.603 | G52: =IF(Turma!A$2=1,IF(VLOOKUP("x",Turma!$B$4:$H$53,3,0)="Menina",mlsPeso!T51,mlsPeso!T111),"") -> 40.867
A53: 111 | C53: =IF(Turma!A$2=1,IF(VLOOKUP("x",Turma!$B$4:$H$53,3,0)="Menina",mlsPeso!J52,mlsPeso!J112),"") -> 21.723 | D53: =IF(Turma!A$2=1,IF(VLOOKUP("x",Turma!$B$4:$H$53,3,0)="Menina",mlsPeso!M52,mlsPeso!M112),"") -> 24.607 | E53: =IF(Turma!A$2=1,IF(VLOOKUP("x",Turma!$B$4:$H$53,3,0)="Menina",mlsPeso!O52,mlsPeso!O112),"") -> 29.071 | F53: =IF(Turma!A$2=1,IF(VLOOKUP("x",Turma!$B$4:$H$53,3,0)="Menina",mlsPeso!Q52,mlsPeso!Q112),"") -> 34.972 | G53: =IF(Turma!A$2=1,IF(VLOOKUP("x",Turma!$B$4:$H$53,3,0)="Menina",mlsPeso!T52,mlsPeso!T112),"") -> 41.326
A54: 112 | C54: =IF(Turma!A$2=1,IF(VLOOKUP("x",Turma!$B$4:$H$53,3,0)="Menina",mlsPeso!J53,mlsPeso!J113),"") -> 21.929 | D54: =IF(Turma!A$2=1,IF(VLOOKUP("x",Turma!$B$4:$H$53,3,0)="Menina",mlsPeso!M53,mlsPeso!M113),"") -> 24.847 | E54: =IF(Turma!A$2=1,IF(VLOOKUP("x",Turma!$B$4:$H$53,3,0)="Menina",mlsPeso!O53,mlsPeso!O113),"") -> 29.366 | F54: =IF(Turma!A$2=1,IF(VLOOKUP("x",Turma!$B$4:$H$53,3,0)="Menina",mlsPeso!Q53,mlsPeso!Q113),"") -> 35.346 | G54: =IF(Turma!A$2=1,IF(VLOOKUP("x",Turma!$B$4:$H$53,3,0)="Menina",mlsPeso!T53,mlsPeso!T113),"") -> 41.791
A55: 113 | C55: =IF(Turma!A$2=1,IF(VLOOKUP("x",Turma!$B$4:$H$53,3,0)="Menina",mlsPeso!J54,mlsPeso!J114),"") -> 22.138 | D55: =IF(Turma!A$2=1,IF(VLOOKUP("x",Turma!$B$4:$H$53,3,0)="Menina",mlsPeso!M54,mlsPeso!M114),"") -> 25.09 | E55: =IF(Turma!A$2=1,IF(VLOOKUP("x",Turma!$B$4:$H$53,3,0)="Menina",mlsPeso!O54,mlsPeso!O114),"") -> 29.665 | F55: =IF(Turma!A$2=1,IF(VLOOKUP("x",Turma!$B$4:$H$53,3,0)="Menina",mlsPeso!Q54,mlsPeso!Q114),"") -> 35.723 | G55: =IF(Turma!A$2=1,IF(VLOOKUP("x",Turma!$B$4:$H$53,3,0)="Menina",mlsPeso!T54,mlsPeso!T114),"") -> 42.26
A56: 114 | C56: =IF(Turma!A$2=1,IF(VLOOKUP("x",Turma!$B$4:$H$53,3,0)="Menina",mlsPeso!J55,mlsPeso!J115),"") -> 22.349 | D56: =IF(Turma!A$2=1,IF(VLOOKUP("x",Turma!$B$4:$H$53,3,0)="Menina",mlsPeso!M55,mlsPeso!M115),"") -> 25.336 | E56: =IF(Turma!A$2=1,IF(VLOOKUP("x",Turma!$B$4:$H$53,3,0)="Menina",mlsPeso!O55,mlsPeso!O115),"") -> 29.966 | F56: =IF(Turma!A$2=1,IF(VLOOKUP("x",Turma!$B$4:$H$53,3,0)="Menina",mlsPeso!Q55,mlsPeso!Q115),"") -> 36.104 | G56: =IF(Turma!A$2=1,IF(VLOOKUP("x",Turma!$B$4:$H$53,3,0)="Menina",mlsPeso!T55,mlsPeso!T115),"") -> 42.734
A57: 115 | C57: =IF(Turma!A$2=1,IF(VLOOKUP("x",Turma!$B$4:$H$53,3,0)="Menina",mlsPeso!J56,mlsPeso!J116),"") -> 22.563 | D57: =IF(Turma!A$2=1,IF(VLOOKUP("x",Turma!$B$4:$H$53,3,0)="Menina",mlsPeso!M56,mlsPeso!M116),"") -> 25.584 | E57: =IF(Turma!A$2=1,IF(VLOOKUP("x",Turma!$B$4:$H$53,3,0)="Menina",mlsPeso!O56,mlsPeso!O116),"") -> 30.272 | F57: =IF(Turma!A$2=1,IF(VLOOKUP("x",Turma!$B$4:$H$53,3,0)="Menina",mlsPeso!Q56,mlsPeso!Q116),"") -> 36.49 | G57: =IF(Turma!A$2=1,IF(VLOOKUP("x",Turma!$B$4:$H$53,3,0)="Menina",mlsPeso!T56,mlsPeso!T116),"") -> 43.214
A58: 116 | C58: =IF(Turma!A$2=1,IF(VLOOKUP("x",Turma!$B$4:$H$53,3,0)="Menina",mlsPeso!J57,mlsPeso!J117),"") -> 22.78 | D58: =IF(Turma!A$2=1,IF(VLOOKUP("x",Turma!$B$4:$H$53,3,0)="Menina",mlsPeso!M57,mlsPeso!M117),"") -> 25.836 | E58: =IF(Turma!A$2=1,IF(VLOOKUP("x",Turma!$B$4:$H$53,3,0)="Menina",mlsPeso!O57,mlsPeso!O117),"") -> 30.58 | F58: =IF(Turma!A$2=1,IF(VLOOKUP("x",Turma!$B$4:$H$53,3,0)="Menina",mlsPeso!Q57,mlsPeso!Q117),"") -> 36.881 | G58: =IF(Turma!A$2=1,IF(VLOOKUP("x",Turma!$B$4:$H$53,3,0)="Menina",mlsPeso!T57,mlsPeso!T117),"") -> 43.699
A59: 117 | C59: =IF(Turma!A$2=1,IF(VLOOKUP("x",Turma!$B$4:$H$53,3,0)="Menina",mlsPeso!J58,mlsPeso!J118),"") -> 22.999 | D59: =IF(Turma!A$2=1,IF(VLOOKUP("x",Turma!$B$4:$H$53,3,0)="Menina",mlsPeso!M58,mlsPeso!M118),"") -> 26.091 | E59: =IF(Turma!A$2=1,IF(VLOOKUP("x",Turma!$B$4:$H$53,3,0)="Menina",mlsPeso!O58,mlsPeso!O118),"") -> 30.893 | F59: =IF(Turma!A$2=1,IF(VLOOKUP("x",Turma!$B$4:$H$53,3,0)="Menina",mlsPeso!Q58,mlsPeso!Q118),"") -> 37.275 | G59: =IF(Turma!A$2=1,IF(VLOOKUP("x",Turma!$B$4:$H$53,3,0)="Menina",mlsPeso!T58,mlsPeso!T118),"") -> 44.189
A60: 118 | C60: =IF(Turma!A$2=1,IF(VLOOKUP("x",Turma!$B$4:$H$53,3,0)="Menina",mlsPeso!J59,mlsPeso!J119),"") -> 23.222 | D60: =IF(Turma!A$2=1,IF(VLOOKUP("x",Turma!$B$4:$H$53,3,0)="Menina",mlsPeso!M59,mlsPeso!M119),"") -> 26.349 | E60: =IF(Turma!A$2=1,IF(VLOOKUP("x",Turma!$B$4:$H$53,3,0)="Menina",mlsPeso!O59,mlsPeso!O119),"") -> 31.21 | F60: =IF(Turma!A$2=1,IF(VLOOKUP("x",Turma!$B$4:$H$53,3,0)="Menina",mlsPeso!Q59,mlsPeso!Q119),"") -> 37.676 | G60: =IF(Turma!A$2=1,IF(VLOOKUP("x",Turma!$B$4:$H$53,3,0)="Menina",mlsPeso!T59,mlsPeso!T119),"") -> 44.687
A61: 119 | C61: =IF(Turma!A$2=1,IF(VLOOKUP("x",Turma!$B$4:$H$53,3,0)="Menina",mlsPeso!J60,mlsPeso!J120),"") -> 23.447 | D61: =IF(Turma!A$2=1,IF(VLOOKUP("x",Turma!$B$4:$H$53,3,0)="Menina",mlsPeso!M60,mlsPeso!M120),"") -> 26.611 | E61: =IF(Turma!A$2=1,IF(VLOOKUP("x",Turma!$B$4:$H$53,3,0)="Menina",mlsPeso!O60,mlsPeso!O120),"") -> 31.532 | F61: =IF(Turma!A$2=1,IF(VLOOKUP("x",Turma!$B$4:$H$53,3,0)="Menina",mlsPeso!Q60,mlsPeso!Q120),"") -> 38.081 | G61: =IF(Turma!A$2=1,IF(VLOOKUP("x",Turma!$B$4:$H$53,3,0)="Menina",mlsPeso!T60,mlsPeso!T120),"") -> 45.19
A62: 120 | B62: 10 | C62: =IF(Turma!A$2=1,IF(VLOOKUP("x",Turma!$B$4:$H$53,3,0)="Menina",mlsPeso!J61,mlsPeso!J121),"") -> 23.676 | D62: =IF(Turma!A$2=1,IF(VLOOKUP("x",Turma!$B$4:$H$53,3,0)="Menina",mlsPeso!M61,mlsPeso!M121),"") -> 26.877 | E62: =IF(Turma!A$2=1,IF(VLOOKUP("x",Turma!$B$4:$H$53,3,0)="Menina",mlsPeso!O61,mlsPeso!O121),"") -> 31.858 | F62: =IF(Turma!A$2=1,IF(VLOOKUP("x",Turma!$B$4:$H$53,3,0)="Menina",mlsPeso!Q61,mlsPeso!Q121),"") -> 38.493 | G62: =IF(Turma!A$2=1,IF(VLOOKUP("x",Turma!$B$4:$H$53,3,0)="Menina",mlsPeso!T61,mlsPeso!T121),"") -> 45.7

Sheet dadosZScore (hidden)
A1: meses | B1: anos | C1: -3 | D1: -2 | E1: -1 | F1: 0 | G1: 1 | H1: 2 | I1: 3 | J1: Género | K1: Meses | L1: BMI
A2: 60 | B2: =IF(A2/12=INT(A2/12),A2/12,"") -> 5 | J2: =IF(Turma!A2=1,VLOOKUP("x",Turma!B4:H53,3,0),"") -> Menina | K2: =IF(Turma!A2=1,VLOOKUP("x",Turma!B4:I53,8,0),"") -> 80 | L2: =IF(Turma!A2=1,VLOOKUP("x",Turma!B4:K53,9,0),"") -> 24.15720209
A3: 61 | B3: =IF(A3/12=INT(A3/12),A3/12,"") ->  | C3: =IF(Turma!$A$2=1,IF(VLOOKUP("x",Turma!$B$4:$H$53,3,0)="Menina",mlsBMI!I2,mlsBMI!I170),"") -> 11.77 | D3: =IF(Turma!$A$2=1,IF(VLOOKUP("x",Turma!$B$4:$H$53,3,0)="Menina",mlsBMI!J2,mlsBMI!J170),"") -> 12.748 | E3: =IF(Turma!$A$2=1,IF(VLOOKUP("x",Turma!$B$4:$H$53,3,0)="Menina",mlsBMI!K2,mlsBMI!K170),"") -> 13.891 | F3: =IF(Turma!$A$2=1,IF(VLOOKUP("x",Turma!$B$4:$H$53,3,0)="Menina",mlsBMI!L2,mlsBMI!L170),"") -> 15.244 | G3: =IF(Turma!$A$2=1,IF(VLOOKUP("x",Turma!$B$4:$H$53,3,0)="Menina",mlsBMI!M2,mlsBMI!M170),"") -> 16.87 | H3: =IF(Turma!$A$2=1,IF(VLOOKUP("x",Turma!$B$4:$H$53,3,0)="Menina",mlsBMI!N2,mlsBMI!N170),"") -> 18.858 | I3: =IF(Turma!$A$2=1,IF(VLOOKUP("x",Turma!$B$4:$H$53,3,0)="Menina",mlsBMI!O2,mlsBMI!O170),"") -> 21.34
A4: 62 | C4: =IF(Turma!$A$2=1,IF(VLOOKUP("x",Turma!$B$4:$H$53,3,0)="Menina",mlsBMI!I3,mlsBMI!I171),"") -> 11.763 | D4: =IF(Turma!$A$2=1,IF(VLOOKUP("x",Turma!$B$4:$H$53,3,0)="Menina",mlsBMI!J3,mlsBMI!J171),"") -> 12.741 | E4: =IF(Turma!$A$2=1,IF(VLOOKUP("x",Turma!$B$4:$H$53,3,0)="Menina",mlsBMI!K3,mlsBMI!K171),"") -> 13.885 | F4: =IF(Turma!$A$2=1,IF(VLOOKUP("x",Turma!$B$4:$H$53,3,0)="Menina",mlsBMI!L3,mlsBMI!L171),"") -> 15.243 | G4: =IF(Turma!$A$2=1,IF(VLOOKUP("x",Turma!$B$4:$H$53,3,0)="Menina",mlsBMI!M3,mlsBMI!M171),"") -> 16.879 | H4: =IF(Turma!$A$2=1,IF(VLOOKUP("x",Turma!$B$4:$H$53,3,0)="Menina",mlsBMI!N3,mlsBMI!N171),"") -> 18.886 | I4: =IF(Turma!$A$2=1,IF(VLOOKUP("x",Turma!$B$4:$H$53,3,0)="Menina",mlsBMI!O3,mlsBMI!O171),"") -> 21.403
A5: 63 | C5: =IF(Turma!$A$2=1,IF(VLOOKUP("x",Turma!$B$4:$H$53,3,0)="Menina",mlsBMI!I4,mlsBMI!I172),"") -> 11.757 | D5: =IF(Turma!$A$2=1,IF(VLOOKUP("x",Turma!$B$4:$H$53,3,0)="Menina",mlsBMI!J4,mlsBMI!J172),"") -> 12.734 | E5: =IF(Turma!$A$2=1,IF(VLOOKUP("x",Turma!$B$4:$H$53,3,0)="Menina",mlsBMI!K4,mlsBMI!K172),"") -> 13.881 | F5: =IF(Turma!$A$2=1,IF(VLOOKUP("x",Turma!$B$4:$H$53,3,0)="Menina",mlsBMI!L4,mlsBMI!L172),"") -> 15.243 | G5: =IF(Turma!$A$2=1,IF(VLOOKUP("x",Turma!$B$4:$H$53,3,0)="Menina",mlsBMI!M4,mlsBMI!M172),"") -> 16.889 | H5: =IF(Turma!$A$2=1,IF(VLOOKUP("x",Turma!$B$4:$H$53,3,0)="Menina",mlsBMI!N4,mlsBMI!N172),"") -> 18.915 | I5: =IF(Turma!$A$2=1,IF(VLOOKUP("x",Turma!$B$4:$H$53,3,0)="Menina",mlsBMI!O4,mlsBMI!O172),"") -> 21.468
A6: 64 | C6: =IF(Turma!$A$2=1,IF(VLOOKUP("x",Turma!$B$4:$H$53,3,0)="Menina",mlsBMI!I5,mlsBMI!I173),"") -> 11.752 | D6: =IF(Turma!$A$2=1,IF(VLOOKUP("x",Turma!$B$4:$H$53,3,0)="Menina",mlsBMI!J5,mlsBMI!J173),"") -> 12.728 | E6: =IF(Turma!$A$2=1,IF(VLOOKUP("x",Turma!$B$4:$H$53,3,0)="Menina",mlsBMI!K5,mlsBMI!K173),"") -> 13.876 | F6: =IF(Turma!$A$2=1,IF(VLOOKUP("x",Turma!$B$4:$H$53,3,0)="Menina",mlsBMI!L5,mlsBMI!L173),"") -> 15.244 | G6: =IF(Turma!$A$2=1,IF(VLOOKUP("x",Turma!$B$4:$H$53,3,0)="Menina",mlsBMI!M5,mlsBMI!M173),"") -> 16.9 | H6: =IF(Turma!$A$2=1,IF(VLOOKUP("x",Turma!$B$4:$H$53,3,0)="Menina",mlsBMI!N5,mlsBMI!N173),"") -> 18.946 | I6: =IF(Turma!$A$2=1,IF(VLOOKUP("x",Turma!$B$4:$H$53,3,0)="Menina",mlsBMI!O5,mlsBMI!O173),"") -> 21.535
A7: 65 | C7: =IF(Turma!$A$2=1,IF(VLOOKUP("x",Turma!$B$4:$H$53,3,0)="Menina",mlsBMI!I6,mlsBMI!I174),"") -> 11.746 | D7: =IF(Turma!$A$2=1,IF(VLOOKUP("x",Turma!$B$4:$H$53,3,0)="Menina",mlsBMI!J6,mlsBMI!J174),"") -> 12.723 | E7: =IF(Turma!$A$2=1,IF(VLOOKUP("x",Turma!$B$4:$H$53,3,0)="Menina",mlsBMI!K6,mlsBMI!K174),"") -> 13.872 | F7: =IF(Turma!$A$2=1,IF(VLOOKUP("x",Turma!$B$4:$H$53,3,0)="Menina",mlsBMI!L6,mlsBMI!L174),"") -> 15.245 | G7: =IF(Turma!$A$2=1,IF(VLOOKUP("x",Turma!$B$4:$H$53,3,0)="Menina",mlsBMI!M6,mlsBMI!M174),"") -> 16.911 | H7: =IF(Turma!$A$2=1,IF(VLOOKUP("x",Turma!$B$4:$H$53,3,0)="Menina",mlsBMI!N6,mlsBMI!N174),"") -> 18.977 | I7: =IF(Turma!$A$2=1,IF(VLOOKUP("x",Turma!$B$4:$H$53,3,0)="Menina",mlsBMI!O6,mlsBMI!O174),"") -> 21.603
A8: 66 | C8: =IF(Turma!$A$2=1,IF(VLOOKUP("x",Turma!$B$4:$H$53,3,0)="Menina",mlsBMI!I7,mlsBMI!I175),"") -> 11.742 | D8: =IF(Turma!$A$2=1,IF(VLOOKUP("x",Turma!$B$4:$H$53,3,0)="Menina",mlsBMI!J7,mlsBMI!J175),"") -> 12.718 | E8: =IF(Turma!$A$2=1,IF(VLOOKUP("x",Turma!$B$4:$H$53,3,0)="Menina",mlsBMI!K7,mlsBMI!K175),"") -> 13.869 | F8: =IF(Turma!$A$2=1,IF(VLOOKUP("x",Turma!$B$4:$H$53,3,0)="Menina",mlsBMI!L7,mlsBMI!L175),"") -> 15.246 | G8: =IF(Turma!$A$2=1,IF(VLOOKUP("x",Turma!$B$4:$H$53,3,0)="Menina",mlsBMI!M7,mlsBMI!M175),"") -> 16.923 | H8: =IF(Turma!$A$2=1,IF(VLOOKUP("x",Turma!$B$4:$H$53,3,0)="Menina",mlsBMI!N7,mlsBMI!N175),"") -> 19.009 | I8: =IF(Turma!$A$2=1,IF(VLOOKUP("x",Turma!$B$4:$H$53,3,0)="Menina",mlsBMI!O7,mlsBMI!O175),"") -> 21.673
A9: 67 | C9: =IF(Turma!$A$2=1,IF(VLOOKUP("x",Turma!$B$4:$H$53,3,0)="Menina",mlsBMI!I8,mlsBMI!I176),"") -> 11.737 | D9: =IF(Turma!$A$2=1,IF(VLOOKUP("x",Turma!$B$4:$H$53,3,0)="Menina",mlsBMI!J8,mlsBMI!J176),"") -> 12.714 | E9: =IF(Turma!$A$2=1,IF(VLOOKUP("x",Turma!$B$4:$H$53,3,0)="Menina",mlsBMI!K8,mlsBMI!K176),"") -> 13.866 | F9: =IF(Turma!$A$2=1,IF(VLOOKUP("x",Turma!$B$4:$H$53,3,0)="Menina",mlsBMI!L8,mlsBMI!L176),"") -> 15.249 | G9: =IF(Turma!$A$2=1,IF(VLOOKUP("x",Turma!$B$4:$H$53,3,0)="Menina",mlsBMI!M8,mlsBMI!M176),"") -> 16.936 | H9: =IF(Turma!$A$2=1,IF(VLOOKUP("x",Turma!$B$4:$H$53,3,0)="Menina",mlsBMI!N8,mlsBMI!N176),"") -> 19.042 | I9: =IF(Turma!$A$2=1,IF(VLOOKUP("x",Turma!$B$4:$H$53,3,0)="Menina",mlsBMI!O8,mlsBMI!O176),"") -> 21.745
A10: 68 | C10: =IF(Turma!$A$2=1,IF(VLOOKUP("x",Turma!$B$4:$H$53,3,0)="Menina",mlsBMI!I9,mlsBMI!I177),"") -> 11.733 | D10: =IF(Turma!$A$2=1,IF(VLOOKUP("x",Turma!$B$4:$H$53,3,0)="Menina",mlsBMI!J9,mlsBMI!J177),"") -> 12.71 | E10: =IF(Turma!$A$2=1,IF(VLOOKUP("x",Turma!$B$4:$H$53,3,0)="Menina",mlsBMI!K9,mlsBMI!K177),"") -> 13.864 | F10: =IF(Turma!$A$2=1,IF(VLOOKUP("x",Turma!$B$4:$H$53,3,0)="Menina",mlsBMI!L9,mlsBMI!L177),"") -> 15.252 | G10: =IF(Turma!$A$2=1,IF(VLOOKUP("x",Turma!$B$4:$H$53,3,0)="Menina",mlsBMI!M9,mlsBMI!M177),"") -> 16.95 | H10: =IF(Turma!$A$2=1,IF(VLOOKUP("x",Turma!$B$4:$H$53,3,0)="Menina",mlsBMI!N9,mlsBMI!N177),"") -> 19.077 | I10: =IF(Turma!$A$2=1,IF(VLOOKUP("x",Turma!$B$4:$H$53,3,0)="Menina",mlsBMI!O9,mlsBMI!O177),"") -> 21.819
A11: 69 | C11: =IF(Turma!$A$2=1,IF(VLOOKUP("x",Turma!$B$4:$H$53,3,0)="Menina",mlsBMI!I10,mlsBMI!I178),"") -> 11.73 | D11: =IF(Turma!$A$2=1,IF(VLOOKUP("x",Turma!$B$4:$H$53,3,0)="Menina",mlsBMI!J10,mlsBMI!J178),"") -> 12.706 | E11: =IF(Turma!$A$2=1,IF(VLOOKUP("x",Turma!$B$4:$H$53,3,0)="Menina",mlsBMI!K10,mlsBMI!K178),"") -> 13.863 | F11: =IF(Turma!$A$2=1,IF(VLOOKUP("x",Turma!$B$4:$H$53,3,0)="Menina",mlsBMI!L10,mlsBMI!L178),"") -> 15.255 | G11: =IF(Turma!$A$2=1,IF(VLOOKUP("x",Turma!$B$4:$H$53,3,0)="Menina",mlsBMI!M10,mlsBMI!M178),"") -> 16.964 | H11: =IF(Turma!$A$2=1,IF(VLOOKUP("x",Turma!$B$4:$H$53,3,0)="Menina",mlsBMI!N10,mlsBMI!N178),"") -> 19.112 | I11: =IF(Turma!$A$2=1,IF(VLOOKUP("x",Turma!$B$4:$H$53,3,0)="Menina",mlsBMI!O10,mlsBMI!O178),"") -> 21.895
A12: 70 | C12: =IF(Turma!$A$2=1,IF(VLOOKUP("x",Turma!$B$4:$H$53,3,0)="Menina",mlsBMI!I11,mlsBMI!I179),"") -> 11.727 | D12: =IF(Turma!$A$2=1,IF(VLOOKUP("x",Turma!$B$4:$H$53,3,0)="Menina",mlsBMI!J11,mlsBMI!J179),"") -> 12.703 | E12: =IF(Turma!$A$2=1,IF(VLOOKUP("x",Turma!$B$4:$H$53,3,0)="Menina",mlsBMI!K11,mlsBMI!K179),"") -> 13.862 | F12: =IF(Turma!$A$2=1,IF(VLOOKUP("x",Turma!$B$4:$H$53,3,0)="Menina",mlsBMI!L11,mlsBMI!L179),"") -> 15.259 | G12: =IF(Turma!$A$2=1,IF(VLOOKUP("x",Turma!$B$4:$H$53,3,0)="Menina",mlsBMI!M11,mlsBMI!M179),"") -> 16.979 | H12: =IF(Turma!$A$2=1,IF(VLOOKUP("x",Turma!$B$4:$H$53,3,0)="Menina",mlsBMI!N11,mlsBMI!N179),"") -> 19.148 | I12: =IF(Turma!$A$2=1,IF(VLOOKUP("x",Turma!$B$4:$H$53,3,0)="Menina",mlsBMI!O11,mlsBMI!O179),"") -> 21.973
A13: 71 | C13: =IF(Turma!$A$2=1,IF(VLOOKUP("x",Turma!$B$4:$H$53,3,0)="Menina",mlsBMI!I12,mlsBMI!I180),"") -> 11.725 | D13: =IF(Turma!$A$2=1,IF(VLOOKUP("x",Turma!$B$4:$H$53,3,0)="Menina",mlsBMI!J12,mlsBMI!J180),"") -> 12.701 | E13: =IF(Turma!$A$2=1,IF(VLOOKUP("x",Turma!$B$4:$H$53,3,0)="Menina",mlsBMI!K12,mlsBMI!K180),"") -> 13.862 | F13: =IF(Turma!$A$2=1,IF(VLOOKUP("x",Turma!$B$4:$H$53,3,0)="Menina",mlsBMI!L12,mlsBMI!L180),"") -> 15.264 | G13: =IF(Turma!$A$2=1,IF(VLOOKUP("x",Turma!$B$4:$H$53,3,0)="Menina",mlsBMI!M12,mlsBMI!M180),"") -> 16.995 | H13: =IF(Turma!$A$2=1,IF(VLOOKUP("x",Turma!$B$4:$H$53,3,0)="Menina",mlsBMI!N12,mlsBMI!N180),"") -> 19.185 | I13: =IF(Turma!$A$2=1,IF(VLOOKUP("x",Turma!$B$4:$H$53,3,0)="Menina",mlsBMI!O12,mlsBMI!O180),"") -> 22.051
A14: 72 | B14: 6 | C14: =IF(Turma!$A$2=1,IF(VLOOKUP("x",Turma!$B$4:$H$53,3,0)="Menina",mlsBMI!I13,mlsBMI!I181),"") -> 11.723 | D14: =IF(Turma!$A$2=1,IF(VLOOKUP("x",Turma!$B$4:$H$53,3,0)="Menina",mlsBMI!J13,mlsBMI!J181),"") -> 12.7 | E14: =IF(Turma!$A$2=1,IF(VLOOKUP("x",Turma!$B$4:$H$53,3,0)="Menina",mlsBMI!K13,mlsBMI!K181),"") -> 13.862 | F14: =IF(Turma!$A$2=1,IF(VLOOKUP("x",Turma!$B$4:$H$53,3,0)="Menina",mlsBMI!L13,mlsBMI!L181),"") -> 15.27 | G14: =IF(Turma!$A$2=1,IF(VLOOKUP("x",Turma!$B$4:$H$53,3,0)="Menina",mlsBMI!M13,mlsBMI!M181),"") -> 17.011 | H14: =IF(Turma!$A$2=1,IF(VLOOKUP("x",Turma!$B$4:$H$53,3,0)="Menina",mlsBMI!N13,mlsBMI!N181),"") -> 19.224 | I14: =IF(Turma!$A$2=1,IF(VLOOKUP("x",Turma!$B$4:$H$53,3,0)="Menina",mlsBMI!O13,mlsBMI!O181),"") -> 22.133
A15: 73 | C15: =IF(Turma!$A$2=1,IF(VLOOKUP("x",Turma!$B$4:$H$53,3,0)="Menina",mlsBMI!I14,mlsBMI!I182),"") -> 11.722 | D15: =IF(Turma!$A$2=1,IF(VLOOKUP("x",Turma!$B$4:$H$53,3,0)="Menina",mlsBMI!J14,mlsBMI!J182),"") -> 12.699 | E15: =IF(Turma!$A$2=1,IF(VLOOKUP("x",Turma!$B$4:$H$53,3,0)="Menina",mlsBMI!K14,mlsBMI!K182),"") -> 13.863 | F15: =IF(Turma!$A$2=1,IF(VLOOKUP("x",Turma!$B$4:$H$53,3,0)="Menina",mlsBMI!L14,mlsBMI!L182),"") -> 15.276 | G15: =IF(Turma!$A$2=1,IF(VLOOKUP("x",Turma!$B$4:$H$53,3,0)="Menina",mlsBMI!M14,mlsBMI!M182),"") -> 17.029 | H15: =IF(Turma!$A$2=1,IF(VLOOKUP("x",Turma!$B$4:$H$53,3,0)="Menina",mlsBMI!N14,mlsBMI!N182),"") -> 19.264 | I15: =IF(Turma!$A$2=1,IF(VLOOKUP("x",Turma!$B$4:$H$53,3,0)="Menina",mlsBMI!O14,mlsBMI!O182),"") -> 22.217
A16: 74 | C16: =IF(Turma!$A$2=1,IF(VLOOKUP("x",Turma!$B$4:$H$53,3,0)="Menina",mlsBMI!I15,mlsBMI!I183),"") -> 11.721 | D16: =IF(Turma!$A$2=1,IF(VLOOKUP("x",Turma!$B$4:$H$53,3,0)="Menina",mlsBMI!J15,mlsBMI!J183),"") -> 12.698 | E16: =IF(Turma!$A$2=1,IF(VLOOKUP("x",Turma!$B$4:$H$53,3,0)="Menina",mlsBMI!K15,mlsBMI!K183),"") -> 13.865 | F16: =IF(Turma!$A$2=1,IF(VLOOKUP("x",Turma!$B$4:$H$53,3,0)="Menina",mlsBMI!L15,mlsBMI!L183),"") -> 15.283 | G16: =IF(Turma!$A$2=1,IF(VLOOKUP("x",Turma!$B$4:$H$53,3,0)="Menina",mlsBMI!M15,mlsBMI!M183),"") -> 17.047 | H16: =IF(Turma!$A$2=1,IF(VLOOKUP("x",Turma!$B$4:$H$53,3,0)="Menina",mlsBMI!N15,mlsBMI!N183),"") -> 19.305 | I16: =IF(Turma!$A$2=1,IF(VLOOKUP("x",Turma!$B$4:$H$53,3,0)="Menina",mlsBMI!O15,mlsBMI!O183),"") -> 22.303
A17: 75 | C17: =IF(Turma!$A$2=1,IF(VLOOKUP("x",Turma!$B$4:$H$53,3,0)="Menina",mlsBMI!I16,mlsBMI!I184),"") -> 11.721 | D17: =IF(Turma!$A$2=1,IF(VLOOKUP("x",Turma!$B$4:$H$53,3,0)="Menina",mlsBMI!J16,mlsBMI!J184),"") -> 12.699 | E17: =IF(Turma!$A$2=1,IF(VLOOKUP("x",Turma!$B$4:$H$53,3,0)="Menina",mlsBMI!K16,mlsBMI!K184),"") -> 13.867 | F17: =IF(Turma!$A$2=1,IF(VLOOKUP("x",Turma!$B$4:$H$53,3,0)="Menina",mlsBMI!L16,mlsBMI!L184),"") -> 15.291 | G17: =IF(Turma!$A$2=1,IF(VLOOKUP("x",Turma!$B$4:$H$53,3,0)="Menina",mlsBMI!M16,mlsBMI!M184),"") -> 17.067 | H17: =IF(Turma!$A$2=1,IF(VLOOKUP("x",Turma!$B$4:$H$53,3,0)="Menina",mlsBMI!N16,mlsBMI!N184),"") -> 19.347 | I17: =IF(Turma!$A$2=1,IF(VLOOKUP("x",Turma!$B$4:$H$53,3,0)="Menina",mlsBMI!O16,mlsBMI!O184),"") -> 22.391
A18: 76 | C18: =IF(Turma!$A$2=1,IF(VLOOKUP("x",Turma!$B$4:$H$53,3,0)="Menina",mlsBMI!I17,mlsBMI!I185),"") -> 11.722 | D18: =IF(Turma!$A$2=1,IF(VLOOKUP("x",Turma!$B$4:$H$53,3,0)="Menina",mlsBMI!J17,mlsBMI!J185),"") -> 12.7 | E18: =IF(Turma!$A$2=1,IF(VLOOKUP("x",Turma!$B$4:$H$53,3,0)="Menina",mlsBMI!K17,mlsBMI!K185),"") -> 13.87 | F18: =IF(Turma!$A$2=1,IF(VLOOKUP("x",Turma!$B$4:$H$53,3,0)="Menina",mlsBMI!L17,mlsBMI!L185),"") -> 15.3 | G18: =IF(Turma!$A$2=1,IF(VLOOKUP("x",Turma!$B$4:$H$53,3,0)="Menina",mlsBMI!M17,mlsBMI!M185),"") -> 17.087 | H18: =IF(Turma!$A$2=1,IF(VLOOKUP("x",Turma!$B$4:$H$53,3,0)="Menina",mlsBMI!N17,mlsBMI!N185),"") -> 19.391 | I18: =IF(Turma!$A$2=1,IF(VLOOKUP("x",Turma!$B$4:$H$53,3,0)="Menina",mlsBMI!O17,mlsBMI!O185),"") -> 22.481
A19: 77 | C19: =IF(Turma!$A$2=1,IF(VLOOKUP("x",Turma!$B$4:$H$53,3,0)="Menina",mlsBMI!I18,mlsBMI!I186),"") -> 11.723 | D19: =IF(Turma!$A$2=1,IF(VLOOKUP("x",Turma!$B$4:$H$53,3,0)="Menina",mlsBMI!J18,mlsBMI!J186),"") -> 12.701 | E19: =IF(Turma!$A$2=1,IF(VLOOKUP("x",Turma!$B$4:$H$53,3,0)="Menina",mlsBMI!K18,mlsBMI!K186),"") -> 13.874 | F19: =IF(Turma!$A$2=1,IF(VLOOKUP("x",Turma!$B$4:$H$53,3,0)="Menina",mlsBMI!L18,mlsBMI!L186),"") -> 15.31 | G19: =IF(Turma!$A$2=1,IF(VLOOKUP("x",Turma!$B$4:$H$53,3,0)="Menina",mlsBMI!M18,mlsBMI!M186),"") -> 17.108 | H19: =IF(Turma!$A$2=1,IF(VLOOKUP("x",Turma!$B$4:$H$53,3,0)="Menina",mlsBMI!N18,mlsBMI!N186),"") -> 19.436 | I19: =IF(Turma!$A$2=1,IF(VLOOKUP("x",Turma!$B$4:$H$53,3,0)="Menina",mlsBMI!O18,mlsBMI!O186),"") -> 22.574
A20: 78 | C20: =IF(Turma!$A$2=1,IF(VLOOKUP("x",Turma!$B$4:$H$53,3,0)="Menina",mlsBMI!I19,mlsBMI!I187),"") -> 11.725 | D20: =IF(Turma!$A$2=1,IF(VLOOKUP("x",Turma!$B$4:$H$53,3,0)="Menina",mlsBMI!J19,mlsBMI!J187),"") -> 12.704 | E20: =IF(Turma!$A$2=1,IF(VLOOKUP("x",Turma!$B$4:$H$53,3,0)="Menina",mlsBMI!K19,mlsBMI!K187),"") -> 13.879 | F20: =IF(Turma!$A$2=1,IF(VLOOKUP("x",Turma!$B$4:$H$53,3,0)="Menina",mlsBMI!L19,mlsBMI!L187),"") -> 15.32 | G20: =IF(Turma!$A$2=1,IF(VLOOKUP("x",Turma!$B$4:$H$53,3,0)="Menina",mlsBMI!M19,mlsBMI!M187),"") -> 17.131 | H20: =IF(Turma!$A$2=1,IF(VLOOKUP("x",Turma!$B$4:$H$53,3,0)="Menina",mlsBMI!N19,mlsBMI!N187),"") -> 19.482 | I20: =IF(Turma!$A$2=1,IF(VLOOKUP("x",Turma!$B$4:$H$53,3,0)="Menina",mlsBMI!O19,mlsBMI!O187),"") -> 22.668
A21: 79 | C21: =IF(Turma!$A$2=1,IF(VLOOKUP("x",Turma!$B$4:$H$53,3,0)="Menina",mlsBMI!I20,mlsBMI!I188),"") -> 11.727 | D21: =IF(Turma!$A$2=1,IF(VLOOKUP("x",Turma!$B$4:$H$53,3,0)="Menina",mlsBMI!J20,mlsBMI!J188),"") -> 12.707 | E21: =IF(Turma!$A$2=1,IF(VLOOKUP("x",Turma!$B$4:$H$53,3,0)="Menina",mlsBMI!K20,mlsBMI!K188),"") -> 13.885 | F21: =IF(Turma!$A$2=1,IF(VLOOKUP("x",Turma!$B$4:$H$53,3,0)="Menina",mlsBMI!L20,mlsBMI!L188),"") -> 15.331 | G21: =IF(Turma!$A$2=1,IF(VLOOKUP("x",Turma!$B$4:$H$53,3,0)="Menina",mlsBMI!M20,mlsBMI!M188),"") -> 17.154 | H21: =IF(Turma!$A$2=1,IF(VLOOKUP("x",Turma!$B$4:$H$53,3,0)="Menina",mlsBMI!N20,mlsBMI!N188),"") -> 19.529 | I21: =IF(Turma!$A$2=1,IF(VLOOKUP("x",Turma!$B$4:$H$53,3,0)="Menina",mlsBMI!O20,mlsBMI!O188),"") -> 22.766
A22: 80 | C22: =IF(Turma!$A$2=1,IF(VLOOKUP("x",Turma!$B$4:$H$53,3,0)="Menina",mlsBMI!I21,mlsBMI!I189),"") -> 11.731 | D22: =IF(Turma!$A$2=1,IF(VLOOKUP("x",Turma!$B$4:$H$53,3,0)="Menina",mlsBMI!J21,mlsBMI!J189),"") -> 12.711 | E22: =IF(Turma!$A$2=1,IF(VLOOKUP("x",Turma!$B$4:$H$53,3,0)="Menina",mlsBMI!K21,mlsBMI!K189),"") -> 13.892 | F22: =IF(Turma!$A$2=1,IF(VLOOKUP("x",Turma!$B$4:$H$53,3,0)="Menina",mlsBMI!L21,mlsBMI!L189),"") -> 15.344 | G22: =IF(Turma!$A$2=1,IF(VLOOKUP("x",Turma!$B$4:$H$53,3,0)="Menina",mlsBMI!M21,mlsBMI!M189),"") -> 17.179 | H22: =IF(Turma!$A$2=1,IF(VLOOKUP("x",Turma!$B$4:$H$53,3,0)="Menina",mlsBMI!N21,mlsBMI!N189),"") -> 19.578 | I22: =IF(Turma!$A$2=1,IF(VLOOKUP("x",Turma!$B$4:$H$53,3,0)="Menina",mlsBMI!O21,mlsBMI!O189),"") -> 22.864
A23: 81 | C23: =IF(Turma!$A$2=1,IF(VLOOKUP("x",Turma!$B$4:$H$53,3,0)="Menina",mlsBMI!I22,mlsBMI!I190),"") -> 11.735 | D23: =IF(Turma!$A$2=1,IF(VLOOKUP("x",Turma!$B$4:$H$53,3,0)="Menina",mlsBMI!J22,mlsBMI!J190),"") -> 12.716 | E23: =IF(Turma!$A$2=1,IF(VLOOKUP("x",Turma!$B$4:$H$53,3,0)="Menina",mlsBMI!K22,mlsBMI!K190),"") -> 13.899 | F23: =IF(Turma!$A$2=1,IF(VLOOKUP("x",Turma!$B$4:$H$53,3,0)="Menina",mlsBMI!L22,mlsBMI!L190),"") -> 15.357 | G23: =IF(Turma!$A$2=1,IF(VLOOKUP("x",Turma!$B$4:$H$53,3,0)="Menina",mlsBMI!M22,mlsBMI!M190),"") -> 17.204 | H23: =IF(Turma!$A$2=1,IF(VLOOKUP("x",Turma!$B$4:$H$53,3,0)="Menina",mlsBMI!N22,mlsBMI!N190),"") -> 19.628 | I23: =IF(Turma!$A$2=1,IF(VLOOKUP("x",Turma!$B$4:$H$53,3,0)="Menina",mlsBMI!O22,mlsBMI!O190),"") -> 22.966
A24: 82 | C24: =IF(Turma!$A$2=1,IF(VLOOKUP("x",Turma!$B$4:$H$53,3,0)="Menina",mlsBMI!I23,mlsBMI!I191),"") -> 11.74 | D24: =IF(Turma!$A$2=1,IF(VLOOKUP("x",Turma!$B$4:$H$53,3,0)="Menina",mlsBMI!J23,mlsBMI!J191),"") -> 12.721 | E24: =IF(Turma!$A$2=1,IF(VLOOKUP("x",Turma!$B$4:$H$53,3,0)="Menina",mlsBMI!K23,mlsBMI!K191),"") -> 13.907 | F24: =IF(Turma!$A$2=1,IF(VLOOKUP("x",Turma!$B$4:$H$53,3,0)="Menina",mlsBMI!L23,mlsBMI!L191),"") -> 15.372 | G24: =IF(Turma!$A$2=1,IF(VLOOKUP("x",Turma!$B$4:$H$53,3,0)="Menina",mlsBMI!M23,mlsBMI!M191),"") -> 17.231 | H24: =IF(Turma!$A$2=1,IF(VLOOKUP("x",Turma!$B$4:$H$53,3,0)="Menina",mlsBMI!N23,mlsBMI!N191),"") -> 19.68 | I24: =IF(Turma!$A$2=1,IF(VLOOKUP("x",Turma!$B$4:$H$53,3,0)="Menina",mlsBMI!O23,mlsBMI!O191),"") -> 23.071
A25: 83 | C25: =IF(Turma!$A$2=1,IF(VLOOKUP("x",Turma!$B$4:$H$53,3,0)="Menina",mlsBMI!I24,mlsBMI!I192),"") -> 11.745 | D25: =IF(Turma!$A$2=1,IF(VLOOKUP("x",Turma!$B$4:$H$53,3,0)="Menina",mlsBMI!J24,mlsBMI!J192),"") -> 12.728 | E25: =IF(Turma!$A$2=1,IF(VLOOKUP("x",Turma!$B$4:$H$53,3,0)="Menina",mlsBMI!K24,mlsBMI!K192),"") -> 13.916 | F25: =IF(Turma!$A$2=1,IF(VLOOKUP("x",Turma!$B$4:$H$53,3,0)="Menina",mlsBMI!L24,mlsBMI!L192),"") -> 15.387 | G25: =IF(Turma!$A$2=1,IF(VLOOKUP("x",Turma!$B$4:$H$53,3,0)="Menina",mlsBMI!M24,mlsBMI!M192),"") -> 17.259 | H25: =IF(Turma!$A$2=1,IF(VLOOKUP("x",Turma!$B$4:$H$53,3,0)="Menina",mlsBMI!N24,mlsBMI!N192),"") -> 19.734 | I25: =IF(Turma!$A$2=1,IF(VLOOKUP("x",Turma!$B$4:$H$53,3,0)="Menina",mlsBMI!O24,mlsBMI!O192),"") -> 23.178
A26: 84 | B26: 7 | C26: =IF(Turma!$A$2=1,IF(VLOOKUP("x",Turma!$B$4:$H$53,3,0)="Menina",mlsBMI!I25,mlsBMI!I193),"") -> 11.751 | D26: =IF(Turma!$A$2=1,IF(VLOOKUP("x",Turma!$B$4:$H$53,3,0)="Menina",mlsBMI!J25,mlsBMI!J193),"") -> 12.735 | E26: =IF(Turma!$A$2=1,IF(VLOOKUP("x",Turma!$B$4:$H$53,3,0)="Menina",mlsBMI!K25,mlsBMI!K193),"") -> 13.927 | F26: =IF(Turma!$A$2=1,IF(VLOOKUP("x",Turma!$B$4:$H$53,3,0)="Menina",mlsBMI!L25,mlsBMI!L193),"") -> 15.404 | G26: =IF(Turma!$A$2=1,IF(VLOOKUP("x",Turma!$B$4:$H$53,3,0)="Menina",mlsBMI!M25,mlsBMI!M193),"") -> 17.289 | H26: =IF(Turma!$A$2=1,IF(VLOOKUP("x",Turma!$B$4:$H$53,3,0)="Menina",mlsBMI!N25,mlsBMI!N193),"") -> 19.789 | I26: =IF(Turma!$A$2=1,IF(VLOOKUP("x",Turma!$B$4:$H$53,3,0)="Menina",mlsBMI!O25,mlsBMI!O193),"") -> 23.287
A27: 85 | C27: =IF(Turma!$A$2=1,IF(VLOOKUP("x",Turma!$B$4:$H$53,3,0)="Menina",mlsBMI!I26,mlsBMI!I194),"") -> 11.758 | D27: =IF(Turma!$A$2=1,IF(VLOOKUP("x",Turma!$B$4:$H$53,3,0)="Menina",mlsBMI!J26,mlsBMI!J194),"") -> 12.743 | E27: =IF(Turma!$A$2=1,IF(VLOOKUP("x",Turma!$B$4:$H$53,3,0)="Menina",mlsBMI!K26,mlsBMI!K194),"") -> 13.938 | F27: =IF(Turma!$A$2=1,IF(VLOOKUP("x",Turma!$B$4:$H$53,3,0)="Menina",mlsBMI!L26,mlsBMI!L194),"") -> 15.421 | G27: =IF(Turma!$A$2=1,IF(VLOOKUP("x",Turma!$B$4:$H$53,3,0)="Menina",mlsBMI!M26,mlsBMI!M194),"") -> 17.319 | H27: =IF(Turma!$A$2=1,IF(VLOOKUP("x",Turma!$B$4:$H$53,3,0)="Menina",mlsBMI!N26,mlsBMI!N194),"") -> 19.845 | I27: =IF(Turma!$A$2=1,IF(VLOOKUP("x",Turma!$B$4:$H$53,3,0)="Menina",mlsBMI!O26,mlsBMI!O194),"") -> 23.399
A28: 86 | C28: =IF(Turma!$A$2=1,IF(VLOOKUP("x",Turma!$B$4:$H$53,3,0)="Menina",mlsBMI!I27,mlsBMI!I195),"") -> 11.766 | D28: =IF(Turma!$A$2=1,IF(VLOOKUP("x",Turma!$B$4:$H$53,3,0)="Menina",mlsBMI!J27,mlsBMI!J195),"") -> 12.752 | E28: =IF(Turma!$A$2=1,IF(VLOOKUP("x",Turma!$B$4:$H$53,3,0)="Menina",mlsBMI!K27,mlsBMI!K195),"") -> 13.95 | F28: =IF(Turma!$A$2=1,IF(VLOOKUP("x",Turma!$B$4:$H$53,3,0)="Menina",mlsBMI!L27,mlsBMI!L195),"") -> 15.44 | G28: =IF(Turma!$A$2=1,IF(VLOOKUP("x",Turma!$B$4:$H$53,3,0)="Menina",mlsBMI!M27,mlsBMI!M195),"") -> 17.35 | H28: =IF(Turma!$A$2=1,IF(VLOOKUP("x",Turma!$B$4:$H$53,3,0)="Menina",mlsBMI!N27,mlsBMI!N195),"") -> 19.903 | I28: =IF(Turma!$A$2=1,IF(VLOOKUP("x",Turma!$B$4:$H$53,3,0)="Menina",mlsBMI!O27,mlsBMI!O195),"") -> 23.512
A29: 87 | C29: =IF(Turma!$A$2=1,IF(VLOOKUP("x",Turma!$B$4:$H$53,3,0)="Menina",mlsBMI!I28,mlsBMI!I196),"") -> 11.774 | D29: =IF(Turma!$A$2=1,IF(VLOOKUP("x",Turma!$B$4:$H$53,3,0)="Menina",mlsBMI!J28,mlsBMI!J196),"") -> 12.762 | E29: =IF(Turma!$A$2=1,IF(VLOOKUP("x",Turma!$B$4:$H$53,3,0)="Menina",mlsBMI!K28,mlsBMI!K196),"") -> 13.963 | F29: =IF(Turma!$A$2=1,IF(VLOOKUP("x",Turma!$B$4:$H$53,3,0)="Menina",mlsBMI!L28,mlsBMI!L196),"") -> 15.459 | G29: =IF(Turma!$A$2=1,IF(VLOOKUP("x",Turma!$B$4:$H$53,3,0)="Menina",mlsBMI!M28,mlsBMI!M196),"") -> 17.383 | H29: =IF(Turma!$A$2=1,IF(VLOOKUP("x",Turma!$B$4:$H$53,3,0)="Menina",mlsBMI!N28,mlsBMI!N196),"") -> 19.963 | I29: =IF(Turma!$A$2=1,IF(VLOOKUP("x",Turma!$B$4:$H$53,3,0)="Menina",mlsBMI!O28,mlsBMI!O196),"") -> 23.629
A30: 88 | C30: =IF(Turma!$A$2=1,IF(VLOOKUP("x",Turma!$B$4:$H$53,3,0)="Menina",mlsBMI!I29,mlsBMI!I197),"") -> 11.783 | D30: =IF(Turma!$A$2=1,IF(VLOOKUP("x",Turma!$B$4:$H$53,3,0)="Menina",mlsBMI!J29,mlsBMI!J197),"") -> 12.772 | E30: =IF(Turma!$A$2=1,IF(VLOOKUP("x",Turma!$B$4:$H$53,3,0)="Menina",mlsBMI!K29,mlsBMI!K197),"") -> 13.976 | F30: =IF(Turma!$A$2=1,IF(VLOOKUP("x",Turma!$B$4:$H$53,3,0)="Menina",mlsBMI!L29,mlsBMI!L197),"") -> 15.48 | G30: =IF(Turma!$A$2=1,IF(VLOOKUP("x",Turma!$B$4:$H$53,3,0)="Menina",mlsBMI!M29,mlsBMI!M197),"") -> 17.417 | H30: =IF(Turma!$A$2=1,IF(VLOOKUP("x",Turma!$B$4:$H$53,3,0)="Menina",mlsBMI!N29,mlsBMI!N197),"") -> 20.023 | I30: =IF(Turma!$A$2=1,IF(VLOOKUP("x",Turma!$B$4:$H$53,3,0)="Menina",mlsBMI!O29,mlsBMI!O197),"") -> 23.749
A31: 89 | C31: =IF(Turma!$A$2=1,IF(VLOOKUP("x",Turma!$B$4:$H$53,3,0)="Menina",mlsBMI!I30,mlsBMI!I198),"") -> 11.793 | D31: =IF(Turma!$A$2=1,IF(VLOOKUP("x",Turma!$B$4:$H$53,3,0)="Menina",mlsBMI!J30,mlsBMI!J198),"") -> 12.783 | E31: =IF(Turma!$A$2=1,IF(VLOOKUP("x",Turma!$B$4:$H$53,3,0)="Menina",mlsBMI!K30,mlsBMI!K198),"") -> 13.991 | F31: =IF(Turma!$A$2=1,IF(VLOOKUP("x",Turma!$B$4:$H$53,3,0)="Menina",mlsBMI!L30,mlsBMI!L198),"") -> 15.501 | G31: =IF(Turma!$A$2=1,IF(VLOOKUP("x",Turma!$B$4:$H$53,3,0)="Menina",mlsBMI!M30,mlsBMI!M198),"") -> 17.452 | H31: =IF(Turma!$A$2=1,IF(VLOOKUP("x",Turma!$B$4:$H$53,3,0)="Menina",mlsBMI!N30,mlsBMI!N198),"") -> 20.085 | I31: =IF(Turma!$A$2=1,IF(VLOOKUP("x",Turma!$B$4:$H$53,3,0)="Menina",mlsBMI!O30,mlsBMI!O198),"") -> 23.869
A32: 90 | C32: =IF(Turma!$A$2=1,IF(VLOOKUP("x",Turma!$B$4:$H$53,3,0)="Menina",mlsBMI!I31,mlsBMI!I199),"") -> 11.803 | D32: =IF(Turma!$A$2=1,IF(VLOOKUP("x",Turma!$B$4:$H$53,3,0)="Menina",mlsBMI!J31,mlsBMI!J199),"") -> 12.795 | E32: =IF(Turma!$A$2=1,IF(VLOOKUP("x",Turma!$B$4:$H$53,3,0)="Menina",mlsBMI!K31,mlsBMI!K199),"") -> 14.007 | F32: =IF(Turma!$A$2=1,IF(VLOOKUP("x",Turma!$B$4:$H$53,3,0)="Menina",mlsBMI!L31,mlsBMI!L199),"") -> 15.524 | G32: =IF(Turma!$A$2=1,IF(VLOOKUP("x",Turma!$B$4:$H$53,3,0)="Menina",mlsBMI!M31,mlsBMI!M199),"") -> 17.488 | H32: =IF(Turma!$A$2=1,IF(VLOOKUP("x",Turma!$B$4:$H$53,3,0)="Menina",mlsBMI!N31,mlsBMI!N199),"") -> 20.149 | I32: =IF(Turma!$A$2=1,IF(VLOOKUP("x",Turma!$B$4:$H$53,3,0)="Menina",mlsBMI!O31,mlsBMI!O199),"") -> 23.994
A33: 91 | C33: =IF(Turma!$A$2=1,IF(VLOOKUP("x",Turma!$B$4:$H$53,3,0)="Menina",mlsBMI!I32,mlsBMI!I200),"") -> 11.814 | D33: =IF(Turma!$A$2=1,IF(VLOOKUP("x",Turma!$B$4:$H$53,3,0)="Menina",mlsBMI!J32,mlsBMI!J200),"") -> 12.808 | E33: =IF(Turma!$A$2=1,IF(VLOOKUP("x",Turma!$B$4:$H$53,3,0)="Menina",mlsBMI!K32,mlsBMI!K200),"") -> 14.023 | F33: =IF(Turma!$A$2=1,IF(VLOOKUP("x",Turma!$B$4:$H$53,3,0)="Menina",mlsBMI!L32,mlsBMI!L200),"") -> 15.548 | G33: =IF(Turma!$A$2=1,IF(VLOOKUP("x",Turma!$B$4:$H$53,3,0)="Menina",mlsBMI!M32,mlsBMI!M200),"") -> 17.526 | H33: =IF(Turma!$A$2=1,IF(VLOOKUP("x",Turma!$B$4:$H$53,3,0)="Menina",mlsBMI!N32,mlsBMI!N200),"") -> 20.214 | I33: =IF(Turma!$A$2=1,IF(VLOOKUP("x",Turma!$B$4:$H$53,3,0)="Menina",mlsBMI!O32,mlsBMI!O200),"") -> 24.119
A34: 92 | C34: =IF(Turma!$A$2=1,IF(VLOOKUP("x",Turma!$B$4:$H$53,3,0)="Menina",mlsBMI!I33,mlsBMI!I201),"") -> 11.826 | D34: =IF(Turma!$A$2=1,IF(VLOOKUP("x",Turma!$B$4:$H$53,3,0)="Menina",mlsBMI!J33,mlsBMI!J201),"") -> 12.822 | E34: =IF(Turma!$A$2=1,IF(VLOOKUP("x",Turma!$B$4:$H$53,3,0)="Menina",mlsBMI!K33,mlsBMI!K201),"") -> 14.041 | F34: =IF(Turma!$A$2=1,IF(VLOOKUP("x",Turma!$B$4:$H$53,3,0)="Menina",mlsBMI!L33,mlsBMI!L201),"") -> 15.572 | G34: =IF(Turma!$A$2=1,IF(VLOOKUP("x",Turma!$B$4:$H$53,3,0)="Menina",mlsBMI!M33,mlsBMI!M201),"") -> 17.564 | H34: =IF(Turma!$A$2=1,IF(VLOOKUP("x",Turma!$B$4:$H$53,3,0)="Menina",mlsBMI!N33,mlsBMI!N201),"") -> 20.281 | I34: =IF(Turma!$A$2=1,IF(VLOOKUP("x",Turma!$B$4:$H$53,3,0)="Menina",mlsBMI!O33,mlsBMI!O201),"") -> 24.246
A35: 93 | C35: =IF(Turma!$A$2=1,IF(VLOOKUP("x",Turma!$B$4:$H$53,3,0)="Menina",mlsBMI!I34,mlsBMI!I202),"") -> 11.838 | D35: =IF(Turma!$A$2=1,IF(VLOOKUP("x",Turma!$B$4:$H$53,3,0)="Menina",mlsBMI!J34,mlsBMI!J202),"") -> 12.836 | E35: =IF(Turma!$A$2=1,IF(VLOOKUP("x",Turma!$B$4:$H$53,3,0)="Menina",mlsBMI!K34,mlsBMI!K202),"") -> 14.059 | F35: =IF(Turma!$A$2=1,IF(VLOOKUP("x",Turma!$B$4:$H$53,3,0)="Menina",mlsBMI!L34,mlsBMI!L202),"") -> 15.598 | G35: =IF(Turma!$A$2=1,IF(VLOOKUP("x",Turma!$B$4:$H$53,3,0)="Menina",mlsBMI!M34,mlsBMI!M202),"") -> 17.604 | H35: =IF(Turma!$A$2=1,IF(VLOOKUP("x",Turma!$B$4:$H$53,3,0)="Menina",mlsBMI!N34,mlsBMI!N202),"") -> 20.349 | I35: =IF(Turma!$A$2=1,IF(VLOOKUP("x",Turma!$B$4:$H$53,3,0)="Menina",mlsBMI!O34,mlsBMI!O202),"") -> 24.377
A36: 94 | C36: =IF(Turma!$A$2=1,IF(VLOOKUP("x",Turma!$B$4:$H$53,3,0)="Menina",mlsBMI!I35,mlsBMI!I203),"") -> 11.851 | D36: =IF(Turma!$A$2=1,IF(VLOOKUP("x",Turma!$B$4:$H$53,3,0)="Menina",mlsBMI!J35,mlsBMI!J203),"") -> 12.852 | E36: =IF(Turma!$A$2=1,IF(VLOOKUP("x",Turma!$B$4:$H$53,3,0)="Menina",mlsBMI!K35,mlsBMI!K203),"") -> 14.078 | F36: =IF(Turma!$A$2=1,IF(VLOOKUP("x",Turma!$B$4:$H$53,3,0)="Menina",mlsBMI!L35,mlsBMI!L203),"") -> 15.625 | G36: =IF(Turma!$A$2=1,IF(VLOOKUP("x",Turma!$B$4:$H$53,3,0)="Menina",mlsBMI!M35,mlsBMI!M203),"") -> 17.645 | H36: =IF(Turma!$A$2=1,IF(VLOOKUP("x",Turma!$B$4:$H$53,3,0)="Menina",mlsBMI!N35,mlsBMI!N203),"") -> 20.418 | I36: =IF(Turma!$A$2=1,IF(VLOOKUP("x",Turma!$B$4:$H$53,3,0)="Menina",mlsBMI!O35,mlsBMI!O203),"") -> 24.51
A37: 95 | C37: =IF(Turma!$A$2=1,IF(VLOOKUP("x",Turma!$B$4:$H$53,3,0)="Menina",mlsBMI!I36,mlsBMI!I204),"") -> 11.865 | D37: =IF(Turma!$A$2=1,IF(VLOOKUP("x",Turma!$B$4:$H$53,3,0)="Menina",mlsBMI!J36,mlsBMI!J204),"") -> 12.868 | E37: =IF(Turma!$A$2=1,IF(VLOOKUP("x",Turma!$B$4:$H$53,3,0)="Menina",mlsBMI!K36,mlsBMI!K204),"") -> 14.099 | F37: =IF(Turma!$A$2=1,IF(VLOOKUP("x",Turma!$B$4:$H$53,3,0)="Menina",mlsBMI!L36,mlsBMI!L204),"") -> 15.652 | G37: =IF(Turma!$A$2=1,IF(VLOOKUP("x",Turma!$B$4:$H$53,3,0)="Menina",mlsBMI!M36,mlsBMI!M204),"") -> 17.687 | H37: =IF(Turma!$A$2=1,IF(VLOOKUP("x",Turma!$B$4:$H$53,3,0)="Menina",mlsBMI!N36,mlsBMI!N204),"") -> 20.489 | I37: =IF(Turma!$A$2=1,IF(VLOOKUP("x",Turma!$B$4:$H$53,3,0)="Menina",mlsBMI!O36,mlsBMI!O204),"") -> 24.644
A38: 96 | B38: 8 | C38: =IF(Turma!$A$2=1,IF(VLOOKUP("x",Turma!$B$4:$H$53,3,0)="Menina",mlsBMI!I37,mlsBMI!I205),"") -> 11.879 | D38: =IF(Turma!$A$2=1,IF(VLOOKUP("x",Turma!$B$4:$H$53,3,0)="Menina",mlsBMI!J37,mlsBMI!J205),"") -> 12.884 | E38: =IF(Turma!$A$2=1,IF(VLOOKUP("x",Turma!$B$4:$H$53,3,0)="Menina",mlsBMI!K37,mlsBMI!K205),"") -> 14.12 | F38: =IF(Turma!$A$2=1,IF(VLOOKUP("x",Turma!$B$4:$H$53,3,0)="Menina",mlsBMI!L37,mlsBMI!L205),"") -> 15.681 | G38: =IF(Turma!$A$2=1,IF(VLOOKUP("x",Turma!$B$4:$H$53,3,0)="Menina",mlsBMI!M37,mlsBMI!M205),"") -> 17.73 | H38: =IF(Turma!$A$2=1,IF(VLOOKUP("x",Turma!$B$4:$H$53,3,0)="Menina",mlsBMI!N37,mlsBMI!N205),"") -> 20.561 | I38: =IF(Turma!$A$2=1,IF(VLOOKUP("x",Turma!$B$4:$H$53,3,0)="Menina",mlsBMI!O37,mlsBMI!O205),"") -> 24.781
A39: 97 | C39: =IF(Turma!$A$2=1,IF(VLOOKUP("x",Turma!$B$4:$H$53,3,0)="Menina",mlsBMI!I38,mlsBMI!I206),"") -> 11.895 | D39: =IF(Turma!$A$2=1,IF(VLOOKUP("x",Turma!$B$4:$H$53,3,0)="Menina",mlsBMI!J38,mlsBMI!J206),"") -> 12.902 | E39: =IF(Turma!$A$2=1,IF(VLOOKUP("x",Turma!$B$4:$H$53,3,0)="Menina",mlsBMI!K38,mlsBMI!K206),"") -> 14.142 | F39: =IF(Turma!$A$2=1,IF(VLOOKUP("x",Turma!$B$4:$H$53,3,0)="Menina",mlsBMI!L38,mlsBMI!L206),"") -> 15.711 | G39: =IF(Turma!$A$2=1,IF(VLOOKUP("x",Turma!$B$4:$H$53,3,0)="Menina",mlsBMI!M38,mlsBMI!M206),"") -> 17.774 | H39: =IF(Turma!$A$2=1,IF(VLOOKUP("x",Turma!$B$4:$H$53,3,0)="Menina",mlsBMI!N38,mlsBMI!N206),"") -> 20.634 | I39: =IF(Turma!$A$2=1,IF(VLOOKUP("x",Turma!$B$4:$H$53,3,0)="Menina",mlsBMI!O38,mlsBMI!O206),"") -> 24.918
A40: 98 | C40: =IF(Turma!$A$2=1,IF(VLOOKUP("x",Turma!$B$4:$H$53,3,0)="Menina",mlsBMI!I39,mlsBMI!I207),"") -> 11.91 | D40: =IF(Turma!$A$2=1,IF(VLOOKUP("x",Turma!$B$4:$H$53,3,0)="Menina",mlsBMI!J39,mlsBMI!J207),"") -> 12.92 | E40: =IF(Turma!$A$2=1,IF(VLOOKUP("x",Turma!$B$4:$H$53,3,0)="Menina",mlsBMI!K39,mlsBMI!K207),"") -> 14.164 | F40: =IF(Turma!$A$2=1,IF(VLOOKUP("x",Turma!$B$4:$H$53,3,0)="Menina",mlsBMI!L39,mlsBMI!L207),"") -> 15.742 | G40: =IF(Turma!$A$2=1,IF(VLOOKUP("x",Turma!$B$4:$H$53,3,0)="Menina",mlsBMI!M39,mlsBMI!M207),"") -> 17.82 | H40: =IF(Turma!$A$2=1,IF(VLOOKUP("x",Turma!$B$4:$H$53,3,0)="Menina",mlsBMI!N39,mlsBMI!N207),"") -> 20.709 | I40: =IF(Turma!$A$2=1,IF(VLOOKUP("x",Turma!$B$4:$H$53,3,0)="Menina",mlsBMI!O39,mlsBMI!O207),"") -> 25.059
A41: 99 | C41: =IF(Turma!$A$2=1,IF(VLOOKUP("x",Turma!$B$4:$H$53,3,0)="Menina",mlsBMI!I40,mlsBMI!I208),"") -> 11.927 | D41: =IF(Turma!$A$2=1,IF(VLOOKUP("x",Turma!$B$4:$H$53,3,0)="Menina",mlsBMI!J40,mlsBMI!J208),"") -> 12.94 | E41: =IF(Turma!$A$2=1,IF(VLOOKUP("x",Turma!$B$4:$H$53,3,0)="Menina",mlsBMI!K40,mlsBMI!K208),"") -> 14.188 | F41: =IF(Turma!$A$2=1,IF(VLOOKUP("x",Turma!$B$4:$H$53,3,0)="Menina",mlsBMI!L40,mlsBMI!L208),"") -> 15.773 | G41: =IF(Turma!$A$2=1,IF(VLOOKUP("x",Turma!$B$4:$H$53,3,0)="Menina",mlsBMI!M40,mlsBMI!M208),"") -> 17.866 | H41: =IF(Turma!$A$2=1,IF(VLOOKUP("x",Turma!$B$4:$H$53,3,0)="Menina",mlsBMI!N40,mlsBMI!N208),"") -> 20.784 | I41: =IF(Turma!$A$2=1,IF(VLOOKUP("x",Turma!$B$4:$H$53,3,0)="Menina",mlsBMI!O40,mlsBMI!O208),"") -> 25.2
A42: 100 | C42: =IF(Turma!$A$2=1,IF(VLOOKUP("x",Turma!$B$4:$H$53,3,0)="Menina",mlsBMI!I41,mlsBMI!I209),"") -> 11.944 | D42: =IF(Turma!$A$2=1,IF(VLOOKUP("x",Turma!$B$4:$H$53,3,0)="Menina",mlsBMI!J41,mlsBMI!J209),"") -> 12.959 | E42: =IF(Turma!$A$2=1,IF(VLOOKUP("x",Turma!$B$4:$H$53,3,0)="Menina",mlsBMI!K41,mlsBMI!K209),"") -> 14.212 | F42: =IF(Turma!$A$2=1,IF(VLOOKUP("x",Turma!$B$4:$H$53,3,0)="Menina",mlsBMI!L41,mlsBMI!L209),"") -> 15.806 | G42: =IF(Turma!$A$2=1,IF(VLOOKUP("x",Turma!$B$4:$H$53,3,0)="Menina",mlsBMI!M41,mlsBMI!M209),"") -> 17.914 | H42: =IF(Turma!$A$2=1,IF(VLOOKUP("x",Turma!$B$4:$H$53,3,0)="Menina",mlsBMI!N41,mlsBMI!N209),"") -> 20.862 | I42: =IF(Turma!$A$2=1,IF(VLOOKUP("x",Turma!$B$4:$H$53,3,0)="Menina",mlsBMI!O41,mlsBMI!O209),"") -> 25.345
A43: 101 | C43: =IF(Turma!$A$2=1,IF(VLOOKUP("x",Turma!$B$4:$H$53,3,0)="Menina",mlsBMI!I42,mlsBMI!I210),"") -> 11.962 | D43: =IF(Turma!$A$2=1,IF(VLOOKUP("x",Turma!$B$4:$H$53,3,0)="Menina",mlsBMI!J42,mlsBMI!J210),"") -> 12.98 | E43: =IF(Turma!$A$2=1,IF(VLOOKUP("x",Turma!$B$4:$H$53,3,0)="Menina",mlsBMI!K42,mlsBMI!K210),"") -> 14.238 | F43: =IF(Turma!$A$2=1,IF(VLOOKUP("x",Turma!$B$4:$H$53,3,0)="Menina",mlsBMI!L42,mlsBMI!L210),"") -> 15.839 | G43: =IF(Turma!$A$2=1,IF(VLOOKUP("x",Turma!$B$4:$H$53,3,0)="Menina",mlsBMI!M42,mlsBMI!M210),"") -> 17.962 | H43: =IF(Turma!$A$2=1,IF(VLOOKUP("x",Turma!$B$4:$H$53,3,0)="Menina",mlsBMI!N42,mlsBMI!N210),"") -> 20.94 | I43: =IF(Turma!$A$2=1,IF(VLOOKUP("x",Turma!$B$4:$H$53,3,0)="Menina",mlsBMI!O42,mlsBMI!O210),"") -> 25.491
A44: 102 | C44: =IF(Turma!$A$2=1,IF(VLOOKUP("x",Turma!$B$4:$H$53,3,0)="Menina",mlsBMI!I43,mlsBMI!I211),"") -> 11.98 | D44: =IF(Turma!$A$2=1,IF(VLOOKUP("x",Turma!$B$4:$H$53,3,0)="Menina",mlsBMI!J43,mlsBMI!J211),"") -> 13.001 | E44: =IF(Turma!$A$2=1,IF(VLOOKUP("x",Turma!$B$4:$H$53,3,0)="Menina",mlsBMI!K43,mlsBMI!K211),"") -> 14.264 | F44: =IF(Turma!$A$2=1,IF(VLOOKUP("x",Turma!$B$4:$H$53,3,0)="Menina",mlsBMI!L43,mlsBMI!L211),"") -> 15.874 | G44: =IF(Turma!$A$2=1,IF(VLOOKUP("x",Turma!$B$4:$H$53,3,0)="Menina",mlsBMI!M43,mlsBMI!M211),"") -> 18.012 | H44: =IF(Turma!$A$2=1,IF(VLOOKUP("x",Turma!$B$4:$H$53,3,0)="Menina",mlsBMI!N43,mlsBMI!N211),"") -> 21.019 | I44: =IF(Turma!$A$2=1,IF(VLOOKUP("x",Turma!$B$4:$H$53,3,0)="Menina",mlsBMI!O43,mlsBMI!O211),"") -> 25.638
A45: 103 | C45: =IF(Turma!$A$2=1,IF(VLOOKUP("x",Turma!$B$4:$H$53,3,0)="Menina",mlsBMI!I44,mlsBMI!I212),"") -> 11.998 | D45: =IF(Turma!$A$2=1,IF(VLOOKUP("x",Turma!$B$4:$H$53,3,0)="Menina",mlsBMI!J44,mlsBMI!J212),"") -> 13.023 | E45: =IF(Turma!$A$2=1,IF(VLOOKUP("x",Turma!$B$4:$H$53,3,0)="Menina",mlsBMI!K44,mlsBMI!K212),"") -> 14.291 | F45: =IF(Turma!$A$2=1,IF(VLOOKUP("x",Turma!$B$4:$H$53,3,0)="Menina",mlsBMI!L44,mlsBMI!L212),"") -> 15.909 | G45: =IF(Turma!$A$2=1,IF(VLOOKUP("x",Turma!$B$4:$H$53,3,0)="Menina",mlsBMI!M44,mlsBMI!M212),"") -> 18.062 | H45: =IF(Turma!$A$2=1,IF(VLOOKUP("x",Turma!$B$4:$H$53,3,0)="Menina",mlsBMI!N44,mlsBMI!N212),"") -> 21.1 | I45: =IF(Turma!$A$2=1,IF(VLOOKUP("x",Turma!$B$4:$H$53,3,0)="Menina",mlsBMI!O44,mlsBMI!O212),"") -> 25.786
A46: 104 | C46: =IF(Turma!$A$2=1,IF(VLOOKUP("x",Turma!$B$4:$H$53,3,0)="Menina",mlsBMI!I45,mlsBMI!I213),"") -> 12.018 | D46: =IF(Turma!$A$2=1,IF(VLOOKUP("x",Turma!$B$4:$H$53,3,0)="Menina",mlsBMI!J45,mlsBMI!J213),"") -> 13.045 | E46: =IF(Turma!$A$2=1,IF(VLOOKUP("x",Turma!$B$4:$H$53,3,0)="Menina",mlsBMI!K45,mlsBMI!K213),"") -> 14.318 | F46: =IF(Turma!$A$2=1,IF(VLOOKUP("x",Turma!$B$4:$H$53,3,0)="Menina",mlsBMI!L45,mlsBMI!L213),"") -> 15.945 | G46: =IF(Turma!$A$2=1,IF(VLOOKUP("x",Turma!$B$4:$H$53,3,0)="Menina",mlsBMI!M45,mlsBMI!M213),"") -> 18.113 | H46: =IF(Turma!$A$2=1,IF(VLOOKUP("x",Turma!$B$4:$H$53,3,0)="Menina",mlsBMI!N45,mlsBMI!N213),"") -> 21.181 | I46: =IF(Turma!$A$2=1,IF(VLOOKUP("x",Turma!$B$4:$H$53,3,0)="Menina",mlsBMI!O45,mlsBMI!O213),"") -> 25.934
A47: 105 | C47: =IF(Turma!$A$2=1,IF(VLOOKUP("x",Turma!$B$4:$H$53,3,0)="Menina",mlsBMI!I46,mlsBMI!I214),"") -> 12.037 | D47: =IF(Turma!$A$2=1,IF(VLOOKUP("x",Turma!$B$4:$H$53,3,0)="Menina",mlsBMI!J46,mlsBMI!J214),"") -> 13.068 | E47: =IF(Turma!$A$2=1,IF(VLOOKUP("x",Turma!$B$4:$H$53,3,0)="Menina",mlsBMI!K46,mlsBMI!K214),"") -> 14.346 | F47: =IF(Turma!$A$2=1,IF(VLOOKUP("x",Turma!$B$4:$H$53,3,0)="Menina",mlsBMI!L46,mlsBMI!L214),"") -> 15.982 | G47: =IF(Turma!$A$2=1,IF(VLOOKUP("x",Turma!$B$4:$H$53,3,0)="Menina",mlsBMI!M46,mlsBMI!M214),"") -> 18.166 | H47: =IF(Turma!$A$2=1,IF(VLOOKUP("x",Turma!$B$4:$H$53,3,0)="Menina",mlsBMI!N46,mlsBMI!N214),"") -> 21.263 | I47: =IF(Turma!$A$2=1,IF(VLOOKUP("x",Turma!$B$4:$H$53,3,0)="Menina",mlsBMI!O46,mlsBMI!O214),"") -> 26.085
A48: 106 | C48: =IF(Turma!$A$2=1,IF(VLOOKUP("x",Turma!$B$4:$H$53,3,0)="Menina",mlsBMI!I47,mlsBMI!I215),"") -> 12.057 | D48: =IF(Turma!$A$2=1,IF(VLOOKUP("x",Turma!$B$4:$H$53,3,0)="Menina",mlsBMI!J47,mlsBMI!J215),"") -> 13.092 | E48: =IF(Turma!$A$2=1,IF(VLOOKUP("x",Turma!$B$4:$H$53,3,0)="Menina",mlsBMI!K47,mlsBMI!K215),"") -> 14.375 | F48: =IF(Turma!$A$2=1,IF(VLOOKUP("x",Turma!$B$4:$H$53,3,0)="Menina",mlsBMI!L47,mlsBMI!L215),"") -> 16.019 | G48: =IF(Turma!$A$2=1,IF(VLOOKUP("x",Turma!$B$4:$H$53,3,0)="Menina",mlsBMI!M47,mlsBMI!M215),"") -> 18.219 | H48: =IF(Turma!$A$2=1,IF(VLOOKUP("x",Turma!$B$4:$H$53,3,0)="Menina",mlsBMI!N47,mlsBMI!N215),"") -> 21.346 | I48: =IF(Turma!$A$2=1,IF(VLOOKUP("x",Turma!$B$4:$H$53,3,0)="Menina",mlsBMI!O47,mlsBMI!O215),"") -> 26.236
A49: 107 | C49: =IF(Turma!$A$2=1,IF(VLOOKUP("x",Turma!$B$4:$H$53,3,0)="Menina",mlsBMI!I48,mlsBMI!I216),"") -> 12.078 | D49: =IF(Turma!$A$2=1,IF(VLOOKUP("x",Turma!$B$4:$H$53,3,0)="Menina",mlsBMI!J48,mlsBMI!J216),"") -> 13.115 | E49: =IF(Turma!$A$2=1,IF(VLOOKUP("x",Turma!$B$4:$H$53,3,0)="Menina",mlsBMI!K48,mlsBMI!K216),"") -> 14.404 | F49: =IF(Turma!$A$2=1,IF(VLOOKUP("x",Turma!$B$4:$H$53,3,0)="Menina",mlsBMI!L48,mlsBMI!L216),"") -> 16.058 | G49: =IF(Turma!$A$2=1,IF(VLOOKUP("x",Turma!$B$4:$H$53,3,0)="Menina",mlsBMI!M48,mlsBMI!M216),"") -> 18.272 | H49: =IF(Turma!$A$2=1,IF(VLOOKUP("x",Turma!$B$4:$H$53,3,0)="Menina",mlsBMI!N48,mlsBMI!N216),"") -> 21.429 | I49: =IF(Turma!$A$2=1,IF(VLOOKUP("x",Turma!$B$4:$H$53,3,0)="Menina",mlsBMI!O48,mlsBMI!O216),"") -> 26.388
A50: 108 | B50: 9 | C50: =IF(Turma!$A$2=1,IF(VLOOKUP("x",Turma!$B$4:$H$53,3,0)="Menina",mlsBMI!I49,mlsBMI!I217),"") -> 12.099 | D50: =IF(Turma!$A$2=1,IF(VLOOKUP("x",Turma!$B$4:$H$53,3,0)="Menina",mlsBMI!J49,mlsBMI!J217),"") -> 13.14 | E50: =IF(Turma!$A$2=1,IF(VLOOKUP("x",Turma!$B$4:$H$53,3,0)="Menina",mlsBMI!K49,mlsBMI!K217),"") -> 14.434 | F50: =IF(Turma!$A$2=1,IF(VLOOKUP("x",Turma!$B$4:$H$53,3,0)="Menina",mlsBMI!L49,mlsBMI!L217),"") -> 16.096 | G50: =IF(Turma!$A$2=1,IF(VLOOKUP("x",Turma!$B$4:$H$53,3,0)="Menina",mlsBMI!M49,mlsBMI!M217),"") -> 18.326 | H50: =IF(Turma!$A$2=1,IF(VLOOKUP("x",Turma!$B$4:$H$53,3,0)="Menina",mlsBMI!N49,mlsBMI!N217),"") -> 21.513 | I50: =IF(Turma!$A$2=1,IF(VLOOKUP("x",Turma!$B$4:$H$53,3,0)="Menina",mlsBMI!O49,mlsBMI!O217),"") -> 26.539
A51: 109 | C51: =IF(Turma!$A$2=1,IF(VLOOKUP("x",Turma!$B$4:$H$53,3,0)="Menina",mlsBMI!I50,mlsBMI!I218),"") -> 12.12 | D51: =IF(Turma!$A$2=1,IF(VLOOKUP("x",Turma!$B$4:$H$53,3,0)="Menina",mlsBMI!J50,mlsBMI!J218),"") -> 13.165 | E51: =IF(Turma!$A$2=1,IF(VLOOKUP("x",Turma!$B$4:$H$53,3,0)="Menina",mlsBMI!K50,mlsBMI!K218),"") -> 14.465 | F51: =IF(Turma!$A$2=1,IF(VLOOKUP("x",Turma!$B$4:$H$53,3,0)="Menina",mlsBMI!L50,mlsBMI!L218),"") -> 16.136 | G51: =IF(Turma!$A$2=1,IF(VLOOKUP("x",Turma!$B$4:$H$53,3,0)="Menina",mlsBMI!M50,mlsBMI!M218),"") -> 18.381 | H51: =IF(Turma!$A$2=1,IF(VLOOKUP("x",Turma!$B$4:$H$53,3,0)="Menina",mlsBMI!N50,mlsBMI!N218),"") -> 21.599 | I51: =IF(Turma!$A$2=1,IF(VLOOKUP("x",Turma!$B$4:$H$53,3,0)="Menina",mlsBMI!O50,mlsBMI!O218),"") -> 26.692
A52: 110 | C52: =IF(Turma!$A$2=1,IF(VLOOKUP("x",Turma!$B$4:$H$53,3,0)="Menina",mlsBMI!I51,mlsBMI!I219),"") -> 12.141 | D52: =IF(Turma!$A$2=1,IF(VLOOKUP("x",Turma!$B$4:$H$53,3,0)="Menina",mlsBMI!J51,mlsBMI!J219),"") -> 13.19 | E52: =IF(Turma!$A$2=1,IF(VLOOKUP("x",Turma!$B$4:$H$53,3,0)="Menina",mlsBMI!K51,mlsBMI!K219),"") -> 14.496 | F52: =IF(Turma!$A$2=1,IF(VLOOKUP("x",Turma!$B$4:$H$53,3,0)="Menina",mlsBMI!L51,mlsBMI!L219),"") -> 16.176 | G52: =IF(Turma!$A$2=1,IF(VLOOKUP("x",Turma!$B$4:$H$53,3,0)="Menina",mlsBMI!M51,mlsBMI!M219),"") -> 18.437 | H52: =IF(Turma!$A$2=1,IF(VLOOKUP("x",Turma!$B$4:$H$53,3,0)="Menina",mlsBMI!N51,mlsBMI!N219),"") -> 21.684 | I52: =IF(Turma!$A$2=1,IF(VLOOKUP("x",Turma!$B$4:$H$53,3,0)="Menina",mlsBMI!O51,mlsBMI!O219),"") -> 26.845
A53: 111 | C53: =IF(Turma!$A$2=1,IF(VLOOKUP("x",Turma!$B$4:$H$53,3,0)="Menina",mlsBMI!I52,mlsBMI!I220),"") -> 12.163 | D53: =IF(Turma!$A$2=1,IF(VLOOKUP("x",Turma!$B$4:$H$53,3,0)="Menina",mlsBMI!J52,mlsBMI!J220),"") -> 13.216 | E53: =IF(Turma!$A$2=1,IF(VLOOKUP("x",Turma!$B$4:$H$53,3,0)="Menina",mlsBMI!K52,mlsBMI!K220),"") -> 14.527 | F53: =IF(Turma!$A$2=1,IF(VLOOKUP("x",Turma!$B$4:$H$53,3,0)="Menina",mlsBMI!L52,mlsBMI!L220),"") -> 16.217 | G53: =IF(Turma!$A$2=1,IF(VLOOKUP("x",Turma!$B$4:$H$53,3,0)="Menina",mlsBMI!M52,mlsBMI!M220),"") -> 18.493 | H53: =IF(Turma!$A$2=1,IF(VLOOKUP("x",Turma!$B$4:$H$53,3,0)="Menina",mlsBMI!N52,mlsBMI!N220),"") -> 21.77 | I53: =IF(Turma!$A$2=1,IF(VLOOKUP("x",Turma!$B$4:$H$53,3,0)="Menina",mlsBMI!O52,mlsBMI!O220),"") -> 26.998
A54: 112 | C54: =IF(Turma!$A$2=1,IF(VLOOKUP("x",Turma!$B$4:$H$53,3,0)="Menina",mlsBMI!I53,mlsBMI!I221),"") -> 12.185 | D54: =IF(Turma!$A$2=1,IF(VLOOKUP("x",Turma!$B$4:$H$53,3,0)="Menina",mlsBMI!J53,mlsBMI!J221),"") -> 13.242 | E54: =IF(Turma!$A$2=1,IF(VLOOKUP("x",Turma!$B$4:$H$53,3,0)="Menina",mlsBMI!K53,mlsBMI!K221),"") -> 14.559 | F54: =IF(Turma!$A$2=1,IF(VLOOKUP("x",Turma!$B$4:$H$53,3,0)="Menina",mlsBMI!L53,mlsBMI!L221),"") -> 16.258 | G54: =IF(Turma!$A$2=1,IF(VLOOKUP("x",Turma!$B$4:$H$53,3,0)="Menina",mlsBMI!M53,mlsBMI!M221),"") -> 18.551 | H54: =IF(Turma!$A$2=1,IF(VLOOKUP("x",Turma!$B$4:$H$53,3,0)="Menina",mlsBMI!N53,mlsBMI!N221),"") -> 21.857 | I54: =IF(Turma!$A$2=1,IF(VLOOKUP("x",Turma!$B$4:$H$53,3,0)="Menina",mlsBMI!O53,mlsBMI!O221),"") -> 27.152
A55: 113 | C55: =IF(Turma!$A$2=1,IF(VLOOKUP("x",Turma!$B$4:$H$53,3,0)="Menina",mlsBMI!I54,mlsBMI!I222),"") -> 12.208 | D55: =IF(Turma!$A$2=1,IF(VLOOKUP("x",Turma!$B$4:$H$53,3,0)="Menina",mlsBMI!J54,mlsBMI!J222),"") -> 13.269 | E55: =IF(Turma!$A$2=1,IF(VLOOKUP("x",Turma!$B$4:$H$53,3,0)="Menina",mlsBMI!K54,mlsBMI!K222),"") -> 14.592 | F55: =IF(Turma!$A$2=1,IF(VLOOKUP("x",Turma!$B$4:$H$53,3,0)="Menina",mlsBMI!L54,mlsBMI!L222),"") -> 16.3 | G55: =IF(Turma!$A$2=1,IF(VLOOKUP("x",Turma!$B$4:$H$53,3,0)="Menina",mlsBMI!M54,mlsBMI!M222),"") -> 18.608 | H55: =IF(Turma!$A$2=1,IF(VLOOKUP("x",Turma!$B$4:$H$53,3,0)="Menina",mlsBMI!N54,mlsBMI!N222),"") -> 21.944 | I55: =IF(Turma!$A$2=1,IF(VLOOKUP("x",Turma!$B$4:$H$53,3,0)="Menina",mlsBMI!O54,mlsBMI!O222),"") -> 27.305
A56: 114 | C56: =IF(Turma!$A$2=1,IF(VLOOKUP("x",Turma!$B$4:$H$53,3,0)="Menina",mlsBMI!I55,mlsBMI!I223),"") -> 12.231 | D56: =IF(Turma!$A$2=1,IF(VLOOKUP("x",Turma!$B$4:$H$53,3,0)="Menina",mlsBMI!J55,mlsBMI!J223),"") -> 13.296 | E56: =IF(Turma!$A$2=1,IF(VLOOKUP("x",Turma!$B$4:$H$53,3,0)="Menina",mlsBMI!K55,mlsBMI!K223),"") -> 14.625 | F56: =IF(Turma!$A$2=1,IF(VLOOKUP("x",Turma!$B$4:$H$53,3,0)="Menina",mlsBMI!L55,mlsBMI!L223),"") -> 16.343 | G56: =IF(Turma!$A$2=1,IF(VLOOKUP("x",Turma!$B$4:$H$53,3,0)="Menina",mlsBMI!M55,mlsBMI!M223),"") -> 18.666 | H56: =IF(Turma!$A$2=1,IF(VLOOKUP("x",Turma!$B$4:$H$53,3,0)="Menina",mlsBMI!N55,mlsBMI!N223),"") -> 22.031 | I56: =IF(Turma!$A$2=1,IF(VLOOKUP("x",Turma!$B$4:$H$53,3,0)="Menina",mlsBMI!O55,mlsBMI!O223),"") -> 27.459
A57: 115 | C57: =IF(Turma!$A$2=1,IF(VLOOKUP("x",Turma!$B$4:$H$53,3,0)="Menina",mlsBMI!I56,mlsBMI!I224),"") -> 12.254 | D57: =IF(Turma!$A$2=1,IF(VLOOKUP("x",Turma!$B$4:$H$53,3,0)="Menina",mlsBMI!J56,mlsBMI!J224),"") -> 13.323 | E57: =IF(Turma!$A$2=1,IF(VLOOKUP("x",Turma!$B$4:$H$53,3,0)="Menina",mlsBMI!K56,mlsBMI!K224),"") -> 14.659 | F57: =IF(Turma!$A$2=1,IF(VLOOKUP("x",Turma!$B$4:$H$53,3,0)="Menina",mlsBMI!L56,mlsBMI!L224),"") -> 16.386 | G57: =IF(Turma!$A$2=1,IF(VLOOKUP("x",Turma!$B$4:$H$53,3,0)="Menina",mlsBMI!M56,mlsBMI!M224),"") -> 18.725 | H57: =IF(Turma!$A$2=1,IF(VLOOKUP("x",Turma!$B$4:$H$53,3,0)="Menina",mlsBMI!N56,mlsBMI!N224),"") -> 22.12 | I57: =IF(Turma!$A$2=1,IF(VLOOKUP("x",Turma!$B$4:$H$53,3,0)="Menina",mlsBMI!O56,mlsBMI!O224),"") -> 27.612
A58: 116 | C58: =IF(Turma!$A$2=1,IF(VLOOKUP("x",Turma!$B$4:$H$53,3,0)="Menina",mlsBMI!I57,mlsBMI!I225),"") -> 12.278 | D58: =IF(Turma!$A$2=1,IF(VLOOKUP("x",Turma!$B$4:$H$53,3,0)="Menina",mlsBMI!J57,mlsBMI!J225),"") -> 13.352 | E58: =IF(Turma!$A$2=1,IF(VLOOKUP("x",Turma!$B$4:$H$53,3,0)="Menina",mlsBMI!K57,mlsBMI!K225),"") -> 14.694 | F58: =IF(Turma!$A$2=1,IF(VLOOKUP("x",Turma!$B$4:$H$53,3,0)="Menina",mlsBMI!L57,mlsBMI!L225),"") -> 16.43 | G58: =IF(Turma!$A$2=1,IF(VLOOKUP("x",Turma!$B$4:$H$53,3,0)="Menina",mlsBMI!M57,mlsBMI!M225),"") -> 18.785 | H58: =IF(Turma!$A$2=1,IF(VLOOKUP("x",Turma!$B$4:$H$53,3,0)="Menina",mlsBMI!N57,mlsBMI!N225),"") -> 22.208 | I58: =IF(Turma!$A$2=1,IF(VLOOKUP("x",Turma!$B$4:$H$53,3,0)="Menina",mlsBMI!O57,mlsBMI!O225),"") -> 27.765
A59: 117 | C59: =IF(Turma!$A$2=1,IF(VLOOKUP("x",Turma!$B$4:$H$53,3,0)="Menina",mlsBMI!I58,mlsBMI!I226),"") -> 12.302 | D59: =IF(Turma!$A$2=1,IF(VLOOKUP("x",Turma!$B$4:$H$53,3,0)="Menina",mlsBMI!J58,mlsBMI!J226),"") -> 13.38 | E59: =IF(Turma!$A$2=1,IF(VLOOKUP("x",Turma!$B$4:$H$53,3,0)="Menina",mlsBMI!K58,mlsBMI!K226),"") -> 14.729 | F59: =IF(Turma!$A$2=1,IF(VLOOKUP("x",Turma!$B$4:$H$53,3,0)="Menina",mlsBMI!L58,mlsBMI!L226),"") -> 16.475 | G59: =IF(Turma!$A$2=1,IF(VLOOKUP("x",Turma!$B$4:$H$53,3,0)="Menina",mlsBMI!M58,mlsBMI!M226),"") -> 18.846 | H59: =IF(Turma!$A$2=1,IF(VLOOKUP("x",Turma!$B$4:$H$53,3,0)="Menina",mlsBMI!N58,mlsBMI!N226),"") -> 22.298 | I59: =IF(Turma!$A$2=1,IF(VLOOKUP("x",Turma!$B$4:$H$53,3,0)="Menina",mlsBMI!O58,mlsBMI!O226),"") -> 27.918
A60: 118 | C60: =IF(Turma!$A$2=1,IF(VLOOKUP("x",Turma!$B$4:$H$53,3,0)="Menina",mlsBMI!I59,mlsBMI!I227),"") -> 12.327 | D60: =IF(Turma!$A$2=1,IF(VLOOKUP("x",Turma!$B$4:$H$53,3,0)="Menina",mlsBMI!J59,mlsBMI!J227),"") -> 13.41 | E60: =IF(Turma!$A$2=1,IF(VLOOKUP("x",Turma!$B$4:$H$53,3,0)="Menina",mlsBMI!K59,mlsBMI!K227),"") -> 14.764 | F60: =IF(Turma!$A$2=1,IF(VLOOKUP("x",Turma!$B$4:$H$53,3,0)="Menina",mlsBMI!L59,mlsBMI!L227),"") -> 16.52 | G60: =IF(Turma!$A$2=1,IF(VLOOKUP("x",Turma!$B$4:$H$53,3,0)="Menina",mlsBMI!M59,mlsBMI!M227),"") -> 18.907 | H60: =IF(Turma!$A$2=1,IF(VLOOKUP("x",Turma!$B$4:$H$53,3,0)="Menina",mlsBMI!N59,mlsBMI!N227),"") -> 22.388 | I60: =IF(Turma!$A$2=1,IF(VLOOKUP("x",Turma!$B$4:$H$53,3,0)="Menina",mlsBMI!O59,mlsBMI!O227),"") -> 28.071
A61: 119 | C61: =IF(Turma!$A$2=1,IF(VLOOKUP("x",Turma!$B$4:$H$53,3,0)="Menina",mlsBMI!I60,mlsBMI!I228),"") -> 12.352 | D61: =IF(Turma!$A$2=1,IF(VLOOKUP("x",Turma!$B$4:$H$53,3,0)="Menina",mlsBMI!J60,mlsBMI!J228),"") -> 13.439 | E61: =IF(Turma!$A$2=1,IF(VLOOKUP("x",Turma!$B$4:$H$53,3,0)="Menina",mlsBMI!K60,mlsBMI!K228),"") -> 14.801 | F61: =IF(Turma!$A$2=1,IF(VLOOKUP("x",Turma!$B$4:$H$53,3,0)="Menina",mlsBMI!L60,mlsBMI!L228),"") -> 16.566 | G61: =IF(Turma!$A$2=1,IF(VLOOKUP("x",Turma!$B$4:$H$53,3,0)="Menina",mlsBMI!M60,mlsBMI!M228),"") -> 18.969 | H61: =IF(Turma!$A$2=1,IF(VLOOKUP("x",Turma!$B$4:$H$53,3,0)="Menina",mlsBMI!N60,mlsBMI!N228),"") -> 22.479 | I61: =IF(Turma!$A$2=1,IF(VLOOKUP("x",Turma!$B$4:$H$53,3,0)="Menina",mlsBMI!O60,mlsBMI!O228),"") -> 28.226
A62: 120 | B62: 10 | C62: =IF(Turma!$A$2=1,IF(VLOOKUP("x",Turma!$B$4:$H$53,3,0)="Menina",mlsBMI!I61,mlsBMI!I229),"") -> 12.378 | D62: =IF(Turma!$A$2=1,IF(VLOOKUP("x",Turma!$B$4:$H$53,3,0)="Menina",mlsBMI!J61,mlsBMI!J229),"") -> 13.47 | E62: =IF(Turma!$A$2=1,IF(VLOOKUP("x",Turma!$B$4:$H$53,3,0)="Menina",mlsBMI!K61,mlsBMI!K229),"") -> 14.838 | F62: =IF(Turma!$A$2=1,IF(VLOOKUP("x",Turma!$B$4:$H$53,3,0)="Menina",mlsBMI!L61,mlsBMI!L229),"") -> 16.613 | G62: =IF(Turma!$A$2=1,IF(VLOOKUP("x",Turma!$B$4:$H$53,3,0)="Menina",mlsBMI!M61,mlsBMI!M229),"") -> 19.032 | H62: =IF(Turma!$A$2=1,IF(VLOOKUP("x",Turma!$B$4:$H$53,3,0)="Menina",mlsBMI!N61,mlsBMI!N229),"") -> 22.57 | I62: =IF(Turma!$A$2=1,IF(VLOOKUP("x",Turma!$B$4:$H$53,3,0)="Menina",mlsBMI!O61,mlsBMI!O229),"") -> 28.378
A63: 121 | C63: =IF(Turma!$A$2=1,IF(VLOOKUP("x",Turma!$B$4:$H$53,3,0)="Menina",mlsBMI!I62,mlsBMI!I230),"") -> 12.404 | D63: =IF(Turma!$A$2=1,IF(VLOOKUP("x",Turma!$B$4:$H$53,3,0)="Menina",mlsBMI!J62,mlsBMI!J230),"") -> 13.501 | E63: =IF(Turma!$A$2=1,IF(VLOOKUP("x",Turma!$B$4:$H$53,3,0)="Menina",mlsBMI!K62,mlsBMI!K230),"") -> 14.876 | F63: =IF(Turma!$A$2=1,IF(VLOOKUP("x",Turma!$B$4:$H$53,3,0)="Menina",mlsBMI!L62,mlsBMI!L230),"") -> 16.661 | G63: =IF(Turma!$A$2=1,IF(VLOOKUP("x",Turma!$B$4:$H$53,3,0)="Menina",mlsBMI!M62,mlsBMI!M230),"") -> 19.096 | H63: =IF(Turma!$A$2=1,IF(VLOOKUP("x",Turma!$B$4:$H$53,3,0)="Menina",mlsBMI!N62,mlsBMI!N230),"") -> 22.663 | I63: =IF(Turma!$A$2=1,IF(VLOOKUP("x",Turma!$B$4:$H$53,3,0)="Menina",mlsBMI!O62,mlsBMI!O230),"") -> 28.531
A64: 122 | C64: =IF(Turma!$A$2=1,IF(VLOOKUP("x",Turma!$B$4:$H$53,3,0)="Menina",mlsBMI!I63,mlsBMI!I231),"") -> 12.43 | D64: =IF(Turma!$A$2=1,IF(VLOOKUP("x",Turma!$B$4:$H$53,3,0)="Menina",mlsBMI!J63,mlsBMI!J231),"") -> 13.533 | E64: =IF(Turma!$A$2=1,IF(VLOOKUP("x",Turma!$B$4:$H$53,3,0)="Menina",mlsBMI!K63,mlsBMI!K231),"") -> 14.914 | F64: =IF(Turma!$A$2=1,IF(VLOOKUP("x",Turma!$B$4:$H$53,3,0)="Menina",mlsBMI!L63,mlsBMI!L231),"") -> 16.71 | G64: =IF(Turma!$A$2=1,IF(VLOOKUP("x",Turma!$B$4:$H$53,3,0)="Menina",mlsBMI!M63,mlsBMI!M231),"") -> 19.161 | H64: =IF(Turma!$A$2=1,IF(VLOOKUP("x",Turma!$B$4:$H$53,3,0)="Menina",mlsBMI!N63,mlsBMI!N231),"") -> 22.755 | I64: =IF(Turma!$A$2=1,IF(VLOOKUP("x",Turma!$B$4:$H$53,3,0)="Menina",mlsBMI!O63,mlsBMI!O231),"") -> 28.683
A65: 123 | C65: =IF(Turma!$A$2=1,IF(VLOOKUP("x",Turma!$B$4:$H$53,3,0)="Menina",mlsBMI!I64,mlsBMI!I232),"") -> 12.458 | D65: =IF(Turma!$A$2=1,IF(VLOOKUP("x",Turma!$B$4:$H$53,3,0)="Menina",mlsBMI!J64,mlsBMI!J232),"") -> 13.565 | E65: =IF(Turma!$A$2=1,IF(VLOOKUP("x",Turma!$B$4:$H$53,3,0)="Menina",mlsBMI!K64,mlsBMI!K232),"") -> 14.954 | F65: =IF(Turma!$A$2=1,IF(VLOOKUP("x",Turma!$B$4:$H$53,3,0)="Menina",mlsBMI!L64,mlsBMI!L232),"") -> 16.76 | G65: =IF(Turma!$A$2=1,IF(VLOOKUP("x",Turma!$B$4:$H$53,3,0)="Menina",mlsBMI!M64,mlsBMI!M232),"") -> 19.226 | H65: =IF(Turma!$A$2=1,IF(VLOOKUP("x",Turma!$B$4:$H$53,3,0)="Menina",mlsBMI!N64,mlsBMI!N232),"") -> 22.849 | I65: =IF(Turma!$A$2=1,IF(VLOOKUP("x",Turma!$B$4:$H$53,3,0)="Menina",mlsBMI!O64,mlsBMI!O232),"") -> 28.834
A66: 124 | C66: =IF(Turma!$A$2=1,IF(VLOOKUP("x",Turma!$B$4:$H$53,3,0)="Menina",mlsBMI!I65,mlsBMI!I233),"") -> 12.485 | D66: =IF(Turma!$A$2=1,IF(VLOOKUP("x",Turma!$B$4:$H$53,3,0)="Menina",mlsBMI!J65,mlsBMI!J233),"") -> 13.598 | E66: =IF(Turma!$A$2=1,IF(VLOOKUP("x",Turma!$B$4:$H$53,3,0)="Menina",mlsBMI!K65,mlsBMI!K233),"") -> 14.994 | F66: =IF(Turma!$A$2=1,IF(VLOOKUP("x",Turma!$B$4:$H$53,3,0)="Menina",mlsBMI!L65,mlsBMI!L233),"") -> 16.81 | G66: =IF(Turma!$A$2=1,IF(VLOOKUP("x",Turma!$B$4:$H$53,3,0)="Menina",mlsBMI!M65,mlsBMI!M233),"") -> 19.293 | H66: =IF(Turma!$A$2=1,IF(VLOOKUP("x",Turma!$B$4:$H$53,3,0)="Menina",mlsBMI!N65,mlsBMI!N233),"") -> 22.943 | I66: =IF(Turma!$A$2=1,IF(VLOOKUP("x",Turma!$B$4:$H$53,3,0)="Menina",mlsBMI!O65,mlsBMI!O233),"") -> 28.987
A67: 125 | B67: =IF(A67/12=INT(A67/12),A67/12,"") ->  | C67: =IF(Turma!$A$2=1,IF(VLOOKUP("x",Turma!$B$4:$H$53,3,0)="Menina",mlsBMI!I66,mlsBMI!I234),"") -> 12.514 | D67: =IF(Turma!$A$2=1,IF(VLOOKUP("x",Turma!$B$4:$H$53,3,0)="Menina",mlsBMI!J66,mlsBMI!J234),"") -> 13.631 | E67: =IF(Turma!$A$2=1,IF(VLOOKUP("x",Turma!$B$4:$H$53,3,0)="Menina",mlsBMI!K66,mlsBMI!K234),"") -> 15.035 | F67: =IF(Turma!$A$2=1,IF(VLOOKUP("x",Turma!$B$4:$H$53,3,0)="Menina",mlsBMI!L66,mlsBMI!L234),"") -> 16.861 | G67: =IF(Turma!$A$2=1,IF(VLOOKUP("x",Turma!$B$4:$H$53,3,0)="Menina",mlsBMI!M66,mlsBMI!M234),"") -> 19.36 | H67: =IF(Turma!$A$2=1,IF(VLOOKUP("x",Turma!$B$4:$H$53,3,0)="Menina",mlsBMI!N66,mlsBMI!N234),"") -> 23.038 | I67: =IF(Turma!$A$2=1,IF(VLOOKUP("x",Turma!$B$4:$H$53,3,0)="Menina",mlsBMI!O66,mlsBMI!O234),"") -> 29.138
A68: 126 | C68: =IF(Turma!$A$2=1,IF(VLOOKUP("x",Turma!$B$4:$H$53,3,0)="Menina",mlsBMI!I67,mlsBMI!I235),"") -> 12.542 | D68: =IF(Turma!$A$2=1,IF(VLOOKUP("x",Turma!$B$4:$H$53,3,0)="Menina",mlsBMI!J67,mlsBMI!J235),"") -> 13.666 | E68: =IF(Turma!$A$2=1,IF(VLOOKUP("x",Turma!$B$4:$H$53,3,0)="Menina",mlsBMI!K67,mlsBMI!K235),"") -> 15.076 | F68: =IF(Turma!$A$2=1,IF(VLOOKUP("x",Turma!$B$4:$H$53,3,0)="Menina",mlsBMI!L67,mlsBMI!L235),"") -> 16.914 | G68: =IF(Turma!$A$2=1,IF(VLOOKUP("x",Turma!$B$4:$H$53,3,0)="Menina",mlsBMI!M67,mlsBMI!M235),"") -> 19.429 | H68: =IF(Turma!$A$2=1,IF(VLOOKUP("x",Turma!$B$4:$H$53,3,0)="Menina",mlsBMI!N67,mlsBMI!N235),"") -> 23.134 | I68: =IF(Turma!$A$2=1,IF(VLOOKUP("x",Turma!$B$4:$H$53,3,0)="Menina",mlsBMI!O67,mlsBMI!O235),"") -> 29.29
A69: 127 | C69: =IF(Turma!$A$2=1,IF(VLOOKUP("x",Turma!$B$4:$H$53,3,0)="Menina",mlsBMI!I68,mlsBMI!I236),"") -> 12.572 | D69: =IF(Turma!$A$2=1,IF(VLOOKUP("x",Turma!$B$4:$H$53,3,0)="Menina",mlsBMI!J68,mlsBMI!J236),"") -> 13.7 | E69: =IF(Turma!$A$2=1,IF(VLOOKUP("x",Turma!$B$4:$H$53,3,0)="Menina",mlsBMI!K68,mlsBMI!K236),"") -> 15.119 | F69: =IF(Turma!$A$2=1,IF(VLOOKUP("x",Turma!$B$4:$H$53,3,0)="Menina",mlsBMI!L68,mlsBMI!L236),"") -> 16.967 | G69: =IF(Turma!$A$2=1,IF(VLOOKUP("x",Turma!$B$4:$H$53,3,0)="Menina",mlsBMI!M68,mlsBMI!M236),"") -> 19.498 | H69: =IF(Turma!$A$2=1,IF(VLOOKUP("x",Turma!$B$4:$H$53,3,0)="Menina",mlsBMI!N68,mlsBMI!N236),"") -> 23.231 | I69: =IF(Turma!$A$2=1,IF(VLOOKUP("x",Turma!$B$4:$H$53,3,0)="Menina",mlsBMI!O68,mlsBMI!O236),"") -> 29.441
A70: 128 | C70: =IF(Turma!$A$2=1,IF(VLOOKUP("x",Turma!$B$4:$H$53,3,0)="Menina",mlsBMI!I69,mlsBMI!I237),"") -> 12.602 | D70: =IF(Turma!$A$2=1,IF(VLOOKUP("x",Turma!$B$4:$H$53,3,0)="Menina",mlsBMI!J69,mlsBMI!J237),"") -> 13.736 | E70: =IF(Turma!$A$2=1,IF(VLOOKUP("x",Turma!$B$4:$H$53,3,0)="Menina",mlsBMI!K69,mlsBMI!K237),"") -> 15.162 | F70: =IF(Turma!$A$2=1,IF(VLOOKUP("x",Turma!$B$4:$H$53,3,0)="Menina",mlsBMI!L69,mlsBMI!L237),"") -> 17.021 | G70: =IF(Turma!$A$2=1,IF(VLOOKUP("x",Turma!$B$4:$H$53,3,0)="Menina",mlsBMI!M69,mlsBMI!M237),"") -> 19.568 | H70: =IF(Turma!$A$2=1,IF(VLOOKUP("x",Turma!$B$4:$H$53,3,0)="Menina",mlsBMI!N69,mlsBMI!N237),"") -> 23.328 | I70: =IF(Turma!$A$2=1,IF(VLOOKUP("x",Turma!$B$4:$H$53,3,0)="Menina",mlsBMI!O69,mlsBMI!O237),"") -> 29.591
A71: 129 | C71: =IF(Turma!$A$2=1,IF(VLOOKUP("x",Turma!$B$4:$H$53,3,0)="Menina",mlsBMI!I70,mlsBMI!I238),"") -> 12.632 | D71: =IF(Turma!$A$2=1,IF(VLOOKUP("x",Turma!$B$4:$H$53,3,0)="Menina",mlsBMI!J70,mlsBMI!J238),"") -> 13.772 | E71: =IF(Turma!$A$2=1,IF(VLOOKUP("x",Turma!$B$4:$H$53,3,0)="Menina",mlsBMI!K70,mlsBMI!K238),"") -> 15.206 | F71: =IF(Turma!$A$2=1,IF(VLOOKUP("x",Turma!$B$4:$H$53,3,0)="Menina",mlsBMI!L70,mlsBMI!L238),"") -> 17.076 | G71: =IF(Turma!$A$2=1,IF(VLOOKUP("x",Turma!$B$4:$H$53,3,0)="Menina",mlsBMI!M70,mlsBMI!M238),"") -> 19.639 | H71: =IF(Turma!$A$2=1,IF(VLOOKUP("x",Turma!$B$4:$H$53,3,0)="Menina",mlsBMI!N70,mlsBMI!N238),"") -> 23.426 | I71: =IF(Turma!$A$2=1,IF(VLOOKUP("x",Turma!$B$4:$H$53,3,0)="Menina",mlsBMI!O70,mlsBMI!O238),"") -> 29.742
A72: 130 | C72: =IF(Turma!$A$2=1,IF(VLOOKUP("x",Turma!$B$4:$H$53,3,0)="Menina",mlsBMI!I71,mlsBMI!I239),"") -> 12.663 | D72: =IF(Turma!$A$2=1,IF(VLOOKUP("x",Turma!$B$4:$H$53,3,0)="Menina",mlsBMI!J71,mlsBMI!J239),"") -> 13.81 | E72: =IF(Turma!$A$2=1,IF(VLOOKUP("x",Turma!$B$4:$H$53,3,0)="Menina",mlsBMI!K71,mlsBMI!K239),"") -> 15.251 | F72: =IF(Turma!$A$2=1,IF(VLOOKUP("x",Turma!$B$4:$H$53,3,0)="Menina",mlsBMI!L71,mlsBMI!L239),"") -> 17.132 | G72: =IF(Turma!$A$2=1,IF(VLOOKUP("x",Turma!$B$4:$H$53,3,0)="Menina",mlsBMI!M71,mlsBMI!M239),"") -> 19.712 | H72: =IF(Turma!$A$2=1,IF(VLOOKUP("x",Turma!$B$4:$H$53,3,0)="Menina",mlsBMI!N71,mlsBMI!N239),"") -> 23.525 | I72: =IF(Turma!$A$2=1,IF(VLOOKUP("x",Turma!$B$4:$H$53,3,0)="Menina",mlsBMI!O71,mlsBMI!O239),"") -> 29.891
A73: 131 | C73: =IF(Turma!$A$2=1,IF(VLOOKUP("x",Turma!$B$4:$H$53,3,0)="Menina",mlsBMI!I72,mlsBMI!I240),"") -> 12.695 | D73: =IF(Turma!$A$2=1,IF(VLOOKUP("x",Turma!$B$4:$H$53,3,0)="Menina",mlsBMI!J72,mlsBMI!J240),"") -> 13.847 | E73: =IF(Turma!$A$2=1,IF(VLOOKUP("x",Turma!$B$4:$H$53,3,0)="Menina",mlsBMI!K72,mlsBMI!K240),"") -> 15.297 | F73: =IF(Turma!$A$2=1,IF(VLOOKUP("x",Turma!$B$4:$H$53,3,0)="Menina",mlsBMI!L72,mlsBMI!L240),"") -> 17.188 | G73: =IF(Turma!$A$2=1,IF(VLOOKUP("x",Turma!$B$4:$H$53,3,0)="Menina",mlsBMI!M72,mlsBMI!M240),"") -> 19.785 | H73: =IF(Turma!$A$2=1,IF(VLOOKUP("x",Turma!$B$4:$H$53,3,0)="Menina",mlsBMI!N72,mlsBMI!N240),"") -> 23.624 | I73: =IF(Turma!$A$2=1,IF(VLOOKUP("x",Turma!$B$4:$H$53,3,0)="Menina",mlsBMI!O72,mlsBMI!O240),"") -> 30.039
A74: 132 | B74: 11 | C74: =IF(Turma!$A$2=1,IF(VLOOKUP("x",Turma!$B$4:$H$53,3,0)="Menina",mlsBMI!I73,mlsBMI!I241),"") -> 12.727 | D74: =IF(Turma!$A$2=1,IF(VLOOKUP("x",Turma!$B$4:$H$53,3,0)="Menina",mlsBMI!J73,mlsBMI!J241),"") -> 13.885 | E74: =IF(Turma!$A$2=1,IF(VLOOKUP("x",Turma!$B$4:$H$53,3,0)="Menina",mlsBMI!K73,mlsBMI!K241),"") -> 15.343 | F74: =IF(Turma!$A$2=1,IF(VLOOKUP("x",Turma!$B$4:$H$53,3,0)="Menina",mlsBMI!L73,mlsBMI!L241),"") -> 17.246 | G74: =IF(Turma!$A$2=1,IF(VLOOKUP("x",Turma!$B$4:$H$53,3,0)="Menina",mlsBMI!M73,mlsBMI!M241),"") -> 19.859 | H74: =IF(Turma!$A$2=1,IF(VLOOKUP("x",Turma!$B$4:$H$53,3,0)="Menina",mlsBMI!N73,mlsBMI!N241),"") -> 23.725 | I74: =IF(Turma!$A$2=1,IF(VLOOKUP("x",Turma!$B$4:$H$53,3,0)="Menina",mlsBMI!O73,mlsBMI!O241),"") -> 30.189
A75: 133 | C75: =IF(Turma!$A$2=1,IF(VLOOKUP("x",Turma!$B$4:$H$53,3,0)="Menina",mlsBMI!I74,mlsBMI!I242),"") -> 12.76 | D75: =IF(Turma!$A$2=1,IF(VLOOKUP("x",Turma!$B$4:$H$53,3,0)="Menina",mlsBMI!J74,mlsBMI!J242),"") -> 13.925 | E75: =IF(Turma!$A$2=1,IF(VLOOKUP("x",Turma!$B$4:$H$53,3,0)="Menina",mlsBMI!K74,mlsBMI!K242),"") -> 15.39 | F75: =IF(Turma!$A$2=1,IF(VLOOKUP("x",Turma!$B$4:$H$53,3,0)="Menina",mlsBMI!L74,mlsBMI!L242),"") -> 17.304 | G75: =IF(Turma!$A$2=1,IF(VLOOKUP("x",Turma!$B$4:$H$53,3,0)="Menina",mlsBMI!M74,mlsBMI!M242),"") -> 19.933 | H75: =IF(Turma!$A$2=1,IF(VLOOKUP("x",Turma!$B$4:$H$53,3,0)="Menina",mlsBMI!N74,mlsBMI!N242),"") -> 23.825 | I75: =IF(Turma!$A$2=1,IF(VLOOKUP("x",Turma!$B$4:$H$53,3,0)="Menina",mlsBMI!O74,mlsBMI!O242),"") -> 30.336
A76: 134 | C76: =IF(Turma!$A$2=1,IF(VLOOKUP("x",Turma!$B$4:$H$53,3,0)="Menina",mlsBMI!I75,mlsBMI!I243),"") -> 12.793 | D76: =IF(Turma!$A$2=1,IF(VLOOKUP("x",Turma!$B$4:$H$53,3,0)="Menina",mlsBMI!J75,mlsBMI!J243),"") -> 13.964 | E76: =IF(Turma!$A$2=1,IF(VLOOKUP("x",Turma!$B$4:$H$53,3,0)="Menina",mlsBMI!K75,mlsBMI!K243),"") -> 15.438 | F76: =IF(Turma!$A$2=1,IF(VLOOKUP("x",Turma!$B$4:$H$53,3,0)="Menina",mlsBMI!L75,mlsBMI!L243),"") -> 17.364 | G76: =IF(Turma!$A$2=1,IF(VLOOKUP("x",Turma!$B$4:$H$53,3,0)="Menina",mlsBMI!M75,mlsBMI!M243),"") -> 20.009 | H76: =IF(Turma!$A$2=1,IF(VLOOKUP("x",Turma!$B$4:$H$53,3,0)="Menina",mlsBMI!N75,mlsBMI!N243),"") -> 23.927 | I76: =IF(Turma!$A$2=1,IF(VLOOKUP("x",Turma!$B$4:$H$53,3,0)="Menina",mlsBMI!O75,mlsBMI!O243),"") -> 30.484
A77: 135 | C77: =IF(Turma!$A$2=1,IF(VLOOKUP("x",Turma!$B$4:$H$53,3,0)="Menina",mlsBMI!I76,mlsBMI!I244),"") -> 12.827 | D77: =IF(Turma!$A$2=1,IF(VLOOKUP("x",Turma!$B$4:$H$53,3,0)="Menina",mlsBMI!J76,mlsBMI!J244),"") -> 14.004 | E77: =IF(Turma!$A$2=1,IF(VLOOKUP("x",Turma!$B$4:$H$53,3,0)="Menina",mlsBMI!K76,mlsBMI!K244),"") -> 15.487 | F77: =IF(Turma!$A$2=1,IF(VLOOKUP("x",Turma!$B$4:$H$53,3,0)="Menina",mlsBMI!L76,mlsBMI!L244),"") -> 17.424 | G77: =IF(Turma!$A$2=1,IF(VLOOKUP("x",Turma!$B$4:$H$53,3,0)="Menina",mlsBMI!M76,mlsBMI!M244),"") -> 20.086 | H77: =IF(Turma!$A$2=1,IF(VLOOKUP("x",Turma!$B$4:$H$53,3,0)="Menina",mlsBMI!N76,mlsBMI!N244),"") -> 24.029 | I77: =IF(Turma!$A$2=1,IF(VLOOKUP("x",Turma!$B$4:$H$53,3,0)="Menina",mlsBMI!O76,mlsBMI!O244),"") -> 30.63
A78: 136 | C78: =IF(Turma!$A$2=1,IF(VLOOKUP("x",Turma!$B$4:$H$53,3,0)="Menina",mlsBMI!I77,mlsBMI!I245),"") -> 12.861 | D78: =IF(Turma!$A$2=1,IF(VLOOKUP("x",Turma!$B$4:$H$53,3,0)="Menina",mlsBMI!J77,mlsBMI!J245),"") -> 14.045 | E78: =IF(Turma!$A$2=1,IF(VLOOKUP("x",Turma!$B$4:$H$53,3,0)="Menina",mlsBMI!K77,mlsBMI!K245),"") -> 15.536 | F78: =IF(Turma!$A$2=1,IF(VLOOKUP("x",Turma!$B$4:$H$53,3,0)="Menina",mlsBMI!L77,mlsBMI!L245),"") -> 17.485 | G78: =IF(Turma!$A$2=1,IF(VLOOKUP("x",Turma!$B$4:$H$53,3,0)="Menina",mlsBMI!M77,mlsBMI!M245),"") -> 20.163 | H78: =IF(Turma!$A$2=1,IF(VLOOKUP("x",Turma!$B$4:$H$53,3,0)="Menina",mlsBMI!N77,mlsBMI!N245),"") -> 24.131 | I78: =IF(Turma!$A$2=1,IF(VLOOKUP("x",Turma!$B$4:$H$53,3,0)="Menina",mlsBMI!O77,mlsBMI!O245),"") -> 30.776
A79: 137 | C79: =IF(Turma!$A$2=1,IF(VLOOKUP("x",Turma!$B$4:$H$53,3,0)="Menina",mlsBMI!I78,mlsBMI!I246),"") -> 12.896 | D79: =IF(Turma!$A$2=1,IF(VLOOKUP("x",Turma!$B$4:$H$53,3,0)="Menina",mlsBMI!J78,mlsBMI!J246),"") -> 14.087 | E79: =IF(Turma!$A$2=1,IF(VLOOKUP("x",Turma!$B$4:$H$53,3,0)="Menina",mlsBMI!K78,mlsBMI!K246),"") -> 15.586 | F79: =IF(Turma!$A$2=1,IF(VLOOKUP("x",Turma!$B$4:$H$53,3,0)="Menina",mlsBMI!L78,mlsBMI!L246),"") -> 17.546 | G79: =IF(Turma!$A$2=1,IF(VLOOKUP("x",Turma!$B$4:$H$53,3,0)="Menina",mlsBMI!M78,mlsBMI!M246),"") -> 20.241 | H79: =IF(Turma!$A$2=1,IF(VLOOKUP("x",Turma!$B$4:$H$53,3,0)="Menina",mlsBMI!N78,mlsBMI!N246),"") -> 24.234 | I79: =IF(Turma!$A$2=1,IF(VLOOKUP("x",Turma!$B$4:$H$53,3,0)="Menina",mlsBMI!O78,mlsBMI!O246),"") -> 30.92
A80: 138 | C80: =IF(Turma!$A$2=1,IF(VLOOKUP("x",Turma!$B$4:$H$53,3,0)="Menina",mlsBMI!I79,mlsBMI!I247),"") -> 12.931 | D80: =IF(Turma!$A$2=1,IF(VLOOKUP("x",Turma!$B$4:$H$53,3,0)="Menina",mlsBMI!J79,mlsBMI!J247),"") -> 14.129 | E80: =IF(Turma!$A$2=1,IF(VLOOKUP("x",Turma!$B$4:$H$53,3,0)="Menina",mlsBMI!K79,mlsBMI!K247),"") -> 15.637 | F80: =IF(Turma!$A$2=1,IF(VLOOKUP("x",Turma!$B$4:$H$53,3,0)="Menina",mlsBMI!L79,mlsBMI!L247),"") -> 17.609 | G80: =IF(Turma!$A$2=1,IF(VLOOKUP("x",Turma!$B$4:$H$53,3,0)="Menina",mlsBMI!M79,mlsBMI!M247),"") -> 20.32 | H80: =IF(Turma!$A$2=1,IF(VLOOKUP("x",Turma!$B$4:$H$53,3,0)="Menina",mlsBMI!N79,mlsBMI!N247),"") -> 24.338 | I80: =IF(Turma!$A$2=1,IF(VLOOKUP("x",Turma!$B$4:$H$53,3,0)="Menina",mlsBMI!O79,mlsBMI!O247),"") -> 31.064
A81: 139 | C81: =IF(Turma!$A$2=1,IF(VLOOKUP("x",Turma!$B$4:$H$53,3,0)="Menina",mlsBMI!I80,mlsBMI!I248),"") -> 12.967 | D81: =IF(Turma!$A$2=1,IF(VLOOKUP("x",Turma!$B$4:$H$53,3,0)="Menina",mlsBMI!J80,mlsBMI!J248),"") -> 14.171 | E81: =IF(Turma!$A$2=1,IF(VLOOKUP("x",Turma!$B$4:$H$53,3,0)="Menina",mlsBMI!K80,mlsBMI!K248),"") -> 15.688 | F81: =IF(Turma!$A$2=1,IF(VLOOKUP("x",Turma!$B$4:$H$53,3,0)="Menina",mlsBMI!L80,mlsBMI!L248),"") -> 17.672 | G81: =IF(Turma!$A$2=1,IF(VLOOKUP("x",Turma!$B$4:$H$53,3,0)="Menina",mlsBMI!M80,mlsBMI!M248),"") -> 20.4 | H81: =IF(Turma!$A$2=1,IF(VLOOKUP("x",Turma!$B$4:$H$53,3,0)="Menina",mlsBMI!N80,mlsBMI!N248),"") -> 24.442 | I81: =IF(Turma!$A$2=1,IF(VLOOKUP("x",Turma!$B$4:$H$53,3,0)="Menina",mlsBMI!O80,mlsBMI!O248),"") -> 31.209
A82: 140 | C82: =IF(Turma!$A$2=1,IF(VLOOKUP("x",Turma!$B$4:$H$53,3,0)="Menina",mlsBMI!I81,mlsBMI!I249),"") -> 13.003 | D82: =IF(Turma!$A$2=1,IF(VLOOKUP("x",Turma!$B$4:$H$53,3,0)="Menina",mlsBMI!J81,mlsBMI!J249),"") -> 14.214 | E82: =IF(Turma!$A$2=1,IF(VLOOKUP("x",Turma!$B$4:$H$53,3,0)="Menina",mlsBMI!K81,mlsBMI!K249),"") -> 15.74 | F82: =IF(Turma!$A$2=1,IF(VLOOKUP("x",Turma!$B$4:$H$53,3,0)="Menina",mlsBMI!L81,mlsBMI!L249),"") -> 17.736 | G82: =IF(Turma!$A$2=1,IF(VLOOKUP("x",Turma!$B$4:$H$53,3,0)="Menina",mlsBMI!M81,mlsBMI!M249),"") -> 20.48 | H82: =IF(Turma!$A$2=1,IF(VLOOKUP("x",Turma!$B$4:$H$53,3,0)="Menina",mlsBMI!N81,mlsBMI!N249),"") -> 24.546 | I82: =IF(Turma!$A$2=1,IF(VLOOKUP("x",Turma!$B$4:$H$53,3,0)="Menina",mlsBMI!O81,mlsBMI!O249),"") -> 31.351
A83: 141 | C83: =IF(Turma!$A$2=1,IF(VLOOKUP("x",Turma!$B$4:$H$53,3,0)="Menina",mlsBMI!I82,mlsBMI!I250),"") -> 13.04 | D83: =IF(Turma!$A$2=1,IF(VLOOKUP("x",Turma!$B$4:$H$53,3,0)="Menina",mlsBMI!J82,mlsBMI!J250),"") -> 14.258 | E83: =IF(Turma!$A$2=1,IF(VLOOKUP("x",Turma!$B$4:$H$53,3,0)="Menina",mlsBMI!K82,mlsBMI!K250),"") -> 15.793 | F83: =IF(Turma!$A$2=1,IF(VLOOKUP("x",Turma!$B$4:$H$53,3,0)="Menina",mlsBMI!L82,mlsBMI!L250),"") -> 17.8 | G83: =IF(Turma!$A$2=1,IF(VLOOKUP("x",Turma!$B$4:$H$53,3,0)="Menina",mlsBMI!M82,mlsBMI!M250),"") -> 20.561 | H83: =IF(Turma!$A$2=1,IF(VLOOKUP("x",Turma!$B$4:$H$53,3,0)="Menina",mlsBMI!N82,mlsBMI!N250),"") -> 24.651 | I83: =IF(Turma!$A$2=1,IF(VLOOKUP("x",Turma!$B$4:$H$53,3,0)="Menina",mlsBMI!O82,mlsBMI!O250),"") -> 31.493
A84: 142 | C84: =IF(Turma!$A$2=1,IF(VLOOKUP("x",Turma!$B$4:$H$53,3,0)="Menina",mlsBMI!I83,mlsBMI!I251),"") -> 13.077 | D84: =IF(Turma!$A$2=1,IF(VLOOKUP("x",Turma!$B$4:$H$53,3,0)="Menina",mlsBMI!J83,mlsBMI!J251),"") -> 14.302 | E84: =IF(Turma!$A$2=1,IF(VLOOKUP("x",Turma!$B$4:$H$53,3,0)="Menina",mlsBMI!K83,mlsBMI!K251),"") -> 15.846 | F84: =IF(Turma!$A$2=1,IF(VLOOKUP("x",Turma!$B$4:$H$53,3,0)="Menina",mlsBMI!L83,mlsBMI!L251),"") -> 17.865 | G84: =IF(Turma!$A$2=1,IF(VLOOKUP("x",Turma!$B$4:$H$53,3,0)="Menina",mlsBMI!M83,mlsBMI!M251),"") -> 20.642 | H84: =IF(Turma!$A$2=1,IF(VLOOKUP("x",Turma!$B$4:$H$53,3,0)="Menina",mlsBMI!N83,mlsBMI!N251),"") -> 24.756 | I84: =IF(Turma!$A$2=1,IF(VLOOKUP("x",Turma!$B$4:$H$53,3,0)="Menina",mlsBMI!O83,mlsBMI!O251),"") -> 31.633
A85: 143 | C85: =IF(Turma!$A$2=1,IF(VLOOKUP("x",Turma!$B$4:$H$53,3,0)="Menina",mlsBMI!I84,mlsBMI!I252),"") -> 13.114 | D85: =IF(Turma!$A$2=1,IF(VLOOKUP("x",Turma!$B$4:$H$53,3,0)="Menina",mlsBMI!J84,mlsBMI!J252),"") -> 14.346 | E85: =IF(Turma!$A$2=1,IF(VLOOKUP("x",Turma!$B$4:$H$53,3,0)="Menina",mlsBMI!K84,mlsBMI!K252),"") -> 15.899 | F85: =IF(Turma!$A$2=1,IF(VLOOKUP("x",Turma!$B$4:$H$53,3,0)="Menina",mlsBMI!L84,mlsBMI!L252),"") -> 17.931 | G85: =IF(Turma!$A$2=1,IF(VLOOKUP("x",Turma!$B$4:$H$53,3,0)="Menina",mlsBMI!M84,mlsBMI!M252),"") -> 20.724 | H85: =IF(Turma!$A$2=1,IF(VLOOKUP("x",Turma!$B$4:$H$53,3,0)="Menina",mlsBMI!N84,mlsBMI!N252),"") -> 24.861 | I85: =IF(Turma!$A$2=1,IF(VLOOKUP("x",Turma!$B$4:$H$53,3,0)="Menina",mlsBMI!O84,mlsBMI!O252),"") -> 31.77
A86: 144 | B86: 12 | C86: =IF(Turma!$A$2=1,IF(VLOOKUP("x",Turma!$B$4:$H$53,3,0)="Menina",mlsBMI!I85,mlsBMI!I253),"") -> 13.151 | D86: =IF(Turma!$A$2=1,IF(VLOOKUP("x",Turma!$B$4:$H$53,3,0)="Menina",mlsBMI!J85,mlsBMI!J253),"") -> 14.391 | E86: =IF(Turma!$A$2=1,IF(VLOOKUP("x",Turma!$B$4:$H$53,3,0)="Menina",mlsBMI!K85,mlsBMI!K253),"") -> 15.953 | F86: =IF(Turma!$A$2=1,IF(VLOOKUP("x",Turma!$B$4:$H$53,3,0)="Menina",mlsBMI!L85,mlsBMI!L253),"") -> 17.997 | G86: =IF(Turma!$A$2=1,IF(VLOOKUP("x",Turma!$B$4:$H$53,3,0)="Menina",mlsBMI!M85,mlsBMI!M253),"") -> 20.806 | H86: =IF(Turma!$A$2=1,IF(VLOOKUP("x",Turma!$B$4:$H$53,3,0)="Menina",mlsBMI!N85,mlsBMI!N253),"") -> 24.967 | I86: =IF(Turma!$A$2=1,IF(VLOOKUP("x",Turma!$B$4:$H$53,3,0)="Menina",mlsBMI!O85,mlsBMI!O253),"") -> 31.91
A87: 145 | C87: =IF(Turma!$A$2=1,IF(VLOOKUP("x",Turma!$B$4:$H$53,3,0)="Menina",mlsBMI!I86,mlsBMI!I254),"") -> 13.189 | D87: =IF(Turma!$A$2=1,IF(VLOOKUP("x",Turma!$B$4:$H$53,3,0)="Menina",mlsBMI!J86,mlsBMI!J254),"") -> 14.436 | E87: =IF(Turma!$A$2=1,IF(VLOOKUP("x",Turma!$B$4:$H$53,3,0)="Menina",mlsBMI!K86,mlsBMI!K254),"") -> 16.008 | F87: =IF(Turma!$A$2=1,IF(VLOOKUP("x",Turma!$B$4:$H$53,3,0)="Menina",mlsBMI!L86,mlsBMI!L254),"") -> 18.063 | G87: =IF(Turma!$A$2=1,IF(VLOOKUP("x",Turma!$B$4:$H$53,3,0)="Menina",mlsBMI!M86,mlsBMI!M254),"") -> 20.889 | H87: =IF(Turma!$A$2=1,IF(VLOOKUP("x",Turma!$B$4:$H$53,3,0)="Menina",mlsBMI!N86,mlsBMI!N254),"") -> 25.072 | I87: =IF(Turma!$A$2=1,IF(VLOOKUP("x",Turma!$B$4:$H$53,3,0)="Menina",mlsBMI!O86,mlsBMI!O254),"") -> 32.047
A88: 146 | C88: =IF(Turma!$A$2=1,IF(VLOOKUP("x",Turma!$B$4:$H$53,3,0)="Menina",mlsBMI!I87,mlsBMI!I255),"") -> 13.227 | D88: =IF(Turma!$A$2=1,IF(VLOOKUP("x",Turma!$B$4:$H$53,3,0)="Menina",mlsBMI!J87,mlsBMI!J255),"") -> 14.481 | E88: =IF(Turma!$A$2=1,IF(VLOOKUP("x",Turma!$B$4:$H$53,3,0)="Menina",mlsBMI!K87,mlsBMI!K255),"") -> 16.062 | F88: =IF(Turma!$A$2=1,IF(VLOOKUP("x",Turma!$B$4:$H$53,3,0)="Menina",mlsBMI!L87,mlsBMI!L255),"") -> 18.13 | G88: =IF(Turma!$A$2=1,IF(VLOOKUP("x",Turma!$B$4:$H$53,3,0)="Menina",mlsBMI!M87,mlsBMI!M255),"") -> 20.972 | H88: =IF(Turma!$A$2=1,IF(VLOOKUP("x",Turma!$B$4:$H$53,3,0)="Menina",mlsBMI!N87,mlsBMI!N255),"") -> 25.177 | I88: =IF(Turma!$A$2=1,IF(VLOOKUP("x",Turma!$B$4:$H$53,3,0)="Menina",mlsBMI!O87,mlsBMI!O255),"") -> 32.182
A89: 147 | C89: =IF(Turma!$A$2=1,IF(VLOOKUP("x",Turma!$B$4:$H$53,3,0)="Menina",mlsBMI!I88,mlsBMI!I256),"") -> 13.265 | D89: =IF(Turma!$A$2=1,IF(VLOOKUP("x",Turma!$B$4:$H$53,3,0)="Menina",mlsBMI!J88,mlsBMI!J256),"") -> 14.526 | E89: =IF(Turma!$A$2=1,IF(VLOOKUP("x",Turma!$B$4:$H$53,3,0)="Menina",mlsBMI!K88,mlsBMI!K256),"") -> 16.117 | F89: =IF(Turma!$A$2=1,IF(VLOOKUP("x",Turma!$B$4:$H$53,3,0)="Menina",mlsBMI!L88,mlsBMI!L256),"") -> 18.197 | G89: =IF(Turma!$A$2=1,IF(VLOOKUP("x",Turma!$B$4:$H$53,3,0)="Menina",mlsBMI!M88,mlsBMI!M256),"") -> 21.055 | H89: =IF(Turma!$A$2=1,IF(VLOOKUP("x",Turma!$B$4:$H$53,3,0)="Menina",mlsBMI!N88,mlsBMI!N256),"") -> 25.282 | I89: =IF(Turma!$A$2=1,IF(VLOOKUP("x",Turma!$B$4:$H$53,3,0)="Menina",mlsBMI!O88,mlsBMI!O256),"") -> 32.316
A90: 148 | C90: =IF(Turma!$A$2=1,IF(VLOOKUP("x",Turma!$B$4:$H$53,3,0)="Menina",mlsBMI!I89,mlsBMI!I257),"") -> 13.303 | D90: =IF(Turma!$A$2=1,IF(VLOOKUP("x",Turma!$B$4:$H$53,3,0)="Menina",mlsBMI!J89,mlsBMI!J257),"") -> 14.572 | E90: =IF(Turma!$A$2=1,IF(VLOOKUP("x",Turma!$B$4:$H$53,3,0)="Menina",mlsBMI!K89,mlsBMI!K257),"") -> 16.172 | F90: =IF(Turma!$A$2=1,IF(VLOOKUP("x",Turma!$B$4:$H$53,3,0)="Menina",mlsBMI!L89,mlsBMI!L257),"") -> 18.264 | G90: =IF(Turma!$A$2=1,IF(VLOOKUP("x",Turma!$B$4:$H$53,3,0)="Menina",mlsBMI!M89,mlsBMI!M257),"") -> 21.138 | H90: =IF(Turma!$A$2=1,IF(VLOOKUP("x",Turma!$B$4:$H$53,3,0)="Menina",mlsBMI!N89,mlsBMI!N257),"") -> 25.387 | I90: =IF(Turma!$A$2=1,IF(VLOOKUP("x",Turma!$B$4:$H$53,3,0)="Menina",mlsBMI!O89,mlsBMI!O257),"") -> 32.448
A91: 149 | C91: =IF(Turma!$A$2=1,IF(VLOOKUP("x",Turma!$B$4:$H$53,3,0)="Menina",mlsBMI!I90,mlsBMI!I258),"") -> 13.341 | D91: =IF(Turma!$A$2=1,IF(VLOOKUP("x",Turma!$B$4:$H$53,3,0)="Menina",mlsBMI!J90,mlsBMI!J258),"") -> 14.618 | E91: =IF(Turma!$A$2=1,IF(VLOOKUP("x",Turma!$B$4:$H$53,3,0)="Menina",mlsBMI!K90,mlsBMI!K258),"") -> 16.227 | F91: =IF(Turma!$A$2=1,IF(VLOOKUP("x",Turma!$B$4:$H$53,3,0)="Menina",mlsBMI!L90,mlsBMI!L258),"") -> 18.331 | G91: =IF(Turma!$A$2=1,IF(VLOOKUP("x",Turma!$B$4:$H$53,3,0)="Menina",mlsBMI!M90,mlsBMI!M258),"") -> 21.222 | H91: =IF(Turma!$A$2=1,IF(VLOOKUP("x",Turma!$B$4:$H$53,3,0)="Menina",mlsBMI!N90,mlsBMI!N258),"") -> 25.491 | I91: =IF(Turma!$A$2=1,IF(VLOOKUP("x",Turma!$B$4:$H$53,3,0)="Menina",mlsBMI!O90,mlsBMI!O258),"") -> 32.579
A92: 150 | C92: =IF(Turma!$A$2=1,IF(VLOOKUP("x",Turma!$B$4:$H$53,3,0)="Menina",mlsBMI!I91,mlsBMI!I259),"") -> 13.379 | D92: =IF(Turma!$A$2=1,IF(VLOOKUP("x",Turma!$B$4:$H$53,3,0)="Menina",mlsBMI!J91,mlsBMI!J259),"") -> 14.663 | E92: =IF(Turma!$A$2=1,IF(VLOOKUP("x",Turma!$B$4:$H$53,3,0)="Menina",mlsBMI!K91,mlsBMI!K259),"") -> 16.282 | F92: =IF(Turma!$A$2=1,IF(VLOOKUP("x",Turma!$B$4:$H$53,3,0)="Menina",mlsBMI!L91,mlsBMI!L259),"") -> 18.399 | G92: =IF(Turma!$A$2=1,IF(VLOOKUP("x",Turma!$B$4:$H$53,3,0)="Menina",mlsBMI!M91,mlsBMI!M259),"") -> 21.305 | H92: =IF(Turma!$A$2=1,IF(VLOOKUP("x",Turma!$B$4:$H$53,3,0)="Menina",mlsBMI!N91,mlsBMI!N259),"") -> 25.596 | I92: =IF(Turma!$A$2=1,IF(VLOOKUP("x",Turma!$B$4:$H$53,3,0)="Menina",mlsBMI!O91,mlsBMI!O259),"") -> 32.708
A93: 151 | C93: =IF(Turma!$A$2=1,IF(VLOOKUP("x",Turma!$B$4:$H$53,3,0)="Menina",mlsBMI!I92,mlsBMI!I260),"") -> 13.418 | D93: =IF(Turma!$A$2=1,IF(VLOOKUP("x",Turma!$B$4:$H$53,3,0)="Menina",mlsBMI!J92,mlsBMI!J260),"") -> 14.709 | E93: =IF(Turma!$A$2=1,IF(VLOOKUP("x",Turma!$B$4:$H$53,3,0)="Menina",mlsBMI!K92,mlsBMI!K260),"") -> 16.338 | F93: =IF(Turma!$A$2=1,IF(VLOOKUP("x",Turma!$B$4:$H$53,3,0)="Menina",mlsBMI!L92,mlsBMI!L260),"") -> 18.466 | G93: =IF(Turma!$A$2=1,IF(VLOOKUP("x",Turma!$B$4:$H$53,3,0)="Menina",mlsBMI!M92,mlsBMI!M260),"") -> 21.388 | H93: =IF(Turma!$A$2=1,IF(VLOOKUP("x",Turma!$B$4:$H$53,3,0)="Menina",mlsBMI!N92,mlsBMI!N260),"") -> 25.699 | I93: =IF(Turma!$A$2=1,IF(VLOOKUP("x",Turma!$B$4:$H$53,3,0)="Menina",mlsBMI!O92,mlsBMI!O260),"") -> 32.835
A94: 152 | C94: =IF(Turma!$A$2=1,IF(VLOOKUP("x",Turma!$B$4:$H$53,3,0)="Menina",mlsBMI!I93,mlsBMI!I261),"") -> 13.456 | D94: =IF(Turma!$A$2=1,IF(VLOOKUP("x",Turma!$B$4:$H$53,3,0)="Menina",mlsBMI!J93,mlsBMI!J261),"") -> 14.755 | E94: =IF(Turma!$A$2=1,IF(VLOOKUP("x",Turma!$B$4:$H$53,3,0)="Menina",mlsBMI!K93,mlsBMI!K261),"") -> 16.393 | F94: =IF(Turma!$A$2=1,IF(VLOOKUP("x",Turma!$B$4:$H$53,3,0)="Menina",mlsBMI!L93,mlsBMI!L261),"") -> 18.533 | G94: =IF(Turma!$A$2=1,IF(VLOOKUP("x",Turma!$B$4:$H$53,3,0)="Menina",mlsBMI!M93,mlsBMI!M261),"") -> 21.471 | H94: =IF(Turma!$A$2=1,IF(VLOOKUP("x",Turma!$B$4:$H$53,3,0)="Menina",mlsBMI!N93,mlsBMI!N261),"") -> 25.802 | I94: =IF(Turma!$A$2=1,IF(VLOOKUP("x",Turma!$B$4:$H$53,3,0)="Menina",mlsBMI!O93,mlsBMI!O261),"") -> 32.96
A95: 153 | C95: =IF(Turma!$A$2=1,IF(VLOOKUP("x",Turma!$B$4:$H$53,3,0)="Menina",mlsBMI!I94,mlsBMI!I262),"") -> 13.494 | D95: =IF(Turma!$A$2=1,IF(VLOOKUP("x",Turma!$B$4:$H$53,3,0)="Menina",mlsBMI!J94,mlsBMI!J262),"") -> 14.8 | E95: =IF(Turma!$A$2=1,IF(VLOOKUP("x",Turma!$B$4:$H$53,3,0)="Menina",mlsBMI!K94,mlsBMI!K262),"") -> 16.448 | F95: =IF(Turma!$A$2=1,IF(VLOOKUP("x",Turma!$B$4:$H$53,3,0)="Menina",mlsBMI!L94,mlsBMI!L262),"") -> 18.601 | G95: =IF(Turma!$A$2=1,IF(VLOOKUP("x",Turma!$B$4:$H$53,3,0)="Menina",mlsBMI!M94,mlsBMI!M262),"") -> 21.554 | H95: =IF(Turma!$A$2=1,IF(VLOOKUP("x",Turma!$B$4:$H$53,3,0)="Menina",mlsBMI!N94,mlsBMI!N262),"") -> 25.905 | I95: =IF(Turma!$A$2=1,IF(VLOOKUP("x",Turma!$B$4:$H$53,3,0)="Menina",mlsBMI!O94,mlsBMI!O262),"") -> 33.083
A96: 154 | C96: =IF(Turma!$A$2=1,IF(VLOOKUP("x",Turma!$B$4:$H$53,3,0)="Menina",mlsBMI!I95,mlsBMI!I263),"") -> 13.531 | D96: =IF(Turma!$A$2=1,IF(VLOOKUP("x",Turma!$B$4:$H$53,3,0)="Menina",mlsBMI!J95,mlsBMI!J263),"") -> 14.846 | E96: =IF(Turma!$A$2=1,IF(VLOOKUP("x",Turma!$B$4:$H$53,3,0)="Menina",mlsBMI!K95,mlsBMI!K263),"") -> 16.503 | F96: =IF(Turma!$A$2=1,IF(VLOOKUP("x",Turma!$B$4:$H$53,3,0)="Menina",mlsBMI!L95,mlsBMI!L263),"") -> 18.668 | G96: =IF(Turma!$A$2=1,IF(VLOOKUP("x",Turma!$B$4:$H$53,3,0)="Menina",mlsBMI!M95,mlsBMI!M263),"") -> 21.637 | H96: =IF(Turma!$A$2=1,IF(VLOOKUP("x",Turma!$B$4:$H$53,3,0)="Menina",mlsBMI!N95,mlsBMI!N263),"") -> 26.007 | I96: =IF(Turma!$A$2=1,IF(VLOOKUP("x",Turma!$B$4:$H$53,3,0)="Menina",mlsBMI!O95,mlsBMI!O263),"") -> 33.204
A97: 155 | C97: =IF(Turma!$A$2=1,IF(VLOOKUP("x",Turma!$B$4:$H$53,3,0)="Menina",mlsBMI!I96,mlsBMI!I264),"") -> 13.569 | D97: =IF(Turma!$A$2=1,IF(VLOOKUP("x",Turma!$B$4:$H$53,3,0)="Menina",mlsBMI!J96,mlsBMI!J264),"") -> 14.891 | E97: =IF(Turma!$A$2=1,IF(VLOOKUP("x",Turma!$B$4:$H$53,3,0)="Menina",mlsBMI!K96,mlsBMI!K264),"") -> 16.558 | F97: =IF(Turma!$A$2=1,IF(VLOOKUP("x",Turma!$B$4:$H$53,3,0)="Menina",mlsBMI!L96,mlsBMI!L264),"") -> 18.735 | G97: =IF(Turma!$A$2=1,IF(VLOOKUP("x",Turma!$B$4:$H$53,3,0)="Menina",mlsBMI!M96,mlsBMI!M264),"") -> 21.719 | H97: =IF(Turma!$A$2=1,IF(VLOOKUP("x",Turma!$B$4:$H$53,3,0)="Menina",mlsBMI!N96,mlsBMI!N264),"") -> 26.107 | I97: =IF(Turma!$A$2=1,IF(VLOOKUP("x",Turma!$B$4:$H$53,3,0)="Menina",mlsBMI!O96,mlsBMI!O264),"") -> 33.322
A98: 156 | B98: 13 | C98: =IF(Turma!$A$2=1,IF(VLOOKUP("x",Turma!$B$4:$H$53,3,0)="Menina",mlsBMI!I97,mlsBMI!I265),"") -> 13.606 | D98: =IF(Turma!$A$2=1,IF(VLOOKUP("x",Turma!$B$4:$H$53,3,0)="Menina",mlsBMI!J97,mlsBMI!J265),"") -> 14.936 | E98: =IF(Turma!$A$2=1,IF(VLOOKUP("x",Turma!$B$4:$H$53,3,0)="Menina",mlsBMI!K97,mlsBMI!K265),"") -> 16.612 | F98: =IF(Turma!$A$2=1,IF(VLOOKUP("x",Turma!$B$4:$H$53,3,0)="Menina",mlsBMI!L97,mlsBMI!L265),"") -> 18.801 | G98: =IF(Turma!$A$2=1,IF(VLOOKUP("x",Turma!$B$4:$H$53,3,0)="Menina",mlsBMI!M97,mlsBMI!M265),"") -> 21.8 | H98: =IF(Turma!$A$2=1,IF(VLOOKUP("x",Turma!$B$4:$H$53,3,0)="Menina",mlsBMI!N97,mlsBMI!N265),"") -> 26.207 | I98: =IF(Turma!$A$2=1,IF(VLOOKUP("x",Turma!$B$4:$H$53,3,0)="Menina",mlsBMI!O97,mlsBMI!O265),"") -> 33.439
A99: 157 | C99: =IF(Turma!$A$2=1,IF(VLOOKUP("x",Turma!$B$4:$H$53,3,0)="Menina",mlsBMI!I98,mlsBMI!I266),"") -> 13.643 | D99: =IF(Turma!$A$2=1,IF(VLOOKUP("x",Turma!$B$4:$H$53,3,0)="Menina",mlsBMI!J98,mlsBMI!J266),"") -> 14.981 | E99: =IF(Turma!$A$2=1,IF(VLOOKUP("x",Turma!$B$4:$H$53,3,0)="Menina",mlsBMI!K98,mlsBMI!K266),"") -> 16.667 | F99: =IF(Turma!$A$2=1,IF(VLOOKUP("x",Turma!$B$4:$H$53,3,0)="Menina",mlsBMI!L98,mlsBMI!L266),"") -> 18.868 | G99: =IF(Turma!$A$2=1,IF(VLOOKUP("x",Turma!$B$4:$H$53,3,0)="Menina",mlsBMI!M98,mlsBMI!M266),"") -> 21.882 | H99: =IF(Turma!$A$2=1,IF(VLOOKUP("x",Turma!$B$4:$H$53,3,0)="Menina",mlsBMI!N98,mlsBMI!N266),"") -> 26.307 | I99: =IF(Turma!$A$2=1,IF(VLOOKUP("x",Turma!$B$4:$H$53,3,0)="Menina",mlsBMI!O98,mlsBMI!O266),"") -> 33.554
A100: 158 | C100: =IF(Turma!$A$2=1,IF(VLOOKUP("x",Turma!$B$4:$H$53,3,0)="Menina",mlsBMI!I99,mlsBMI!I267),"") -> 13.68 | D100: =IF(Turma!$A$2=1,IF(VLOOKUP("x",Turma!$B$4:$H$53,3,0)="Menina",mlsBMI!J99,mlsBMI!J267),"") -> 15.025 | E100: =IF(Turma!$A$2=1,IF(VLOOKUP("x",Turma!$B$4:$H$53,3,0)="Menina",mlsBMI!K99,mlsBMI!K267),"") -> 16.721 | F100: =IF(Turma!$A$2=1,IF(VLOOKUP("x",Turma!$B$4:$H$53,3,0)="Menina",mlsBMI!L99,mlsBMI!L267),"") -> 18.934 | G100: =IF(Turma!$A$2=1,IF(VLOOKUP("x",Turma!$B$4:$H$53,3,0)="Menina",mlsBMI!M99,mlsBMI!M267),"") -> 21.962 | H100: =IF(Turma!$A$2=1,IF(VLOOKUP("x",Turma!$B$4:$H$53,3,0)="Menina",mlsBMI!N99,mlsBMI!N267),"") -> 26.405 | I100: =IF(Turma!$A$2=1,IF(VLOOKUP("x",Turma!$B$4:$H$53,3,0)="Menina",mlsBMI!O99,mlsBMI!O267),"") -> 33.666
A101: 159 | C101: =IF(Turma!$A$2=1,IF(VLOOKUP("x",Turma!$B$4:$H$53,3,0)="Menina",mlsBMI!I100,mlsBMI!I268),"") -> 13.717 | D101: =IF(Turma!$A$2=1,IF(VLOOKUP("x",Turma!$B$4:$H$53,3,0)="Menina",mlsBMI!J100,mlsBMI!J268),"") -> 15.07 | E101: =IF(Turma!$A$2=1,IF(VLOOKUP("x",Turma!$B$4:$H$53,3,0)="Menina",mlsBMI!K100,mlsBMI!K268),"") -> 16.775 | F101: =IF(Turma!$A$2=1,IF(VLOOKUP("x",Turma!$B$4:$H$53,3,0)="Menina",mlsBMI!L100,mlsBMI!L268),"") -> 18.999 | G101: =IF(Turma!$A$2=1,IF(VLOOKUP("x",Turma!$B$4:$H$53,3,0)="Menina",mlsBMI!M100,mlsBMI!M268),"") -> 22.042 | H101: =IF(Turma!$A$2=1,IF(VLOOKUP("x",Turma!$B$4:$H$53,3,0)="Menina",mlsBMI!N100,mlsBMI!N268),"") -> 26.501 | I101: =IF(Turma!$A$2=1,IF(VLOOKUP("x",Turma!$B$4:$H$53,3,0)="Menina",mlsBMI!O100,mlsBMI!O268),"") -> 33.775
A102: 160 | C102: =IF(Turma!$A$2=1,IF(VLOOKUP("x",Turma!$B$4:$H$53,3,0)="Menina",mlsBMI!I101,mlsBMI!I269),"") -> 13.753 | D102: =IF(Turma!$A$2=1,IF(VLOOKUP("x",Turma!$B$4:$H$53,3,0)="Menina",mlsBMI!J101,mlsBMI!J269),"") -> 15.113 | E102: =IF(Turma!$A$2=1,IF(VLOOKUP("x",Turma!$B$4:$H$53,3,0)="Menina",mlsBMI!K101,mlsBMI!K269),"") -> 16.828 | F102: =IF(Turma!$A$2=1,IF(VLOOKUP("x",Turma!$B$4:$H$53,3,0)="Menina",mlsBMI!L101,mlsBMI!L269),"") -> 19.064 | G102: =IF(Turma!$A$2=1,IF(VLOOKUP("x",Turma!$B$4:$H$53,3,0)="Menina",mlsBMI!M101,mlsBMI!M269),"") -> 22.122 | H102: =IF(Turma!$A$2=1,IF(VLOOKUP("x",Turma!$B$4:$H$53,3,0)="Menina",mlsBMI!N101,mlsBMI!N269),"") -> 26.598 | I102: =IF(Turma!$A$2=1,IF(VLOOKUP("x",Turma!$B$4:$H$53,3,0)="Menina",mlsBMI!O101,mlsBMI!O269),"") -> 33.884
A103: 161 | C103: =IF(Turma!$A$2=1,IF(VLOOKUP("x",Turma!$B$4:$H$53,3,0)="Menina",mlsBMI!I102,mlsBMI!I270),"") -> 13.788 | D103: =IF(Turma!$A$2=1,IF(VLOOKUP("x",Turma!$B$4:$H$53,3,0)="Menina",mlsBMI!J102,mlsBMI!J270),"") -> 15.157 | E103: =IF(Turma!$A$2=1,IF(VLOOKUP("x",Turma!$B$4:$H$53,3,0)="Menina",mlsBMI!K102,mlsBMI!K270),"") -> 16.881 | F103: =IF(Turma!$A$2=1,IF(VLOOKUP("x",Turma!$B$4:$H$53,3,0)="Menina",mlsBMI!L102,mlsBMI!L270),"") -> 19.129 | G103: =IF(Turma!$A$2=1,IF(VLOOKUP("x",Turma!$B$4:$H$53,3,0)="Menina",mlsBMI!M102,mlsBMI!M270),"") -> 22.201 | H103: =IF(Turma!$A$2=1,IF(VLOOKUP("x",Turma!$B$4:$H$53,3,0)="Menina",mlsBMI!N102,mlsBMI!N270),"") -> 26.693 | I103: =IF(Turma!$A$2=1,IF(VLOOKUP("x",Turma!$B$4:$H$53,3,0)="Menina",mlsBMI!O102,mlsBMI!O270),"") -> 33.989
A104: 162 | C104: =IF(Turma!$A$2=1,IF(VLOOKUP("x",Turma!$B$4:$H$53,3,0)="Menina",mlsBMI!I103,mlsBMI!I271),"") -> 13.824 | D104: =IF(Turma!$A$2=1,IF(VLOOKUP("x",Turma!$B$4:$H$53,3,0)="Menina",mlsBMI!J103,mlsBMI!J271),"") -> 15.2 | E104: =IF(Turma!$A$2=1,IF(VLOOKUP("x",Turma!$B$4:$H$53,3,0)="Menina",mlsBMI!K103,mlsBMI!K271),"") -> 16.934 | F104: =IF(Turma!$A$2=1,IF(VLOOKUP("x",Turma!$B$4:$H$53,3,0)="Menina",mlsBMI!L103,mlsBMI!L271),"") -> 19.193 | G104: =IF(Turma!$A$2=1,IF(VLOOKUP("x",Turma!$B$4:$H$53,3,0)="Menina",mlsBMI!M103,mlsBMI!M271),"") -> 22.279 | H104: =IF(Turma!$A$2=1,IF(VLOOKUP("x",Turma!$B$4:$H$53,3,0)="Menina",mlsBMI!N103,mlsBMI!N271),"") -> 26.786 | I104: =IF(Turma!$A$2=1,IF(VLOOKUP("x",Turma!$B$4:$H$53,3,0)="Menina",mlsBMI!O103,mlsBMI!O271),"") -> 34.092
A105: 163 | C105: =IF(Turma!$A$2=1,IF(VLOOKUP("x",Turma!$B$4:$H$53,3,0)="Menina",mlsBMI!I104,mlsBMI!I272),"") -> 13.859 | D105: =IF(Turma!$A$2=1,IF(VLOOKUP("x",Turma!$B$4:$H$53,3,0)="Menina",mlsBMI!J104,mlsBMI!J272),"") -> 15.243 | E105: =IF(Turma!$A$2=1,IF(VLOOKUP("x",Turma!$B$4:$H$53,3,0)="Menina",mlsBMI!K104,mlsBMI!K272),"") -> 16.986 | F105: =IF(Turma!$A$2=1,IF(VLOOKUP("x",Turma!$B$4:$H$53,3,0)="Menina",mlsBMI!L104,mlsBMI!L272),"") -> 19.257 | G105: =IF(Turma!$A$2=1,IF(VLOOKUP("x",Turma!$B$4:$H$53,3,0)="Menina",mlsBMI!M104,mlsBMI!M272),"") -> 22.357 | H105: =IF(Turma!$A$2=1,IF(VLOOKUP("x",Turma!$B$4:$H$53,3,0)="Menina",mlsBMI!N104,mlsBMI!N272),"") -> 26.879 | I105: =IF(Turma!$A$2=1,IF(VLOOKUP("x",Turma!$B$4:$H$53,3,0)="Menina",mlsBMI!O104,mlsBMI!O272),"") -> 34.192
A106: 164 | C106: =IF(Turma!$A$2=1,IF(VLOOKUP("x",Turma!$B$4:$H$53,3,0)="Menina",mlsBMI!I105,mlsBMI!I273),"") -> 13.893 | D106: =IF(Turma!$A$2=1,IF(VLOOKUP("x",Turma!$B$4:$H$53,3,0)="Menina",mlsBMI!J105,mlsBMI!J273),"") -> 15.285 | E106: =IF(Turma!$A$2=1,IF(VLOOKUP("x",Turma!$B$4:$H$53,3,0)="Menina",mlsBMI!K105,mlsBMI!K273),"") -> 17.037 | F106: =IF(Turma!$A$2=1,IF(VLOOKUP("x",Turma!$B$4:$H$53,3,0)="Menina",mlsBMI!L105,mlsBMI!L273),"") -> 19.32 | G106: =IF(Turma!$A$2=1,IF(VLOOKUP("x",Turma!$B$4:$H$53,3,0)="Menina",mlsBMI!M105,mlsBMI!M273),"") -> 22.433 | H106: =IF(Turma!$A$2=1,IF(VLOOKUP("x",Turma!$B$4:$H$53,3,0)="Menina",mlsBMI!N105,mlsBMI!N273),"") -> 26.97 | I106: =IF(Turma!$A$2=1,IF(VLOOKUP("x",Turma!$B$4:$H$53,3,0)="Menina",mlsBMI!O105,mlsBMI!O273),"") -> 34.292
A107: 165 | C107: =IF(Turma!$A$2=1,IF(VLOOKUP("x",Turma!$B$4:$H$53,3,0)="Menina",mlsBMI!I106,mlsBMI!I274),"") -> 13.927 | D107: =IF(Turma!$A$2=1,IF(VLOOKUP("x",Turma!$B$4:$H$53,3,0)="Menina",mlsBMI!J106,mlsBMI!J274),"") -> 15.327 | E107: =IF(Turma!$A$2=1,IF(VLOOKUP("x",Turma!$B$4:$H$53,3,0)="Menina",mlsBMI!K106,mlsBMI!K274),"") -> 17.088 | F107: =IF(Turma!$A$2=1,IF(VLOOKUP("x",Turma!$B$4:$H$53,3,0)="Menina",mlsBMI!L106,mlsBMI!L274),"") -> 19.382 | G107: =IF(Turma!$A$2=1,IF(VLOOKUP("x",Turma!$B$4:$H$53,3,0)="Menina",mlsBMI!M106,mlsBMI!M274),"") -> 22.509 | H107: =IF(Turma!$A$2=1,IF(VLOOKUP("x",Turma!$B$4:$H$53,3,0)="Menina",mlsBMI!N106,mlsBMI!N274),"") -> 27.06 | I107: =IF(Turma!$A$2=1,IF(VLOOKUP("x",Turma!$B$4:$H$53,3,0)="Menina",mlsBMI!O106,mlsBMI!O274),"") -> 34.387
A108: 166 | C108: =IF(Turma!$A$2=1,IF(VLOOKUP("x",Turma!$B$4:$H$53,3,0)="Menina",mlsBMI!I107,mlsBMI!I275),"") -> 13.961 | D108: =IF(Turma!$A$2=1,IF(VLOOKUP("x",Turma!$B$4:$H$53,3,0)="Menina",mlsBMI!J107,mlsBMI!J275),"") -> 15.368 | E108: =IF(Turma!$A$2=1,IF(VLOOKUP("x",Turma!$B$4:$H$53,3,0)="Menina",mlsBMI!K107,mlsBMI!K275),"") -> 17.139 | F108: =IF(Turma!$A$2=1,IF(VLOOKUP("x",Turma!$B$4:$H$53,3,0)="Menina",mlsBMI!L107,mlsBMI!L275),"") -> 19.444 | G108: =IF(Turma!$A$2=1,IF(VLOOKUP("x",Turma!$B$4:$H$53,3,0)="Menina",mlsBMI!M107,mlsBMI!M275),"") -> 22.584 | H108: =IF(Turma!$A$2=1,IF(VLOOKUP("x",Turma!$B$4:$H$53,3,0)="Menina",mlsBMI!N107,mlsBMI!N275),"") -> 27.149 | I108: =IF(Turma!$A$2=1,IF(VLOOKUP("x",Turma!$B$4:$H$53,3,0)="Menina",mlsBMI!O107,mlsBMI!O275),"") -> 34.481
A109: 167 | C109: =IF(Turma!$A$2=1,IF(VLOOKUP("x",Turma!$B$4:$H$53,3,0)="Menina",mlsBMI!I108,mlsBMI!I276),"") -> 13.994 | D109: =IF(Turma!$A$2=1,IF(VLOOKUP("x",Turma!$B$4:$H$53,3,0)="Menina",mlsBMI!J108,mlsBMI!J276),"") -> 15.408 | E109: =IF(Turma!$A$2=1,IF(VLOOKUP("x",Turma!$B$4:$H$53,3,0)="Menina",mlsBMI!K108,mlsBMI!K276),"") -> 17.188 | F109: =IF(Turma!$A$2=1,IF(VLOOKUP("x",Turma!$B$4:$H$53,3,0)="Menina",mlsBMI!L108,mlsBMI!L276),"") -> 19.504 | G109: =IF(Turma!$A$2=1,IF(VLOOKUP("x",Turma!$B$4:$H$53,3,0)="Menina",mlsBMI!M108,mlsBMI!M276),"") -> 22.658 | H109: =IF(Turma!$A$2=1,IF(VLOOKUP("x",Turma!$B$4:$H$53,3,0)="Menina",mlsBMI!N108,mlsBMI!N276),"") -> 27.235 | I109: =IF(Turma!$A$2=1,IF(VLOOKUP("x",Turma!$B$4:$H$53,3,0)="Menina",mlsBMI!O108,mlsBMI!O276),"") -> 34.571
A110: 168 | B110: 14 | C110: =IF(Turma!$A$2=1,IF(VLOOKUP("x",Turma!$B$4:$H$53,3,0)="Menina",mlsBMI!I109,mlsBMI!I277),"") -> 14.026 | D110: =IF(Turma!$A$2=1,IF(VLOOKUP("x",Turma!$B$4:$H$53,3,0)="Menina",mlsBMI!J109,mlsBMI!J277),"") -> 15.448 | E110: =IF(Turma!$A$2=1,IF(VLOOKUP("x",Turma!$B$4:$H$53,3,0)="Menina",mlsBMI!K109,mlsBMI!K277),"") -> 17.238 | F110: =IF(Turma!$A$2=1,IF(VLOOKUP("x",Turma!$B$4:$H$53,3,0)="Menina",mlsBMI!L109,mlsBMI!L277),"") -> 19.565 | G110: =IF(Turma!$A$2=1,IF(VLOOKUP("x",Turma!$B$4:$H$53,3,0)="Menina",mlsBMI!M109,mlsBMI!M277),"") -> 22.731 | H110: =IF(Turma!$A$2=1,IF(VLOOKUP("x",Turma!$B$4:$H$53,3,0)="Menina",mlsBMI!N109,mlsBMI!N277),"") -> 27.321 | I110: =IF(Turma!$A$2=1,IF(VLOOKUP("x",Turma!$B$4:$H$53,3,0)="Menina",mlsBMI!O109,mlsBMI!O277),"") -> 34.66
A111: 169 | C111: =IF(Turma!$A$2=1,IF(VLOOKUP("x",Turma!$B$4:$H$53,3,0)="Menina",mlsBMI!I110,mlsBMI!I278),"") -> 14.058 | D111: =IF(Turma!$A$2=1,IF(VLOOKUP("x",Turma!$B$4:$H$53,3,0)="Menina",mlsBMI!J110,mlsBMI!J278),"") -> 15.488 | E111: =IF(Turma!$A$2=1,IF(VLOOKUP("x",Turma!$B$4:$H$53,3,0)="Menina",mlsBMI!K110,mlsBMI!K278),"") -> 17.286 | F111: =IF(Turma!$A$2=1,IF(VLOOKUP("x",Turma!$B$4:$H$53,3,0)="Menina",mlsBMI!L110,mlsBMI!L278),"") -> 19.624 | G111: =IF(Turma!$A$2=1,IF(VLOOKUP("x",Turma!$B$4:$H$53,3,0)="Menina",mlsBMI!M110,mlsBMI!M278),"") -> 22.803 | H111: =IF(Turma!$A$2=1,IF(VLOOKUP("x",Turma!$B$4:$H$53,3,0)="Menina",mlsBMI!N110,mlsBMI!N278),"") -> 27.406 | I111: =IF(Turma!$A$2=1,IF(VLOOKUP("x",Turma!$B$4:$H$53,3,0)="Menina",mlsBMI!O110,mlsBMI!O278),"") -> 34.747
A112: 170 | C112: =IF(Turma!$A$2=1,IF(VLOOKUP("x",Turma!$B$4:$H$53,3,0)="Menina",mlsBMI!I111,mlsBMI!I279),"") -> 14.089 | D112: =IF(Turma!$A$2=1,IF(VLOOKUP("x",Turma!$B$4:$H$53,3,0)="Menina",mlsBMI!J111,mlsBMI!J279),"") -> 15.526 | E112: =IF(Turma!$A$2=1,IF(VLOOKUP("x",Turma!$B$4:$H$53,3,0)="Menina",mlsBMI!K111,mlsBMI!K279),"") -> 17.334 | F112: =IF(Turma!$A$2=1,IF(VLOOKUP("x",Turma!$B$4:$H$53,3,0)="Menina",mlsBMI!L111,mlsBMI!L279),"") -> 19.682 | G112: =IF(Turma!$A$2=1,IF(VLOOKUP("x",Turma!$B$4:$H$53,3,0)="Menina",mlsBMI!M111,mlsBMI!M279),"") -> 22.874 | H112: =IF(Turma!$A$2=1,IF(VLOOKUP("x",Turma!$B$4:$H$53,3,0)="Menina",mlsBMI!N111,mlsBMI!N279),"") -> 27.489 | I112: =IF(Turma!$A$2=1,IF(VLOOKUP("x",Turma!$B$4:$H$53,3,0)="Menina",mlsBMI!O111,mlsBMI!O279),"") -> 34.833
A113: 171 | C113: =IF(Turma!$A$2=1,IF(VLOOKUP("x",Turma!$B$4:$H$53,3,0)="Menina",mlsBMI!I112,mlsBMI!I280),"") -> 14.119 | D113: =IF(Turma!$A$2=1,IF(VLOOKUP("x",Turma!$B$4:$H$53,3,0)="Menina",mlsBMI!J112,mlsBMI!J280),"") -> 15.564 | E113: =IF(Turma!$A$2=1,IF(VLOOKUP("x",Turma!$B$4:$H$53,3,0)="Menina",mlsBMI!K112,mlsBMI!K280),"") -> 17.38 | F113: =IF(Turma!$A$2=1,IF(VLOOKUP("x",Turma!$B$4:$H$53,3,0)="Menina",mlsBMI!L112,mlsBMI!L280),"") -> 19.74 | G113: =IF(Turma!$A$2=1,IF(VLOOKUP("x",Turma!$B$4:$H$53,3,0)="Menina",mlsBMI!M112,mlsBMI!M280),"") -> 22.943 | H113: =IF(Turma!$A$2=1,IF(VLOOKUP("x",Turma!$B$4:$H$53,3,0)="Menina",mlsBMI!N112,mlsBMI!N280),"") -> 27.57 | I113: =IF(Turma!$A$2=1,IF(VLOOKUP("x",Turma!$B$4:$H$53,3,0)="Menina",mlsBMI!O112,mlsBMI!O280),"") -> 34.914
A114: 172 | C114: =IF(Turma!$A$2=1,IF(VLOOKUP("x",Turma!$B$4:$H$53,3,0)="Menina",mlsBMI!I113,mlsBMI!I281),"") -> 14.149 | D114: =IF(Turma!$A$2=1,IF(VLOOKUP("x",Turma!$B$4:$H$53,3,0)="Menina",mlsBMI!J113,mlsBMI!J281),"") -> 15.601 | E114: =IF(Turma!$A$2=1,IF(VLOOKUP("x",Turma!$B$4:$H$53,3,0)="Menina",mlsBMI!K113,mlsBMI!K281),"") -> 17.427 | F114: =IF(Turma!$A$2=1,IF(VLOOKUP("x",Turma!$B$4:$H$53,3,0)="Menina",mlsBMI!L113,mlsBMI!L281),"") -> 19.797 | G114: =IF(Turma!$A$2=1,IF(VLOOKUP("x",Turma!$B$4:$H$53,3,0)="Menina",mlsBMI!M113,mlsBMI!M281),"") -> 23.012 | H114: =IF(Turma!$A$2=1,IF(VLOOKUP("x",Turma!$B$4:$H$53,3,0)="Menina",mlsBMI!N113,mlsBMI!N281),"") -> 27.65 | I114: =IF(Turma!$A$2=1,IF(VLOOKUP("x",Turma!$B$4:$H$53,3,0)="Menina",mlsBMI!O113,mlsBMI!O281),"") -> 34.994
A115: 173 | C115: =IF(Turma!$A$2=1,IF(VLOOKUP("x",Turma!$B$4:$H$53,3,0)="Menina",mlsBMI!I114,mlsBMI!I282),"") -> 14.179 | D115: =IF(Turma!$A$2=1,IF(VLOOKUP("x",Turma!$B$4:$H$53,3,0)="Menina",mlsBMI!J114,mlsBMI!J282),"") -> 15.638 | E115: =IF(Turma!$A$2=1,IF(VLOOKUP("x",Turma!$B$4:$H$53,3,0)="Menina",mlsBMI!K114,mlsBMI!K282),"") -> 17.472 | F115: =IF(Turma!$A$2=1,IF(VLOOKUP("x",Turma!$B$4:$H$53,3,0)="Menina",mlsBMI!L114,mlsBMI!L282),"") -> 19.852 | G115: =IF(Turma!$A$2=1,IF(VLOOKUP("x",Turma!$B$4:$H$53,3,0)="Menina",mlsBMI!M114,mlsBMI!M282),"") -> 23.079 | H115: =IF(Turma!$A$2=1,IF(VLOOKUP("x",Turma!$B$4:$H$53,3,0)="Menina",mlsBMI!N114,mlsBMI!N282),"") -> 27.727 | I115: =IF(Turma!$A$2=1,IF(VLOOKUP("x",Turma!$B$4:$H$53,3,0)="Menina",mlsBMI!O114,mlsBMI!O282),"") -> 35.07
A116: 174 | C116: =IF(Turma!$A$2=1,IF(VLOOKUP("x",Turma!$B$4:$H$53,3,0)="Menina",mlsBMI!I115,mlsBMI!I283),"") -> 14.207 | D116: =IF(Turma!$A$2=1,IF(VLOOKUP("x",Turma!$B$4:$H$53,3,0)="Menina",mlsBMI!J115,mlsBMI!J283),"") -> 15.674 | E116: =IF(Turma!$A$2=1,IF(VLOOKUP("x",Turma!$B$4:$H$53,3,0)="Menina",mlsBMI!K115,mlsBMI!K283),"") -> 17.516 | F116: =IF(Turma!$A$2=1,IF(VLOOKUP("x",Turma!$B$4:$H$53,3,0)="Menina",mlsBMI!L115,mlsBMI!L283),"") -> 19.907 | G116: =IF(Turma!$A$2=1,IF(VLOOKUP("x",Turma!$B$4:$H$53,3,0)="Menina",mlsBMI!M115,mlsBMI!M283),"") -> 23.145 | H116: =IF(Turma!$A$2=1,IF(VLOOKUP("x",Turma!$B$4:$H$53,3,0)="Menina",mlsBMI!N115,mlsBMI!N283),"") -> 27.804 | I116: =IF(Turma!$A$2=1,IF(VLOOKUP("x",Turma!$B$4:$H$53,3,0)="Menina",mlsBMI!O115,mlsBMI!O283),"") -> 35.145
A117: 175 | C117: =IF(Turma!$A$2=1,IF(VLOOKUP("x",Turma!$B$4:$H$53,3,0)="Menina",mlsBMI!I116,mlsBMI!I284),"") -> 14.235 | D117: =IF(Turma!$A$2=1,IF(VLOOKUP("x",Turma!$B$4:$H$53,3,0)="Menina",mlsBMI!J116,mlsBMI!J284),"") -> 15.709 | E117: =IF(Turma!$A$2=1,IF(VLOOKUP("x",Turma!$B$4:$H$53,3,0)="Menina",mlsBMI!K116,mlsBMI!K284),"") -> 17.56 | F117: =IF(Turma!$A$2=1,IF(VLOOKUP("x",Turma!$B$4:$H$53,3,0)="Menina",mlsBMI!L116,mlsBMI!L284),"") -> 19.961 | G117: =IF(Turma!$A$2=1,IF(VLOOKUP("x",Turma!$B$4:$H$53,3,0)="Menina",mlsBMI!M116,mlsBMI!M284),"") -> 23.21 | H117: =IF(Turma!$A$2=1,IF(VLOOKUP("x",Turma!$B$4:$H$53,3,0)="Menina",mlsBMI!N116,mlsBMI!N284),"") -> 27.879 | I117: =IF(Turma!$A$2=1,IF(VLOOKUP("x",Turma!$B$4:$H$53,3,0)="Menina",mlsBMI!O116,mlsBMI!O284),"") -> 35.217
A118: 176 | C118: =IF(Turma!$A$2=1,IF(VLOOKUP("x",Turma!$B$4:$H$53,3,0)="Menina",mlsBMI!I117,mlsBMI!I285),"") -> 14.262 | D118: =IF(Turma!$A$2=1,IF(VLOOKUP("x",Turma!$B$4:$H$53,3,0)="Menina",mlsBMI!J117,mlsBMI!J285),"") -> 15.743 | E118: =IF(Turma!$A$2=1,IF(VLOOKUP("x",Turma!$B$4:$H$53,3,0)="Menina",mlsBMI!K117,mlsBMI!K285),"") -> 17.603 | F118: =IF(Turma!$A$2=1,IF(VLOOKUP("x",Turma!$B$4:$H$53,3,0)="Menina",mlsBMI!L117,mlsBMI!L285),"") -> 20.013 | G118: =IF(Turma!$A$2=1,IF(VLOOKUP("x",Turma!$B$4:$H$53,3,0)="Menina",mlsBMI!M117,mlsBMI!M285),"") -> 23.273 | H118: =IF(Turma!$A$2=1,IF(VLOOKUP("x",Turma!$B$4:$H$53,3,0)="Menina",mlsBMI!N117,mlsBMI!N285),"") -> 27.951 | I118: =IF(Turma!$A$2=1,IF(VLOOKUP("x",Turma!$B$4:$H$53,3,0)="Menina",mlsBMI!O117,mlsBMI!O285),"") -> 35.286
A119: 177 | C119: =IF(Turma!$A$2=1,IF(VLOOKUP("x",Turma!$B$4:$H$53,3,0)="Menina",mlsBMI!I118,mlsBMI!I286),"") -> 14.288 | D119: =IF(Turma!$A$2=1,IF(VLOOKUP("x",Turma!$B$4:$H$53,3,0)="Menina",mlsBMI!J118,mlsBMI!J286),"") -> 15.776 | E119: =IF(Turma!$A$2=1,IF(VLOOKUP("x",Turma!$B$4:$H$53,3,0)="Menina",mlsBMI!K118,mlsBMI!K286),"") -> 17.644 | F119: =IF(Turma!$A$2=1,IF(VLOOKUP("x",Turma!$B$4:$H$53,3,0)="Menina",mlsBMI!L118,mlsBMI!L286),"") -> 20.065 | G119: =IF(Turma!$A$2=1,IF(VLOOKUP("x",Turma!$B$4:$H$53,3,0)="Menina",mlsBMI!M118,mlsBMI!M286),"") -> 23.336 | H119: =IF(Turma!$A$2=1,IF(VLOOKUP("x",Turma!$B$4:$H$53,3,0)="Menina",mlsBMI!N118,mlsBMI!N286),"") -> 28.023 | I119: =IF(Turma!$A$2=1,IF(VLOOKUP("x",Turma!$B$4:$H$53,3,0)="Menina",mlsBMI!O118,mlsBMI!O286),"") -> 35.354
A120: 178 | C120: =IF(Turma!$A$2=1,IF(VLOOKUP("x",Turma!$B$4:$H$53,3,0)="Menina",mlsBMI!I119,mlsBMI!I287),"") -> 14.314 | D120: =IF(Turma!$A$2=1,IF(VLOOKUP("x",Turma!$B$4:$H$53,3,0)="Menina",mlsBMI!J119,mlsBMI!J287),"") -> 15.809 | E120: =IF(Turma!$A$2=1,IF(VLOOKUP("x",Turma!$B$4:$H$53,3,0)="Menina",mlsBMI!K119,mlsBMI!K287),"") -> 17.685 | F120: =IF(Turma!$A$2=1,IF(VLOOKUP("x",Turma!$B$4:$H$53,3,0)="Menina",mlsBMI!L119,mlsBMI!L287),"") -> 20.115 | G120: =IF(Turma!$A$2=1,IF(VLOOKUP("x",Turma!$B$4:$H$53,3,0)="Menina",mlsBMI!M119,mlsBMI!M287),"") -> 23.396 | H120: =IF(Turma!$A$2=1,IF(VLOOKUP("x",Turma!$B$4:$H$53,3,0)="Menina",mlsBMI!N119,mlsBMI!N287),"") -> 28.091 | I120: =IF(Turma!$A$2=1,IF(VLOOKUP("x",Turma!$B$4:$H$53,3,0)="Menina",mlsBMI!O119,mlsBMI!O287),"") -> 35.417
A121: 179 | C121: =IF(Turma!$A$2=1,IF(VLOOKUP("x",Turma!$B$4:$H$53,3,0)="Menina",mlsBMI!I120,mlsBMI!I288),"") -> 14.338 | D121: =IF(Turma!$A$2=1,IF(VLOOKUP("x",Turma!$B$4:$H$53,3,0)="Menina",mlsBMI!J120,mlsBMI!J288),"") -> 15.841 | E121: =IF(Turma!$A$2=1,IF(VLOOKUP("x",Turma!$B$4:$H$53,3,0)="Menina",mlsBMI!K120,mlsBMI!K288),"") -> 17.725 | F121: =IF(Turma!$A$2=1,IF(VLOOKUP("x",Turma!$B$4:$H$53,3,0)="Menina",mlsBMI!L120,mlsBMI!L288),"") -> 20.164 | G121: =IF(Turma!$A$2=1,IF(VLOOKUP("x",Turma!$B$4:$H$53,3,0)="Menina",mlsBMI!M120,mlsBMI!M288),"") -> 23.456 | H121: =IF(Turma!$A$2=1,IF(VLOOKUP("x",Turma!$B$4:$H$53,3,0)="Menina",mlsBMI!N120,mlsBMI!N288),"") -> 28.159 | I121: =IF(Turma!$A$2=1,IF(VLOOKUP("x",Turma!$B$4:$H$53,3,0)="Menina",mlsBMI!O120,mlsBMI!O288),"") -> 35.479
A122: 180 | B122: 15 | C122: =IF(Turma!$A$2=1,IF(VLOOKUP("x",Turma!$B$4:$H$53,3,0)="Menina",mlsBMI!I121,mlsBMI!I289),"") -> 14.362 | D122: =IF(Turma!$A$2=1,IF(VLOOKUP("x",Turma!$B$4:$H$53,3,0)="Menina",mlsBMI!J121,mlsBMI!J289),"") -> 15.871 | E122: =IF(Turma!$A$2=1,IF(VLOOKUP("x",Turma!$B$4:$H$53,3,0)="Menina",mlsBMI!K121,mlsBMI!K289),"") -> 17.764 | F122: =IF(Turma!$A$2=1,IF(VLOOKUP("x",Turma!$B$4:$H$53,3,0)="Menina",mlsBMI!L121,mlsBMI!L289),"") -> 20.212 | G122: =IF(Turma!$A$2=1,IF(VLOOKUP("x",Turma!$B$4:$H$53,3,0)="Menina",mlsBMI!M121,mlsBMI!M289),"") -> 23.514 | H122: =IF(Turma!$A$2=1,IF(VLOOKUP("x",Turma!$B$4:$H$53,3,0)="Menina",mlsBMI!N121,mlsBMI!N289),"") -> 28.224 | I122: =IF(Turma!$A$2=1,IF(VLOOKUP("x",Turma!$B$4:$H$53,3,0)="Menina",mlsBMI!O121,mlsBMI!O289),"") -> 35.538
A123: 181 | C123: =IF(Turma!$A$2=1,IF(VLOOKUP("x",Turma!$B$4:$H$53,3,0)="Menina",mlsBMI!I122,mlsBMI!I290),"") -> 14.385 | D123: =IF(Turma!$A$2=1,IF(VLOOKUP("x",Turma!$B$4:$H$53,3,0)="Menina",mlsBMI!J122,mlsBMI!J290),"") -> 15.901 | E123: =IF(Turma!$A$2=1,IF(VLOOKUP("x",Turma!$B$4:$H$53,3,0)="Menina",mlsBMI!K122,mlsBMI!K290),"") -> 17.802 | F123: =IF(Turma!$A$2=1,IF(VLOOKUP("x",Turma!$B$4:$H$53,3,0)="Menina",mlsBMI!L122,mlsBMI!L290),"") -> 20.26 | G123: =IF(Turma!$A$2=1,IF(VLOOKUP("x",Turma!$B$4:$H$53,3,0)="Menina",mlsBMI!M122,mlsBMI!M290),"") -> 23.57 | H123: =IF(Turma!$A$2=1,IF(VLOOKUP("x",Turma!$B$4:$H$53,3,0)="Menina",mlsBMI!N122,mlsBMI!N290),"") -> 28.289 | I123: =IF(Turma!$A$2=1,IF(VLOOKUP("x",Turma!$B$4:$H$53,3,0)="Menina",mlsBMI!O122,mlsBMI!O290),"") -> 35.597
A124: 182 | C124: =IF(Turma!$A$2=1,IF(VLOOKUP("x",Turma!$B$4:$H$53,3,0)="Menina",mlsBMI!I123,mlsBMI!I291),"") -> 14.408 | D124: =IF(Turma!$A$2=1,IF(VLOOKUP("x",Turma!$B$4:$H$53,3,0)="Menina",mlsBMI!J123,mlsBMI!J291),"") -> 15.93 | E124: =IF(Turma!$A$2=1,IF(VLOOKUP("x",Turma!$B$4:$H$53,3,0)="Menina",mlsBMI!K123,mlsBMI!K291),"") -> 17.839 | F124: =IF(Turma!$A$2=1,IF(VLOOKUP("x",Turma!$B$4:$H$53,3,0)="Menina",mlsBMI!L123,mlsBMI!L291),"") -> 20.305 | G124: =IF(Turma!$A$2=1,IF(VLOOKUP("x",Turma!$B$4:$H$53,3,0)="Menina",mlsBMI!M123,mlsBMI!M291),"") -> 23.625 | H124: =IF(Turma!$A$2=1,IF(VLOOKUP("x",Turma!$B$4:$H$53,3,0)="Menina",mlsBMI!N123,mlsBMI!N291),"") -> 28.35 | I124: =IF(Turma!$A$2=1,IF(VLOOKUP("x",Turma!$B$4:$H$53,3,0)="Menina",mlsBMI!O123,mlsBMI!O291),"") -> 35.65
A125: 183 | C125: =IF(Turma!$A$2=1,IF(VLOOKUP("x",Turma!$B$4:$H$53,3,0)="Menina",mlsBMI!I124,mlsBMI!I292),"") -> 14.429 | D125: =IF(Turma!$A$2=1,IF(VLOOKUP("x",Turma!$B$4:$H$53,3,0)="Menina",mlsBMI!J124,mlsBMI!J292),"") -> 15.958 | E125: =IF(Turma!$A$2=1,IF(VLOOKUP("x",Turma!$B$4:$H$53,3,0)="Menina",mlsBMI!K124,mlsBMI!K292),"") -> 17.874 | F125: =IF(Turma!$A$2=1,IF(VLOOKUP("x",Turma!$B$4:$H$53,3,0)="Menina",mlsBMI!L124,mlsBMI!L292),"") -> 20.35 | G125: =IF(Turma!$A$2=1,IF(VLOOKUP("x",Turma!$B$4:$H$53,3,0)="Menina",mlsBMI!M124,mlsBMI!M292),"") -> 23.679 | H125: =IF(Turma!$A$2=1,IF(VLOOKUP("x",Turma!$B$4:$H$53,3,0)="Menina",mlsBMI!N124,mlsBMI!N292),"") -> 28.411 | I125: =IF(Turma!$A$2=1,IF(VLOOKUP("x",Turma!$B$4:$H$53,3,0)="Menina",mlsBMI!O124,mlsBMI!O292),"") -> 35.703
A126: 184 | C126: =IF(Turma!$A$2=1,IF(VLOOKUP("x",Turma!$B$4:$H$53,3,0)="Menina",mlsBMI!I125,mlsBMI!I293),"") -> 14.45 | D126: =IF(Turma!$A$2=1,IF(VLOOKUP("x",Turma!$B$4:$H$53,3,0)="Menina",mlsBMI!J125,mlsBMI!J293),"") -> 15.985 | E126: =IF(Turma!$A$2=1,IF(VLOOKUP("x",Turma!$B$4:$H$53,3,0)="Menina",mlsBMI!K125,mlsBMI!K293),"") -> 17.909 | F126: =IF(Turma!$A$2=1,IF(VLOOKUP("x",Turma!$B$4:$H$53,3,0)="Menina",mlsBMI!L125,mlsBMI!L293),"") -> 20.393 | G126: =IF(Turma!$A$2=1,IF(VLOOKUP("x",Turma!$B$4:$H$53,3,0)="Menina",mlsBMI!M125,mlsBMI!M293),"") -> 23.731 | H126: =IF(Turma!$A$2=1,IF(VLOOKUP("x",Turma!$B$4:$H$53,3,0)="Menina",mlsBMI!N125,mlsBMI!N293),"") -> 28.469 | I126: =IF(Turma!$A$2=1,IF(VLOOKUP("x",Turma!$B$4:$H$53,3,0)="Menina",mlsBMI!O125,mlsBMI!O293),"") -> 35.752
A127: 185 | C127: =IF(Turma!$A$2=1,IF(VLOOKUP("x",Turma!$B$4:$H$53,3,0)="Menina",mlsBMI!I126,mlsBMI!I294),"") -> 14.469 | D127: =IF(Turma!$A$2=1,IF(VLOOKUP("x",Turma!$B$4:$H$53,3,0)="Menina",mlsBMI!J126,mlsBMI!J294),"") -> 16.012 | E127: =IF(Turma!$A$2=1,IF(VLOOKUP("x",Turma!$B$4:$H$53,3,0)="Menina",mlsBMI!K126,mlsBMI!K294),"") -> 17.943 | F127: =IF(Turma!$A$2=1,IF(VLOOKUP("x",Turma!$B$4:$H$53,3,0)="Menina",mlsBMI!L126,mlsBMI!L294),"") -> 20.436 | G127: =IF(Turma!$A$2=1,IF(VLOOKUP("x",Turma!$B$4:$H$53,3,0)="Menina",mlsBMI!M126,mlsBMI!M294),"") -> 23.782 | H127: =IF(Turma!$A$2=1,IF(VLOOKUP("x",Turma!$B$4:$H$53,3,0)="Menina",mlsBMI!N126,mlsBMI!N294),"") -> 28.525 | I127: =IF(Turma!$A$2=1,IF(VLOOKUP("x",Turma!$B$4:$H$53,3,0)="Menina",mlsBMI!O126,mlsBMI!O294),"") -> 35.799
A128: 186 | C128: =IF(Turma!$A$2=1,IF(VLOOKUP("x",Turma!$B$4:$H$53,3,0)="Menina",mlsBMI!I127,mlsBMI!I295),"") -> 14.488 | D128: =IF(Turma!$A$2=1,IF(VLOOKUP("x",Turma!$B$4:$H$53,3,0)="Menina",mlsBMI!J127,mlsBMI!J295),"") -> 16.037 | E128: =IF(Turma!$A$2=1,IF(VLOOKUP("x",Turma!$B$4:$H$53,3,0)="Menina",mlsBMI!K127,mlsBMI!K295),"") -> 17.976 | F128: =IF(Turma!$A$2=1,IF(VLOOKUP("x",Turma!$B$4:$H$53,3,0)="Menina",mlsBMI!L127,mlsBMI!L295),"") -> 20.477 | G128: =IF(Turma!$A$2=1,IF(VLOOKUP("x",Turma!$B$4:$H$53,3,0)="Menina",mlsBMI!M127,mlsBMI!M295),"") -> 23.832 | H128: =IF(Turma!$A$2=1,IF(VLOOKUP("x",Turma!$B$4:$H$53,3,0)="Menina",mlsBMI!N127,mlsBMI!N295),"") -> 28.58 | I128: =IF(Turma!$A$2=1,IF(VLOOKUP("x",Turma!$B$4:$H$53,3,0)="Menina",mlsBMI!O127,mlsBMI!O295),"") -> 35.844
A129: 187 | C129: =IF(Turma!$A$2=1,IF(VLOOKUP("x",Turma!$B$4:$H$53,3,0)="Menina",mlsBMI!I128,mlsBMI!I296),"") -> 14.507 | D129: =IF(Turma!$A$2=1,IF(VLOOKUP("x",Turma!$B$4:$H$53,3,0)="Menina",mlsBMI!J128,mlsBMI!J296),"") -> 16.062 | E129: =IF(Turma!$A$2=1,IF(VLOOKUP("x",Turma!$B$4:$H$53,3,0)="Menina",mlsBMI!K128,mlsBMI!K296),"") -> 18.008 | F129: =IF(Turma!$A$2=1,IF(VLOOKUP("x",Turma!$B$4:$H$53,3,0)="Menina",mlsBMI!L128,mlsBMI!L296),"") -> 20.517 | G129: =IF(Turma!$A$2=1,IF(VLOOKUP("x",Turma!$B$4:$H$53,3,0)="Menina",mlsBMI!M128,mlsBMI!M296),"") -> 23.88 | H129: =IF(Turma!$A$2=1,IF(VLOOKUP("x",Turma!$B$4:$H$53,3,0)="Menina",mlsBMI!N128,mlsBMI!N296),"") -> 28.634 | I129: =IF(Turma!$A$2=1,IF(VLOOKUP("x",Turma!$B$4:$H$53,3,0)="Menina",mlsBMI!O128,mlsBMI!O296),"") -> 35.887
A130: 188 | C130: =IF(Turma!$A$2=1,IF(VLOOKUP("x",Turma!$B$4:$H$53,3,0)="Menina",mlsBMI!I129,mlsBMI!I297),"") -> 14.524 | D130: =IF(Turma!$A$2=1,IF(VLOOKUP("x",Turma!$B$4:$H$53,3,0)="Menina",mlsBMI!J129,mlsBMI!J297),"") -> 16.085 | E130: =IF(Turma!$A$2=1,IF(VLOOKUP("x",Turma!$B$4:$H$53,3,0)="Menina",mlsBMI!K129,mlsBMI!K297),"") -> 18.039 | F130: =IF(Turma!$A$2=1,IF(VLOOKUP("x",Turma!$B$4:$H$53,3,0)="Menina",mlsBMI!L129,mlsBMI!L297),"") -> 20.556 | G130: =IF(Turma!$A$2=1,IF(VLOOKUP("x",Turma!$B$4:$H$53,3,0)="Menina",mlsBMI!M129,mlsBMI!M297),"") -> 23.927 | H130: =IF(Turma!$A$2=1,IF(VLOOKUP("x",Turma!$B$4:$H$53,3,0)="Menina",mlsBMI!N129,mlsBMI!N297),"") -> 28.684 | I130: =IF(Turma!$A$2=1,IF(VLOOKUP("x",Turma!$B$4:$H$53,3,0)="Menina",mlsBMI!O129,mlsBMI!O297),"") -> 35.927
A131: 189 | B131: =IF(A131/12=INT(A131/12),A131/12,"") ->  | C131: =IF(Turma!$A$2=1,IF(VLOOKUP("x",Turma!$B$4:$H$53,3,0)="Menina",mlsBMI!I130,mlsBMI!I298),"") -> 14.541 | D131: =IF(Turma!$A$2=1,IF(VLOOKUP("x",Turma!$B$4:$H$53,3,0)="Menina",mlsBMI!J130,mlsBMI!J298),"") -> 16.108 | E131: =IF(Turma!$A$2=1,IF(VLOOKUP("x",Turma!$B$4:$H$53,3,0)="Menina",mlsBMI!K130,mlsBMI!K298),"") -> 18.069 | F131: =IF(Turma!$A$2=1,IF(VLOOKUP("x",Turma!$B$4:$H$53,3,0)="Menina",mlsBMI!L130,mlsBMI!L298),"") -> 20.594 | G131: =IF(Turma!$A$2=1,IF(VLOOKUP("x",Turma!$B$4:$H$53,3,0)="Menina",mlsBMI!M130,mlsBMI!M298),"") -> 23.972 | H131: =IF(Turma!$A$2=1,IF(VLOOKUP("x",Turma!$B$4:$H$53,3,0)="Menina",mlsBMI!N130,mlsBMI!N298),"") -> 28.734 | I131: =IF(Turma!$A$2=1,IF(VLOOKUP("x",Turma!$B$4:$H$53,3,0)="Menina",mlsBMI!O130,mlsBMI!O298),"") -> 35.964
A132: 190 | C132: =IF(Turma!$A$2=1,IF(VLOOKUP("x",Turma!$B$4:$H$53,3,0)="Menina",mlsBMI!I131,mlsBMI!I299),"") -> 14.557 | D132: =IF(Turma!$A$2=1,IF(VLOOKUP("x",Turma!$B$4:$H$53,3,0)="Menina",mlsBMI!J131,mlsBMI!J299),"") -> 16.13 | E132: =IF(Turma!$A$2=1,IF(VLOOKUP("x",Turma!$B$4:$H$53,3,0)="Menina",mlsBMI!K131,mlsBMI!K299),"") -> 18.098 | F132: =IF(Turma!$A$2=1,IF(VLOOKUP("x",Turma!$B$4:$H$53,3,0)="Menina",mlsBMI!L131,mlsBMI!L299),"") -> 20.631 | G132: =IF(Turma!$A$2=1,IF(VLOOKUP("x",Turma!$B$4:$H$53,3,0)="Menina",mlsBMI!M131,mlsBMI!M299),"") -> 24.017 | H132: =IF(Turma!$A$2=1,IF(VLOOKUP("x",Turma!$B$4:$H$53,3,0)="Menina",mlsBMI!N131,mlsBMI!N299),"") -> 28.782 | I132: =IF(Turma!$A$2=1,IF(VLOOKUP("x",Turma!$B$4:$H$53,3,0)="Menina",mlsBMI!O131,mlsBMI!O299),"") -> 36
A133: 191 | C133: =IF(Turma!$A$2=1,IF(VLOOKUP("x",Turma!$B$4:$H$53,3,0)="Menina",mlsBMI!I132,mlsBMI!I300),"") -> 14.572 | D133: =IF(Turma!$A$2=1,IF(VLOOKUP("x",Turma!$B$4:$H$53,3,0)="Menina",mlsBMI!J132,mlsBMI!J300),"") -> 16.151 | E133: =IF(Turma!$A$2=1,IF(VLOOKUP("x",Turma!$B$4:$H$53,3,0)="Menina",mlsBMI!K132,mlsBMI!K300),"") -> 18.126 | F133: =IF(Turma!$A$2=1,IF(VLOOKUP("x",Turma!$B$4:$H$53,3,0)="Menina",mlsBMI!L132,mlsBMI!L300),"") -> 20.666 | G133: =IF(Turma!$A$2=1,IF(VLOOKUP("x",Turma!$B$4:$H$53,3,0)="Menina",mlsBMI!M132,mlsBMI!M300),"") -> 24.06 | H133: =IF(Turma!$A$2=1,IF(VLOOKUP("x",Turma!$B$4:$H$53,3,0)="Menina",mlsBMI!N132,mlsBMI!N300),"") -> 28.828 | I133: =IF(Turma!$A$2=1,IF(VLOOKUP("x",Turma!$B$4:$H$53,3,0)="Menina",mlsBMI!O132,mlsBMI!O300),"") -> 36.034
A134: 192 | B134: 16 | C134: =IF(Turma!$A$2=1,IF(VLOOKUP("x",Turma!$B$4:$H$53,3,0)="Menina",mlsBMI!I133,mlsBMI!I301),"") -> 14.586 | D134: =IF(Turma!$A$2=1,IF(VLOOKUP("x",Turma!$B$4:$H$53,3,0)="Menina",mlsBMI!J133,mlsBMI!J301),"") -> 16.172 | E134: =IF(Turma!$A$2=1,IF(VLOOKUP("x",Turma!$B$4:$H$53,3,0)="Menina",mlsBMI!K133,mlsBMI!K301),"") -> 18.153 | F134: =IF(Turma!$A$2=1,IF(VLOOKUP("x",Turma!$B$4:$H$53,3,0)="Menina",mlsBMI!L133,mlsBMI!L301),"") -> 20.701 | G134: =IF(Turma!$A$2=1,IF(VLOOKUP("x",Turma!$B$4:$H$53,3,0)="Menina",mlsBMI!M133,mlsBMI!M301),"") -> 24.101 | H134: =IF(Turma!$A$2=1,IF(VLOOKUP("x",Turma!$B$4:$H$53,3,0)="Menina",mlsBMI!N133,mlsBMI!N301),"") -> 28.873 | I134: =IF(Turma!$A$2=1,IF(VLOOKUP("x",Turma!$B$4:$H$53,3,0)="Menina",mlsBMI!O133,mlsBMI!O301),"") -> 36.066
A135: 193 | C135: =IF(Turma!$A$2=1,IF(VLOOKUP("x",Turma!$B$4:$H$53,3,0)="Menina",mlsBMI!I134,mlsBMI!I302),"") -> 14.6 | D135: =IF(Turma!$A$2=1,IF(VLOOKUP("x",Turma!$B$4:$H$53,3,0)="Menina",mlsBMI!J134,mlsBMI!J302),"") -> 16.191 | E135: =IF(Turma!$A$2=1,IF(VLOOKUP("x",Turma!$B$4:$H$53,3,0)="Menina",mlsBMI!K134,mlsBMI!K302),"") -> 18.179 | F135: =IF(Turma!$A$2=1,IF(VLOOKUP("x",Turma!$B$4:$H$53,3,0)="Menina",mlsBMI!L134,mlsBMI!L302),"") -> 20.734 | G135: =IF(Turma!$A$2=1,IF(VLOOKUP("x",Turma!$B$4:$H$53,3,0)="Menina",mlsBMI!M134,mlsBMI!M302),"") -> 24.141 | H135: =IF(Turma!$A$2=1,IF(VLOOKUP("x",Turma!$B$4:$H$53,3,0)="Menina",mlsBMI!N134,mlsBMI!N302),"") -> 28.915 | I135: =IF(Turma!$A$2=1,IF(VLOOKUP("x",Turma!$B$4:$H$53,3,0)="Menina",mlsBMI!O134,mlsBMI!O302),"") -> 36.094
A136: 194 | C136: =IF(Turma!$A$2=1,IF(VLOOKUP("x",Turma!$B$4:$H$53,3,0)="Menina",mlsBMI!I135,mlsBMI!I303),"") -> 14.613 | D136: =IF(Turma!$A$2=1,IF(VLOOKUP("x",Turma!$B$4:$H$53,3,0)="Menina",mlsBMI!J135,mlsBMI!J303),"") -> 16.21 | E136: =IF(Turma!$A$2=1,IF(VLOOKUP("x",Turma!$B$4:$H$53,3,0)="Menina",mlsBMI!K135,mlsBMI!K303),"") -> 18.205 | F136: =IF(Turma!$A$2=1,IF(VLOOKUP("x",Turma!$B$4:$H$53,3,0)="Menina",mlsBMI!L135,mlsBMI!L303),"") -> 20.767 | G136: =IF(Turma!$A$2=1,IF(VLOOKUP("x",Turma!$B$4:$H$53,3,0)="Menina",mlsBMI!M135,mlsBMI!M303),"") -> 24.18 | H136: =IF(Turma!$A$2=1,IF(VLOOKUP("x",Turma!$B$4:$H$53,3,0)="Menina",mlsBMI!N135,mlsBMI!N303),"") -> 28.956 | I136: =IF(Turma!$A$2=1,IF(VLOOKUP("x",Turma!$B$4:$H$53,3,0)="Menina",mlsBMI!O135,mlsBMI!O303),"") -> 36.121
A137: 195 | C137: =IF(Turma!$A$2=1,IF(VLOOKUP("x",Turma!$B$4:$H$53,3,0)="Menina",mlsBMI!I136,mlsBMI!I304),"") -> 14.625 | D137: =IF(Turma!$A$2=1,IF(VLOOKUP("x",Turma!$B$4:$H$53,3,0)="Menina",mlsBMI!J136,mlsBMI!J304),"") -> 16.228 | E137: =IF(Turma!$A$2=1,IF(VLOOKUP("x",Turma!$B$4:$H$53,3,0)="Menina",mlsBMI!K136,mlsBMI!K304),"") -> 18.229 | F137: =IF(Turma!$A$2=1,IF(VLOOKUP("x",Turma!$B$4:$H$53,3,0)="Menina",mlsBMI!L136,mlsBMI!L304),"") -> 20.798 | G137: =IF(Turma!$A$2=1,IF(VLOOKUP("x",Turma!$B$4:$H$53,3,0)="Menina",mlsBMI!M136,mlsBMI!M304),"") -> 24.218 | H137: =IF(Turma!$A$2=1,IF(VLOOKUP("x",Turma!$B$4:$H$53,3,0)="Menina",mlsBMI!N136,mlsBMI!N304),"") -> 28.996 | I137: =IF(Turma!$A$2=1,IF(VLOOKUP("x",Turma!$B$4:$H$53,3,0)="Menina",mlsBMI!O136,mlsBMI!O304),"") -> 36.146
A138: 196 | C138: =IF(Turma!$A$2=1,IF(VLOOKUP("x",Turma!$B$4:$H$53,3,0)="Menina",mlsBMI!I137,mlsBMI!I305),"") -> 14.636 | D138: =IF(Turma!$A$2=1,IF(VLOOKUP("x",Turma!$B$4:$H$53,3,0)="Menina",mlsBMI!J137,mlsBMI!J305),"") -> 16.245 | E138: =IF(Turma!$A$2=1,IF(VLOOKUP("x",Turma!$B$4:$H$53,3,0)="Menina",mlsBMI!K137,mlsBMI!K305),"") -> 18.253 | F138: =IF(Turma!$A$2=1,IF(VLOOKUP("x",Turma!$B$4:$H$53,3,0)="Menina",mlsBMI!L137,mlsBMI!L305),"") -> 20.829 | G138: =IF(Turma!$A$2=1,IF(VLOOKUP("x",Turma!$B$4:$H$53,3,0)="Menina",mlsBMI!M137,mlsBMI!M305),"") -> 24.254 | H138: =IF(Turma!$A$2=1,IF(VLOOKUP("x",Turma!$B$4:$H$53,3,0)="Menina",mlsBMI!N137,mlsBMI!N305),"") -> 29.034 | I138: =IF(Turma!$A$2=1,IF(VLOOKUP("x",Turma!$B$4:$H$53,3,0)="Menina",mlsBMI!O137,mlsBMI!O305),"") -> 36.169
A139: 197 | C139: =IF(Turma!$A$2=1,IF(VLOOKUP("x",Turma!$B$4:$H$53,3,0)="Menina",mlsBMI!I138,mlsBMI!I306),"") -> 14.647 | D139: =IF(Turma!$A$2=1,IF(VLOOKUP("x",Turma!$B$4:$H$53,3,0)="Menina",mlsBMI!J138,mlsBMI!J306),"") -> 16.261 | E139: =IF(Turma!$A$2=1,IF(VLOOKUP("x",Turma!$B$4:$H$53,3,0)="Menina",mlsBMI!K138,mlsBMI!K306),"") -> 18.275 | F139: =IF(Turma!$A$2=1,IF(VLOOKUP("x",Turma!$B$4:$H$53,3,0)="Menina",mlsBMI!L138,mlsBMI!L306),"") -> 20.858 | G139: =IF(Turma!$A$2=1,IF(VLOOKUP("x",Turma!$B$4:$H$53,3,0)="Menina",mlsBMI!M138,mlsBMI!M306),"") -> 24.29 | H139: =IF(Turma!$A$2=1,IF(VLOOKUP("x",Turma!$B$4:$H$53,3,0)="Menina",mlsBMI!N138,mlsBMI!N306),"") -> 29.07 | I139: =IF(Turma!$A$2=1,IF(VLOOKUP("x",Turma!$B$4:$H$53,3,0)="Menina",mlsBMI!O138,mlsBMI!O306),"") -> 36.19
A140: 198 | C140: =IF(Turma!$A$2=1,IF(VLOOKUP("x",Turma!$B$4:$H$53,3,0)="Menina",mlsBMI!I139,mlsBMI!I307),"") -> 14.656 | D140: =IF(Turma!$A$2=1,IF(VLOOKUP("x",Turma!$B$4:$H$53,3,0)="Menina",mlsBMI!J139,mlsBMI!J307),"") -> 16.277 | E140: =IF(Turma!$A$2=1,IF(VLOOKUP("x",Turma!$B$4:$H$53,3,0)="Menina",mlsBMI!K139,mlsBMI!K307),"") -> 18.297 | F140: =IF(Turma!$A$2=1,IF(VLOOKUP("x",Turma!$B$4:$H$53,3,0)="Menina",mlsBMI!L139,mlsBMI!L307),"") -> 20.886 | G140: =IF(Turma!$A$2=1,IF(VLOOKUP("x",Turma!$B$4:$H$53,3,0)="Menina",mlsBMI!M139,mlsBMI!M307),"") -> 24.324 | H140: =IF(Turma!$A$2=1,IF(VLOOKUP("x",Turma!$B$4:$H$53,3,0)="Menina",mlsBMI!N139,mlsBMI!N307),"") -> 29.105 | I140: =IF(Turma!$A$2=1,IF(VLOOKUP("x",Turma!$B$4:$H$53,3,0)="Menina",mlsBMI!O139,mlsBMI!O307),"") -> 36.209
A141: 199 | C141: =IF(Turma!$A$2=1,IF(VLOOKUP("x",Turma!$B$4:$H$53,3,0)="Menina",mlsBMI!I140,mlsBMI!I308),"") -> 14.666 | D141: =IF(Turma!$A$2=1,IF(VLOOKUP("x",Turma!$B$4:$H$53,3,0)="Menina",mlsBMI!J140,mlsBMI!J308),"") -> 16.291 | E141: =IF(Turma!$A$2=1,IF(VLOOKUP("x",Turma!$B$4:$H$53,3,0)="Menina",mlsBMI!K140,mlsBMI!K308),"") -> 18.318 | F141: =IF(Turma!$A$2=1,IF(VLOOKUP("x",Turma!$B$4:$H$53,3,0)="Menina",mlsBMI!L140,mlsBMI!L308),"") -> 20.914 | G141: =IF(Turma!$A$2=1,IF(VLOOKUP("x",Turma!$B$4:$H$53,3,0)="Menina",mlsBMI!M140,mlsBMI!M308),"") -> 24.356 | H141: =IF(Turma!$A$2=1,IF(VLOOKUP("x",Turma!$B$4:$H$53,3,0)="Menina",mlsBMI!N140,mlsBMI!N308),"") -> 29.138 | I141: =IF(Turma!$A$2=1,IF(VLOOKUP("x",Turma!$B$4:$H$53,3,0)="Menina",mlsBMI!O140,mlsBMI!O308),"") -> 36.225
A142: 200 | C142: =IF(Turma!$A$2=1,IF(VLOOKUP("x",Turma!$B$4:$H$53,3,0)="Menina",mlsBMI!I141,mlsBMI!I309),"") -> 14.674 | D142: =IF(Turma!$A$2=1,IF(VLOOKUP("x",Turma!$B$4:$H$53,3,0)="Menina",mlsBMI!J141,mlsBMI!J309),"") -> 16.305 | E142: =IF(Turma!$A$2=1,IF(VLOOKUP("x",Turma!$B$4:$H$53,3,0)="Menina",mlsBMI!K141,mlsBMI!K309),"") -> 18.338 | F142: =IF(Turma!$A$2=1,IF(VLOOKUP("x",Turma!$B$4:$H$53,3,0)="Menina",mlsBMI!L141,mlsBMI!L309),"") -> 20.94 | G142: =IF(Turma!$A$2=1,IF(VLOOKUP("x",Turma!$B$4:$H$53,3,0)="Menina",mlsBMI!M141,mlsBMI!M309),"") -> 24.388 | H142: =IF(Turma!$A$2=1,IF(VLOOKUP("x",Turma!$B$4:$H$53,3,0)="Menina",mlsBMI!N141,mlsBMI!N309),"") -> 29.17 | I142: =IF(Turma!$A$2=1,IF(VLOOKUP("x",Turma!$B$4:$H$53,3,0)="Menina",mlsBMI!O141,mlsBMI!O309),"") -> 36.239
A143: 201 | C143: =IF(Turma!$A$2=1,IF(VLOOKUP("x",Turma!$B$4:$H$53,3,0)="Menina",mlsBMI!I142,mlsBMI!I310),"") -> 14.682 | D143: =IF(Turma!$A$2=1,IF(VLOOKUP("x",Turma!$B$4:$H$53,3,0)="Menina",mlsBMI!J142,mlsBMI!J310),"") -> 16.318 | E143: =IF(Turma!$A$2=1,IF(VLOOKUP("x",Turma!$B$4:$H$53,3,0)="Menina",mlsBMI!K142,mlsBMI!K310),"") -> 18.357 | F143: =IF(Turma!$A$2=1,IF(VLOOKUP("x",Turma!$B$4:$H$53,3,0)="Menina",mlsBMI!L142,mlsBMI!L310),"") -> 20.966 | G143: =IF(Turma!$A$2=1,IF(VLOOKUP("x",Turma!$B$4:$H$53,3,0)="Menina",mlsBMI!M142,mlsBMI!M310),"") -> 24.418 | H143: =IF(Turma!$A$2=1,IF(VLOOKUP("x",Turma!$B$4:$H$53,3,0)="Menina",mlsBMI!N142,mlsBMI!N310),"") -> 29.201 | I143: =IF(Turma!$A$2=1,IF(VLOOKUP("x",Turma!$B$4:$H$53,3,0)="Menina",mlsBMI!O142,mlsBMI!O310),"") -> 36.254
A144: 202 | C144: =IF(Turma!$A$2=1,IF(VLOOKUP("x",Turma!$B$4:$H$53,3,0)="Menina",mlsBMI!I143,mlsBMI!I311),"") -> 14.689 | D144: =IF(Turma!$A$2=1,IF(VLOOKUP("x",Turma!$B$4:$H$53,3,0)="Menina",mlsBMI!J143,mlsBMI!J311),"") -> 16.331 | E144: =IF(Turma!$A$2=1,IF(VLOOKUP("x",Turma!$B$4:$H$53,3,0)="Menina",mlsBMI!K143,mlsBMI!K311),"") -> 18.376 | F144: =IF(Turma!$A$2=1,IF(VLOOKUP("x",Turma!$B$4:$H$53,3,0)="Menina",mlsBMI!L143,mlsBMI!L311),"") -> 20.99 | G144: =IF(Turma!$A$2=1,IF(VLOOKUP("x",Turma!$B$4:$H$53,3,0)="Menina",mlsBMI!M143,mlsBMI!M311),"") -> 24.448 | H144: =IF(Turma!$A$2=1,IF(VLOOKUP("x",Turma!$B$4:$H$53,3,0)="Menina",mlsBMI!N143,mlsBMI!N311),"") -> 29.23 | I144: =IF(Turma!$A$2=1,IF(VLOOKUP("x",Turma!$B$4:$H$53,3,0)="Menina",mlsBMI!O143,mlsBMI!O311),"") -> 36.265
A145: 203 | C145: =IF(Turma!$A$2=1,IF(VLOOKUP("x",Turma!$B$4:$H$53,3,0)="Menina",mlsBMI!I144,mlsBMI!I312),"") -> 14.695 | D145: =IF(Turma!$A$2=1,IF(VLOOKUP("x",Turma!$B$4:$H$53,3,0)="Menina",mlsBMI!J144,mlsBMI!J312),"") -> 16.343 | E145: =IF(Turma!$A$2=1,IF(VLOOKUP("x",Turma!$B$4:$H$53,3,0)="Menina",mlsBMI!K144,mlsBMI!K312),"") -> 18.393 | F145: =IF(Turma!$A$2=1,IF(VLOOKUP("x",Turma!$B$4:$H$53,3,0)="Menina",mlsBMI!L144,mlsBMI!L312),"") -> 21.014 | G145: =IF(Turma!$A$2=1,IF(VLOOKUP("x",Turma!$B$4:$H$53,3,0)="Menina",mlsBMI!M144,mlsBMI!M312),"") -> 24.476 | H145: =IF(Turma!$A$2=1,IF(VLOOKUP("x",Turma!$B$4:$H$53,3,0)="Menina",mlsBMI!N144,mlsBMI!N312),"") -> 29.257 | I145: =IF(Turma!$A$2=1,IF(VLOOKUP("x",Turma!$B$4:$H$53,3,0)="Menina",mlsBMI!O144,mlsBMI!O312),"") -> 36.275
A146: 204 | B146: 17 | C146: =IF(Turma!$A$2=1,IF(VLOOKUP("x",Turma!$B$4:$H$53,3,0)="Menina",mlsBMI!I145,mlsBMI!I313),"") -> 14.701 | D146: =IF(Turma!$A$2=1,IF(VLOOKUP("x",Turma!$B$4:$H$53,3,0)="Menina",mlsBMI!J145,mlsBMI!J313),"") -> 16.354 | E146: =IF(Turma!$A$2=1,IF(VLOOKUP("x",Turma!$B$4:$H$53,3,0)="Menina",mlsBMI!K145,mlsBMI!K313),"") -> 18.411 | F146: =IF(Turma!$A$2=1,IF(VLOOKUP("x",Turma!$B$4:$H$53,3,0)="Menina",mlsBMI!L145,mlsBMI!L313),"") -> 21.037 | G146: =IF(Turma!$A$2=1,IF(VLOOKUP("x",Turma!$B$4:$H$53,3,0)="Menina",mlsBMI!M145,mlsBMI!M313),"") -> 24.503 | H146: =IF(Turma!$A$2=1,IF(VLOOKUP("x",Turma!$B$4:$H$53,3,0)="Menina",mlsBMI!N145,mlsBMI!N313),"") -> 29.283 | I146: =IF(Turma!$A$2=1,IF(VLOOKUP("x",Turma!$B$4:$H$53,3,0)="Menina",mlsBMI!O145,mlsBMI!O313),"") -> 36.281
A147: 205 | C147: =IF(Turma!$A$2=1,IF(VLOOKUP("x",Turma!$B$4:$H$53,3,0)="Menina",mlsBMI!I146,mlsBMI!I314),"") -> 14.707 | D147: =IF(Turma!$A$2=1,IF(VLOOKUP("x",Turma!$B$4:$H$53,3,0)="Menina",mlsBMI!J146,mlsBMI!J314),"") -> 16.365 | E147: =IF(Turma!$A$2=1,IF(VLOOKUP("x",Turma!$B$4:$H$53,3,0)="Menina",mlsBMI!K146,mlsBMI!K314),"") -> 18.427 | F147: =IF(Turma!$A$2=1,IF(VLOOKUP("x",Turma!$B$4:$H$53,3,0)="Menina",mlsBMI!L146,mlsBMI!L314),"") -> 21.059 | G147: =IF(Turma!$A$2=1,IF(VLOOKUP("x",Turma!$B$4:$H$53,3,0)="Menina",mlsBMI!M146,mlsBMI!M314),"") -> 24.53 | H147: =IF(Turma!$A$2=1,IF(VLOOKUP("x",Turma!$B$4:$H$53,3,0)="Menina",mlsBMI!N146,mlsBMI!N314),"") -> 29.308 | I147: =IF(Turma!$A$2=1,IF(VLOOKUP("x",Turma!$B$4:$H$53,3,0)="Menina",mlsBMI!O146,mlsBMI!O314),"") -> 36.288
A148: 206 | C148: =IF(Turma!$A$2=1,IF(VLOOKUP("x",Turma!$B$4:$H$53,3,0)="Menina",mlsBMI!I147,mlsBMI!I315),"") -> 14.711 | D148: =IF(Turma!$A$2=1,IF(VLOOKUP("x",Turma!$B$4:$H$53,3,0)="Menina",mlsBMI!J147,mlsBMI!J315),"") -> 16.375 | E148: =IF(Turma!$A$2=1,IF(VLOOKUP("x",Turma!$B$4:$H$53,3,0)="Menina",mlsBMI!K147,mlsBMI!K315),"") -> 18.443 | F148: =IF(Turma!$A$2=1,IF(VLOOKUP("x",Turma!$B$4:$H$53,3,0)="Menina",mlsBMI!L147,mlsBMI!L315),"") -> 21.08 | G148: =IF(Turma!$A$2=1,IF(VLOOKUP("x",Turma!$B$4:$H$53,3,0)="Menina",mlsBMI!M147,mlsBMI!M315),"") -> 24.555 | H148: =IF(Turma!$A$2=1,IF(VLOOKUP("x",Turma!$B$4:$H$53,3,0)="Menina",mlsBMI!N147,mlsBMI!N315),"") -> 29.333 | I148: =IF(Turma!$A$2=1,IF(VLOOKUP("x",Turma!$B$4:$H$53,3,0)="Menina",mlsBMI!O147,mlsBMI!O315),"") -> 36.293
A149: 207 | C149: =IF(Turma!$A$2=1,IF(VLOOKUP("x",Turma!$B$4:$H$53,3,0)="Menina",mlsBMI!I148,mlsBMI!I316),"") -> 14.716 | D149: =IF(Turma!$A$2=1,IF(VLOOKUP("x",Turma!$B$4:$H$53,3,0)="Menina",mlsBMI!J148,mlsBMI!J316),"") -> 16.384 | E149: =IF(Turma!$A$2=1,IF(VLOOKUP("x",Turma!$B$4:$H$53,3,0)="Menina",mlsBMI!K148,mlsBMI!K316),"") -> 18.458 | F149: =IF(Turma!$A$2=1,IF(VLOOKUP("x",Turma!$B$4:$H$53,3,0)="Menina",mlsBMI!L148,mlsBMI!L316),"") -> 21.101 | G149: =IF(Turma!$A$2=1,IF(VLOOKUP("x",Turma!$B$4:$H$53,3,0)="Menina",mlsBMI!M148,mlsBMI!M316),"") -> 24.58 | H149: =IF(Turma!$A$2=1,IF(VLOOKUP("x",Turma!$B$4:$H$53,3,0)="Menina",mlsBMI!N148,mlsBMI!N316),"") -> 29.355 | I149: =IF(Turma!$A$2=1,IF(VLOOKUP("x",Turma!$B$4:$H$53,3,0)="Menina",mlsBMI!O148,mlsBMI!O316),"") -> 36.296
A150: 208 | C150: =IF(Turma!$A$2=1,IF(VLOOKUP("x",Turma!$B$4:$H$53,3,0)="Menina",mlsBMI!I149,mlsBMI!I317),"") -> 14.719 | D150: =IF(Turma!$A$2=1,IF(VLOOKUP("x",Turma!$B$4:$H$53,3,0)="Menina",mlsBMI!J149,mlsBMI!J317),"") -> 16.393 | E150: =IF(Turma!$A$2=1,IF(VLOOKUP("x",Turma!$B$4:$H$53,3,0)="Menina",mlsBMI!K149,mlsBMI!K317),"") -> 18.472 | F150: =IF(Turma!$A$2=1,IF(VLOOKUP("x",Turma!$B$4:$H$53,3,0)="Menina",mlsBMI!L149,mlsBMI!L317),"") -> 21.121 | G150: =IF(Turma!$A$2=1,IF(VLOOKUP("x",Turma!$B$4:$H$53,3,0)="Menina",mlsBMI!M149,mlsBMI!M317),"") -> 24.603 | H150: =IF(Turma!$A$2=1,IF(VLOOKUP("x",Turma!$B$4:$H$53,3,0)="Menina",mlsBMI!N149,mlsBMI!N317),"") -> 29.376 | I150: =IF(Turma!$A$2=1,IF(VLOOKUP("x",Turma!$B$4:$H$53,3,0)="Menina",mlsBMI!O149,mlsBMI!O317),"") -> 36.297
A151: 209 | C151: =IF(Turma!$A$2=1,IF(VLOOKUP("x",Turma!$B$4:$H$53,3,0)="Menina",mlsBMI!I150,mlsBMI!I318),"") -> 14.722 | D151: =IF(Turma!$A$2=1,IF(VLOOKUP("x",Turma!$B$4:$H$53,3,0)="Menina",mlsBMI!J150,mlsBMI!J318),"") -> 16.401 | E151: =IF(Turma!$A$2=1,IF(VLOOKUP("x",Turma!$B$4:$H$53,3,0)="Menina",mlsBMI!K150,mlsBMI!K318),"") -> 18.486 | F151: =IF(Turma!$A$2=1,IF(VLOOKUP("x",Turma!$B$4:$H$53,3,0)="Menina",mlsBMI!L150,mlsBMI!L318),"") -> 21.14 | G151: =IF(Turma!$A$2=1,IF(VLOOKUP("x",Turma!$B$4:$H$53,3,0)="Menina",mlsBMI!M150,mlsBMI!M318),"") -> 24.626 | H151: =IF(Turma!$A$2=1,IF(VLOOKUP("x",Turma!$B$4:$H$53,3,0)="Menina",mlsBMI!N150,mlsBMI!N318),"") -> 29.398 | I151: =IF(Turma!$A$2=1,IF(VLOOKUP("x",Turma!$B$4:$H$53,3,0)="Menina",mlsBMI!O150,mlsBMI!O318),"") -> 36.3
A152: 210 | C152: =IF(Turma!$A$2=1,IF(VLOOKUP("x",Turma!$B$4:$H$53,3,0)="Menina",mlsBMI!I151,mlsBMI!I319),"") -> 14.725 | D152: =IF(Turma!$A$2=1,IF(VLOOKUP("x",Turma!$B$4:$H$53,3,0)="Menina",mlsBMI!J151,mlsBMI!J319),"") -> 16.409 | E152: =IF(Turma!$A$2=1,IF(VLOOKUP("x",Turma!$B$4:$H$53,3,0)="Menina",mlsBMI!K151,mlsBMI!K319),"") -> 18.499 | F152: =IF(Turma!$A$2=1,IF(VLOOKUP("x",Turma!$B$4:$H$53,3,0)="Menina",mlsBMI!L151,mlsBMI!L319),"") -> 21.159 | G152: =IF(Turma!$A$2=1,IF(VLOOKUP("x",Turma!$B$4:$H$53,3,0)="Menina",mlsBMI!M151,mlsBMI!M319),"") -> 24.649 | H152: =IF(Turma!$A$2=1,IF(VLOOKUP("x",Turma!$B$4:$H$53,3,0)="Menina",mlsBMI!N151,mlsBMI!N319),"") -> 29.418 | I152: =IF(Turma!$A$2=1,IF(VLOOKUP("x",Turma!$B$4:$H$53,3,0)="Menina",mlsBMI!O151,mlsBMI!O319),"") -> 36.299
A153: 211 | C153: =IF(Turma!$A$2=1,IF(VLOOKUP("x",Turma!$B$4:$H$53,3,0)="Menina",mlsBMI!I152,mlsBMI!I320),"") -> 14.728 | D153: =IF(Turma!$A$2=1,IF(VLOOKUP("x",Turma!$B$4:$H$53,3,0)="Menina",mlsBMI!J152,mlsBMI!J320),"") -> 16.417 | E153: =IF(Turma!$A$2=1,IF(VLOOKUP("x",Turma!$B$4:$H$53,3,0)="Menina",mlsBMI!K152,mlsBMI!K320),"") -> 18.512 | F153: =IF(Turma!$A$2=1,IF(VLOOKUP("x",Turma!$B$4:$H$53,3,0)="Menina",mlsBMI!L152,mlsBMI!L320),"") -> 21.177 | G153: =IF(Turma!$A$2=1,IF(VLOOKUP("x",Turma!$B$4:$H$53,3,0)="Menina",mlsBMI!M152,mlsBMI!M320),"") -> 24.67 | H153: =IF(Turma!$A$2=1,IF(VLOOKUP("x",Turma!$B$4:$H$53,3,0)="Menina",mlsBMI!N152,mlsBMI!N320),"") -> 29.436 | I153: =IF(Turma!$A$2=1,IF(VLOOKUP("x",Turma!$B$4:$H$53,3,0)="Menina",mlsBMI!O152,mlsBMI!O320),"") -> 36.298
A154: 212 | C154: =IF(Turma!$A$2=1,IF(VLOOKUP("x",Turma!$B$4:$H$53,3,0)="Menina",mlsBMI!I153,mlsBMI!I321),"") -> 14.73 | D154: =IF(Turma!$A$2=1,IF(VLOOKUP("x",Turma!$B$4:$H$53,3,0)="Menina",mlsBMI!J153,mlsBMI!J321),"") -> 16.424 | E154: =IF(Turma!$A$2=1,IF(VLOOKUP("x",Turma!$B$4:$H$53,3,0)="Menina",mlsBMI!K153,mlsBMI!K321),"") -> 18.525 | F154: =IF(Turma!$A$2=1,IF(VLOOKUP("x",Turma!$B$4:$H$53,3,0)="Menina",mlsBMI!L153,mlsBMI!L321),"") -> 21.194 | G154: =IF(Turma!$A$2=1,IF(VLOOKUP("x",Turma!$B$4:$H$53,3,0)="Menina",mlsBMI!M153,mlsBMI!M321),"") -> 24.691 | H154: =IF(Turma!$A$2=1,IF(VLOOKUP("x",Turma!$B$4:$H$53,3,0)="Menina",mlsBMI!N153,mlsBMI!N321),"") -> 29.455 | I154: =IF(Turma!$A$2=1,IF(VLOOKUP("x",Turma!$B$4:$H$53,3,0)="Menina",mlsBMI!O153,mlsBMI!O321),"") -> 36.296
A155: 213 | C155: =IF(Turma!$A$2=1,IF(VLOOKUP("x",Turma!$B$4:$H$53,3,0)="Menina",mlsBMI!I154,mlsBMI!I322),"") -> 14.731 | D155: =IF(Turma!$A$2=1,IF(VLOOKUP("x",Turma!$B$4:$H$53,3,0)="Menina",mlsBMI!J154,mlsBMI!J322),"") -> 16.431 | E155: =IF(Turma!$A$2=1,IF(VLOOKUP("x",Turma!$B$4:$H$53,3,0)="Menina",mlsBMI!K154,mlsBMI!K322),"") -> 18.537 | F155: =IF(Turma!$A$2=1,IF(VLOOKUP("x",Turma!$B$4:$H$53,3,0)="Menina",mlsBMI!L154,mlsBMI!L322),"") -> 21.212 | G155: =IF(Turma!$A$2=1,IF(VLOOKUP("x",Turma!$B$4:$H$53,3,0)="Menina",mlsBMI!M154,mlsBMI!M322),"") -> 24.712 | H155: =IF(Turma!$A$2=1,IF(VLOOKUP("x",Turma!$B$4:$H$53,3,0)="Menina",mlsBMI!N154,mlsBMI!N322),"") -> 29.472 | I155: =IF(Turma!$A$2=1,IF(VLOOKUP("x",Turma!$B$4:$H$53,3,0)="Menina",mlsBMI!O154,mlsBMI!O322),"") -> 36.293
A156: 214 | C156: =IF(Turma!$A$2=1,IF(VLOOKUP("x",Turma!$B$4:$H$53,3,0)="Menina",mlsBMI!I155,mlsBMI!I323),"") -> 14.733 | D156: =IF(Turma!$A$2=1,IF(VLOOKUP("x",Turma!$B$4:$H$53,3,0)="Menina",mlsBMI!J155,mlsBMI!J323),"") -> 16.437 | E156: =IF(Turma!$A$2=1,IF(VLOOKUP("x",Turma!$B$4:$H$53,3,0)="Menina",mlsBMI!K155,mlsBMI!K323),"") -> 18.548 | F156: =IF(Turma!$A$2=1,IF(VLOOKUP("x",Turma!$B$4:$H$53,3,0)="Menina",mlsBMI!L155,mlsBMI!L323),"") -> 21.228 | G156: =IF(Turma!$A$2=1,IF(VLOOKUP("x",Turma!$B$4:$H$53,3,0)="Menina",mlsBMI!M155,mlsBMI!M323),"") -> 24.731 | H156: =IF(Turma!$A$2=1,IF(VLOOKUP("x",Turma!$B$4:$H$53,3,0)="Menina",mlsBMI!N155,mlsBMI!N323),"") -> 29.489 | I156: =IF(Turma!$A$2=1,IF(VLOOKUP("x",Turma!$B$4:$H$53,3,0)="Menina",mlsBMI!O155,mlsBMI!O323),"") -> 36.29
A157: 215 | C157: =IF(Turma!$A$2=1,IF(VLOOKUP("x",Turma!$B$4:$H$53,3,0)="Menina",mlsBMI!I156,mlsBMI!I324),"") -> 14.734 | D157: =IF(Turma!$A$2=1,IF(VLOOKUP("x",Turma!$B$4:$H$53,3,0)="Menina",mlsBMI!J156,mlsBMI!J324),"") -> 16.443 | E157: =IF(Turma!$A$2=1,IF(VLOOKUP("x",Turma!$B$4:$H$53,3,0)="Menina",mlsBMI!K156,mlsBMI!K324),"") -> 18.56 | F157: =IF(Turma!$A$2=1,IF(VLOOKUP("x",Turma!$B$4:$H$53,3,0)="Menina",mlsBMI!L156,mlsBMI!L324),"") -> 21.244 | G157: =IF(Turma!$A$2=1,IF(VLOOKUP("x",Turma!$B$4:$H$53,3,0)="Menina",mlsBMI!M156,mlsBMI!M324),"") -> 24.75 | H157: =IF(Turma!$A$2=1,IF(VLOOKUP("x",Turma!$B$4:$H$53,3,0)="Menina",mlsBMI!N156,mlsBMI!N324),"") -> 29.505 | I157: =IF(Turma!$A$2=1,IF(VLOOKUP("x",Turma!$B$4:$H$53,3,0)="Menina",mlsBMI!O156,mlsBMI!O324),"") -> 36.284
A158: 216 | B158: 18 | C158: =IF(Turma!$A$2=1,IF(VLOOKUP("x",Turma!$B$4:$H$53,3,0)="Menina",mlsBMI!I157,mlsBMI!I325),"") -> 14.734 | D158: =IF(Turma!$A$2=1,IF(VLOOKUP("x",Turma!$B$4:$H$53,3,0)="Menina",mlsBMI!J157,mlsBMI!J325),"") -> 16.448 | E158: =IF(Turma!$A$2=1,IF(VLOOKUP("x",Turma!$B$4:$H$53,3,0)="Menina",mlsBMI!K157,mlsBMI!K325),"") -> 18.571 | F158: =IF(Turma!$A$2=1,IF(VLOOKUP("x",Turma!$B$4:$H$53,3,0)="Menina",mlsBMI!L157,mlsBMI!L325),"") -> 21.26 | G158: =IF(Turma!$A$2=1,IF(VLOOKUP("x",Turma!$B$4:$H$53,3,0)="Menina",mlsBMI!M157,mlsBMI!M325),"") -> 24.769 | H158: =IF(Turma!$A$2=1,IF(VLOOKUP("x",Turma!$B$4:$H$53,3,0)="Menina",mlsBMI!N157,mlsBMI!N325),"") -> 29.52 | I158: =IF(Turma!$A$2=1,IF(VLOOKUP("x",Turma!$B$4:$H$53,3,0)="Menina",mlsBMI!O157,mlsBMI!O325),"") -> 36.279
A159: 217 | C159: =IF(Turma!$A$2=1,IF(VLOOKUP("x",Turma!$B$4:$H$53,3,0)="Menina",mlsBMI!I158,mlsBMI!I326),"") -> 14.735 | D159: =IF(Turma!$A$2=1,IF(VLOOKUP("x",Turma!$B$4:$H$53,3,0)="Menina",mlsBMI!J158,mlsBMI!J326),"") -> 16.454 | E159: =IF(Turma!$A$2=1,IF(VLOOKUP("x",Turma!$B$4:$H$53,3,0)="Menina",mlsBMI!K158,mlsBMI!K326),"") -> 18.581 | F159: =IF(Turma!$A$2=1,IF(VLOOKUP("x",Turma!$B$4:$H$53,3,0)="Menina",mlsBMI!L158,mlsBMI!L326),"") -> 21.276 | G159: =IF(Turma!$A$2=1,IF(VLOOKUP("x",Turma!$B$4:$H$53,3,0)="Menina",mlsBMI!M158,mlsBMI!M326),"") -> 24.788 | H159: =IF(Turma!$A$2=1,IF(VLOOKUP("x",Turma!$B$4:$H$53,3,0)="Menina",mlsBMI!N158,mlsBMI!N326),"") -> 29.536 | I159: =IF(Turma!$A$2=1,IF(VLOOKUP("x",Turma!$B$4:$H$53,3,0)="Menina",mlsBMI!O158,mlsBMI!O326),"") -> 36.274
A160: 218 | C160: =IF(Turma!$A$2=1,IF(VLOOKUP("x",Turma!$B$4:$H$53,3,0)="Menina",mlsBMI!I159,mlsBMI!I327),"") -> 14.735 | D160: =IF(Turma!$A$2=1,IF(VLOOKUP("x",Turma!$B$4:$H$53,3,0)="Menina",mlsBMI!J159,mlsBMI!J327),"") -> 16.459 | E160: =IF(Turma!$A$2=1,IF(VLOOKUP("x",Turma!$B$4:$H$53,3,0)="Menina",mlsBMI!K159,mlsBMI!K327),"") -> 18.592 | F160: =IF(Turma!$A$2=1,IF(VLOOKUP("x",Turma!$B$4:$H$53,3,0)="Menina",mlsBMI!L159,mlsBMI!L327),"") -> 21.291 | G160: =IF(Turma!$A$2=1,IF(VLOOKUP("x",Turma!$B$4:$H$53,3,0)="Menina",mlsBMI!M159,mlsBMI!M327),"") -> 24.805 | H160: =IF(Turma!$A$2=1,IF(VLOOKUP("x",Turma!$B$4:$H$53,3,0)="Menina",mlsBMI!N159,mlsBMI!N327),"") -> 29.55 | I160: =IF(Turma!$A$2=1,IF(VLOOKUP("x",Turma!$B$4:$H$53,3,0)="Menina",mlsBMI!O159,mlsBMI!O327),"") -> 36.267
A161: 219 | C161: =IF(Turma!$A$2=1,IF(VLOOKUP("x",Turma!$B$4:$H$53,3,0)="Menina",mlsBMI!I160,mlsBMI!I328),"") -> 14.735 | D161: =IF(Turma!$A$2=1,IF(VLOOKUP("x",Turma!$B$4:$H$53,3,0)="Menina",mlsBMI!J160,mlsBMI!J328),"") -> 16.463 | E161: =IF(Turma!$A$2=1,IF(VLOOKUP("x",Turma!$B$4:$H$53,3,0)="Menina",mlsBMI!K160,mlsBMI!K328),"") -> 18.601 | F161: =IF(Turma!$A$2=1,IF(VLOOKUP("x",Turma!$B$4:$H$53,3,0)="Menina",mlsBMI!L160,mlsBMI!L328),"") -> 21.306 | G161: =IF(Turma!$A$2=1,IF(VLOOKUP("x",Turma!$B$4:$H$53,3,0)="Menina",mlsBMI!M160,mlsBMI!M328),"") -> 24.823 | H161: =IF(Turma!$A$2=1,IF(VLOOKUP("x",Turma!$B$4:$H$53,3,0)="Menina",mlsBMI!N160,mlsBMI!N328),"") -> 29.564 | I161: =IF(Turma!$A$2=1,IF(VLOOKUP("x",Turma!$B$4:$H$53,3,0)="Menina",mlsBMI!O160,mlsBMI!O328),"") -> 36.261
A162: 220 | C162: =IF(Turma!$A$2=1,IF(VLOOKUP("x",Turma!$B$4:$H$53,3,0)="Menina",mlsBMI!I161,mlsBMI!I329),"") -> 14.734 | D162: =IF(Turma!$A$2=1,IF(VLOOKUP("x",Turma!$B$4:$H$53,3,0)="Menina",mlsBMI!J161,mlsBMI!J329),"") -> 16.468 | E162: =IF(Turma!$A$2=1,IF(VLOOKUP("x",Turma!$B$4:$H$53,3,0)="Menina",mlsBMI!K161,mlsBMI!K329),"") -> 18.611 | F162: =IF(Turma!$A$2=1,IF(VLOOKUP("x",Turma!$B$4:$H$53,3,0)="Menina",mlsBMI!L161,mlsBMI!L329),"") -> 21.32 | G162: =IF(Turma!$A$2=1,IF(VLOOKUP("x",Turma!$B$4:$H$53,3,0)="Menina",mlsBMI!M161,mlsBMI!M329),"") -> 24.84 | H162: =IF(Turma!$A$2=1,IF(VLOOKUP("x",Turma!$B$4:$H$53,3,0)="Menina",mlsBMI!N161,mlsBMI!N329),"") -> 29.577 | I162: =IF(Turma!$A$2=1,IF(VLOOKUP("x",Turma!$B$4:$H$53,3,0)="Menina",mlsBMI!O161,mlsBMI!O329),"") -> 36.252
A163: 221 | C163: =IF(Turma!$A$2=1,IF(VLOOKUP("x",Turma!$B$4:$H$53,3,0)="Menina",mlsBMI!I162,mlsBMI!I330),"") -> 14.734 | D163: =IF(Turma!$A$2=1,IF(VLOOKUP("x",Turma!$B$4:$H$53,3,0)="Menina",mlsBMI!J162,mlsBMI!J330),"") -> 16.473 | E163: =IF(Turma!$A$2=1,IF(VLOOKUP("x",Turma!$B$4:$H$53,3,0)="Menina",mlsBMI!K162,mlsBMI!K330),"") -> 18.621 | F163: =IF(Turma!$A$2=1,IF(VLOOKUP("x",Turma!$B$4:$H$53,3,0)="Menina",mlsBMI!L162,mlsBMI!L330),"") -> 21.334 | G163: =IF(Turma!$A$2=1,IF(VLOOKUP("x",Turma!$B$4:$H$53,3,0)="Menina",mlsBMI!M162,mlsBMI!M330),"") -> 24.856 | H163: =IF(Turma!$A$2=1,IF(VLOOKUP("x",Turma!$B$4:$H$53,3,0)="Menina",mlsBMI!N162,mlsBMI!N330),"") -> 29.589 | I163: =IF(Turma!$A$2=1,IF(VLOOKUP("x",Turma!$B$4:$H$53,3,0)="Menina",mlsBMI!O162,mlsBMI!O330),"") -> 36.244
A164: 222 | C164: =IF(Turma!$A$2=1,IF(VLOOKUP("x",Turma!$B$4:$H$53,3,0)="Menina",mlsBMI!I163,mlsBMI!I331),"") -> 14.733 | D164: =IF(Turma!$A$2=1,IF(VLOOKUP("x",Turma!$B$4:$H$53,3,0)="Menina",mlsBMI!J163,mlsBMI!J331),"") -> 16.477 | E164: =IF(Turma!$A$2=1,IF(VLOOKUP("x",Turma!$B$4:$H$53,3,0)="Menina",mlsBMI!K163,mlsBMI!K331),"") -> 18.63 | F164: =IF(Turma!$A$2=1,IF(VLOOKUP("x",Turma!$B$4:$H$53,3,0)="Menina",mlsBMI!L163,mlsBMI!L331),"") -> 21.348 | G164: =IF(Turma!$A$2=1,IF(VLOOKUP("x",Turma!$B$4:$H$53,3,0)="Menina",mlsBMI!M163,mlsBMI!M331),"") -> 24.873 | H164: =IF(Turma!$A$2=1,IF(VLOOKUP("x",Turma!$B$4:$H$53,3,0)="Menina",mlsBMI!N163,mlsBMI!N331),"") -> 29.602 | I164: =IF(Turma!$A$2=1,IF(VLOOKUP("x",Turma!$B$4:$H$53,3,0)="Menina",mlsBMI!O163,mlsBMI!O331),"") -> 36.235
A165: 223 | C165: =IF(Turma!$A$2=1,IF(VLOOKUP("x",Turma!$B$4:$H$53,3,0)="Menina",mlsBMI!I164,mlsBMI!I332),"") -> 14.732 | D165: =IF(Turma!$A$2=1,IF(VLOOKUP("x",Turma!$B$4:$H$53,3,0)="Menina",mlsBMI!J164,mlsBMI!J332),"") -> 16.48 | E165: =IF(Turma!$A$2=1,IF(VLOOKUP("x",Turma!$B$4:$H$53,3,0)="Menina",mlsBMI!K164,mlsBMI!K332),"") -> 18.639 | F165: =IF(Turma!$A$2=1,IF(VLOOKUP("x",Turma!$B$4:$H$53,3,0)="Menina",mlsBMI!L164,mlsBMI!L332),"") -> 21.362 | G165: =IF(Turma!$A$2=1,IF(VLOOKUP("x",Turma!$B$4:$H$53,3,0)="Menina",mlsBMI!M164,mlsBMI!M332),"") -> 24.889 | H165: =IF(Turma!$A$2=1,IF(VLOOKUP("x",Turma!$B$4:$H$53,3,0)="Menina",mlsBMI!N164,mlsBMI!N332),"") -> 29.614 | I165: =IF(Turma!$A$2=1,IF(VLOOKUP("x",Turma!$B$4:$H$53,3,0)="Menina",mlsBMI!O164,mlsBMI!O332),"") -> 36.228
A166: 224 | C166: =IF(Turma!$A$2=1,IF(VLOOKUP("x",Turma!$B$4:$H$53,3,0)="Menina",mlsBMI!I165,mlsBMI!I333),"") -> 14.731 | D166: =IF(Turma!$A$2=1,IF(VLOOKUP("x",Turma!$B$4:$H$53,3,0)="Menina",mlsBMI!J165,mlsBMI!J333),"") -> 16.484 | E166: =IF(Turma!$A$2=1,IF(VLOOKUP("x",Turma!$B$4:$H$53,3,0)="Menina",mlsBMI!K165,mlsBMI!K333),"") -> 18.648 | F166: =IF(Turma!$A$2=1,IF(VLOOKUP("x",Turma!$B$4:$H$53,3,0)="Menina",mlsBMI!L165,mlsBMI!L333),"") -> 21.375 | G166: =IF(Turma!$A$2=1,IF(VLOOKUP("x",Turma!$B$4:$H$53,3,0)="Menina",mlsBMI!M165,mlsBMI!M333),"") -> 24.905 | H166: =IF(Turma!$A$2=1,IF(VLOOKUP("x",Turma!$B$4:$H$53,3,0)="Menina",mlsBMI!N165,mlsBMI!N333),"") -> 29.626 | I166: =IF(Turma!$A$2=1,IF(VLOOKUP("x",Turma!$B$4:$H$53,3,0)="Menina",mlsBMI!O165,mlsBMI!O333),"") -> 36.219
A167: 225 | C167: =IF(Turma!$A$2=1,IF(VLOOKUP("x",Turma!$B$4:$H$53,3,0)="Menina",mlsBMI!I166,mlsBMI!I334),"") -> 14.729 | D167: =IF(Turma!$A$2=1,IF(VLOOKUP("x",Turma!$B$4:$H$53,3,0)="Menina",mlsBMI!J166,mlsBMI!J334),"") -> 16.488 | E167: =IF(Turma!$A$2=1,IF(VLOOKUP("x",Turma!$B$4:$H$53,3,0)="Menina",mlsBMI!K166,mlsBMI!K334),"") -> 18.657 | F167: =IF(Turma!$A$2=1,IF(VLOOKUP("x",Turma!$B$4:$H$53,3,0)="Menina",mlsBMI!L166,mlsBMI!L334),"") -> 21.388 | G167: =IF(Turma!$A$2=1,IF(VLOOKUP("x",Turma!$B$4:$H$53,3,0)="Menina",mlsBMI!M166,mlsBMI!M334),"") -> 24.92 | H167: =IF(Turma!$A$2=1,IF(VLOOKUP("x",Turma!$B$4:$H$53,3,0)="Menina",mlsBMI!N166,mlsBMI!N334),"") -> 29.637 | I167: =IF(Turma!$A$2=1,IF(VLOOKUP("x",Turma!$B$4:$H$53,3,0)="Menina",mlsBMI!O166,mlsBMI!O334),"") -> 36.209
A168: 226 | C168: =IF(Turma!$A$2=1,IF(VLOOKUP("x",Turma!$B$4:$H$53,3,0)="Menina",mlsBMI!I167,mlsBMI!I335),"") -> 14.728 | D168: =IF(Turma!$A$2=1,IF(VLOOKUP("x",Turma!$B$4:$H$53,3,0)="Menina",mlsBMI!J167,mlsBMI!J335),"") -> 16.491 | E168: =IF(Turma!$A$2=1,IF(VLOOKUP("x",Turma!$B$4:$H$53,3,0)="Menina",mlsBMI!K167,mlsBMI!K335),"") -> 18.665 | F168: =IF(Turma!$A$2=1,IF(VLOOKUP("x",Turma!$B$4:$H$53,3,0)="Menina",mlsBMI!L167,mlsBMI!L335),"") -> 21.401 | G168: =IF(Turma!$A$2=1,IF(VLOOKUP("x",Turma!$B$4:$H$53,3,0)="Menina",mlsBMI!M167,mlsBMI!M335),"") -> 24.935 | H168: =IF(Turma!$A$2=1,IF(VLOOKUP("x",Turma!$B$4:$H$53,3,0)="Menina",mlsBMI!N167,mlsBMI!N335),"") -> 29.649 | I168: =IF(Turma!$A$2=1,IF(VLOOKUP("x",Turma!$B$4:$H$53,3,0)="Menina",mlsBMI!O167,mlsBMI!O335),"") -> 36.2
A169: 227 | C169: =IF(Turma!$A$2=1,IF(VLOOKUP("x",Turma!$B$4:$H$53,3,0)="Menina",mlsBMI!I168,mlsBMI!I336),"") -> 14.726 | D169: =IF(Turma!$A$2=1,IF(VLOOKUP("x",Turma!$B$4:$H$53,3,0)="Menina",mlsBMI!J168,mlsBMI!J336),"") -> 16.494 | E169: =IF(Turma!$A$2=1,IF(VLOOKUP("x",Turma!$B$4:$H$53,3,0)="Menina",mlsBMI!K168,mlsBMI!K336),"") -> 18.673 | F169: =IF(Turma!$A$2=1,IF(VLOOKUP("x",Turma!$B$4:$H$53,3,0)="Menina",mlsBMI!L168,mlsBMI!L336),"") -> 21.414 | G169: =IF(Turma!$A$2=1,IF(VLOOKUP("x",Turma!$B$4:$H$53,3,0)="Menina",mlsBMI!M168,mlsBMI!M336),"") -> 24.951 | H169: =IF(Turma!$A$2=1,IF(VLOOKUP("x",Turma!$B$4:$H$53,3,0)="Menina",mlsBMI!N168,mlsBMI!N336),"") -> 29.659 | I169: =IF(Turma!$A$2=1,IF(VLOOKUP("x",Turma!$B$4:$H$53,3,0)="Menina",mlsBMI!O168,mlsBMI!O336),"") -> 36.19
A170: 228 | B170: 19 | C170: =IF(Turma!$A$2=1,IF(VLOOKUP("x",Turma!$B$4:$H$53,3,0)="Menina",mlsBMI!I169,mlsBMI!I337),"") -> 14.724 | D170: =IF(Turma!$A$2=1,IF(VLOOKUP("x",Turma!$B$4:$H$53,3,0)="Menina",mlsBMI!J169,mlsBMI!J337),"") -> 16.497 | E170: =IF(Turma!$A$2=1,IF(VLOOKUP("x",Turma!$B$4:$H$53,3,0)="Menina",mlsBMI!K169,mlsBMI!K337),"") -> 18.681 | F170: =IF(Turma!$A$2=1,IF(VLOOKUP("x",Turma!$B$4:$H$53,3,0)="Menina",mlsBMI!L169,mlsBMI!L337),"") -> 21.427 | G170: =IF(Turma!$A$2=1,IF(VLOOKUP("x",Turma!$B$4:$H$53,3,0)="Menina",mlsBMI!M169,mlsBMI!M337),"") -> 24.965 | H170: =IF(Turma!$A$2=1,IF(VLOOKUP("x",Turma!$B$4:$H$53,3,0)="Menina",mlsBMI!N169,mlsBMI!N337),"") -> 29.67 | I170: =IF(Turma!$A$2=1,IF(VLOOKUP("x",Turma!$B$4:$H$53,3,0)="Menina",mlsBMI!O169,mlsBMI!O337),"") -> 36.179

Sheet mlsPeso (hidden)
A1: idLMS | B1: variavel | C1: genero | D1: meses | E1: L | F1: M | G1: S | H1: P01 | I1: P1 | J1: P3 | K1: P5 | L1: P10 | M1: P15 | N1: P25 | O1: P50 | P1: P75 | Q1: P85 | R1: P90 | S1: P95 | T1: P97 | U1: P99 | V1: P999
A2: 1 | B2: peso | C2: menina | D2: 61 | E2: -0.4681 | F2: 18.2579 | G2: 0.14295 | H2: 12.22 | I2: 13.404 | J2: 14.173 | K2: 14.607 | L2: 15.315 | M2: 15.821 | N2: 16.615 | O2: 18.258 | P2: 20.151 | Q2: 21.288 | R2: 22.112 | S2: 23.423 | T2: 24.336 | U2: 26.208 | V2: 29.949
A3: =A2+1 -> 2 | B3: peso | C3: menina | D3: 62 | E3: -0.4711 | F3: 18.4329 | G3: 0.1435 | H3: 12.322 | I3: 13.519 | J3: 14.297 | K3: 14.736 | L3: 15.452 | M3: 15.965 | N3: 16.768 | O3: 18.433 | P3: 20.352 | Q3: 21.506 | R3: 22.343 | S3: 23.674 | T3: 24.601 | U3: 26.505 | V3: 30.313
A4: =A3+1 -> 3 | B4: peso | C4: menina | D4: 63 | E4: -0.4742 | F4: 18.6073 | G4: 0.14404 | H4: 12.425 | I4: 13.634 | J4: 14.421 | K4: 14.865 | L4: 15.589 | M4: 16.108 | N4: 16.921 | O4: 18.607 | P4: 20.553 | Q4: 21.723 | R4: 22.573 | S4: 23.924 | T4: 24.866 | U4: 26.802 | V4: 30.677
A5: =A4+1 -> 4 | B5: peso | C5: menina | D5: 64 | E5: -0.4773 | F5: 18.7811 | G5: 0.14459 | H5: 12.526 | I5: 13.748 | J5: 14.544 | K5: 14.993 | L5: 15.726 | M5: 16.25 | N5: 17.074 | O5: 18.781 | P5: 20.754 | Q5: 21.941 | R5: 22.802 | S5: 24.174 | T5: 25.132 | U5: 27.099 | V5: 31.044
A6: 5 | B6: peso | C6: menina | D6: 65 | E6: -0.4803 | F6: 18.9545 | G6: 0.14514 | H6: 12.627 | I6: 13.862 | J6: 14.666 | K6: 15.12 | L6: 15.861 | M6: 16.392 | N6: 17.225 | O6: 18.954 | P6: 20.954 | Q6: 22.158 | R6: 23.032 | S6: 24.425 | T6: 25.398 | U6: 27.397 | V6: 31.411
A7: 6 | B7: peso | C7: menina | D7: 66 | E7: -0.4834 | F7: 19.1276 | G7: 0.14569 | H7: 12.728 | I7: 13.975 | J7: 14.788 | K7: 15.247 | L7: 15.997 | M7: 16.534 | N7: 17.377 | O7: 19.128 | P7: 21.154 | Q7: 22.375 | R7: 23.262 | S7: 24.676 | T7: 25.664 | U7: 27.696 | V7: 31.781
A8: 7 | B8: peso | C8: menina | D8: 67 | E8: -0.4864 | F8: 19.3004 | G8: 0.14624 | H8: 12.828 | I8: 14.088 | J8: 14.909 | K8: 15.373 | L8: 16.131 | M8: 16.675 | N8: 17.528 | O8: 19.3 | P8: 21.353 | Q8: 22.591 | R8: 23.492 | S8: 24.927 | T8: 25.93 | U8: 27.995 | V8: 32.151
A9: 8 | B9: peso | C9: menina | D9: 68 | E9: -0.4894 | F9: 19.473 | G9: 0.14679 | H9: 12.928 | I9: 14.2 | J9: 15.03 | K9: 15.5 | L9: 16.266 | M9: 16.815 | N9: 17.678 | O9: 19.473 | P9: 21.553 | Q9: 22.808 | R9: 23.721 | S9: 25.178 | T9: 26.197 | U9: 28.295 | V9: 32.523
A10: 9 | B10: peso | C10: menina | D10: 69 | E10: -0.4924 | F10: 19.6455 | G10: 0.14735 | H10: 13.027 | I10: 14.312 | J10: 15.151 | K10: 15.625 | L10: 16.4 | M10: 16.956 | N10: 17.829 | O10: 19.646 | P10: 21.753 | Q10: 23.026 | R10: 23.952 | S10: 25.43 | T10: 26.465 | U10: 28.597 | V10: 32.899
A11: 10 | B11: peso | C11: menina | D11: 70 | E11: -0.4954 | F11: 19.818 | G11: 0.1479 | H11: 13.126 | I11: 14.424 | J11: 15.272 | K11: 15.751 | L11: 16.534 | M11: 17.096 | N11: 17.979 | O11: 19.818 | P11: 21.953 | Q11: 23.243 | R11: 24.183 | S11: 25.683 | T11: 26.733 | U11: 28.899 | V11: 33.275
A12: 11 | B12: peso | C12: menina | D12: 71 | E12: -0.4984 | F12: 19.9908 | G12: 0.14845 | H12: 13.225 | I12: 14.536 | J12: 15.392 | K12: 15.877 | L12: 16.668 | M12: 17.236 | N12: 18.13 | O12: 19.991 | P12: 22.153 | Q12: 23.461 | R12: 24.414 | S12: 25.936 | T12: 27.002 | U12: 29.203 | V12: 33.654
A13: 12 | B13: peso | C13: menina | D13: 72 | E13: -0.5013 | F13: 20.1639 | G13: 0.149 | H13: 13.325 | I13: 14.648 | J13: 15.513 | K13: 16.002 | L13: 16.803 | M13: 17.377 | N13: 18.281 | O13: 20.164 | P13: 22.354 | Q13: 23.68 | R13: 24.646 | S13: 26.19 | T13: 27.273 | U13: 29.508 | V13: 34.035
A14: 13 | B14: peso | C14: menina | D14: 73 | E14: -0.5043 | F14: 20.3377 | G14: 0.14955 | H14: 13.424 | I14: 14.76 | J14: 15.634 | K14: 16.129 | L14: 16.937 | M14: 17.518 | N14: 18.432 | O14: 20.338 | P14: 22.556 | Q14: 23.9 | R14: 24.879 | S14: 26.446 | T14: 27.545 | U14: 29.815 | V14: 34.42
A15: 14 | B15: peso | C15: menina | D15: 74 | E15: -0.5072 | F15: 20.5124 | G15: 0.1501 | H15: 13.524 | I15: 14.873 | J15: 15.756 | K15: 16.255 | L15: 17.073 | M15: 17.66 | N15: 18.584 | O15: 20.512 | P15: 22.759 | Q15: 24.121 | R15: 25.114 | S15: 26.704 | T15: 27.819 | U15: 30.125 | V15: 34.808
A16: 15 | B16: peso | C16: menina | D16: 75 | E16: -0.51 | F16: 20.6885 | G16: 0.15065 | H16: 13.624 | I16: 14.986 | J16: 15.878 | K16: 16.383 | L16: 17.209 | M16: 17.803 | N16: 18.737 | O16: 20.688 | P16: 22.964 | Q16: 24.344 | R16: 25.351 | S16: 26.964 | T16: 28.095 | U16: 30.438 | V16: 35.201
A17: 16 | B17: peso | C17: menina | D17: 76 | E17: -0.5129 | F17: 20.8661 | G17: 0.1512 | H17: 13.726 | I17: 15.101 | J17: 16.001 | K17: 16.511 | L17: 17.346 | M17: 17.947 | N17: 18.892 | O17: 20.866 | P17: 23.17 | Q17: 24.569 | R17: 25.59 | S17: 27.226 | T17: 28.375 | U17: 30.754 | V17: 35.598
A18: 17 | B18: peso | C18: menina | D18: 77 | E18: -0.5157 | F18: 21.0457 | G18: 0.15175 | H18: 13.828 | I18: 15.216 | J18: 16.126 | K18: 16.641 | L18: 17.485 | M18: 18.092 | N18: 19.048 | O18: 21.046 | P18: 23.379 | Q18: 24.797 | R18: 25.832 | S18: 27.492 | T18: 28.658 | U18: 31.074 | V18: 36.001
A19: 18 | B19: peso | C19: menina | D19: 78 | E19: -0.5185 | F19: 21.2274 | G19: 0.1523 | H19: 13.932 | I19: 15.333 | J19: 16.252 | K19: 16.773 | L19: 17.626 | M19: 18.239 | N19: 19.206 | O19: 21.227 | P19: 23.591 | Q19: 25.028 | R19: 26.077 | S19: 27.761 | T19: 28.945 | U19: 31.399 | V19: 36.41
A20: 19 | B20: peso | C20: menina | D20: 79 | E20: -0.5213 | F20: 21.4113 | G20: 0.15284 | H20: 14.037 | I20: 15.452 | J20: 16.38 | K20: 16.906 | L20: 17.768 | M20: 18.388 | N20: 19.366 | O20: 21.411 | P20: 23.805 | Q20: 25.261 | R20: 26.325 | S20: 28.033 | T20: 29.234 | U20: 31.727 | V20: 36.823
A21: 20 | B21: peso | C21: menina | D21: 80 | E21: -0.524 | F21: 21.5979 | G21: 0.15339 | H21: 14.143 | I21: 15.572 | J21: 16.509 | K21: 17.041 | L21: 17.912 | M21: 18.539 | N21: 19.528 | O21: 21.598 | P21: 24.022 | Q21: 25.498 | R21: 26.577 | S21: 28.31 | T21: 29.529 | U21: 32.061 | V21: 37.244
A22: 21 | B22: peso | C22: menina | D22: 81 | E22: -0.5268 | F22: 21.7872 | G22: 0.15393 | H22: 14.251 | I22: 15.694 | J22: 16.641 | K22: 17.178 | L22: 18.059 | M22: 18.693 | N22: 19.693 | O22: 21.787 | P22: 24.242 | Q22: 25.738 | R22: 26.832 | S22: 28.59 | T22: 29.828 | U22: 32.4 | V22: 37.672
A23: 22 | B23: peso | C23: menina | D23: 82 | E23: -0.5294 | F23: 21.9795 | G23: 0.15448 | H23: 14.361 | I23: 15.818 | J23: 16.774 | K23: 17.317 | L23: 18.208 | M23: 18.848 | N23: 19.86 | O23: 21.98 | P23: 24.466 | Q23: 25.982 | R23: 27.092 | S23: 28.876 | T23: 30.132 | U23: 32.745 | V23: 38.107
A24: 23 | B24: peso | C24: menina | D24: 83 | E24: -0.5321 | F24: 22.1751 | G24: 0.15502 | H24: 14.473 | I24: 15.944 | J24: 16.91 | K24: 17.459 | L24: 18.359 | M24: 19.007 | N24: 20.03 | O24: 22.175 | P24: 24.694 | Q24: 26.231 | R24: 27.356 | S24: 29.166 | T24: 30.441 | U24: 33.095 | V24: 38.55
A25: 24 | B25: peso | C25: menina | D25: 84 | E25: -0.5347 | F25: 22.374 | G25: 0.15556 | H25: 14.586 | I25: 16.072 | J25: 17.049 | K25: 17.603 | L25: 18.513 | M25: 19.168 | N25: 20.203 | O25: 22.374 | P25: 24.925 | Q25: 26.483 | R25: 27.625 | S25: 29.461 | T25: 30.755 | U25: 33.451 | V25: 39
A26: 25 | B26: peso | C26: menina | D26: 85 | E26: -0.5372 | F26: 22.5762 | G26: 0.1561 | H26: 14.702 | I26: 16.202 | J26: 17.189 | K26: 17.75 | L26: 18.669 | M26: 19.332 | N26: 20.378 | O26: 22.576 | P26: 25.161 | Q26: 26.74 | R26: 27.897 | S26: 29.761 | T26: 31.075 | U26: 33.814 | V26: 39.458
A27: 26 | B27: peso | C27: menina | D27: 86 | E27: -0.5398 | F27: 22.7816 | G27: 0.15663 | H27: 14.819 | I27: 16.335 | J27: 17.332 | K27: 17.899 | L27: 18.829 | M27: 19.499 | N27: 20.557 | O27: 22.782 | P27: 25.4 | Q27: 27 | R27: 28.174 | S27: 30.065 | T27: 31.399 | U27: 34.182 | V27: 39.923
A28: 27 | B28: peso | C28: menina | D28: 87 | E28: -0.5423 | F28: 22.9904 | G28: 0.15717 | H28: 14.939 | I28: 16.47 | J28: 17.477 | K28: 18.05 | L28: 18.99 | M28: 19.668 | N28: 20.739 | O28: 22.99 | P28: 25.643 | Q28: 27.265 | R28: 28.456 | S28: 30.375 | T28: 31.73 | U28: 34.557 | V28: 40.398
A29: 28 | B29: peso | C29: menina | D29: 88 | E29: -0.5447 | F29: 23.2025 | G29: 0.1577 | H29: 15.06 | I29: 16.607 | J29: 17.625 | K29: 18.204 | L29: 19.154 | M29: 19.84 | N29: 20.923 | O29: 23.202 | P29: 25.889 | Q29: 27.535 | R29: 28.742 | S29: 30.689 | T29: 32.065 | U29: 34.937 | V29: 40.879
A30: 29 | B30: peso | C30: menina | D30: 89 | E30: -0.5471 | F30: 23.418 | G30: 0.15823 | H30: 15.183 | I30: 16.746 | J30: 17.775 | K30: 18.36 | L30: 19.321 | M30: 20.014 | N30: 21.111 | O30: 23.418 | P30: 26.14 | Q30: 27.808 | R30: 29.033 | S30: 31.009 | T30: 32.406 | U30: 35.323 | V30: 41.369
A31: 30 | B31: peso | C31: menina | D31: 90 | E31: -0.5495 | F31: 23.6369 | G31: 0.15876 | H31: 15.309 | I31: 16.887 | J31: 17.927 | K31: 18.519 | L31: 19.491 | M31: 20.192 | N31: 21.301 | O31: 23.637 | P31: 26.395 | Q31: 28.086 | R31: 29.329 | S31: 31.334 | T31: 32.752 | U31: 35.716 | V31: 41.867
A32: 31 | B32: peso | C32: menina | D32: 91 | E32: -0.5518 | F32: 23.8593 | G32: 0.15928 | H32: 15.436 | I32: 17.031 | J32: 18.082 | K32: 18.68 | L32: 19.663 | M32: 20.372 | N32: 21.495 | O32: 23.859 | P32: 26.654 | Q32: 28.368 | R32: 29.629 | S32: 31.663 | T32: 33.103 | U32: 36.115 | V32: 42.372
A33: 32 | B33: peso | C33: menina | D33: 92 | E33: -0.5541 | F33: 24.0853 | G33: 0.1598 | H33: 15.566 | I33: 17.177 | J33: 18.24 | K33: 18.844 | L33: 19.838 | M33: 20.556 | N33: 21.691 | O33: 24.085 | P33: 26.916 | Q33: 28.655 | R33: 29.933 | S33: 31.998 | T33: 33.46 | U33: 36.52 | V33: 42.886
A34: 33 | B34: peso | C34: menina | D34: 93 | E34: -0.5563 | F34: 24.3149 | G34: 0.16032 | H34: 15.698 | I34: 17.326 | J34: 18.4 | K34: 19.011 | L34: 20.016 | M34: 20.742 | N34: 21.891 | O34: 24.315 | P34: 27.184 | Q34: 28.946 | R34: 30.243 | S34: 32.339 | T34: 33.823 | U34: 36.932 | V34: 43.409
A35: 34 | B35: peso | C35: menina | D35: 94 | E35: -0.5585 | F35: 24.5482 | G35: 0.16084 | H35: 15.832 | I35: 17.476 | J35: 18.562 | K35: 19.18 | L35: 20.197 | M35: 20.931 | N35: 22.094 | O35: 24.548 | P35: 27.455 | Q35: 29.242 | R35: 30.558 | S35: 32.685 | T35: 34.192 | U35: 37.352 | V35: 43.941
A36: 35 | B36: peso | C36: menina | D36: 95 | E36: -0.5606 | F36: 24.7853 | G36: 0.16135 | H36: 15.968 | I36: 17.63 | J36: 18.728 | K36: 19.353 | L36: 20.381 | M36: 21.124 | N36: 22.301 | O36: 24.785 | P36: 27.731 | Q36: 29.543 | R36: 30.878 | S36: 33.036 | T36: 34.567 | U36: 37.777 | V36: 44.48
A37: 36 | B37: peso | C37: menina | D37: 96 | E37: -0.5627 | F37: 25.0262 | G37: 0.16186 | H37: 16.106 | I37: 17.786 | J37: 18.896 | K37: 19.528 | L37: 20.568 | M37: 21.319 | N37: 22.51 | O37: 25.026 | P37: 28.011 | Q37: 29.849 | R37: 31.202 | S37: 33.393 | T37: 34.947 | U37: 38.209 | V37: 45.029
A38: 37 | B38: peso | C38: menina | D38: 97 | E38: -0.5647 | F38: 25.271 | G38: 0.16237 | H38: 16.247 | I38: 17.944 | J38: 19.066 | K38: 19.706 | L38: 20.758 | M38: 21.518 | N38: 22.723 | O38: 25.271 | P38: 28.296 | Q38: 30.159 | R38: 31.533 | S38: 33.756 | T38: 35.334 | U38: 38.648 | V38: 45.588
A39: 38 | B39: peso | C39: menina | D39: 98 | E39: -0.5667 | F39: 25.5197 | G39: 0.16287 | H39: 16.39 | I39: 18.105 | J39: 19.24 | K39: 19.886 | L39: 20.951 | M39: 21.72 | N39: 22.94 | O39: 25.52 | P39: 28.585 | Q39: 30.474 | R39: 31.868 | S39: 34.124 | T39: 35.727 | U39: 39.094 | V39: 46.154
A40: 39 | B40: peso | C40: menina | D40: 99 | E40: -0.5686 | F40: 25.7721 | G40: 0.16337 | H40: 16.535 | I40: 18.269 | J40: 19.416 | K40: 20.07 | L40: 21.147 | M40: 21.925 | N40: 23.16 | O40: 25.772 | P40: 28.878 | Q40: 30.794 | R40: 32.208 | S40: 34.498 | T40: 36.126 | U40: 39.547 | V40: 46.729
A41: 40 | B41: peso | C41: menina | D41: 100 | E41: -0.5704 | F41: 26.0284 | G41: 0.16386 | H41: 16.682 | I41: 18.435 | J41: 19.595 | K41: 20.256 | L41: 21.346 | M41: 22.133 | N41: 23.383 | O41: 26.028 | P41: 29.176 | Q41: 31.119 | R41: 32.553 | S41: 34.877 | T41: 36.53 | U41: 40.006 | V41: 47.311
A42: 41 | B42: peso | C42: menina | D42: 101 | E42: -0.5722 | F42: 26.2883 | G42: 0.16435 | H42: 16.832 | I42: 18.604 | J42: 19.777 | K42: 20.446 | L42: 21.547 | M42: 22.345 | N42: 23.609 | O42: 26.288 | P42: 29.478 | Q42: 31.448 | R42: 32.903 | S42: 35.262 | T42: 36.94 | U42: 40.471 | V42: 47.903
A43: 42 | B43: peso | C43: menina | D43: 102 | E43: -0.574 | F43: 26.5519 | G43: 0.16483 | H43: 16.984 | I43: 18.775 | J43: 19.961 | K43: 20.638 | L43: 21.752 | M43: 22.559 | N43: 23.839 | O43: 26.552 | P43: 29.784 | Q43: 31.782 | R43: 33.258 | S43: 35.652 | T43: 37.355 | U43: 40.943 | V43: 48.502
A44: 43 | B44: peso | C44: menina | D44: 103 | E44: -0.5757 | F44: 26.819 | G44: 0.16532 | H44: 17.137 | I44: 18.948 | J44: 20.147 | K44: 20.832 | L44: 21.96 | M44: 22.776 | N44: 24.072 | O44: 26.819 | P44: 30.095 | Q44: 32.121 | R44: 33.618 | S44: 36.048 | T44: 37.778 | U44: 41.423 | V44: 49.112
A45: 44 | B45: peso | C45: menina | D45: 104 | E45: -0.5773 | F45: 27.0896 | G45: 0.16579 | H45: 17.293 | I45: 19.124 | J45: 20.337 | K45: 21.029 | L45: 22.17 | M45: 22.996 | N45: 24.308 | O45: 27.09 | P45: 30.409 | Q45: 32.463 | R45: 33.982 | S45: 36.448 | T45: 38.204 | U45: 41.907 | V45: 49.727
A46: 45 | B46: peso | C46: menina | D46: 105 | E46: -0.5789 | F46: 27.3635 | G46: 0.16626 | H46: 17.451 | I46: 19.302 | J46: 20.528 | K46: 21.228 | L46: 22.383 | M46: 23.219 | N46: 24.546 | O46: 27.364 | P46: 30.727 | Q46: 32.81 | R46: 34.35 | S46: 36.853 | T46: 38.636 | U46: 42.397 | V46: 50.35
A47: 46 | B47: peso | C47: menina | D47: 106 | E47: -0.5804 | F47: 27.6406 | G47: 0.16673 | H47: 17.611 | I47: 19.481 | J47: 20.722 | K47: 21.43 | L47: 22.598 | M47: 23.444 | N47: 24.788 | O47: 27.641 | P47: 31.049 | Q47: 33.161 | R47: 34.724 | S47: 37.263 | T47: 39.073 | U47: 42.894 | V47: 50.981
A48: 47 | B48: peso | C48: menina | D48: 107 | E48: -0.5819 | F48: 27.9208 | G48: 0.16719 | H48: 17.772 | I48: 19.663 | J48: 20.918 | K48: 21.634 | L48: 22.816 | M48: 23.672 | N48: 25.032 | O48: 27.921 | P48: 31.375 | Q48: 33.516 | R48: 35.101 | S48: 37.677 | T48: 39.514 | U48: 43.395 | V48: 51.619
A49: 48 | B49: peso | C49: menina | D49: 108 | E49: -0.5833 | F49: 28.204 | G49: 0.16764 | H49: 17.936 | I49: 19.847 | J49: 21.116 | K49: 21.841 | L49: 23.036 | M49: 23.902 | N49: 25.279 | O49: 28.204 | P49: 31.704 | Q49: 33.874 | R49: 35.481 | S49: 38.095 | T49: 39.96 | U49: 43.901 | V49: 52.263
A50: 49 | B50: peso | C50: menina | D50: 109 | E50: -0.5847 | F50: 28.4901 | G50: 0.16809 | H50: 18.101 | I50: 20.033 | J50: 21.316 | K50: 22.049 | L50: 23.258 | M50: 24.135 | N50: 25.528 | O50: 28.49 | P50: 32.036 | Q50: 34.237 | R50: 35.866 | S50: 38.518 | T50: 40.411 | U50: 44.413 | V50: 52.914
A51: 50 | B51: peso | C51: menina | D51: 110 | E51: -0.5859 | F51: 28.7791 | G51: 0.16854 | H51: 18.267 | I51: 20.221 | J51: 21.518 | K51: 22.259 | L51: 23.483 | M51: 24.37 | N51: 25.78 | O51: 28.779 | P51: 32.372 | Q51: 34.603 | R51: 36.255 | S51: 38.946 | T51: 40.867 | U51: 44.931 | V51: 53.572
A52: 51 | B52: peso | C52: menina | D52: 111 | E52: -0.5872 | F52: 29.0711 | G52: 0.16897 | H52: 18.436 | I52: 20.411 | J52: 21.723 | K52: 22.473 | L52: 23.71 | M52: 24.607 | N52: 26.035 | O52: 29.071 | P52: 32.711 | Q52: 34.972 | R52: 36.648 | S52: 39.377 | T52: 41.326 | U52: 45.452 | V52: 54.235
A53: 52 | B53: peso | C53: menina | D53: 112 | E53: -0.5883 | F53: 29.3663 | G53: 0.16941 | H53: 18.606 | I53: 20.602 | J53: 21.929 | K53: 22.687 | L53: 23.939 | M53: 24.847 | N53: 26.292 | O53: 29.366 | P53: 33.054 | Q53: 35.346 | R53: 37.045 | S53: 39.813 | T53: 41.791 | U53: 45.98 | V53: 54.906
A54: 53 | B54: peso | C54: menina | D54: 113 | E54: -0.5895 | F54: 29.6646 | G54: 0.16983 | H54: 18.778 | I54: 20.797 | J54: 22.138 | K54: 22.905 | L54: 24.172 | M54: 25.09 | N54: 26.552 | O54: 29.665 | P54: 33.4 | Q54: 35.723 | R54: 37.445 | S54: 40.253 | T54: 42.26 | U54: 46.513 | V54: 55.583
A55: 54 | B55: peso | C55: menina | D55: 114 | E55: -0.5905 | F55: 29.9663 | G55: 0.17025 | H55: 18.952 | I55: 20.993 | J55: 22.349 | K55: 23.125 | L55: 24.406 | M55: 25.336 | N55: 26.815 | O55: 29.966 | P55: 33.75 | Q55: 36.104 | R55: 37.851 | S55: 40.698 | T55: 42.734 | U55: 47.051 | V55: 56.267
A56: 55 | B56: peso | C56: menina | D56: 115 | E56: -0.5915 | F56: 30.2715 | G56: 0.17066 | H56: 19.129 | I56: 21.191 | J56: 22.563 | K56: 23.348 | L56: 24.644 | M56: 25.584 | N56: 27.081 | O56: 30.272 | P56: 34.104 | Q56: 36.49 | R56: 38.26 | S56: 41.148 | T56: 43.214 | U56: 47.595 | V56: 56.957
A57: 56 | B57: peso | C57: menina | D57: 116 | E57: -0.5925 | F57: 30.5805 | G57: 0.17107 | H57: 19.307 | I57: 21.392 | J57: 22.78 | K57: 23.573 | L57: 24.884 | M57: 25.836 | N57: 27.351 | O57: 30.58 | P57: 34.463 | Q57: 36.881 | R57: 38.675 | S57: 41.604 | T57: 43.699 | U57: 48.146 | V57: 57.658
A58: 57 | B58: peso | C58: menina | D58: 117 | E58: -0.5934 | F58: 30.8934 | G58: 0.17146 | H58: 19.488 | I58: 21.597 | J58: 22.999 | K58: 23.802 | L58: 25.128 | M58: 26.091 | N58: 27.624 | O58: 30.893 | P58: 34.826 | Q58: 37.275 | R58: 39.095 | S58: 42.064 | T58: 44.189 | U58: 48.701 | V58: 58.363
A59: 58 | B59: peso | C59: menina | D59: 118 | E59: -0.5942 | F59: 31.2105 | G59: 0.17186 | H59: 19.672 | I59: 21.803 | J59: 23.222 | K59: 24.033 | L59: 25.375 | M59: 26.349 | N59: 27.901 | O59: 31.21 | P59: 35.193 | Q59: 37.676 | R59: 39.52 | S59: 42.531 | T59: 44.687 | U59: 49.266 | V59: 59.079
A60: 59 | B60: peso | C60: menina | D60: 119 | E60: -0.595 | F60: 31.5319 | G60: 0.17224 | H60: 19.858 | I60: 22.013 | J60: 23.447 | K60: 24.269 | L60: 25.626 | M60: 26.611 | N60: 28.181 | O60: 31.532 | P60: 35.566 | Q60: 38.081 | R60: 39.95 | S60: 43.003 | T60: 45.19 | U60: 49.835 | V60: 59.801
A61: 60 | B61: peso | C61: menina | D61: 120 | E61: -0.5958 | F61: 31.8578 | G61: 0.17262 | H61: 20.047 | I61: 22.226 | J61: 23.676 | K61: 24.507 | L61: 25.88 | M61: 26.877 | N61: 28.466 | O61: 31.858 | P61: 35.943 | Q61: 38.493 | R61: 40.387 | S61: 43.482 | T61: 45.7 | U61: 50.414 | V61: 60.535
A62: 61 | B62: peso | C62: menino | D62: 61 | E62: -0.2026 | F62: 18.5057 | G62: 0.12988 | H62: 12.581 | I62: 13.802 | J62: 14.58 | K62: 15.013 | L62: 15.711 | M62: 16.204 | N62: 16.967 | O62: 18.506 | P62: 20.216 | Q62: 21.212 | R62: 21.92 | S62: 23.023 | T62: 23.774 | U62: 25.276 | V62: 28.126
A63: 62 | B63: peso | C63: menino | D63: 62 | E63: -0.213 | F63: 18.6802 | G63: 0.13028 | H63: 12.695 | I63: 13.926 | J63: 14.711 | K63: 15.149 | L63: 15.854 | M63: 16.352 | N63: 17.123 | O63: 18.68 | P63: 20.413 | Q63: 21.423 | R63: 22.142 | S63: 23.262 | T63: 24.026 | U63: 25.553 | V63: 28.456
A64: 63 | B64: peso | C64: menino | D64: 63 | E64: -0.2234 | F64: 18.8563 | G64: 0.13067 | H64: 12.81 | I64: 14.052 | J64: 14.844 | K64: 15.286 | L64: 15.998 | M64: 16.501 | N64: 17.28 | O64: 18.856 | P64: 20.612 | Q64: 21.636 | R64: 22.366 | S64: 23.503 | T64: 24.279 | U64: 25.833 | V64: 28.79
A65: 64 | B65: peso | C65: menino | D65: 64 | E65: -0.2338 | F65: 19.034 | G65: 0.13105 | H65: 12.927 | I65: 14.179 | J65: 14.978 | K65: 15.424 | L65: 16.143 | M65: 16.652 | N65: 17.439 | O65: 19.034 | P65: 20.812 | Q65: 21.851 | R65: 22.591 | S65: 23.746 | T65: 24.535 | U65: 26.115 | V65: 29.127
A66: 65 | B66: peso | C66: menino | D66: 65 | E66: -0.2443 | F66: 19.2132 | G66: 0.13142 | H66: 13.045 | I66: 14.307 | J66: 15.114 | K66: 15.564 | L66: 16.29 | M66: 16.804 | N66: 17.6 | O66: 19.213 | P66: 21.015 | Q66: 22.068 | R66: 22.819 | S66: 23.991 | T66: 24.793 | U66: 26.4 | V66: 29.468
A67: 66 | B67: peso | C67: menino | D67: 66 | E67: -0.2548 | F67: 19.394 | G67: 0.13178 | H67: 13.164 | I67: 14.437 | J67: 15.251 | K67: 15.705 | L67: 16.438 | M67: 16.957 | N67: 17.762 | O67: 19.394 | P67: 21.218 | Q67: 22.286 | R67: 23.048 | S67: 24.238 | T67: 25.053 | U67: 26.687 | V67: 29.812
A68: 67 | B68: peso | C68: menino | D68: 67 | E68: -0.2653 | F68: 19.5765 | G68: 0.13213 | H68: 13.285 | I68: 14.568 | J68: 15.389 | K68: 15.848 | L68: 16.588 | M68: 17.113 | N68: 17.926 | O68: 19.576 | P68: 21.424 | Q68: 22.507 | R68: 23.28 | S68: 24.488 | T68: 25.315 | U68: 26.977 | V68: 30.159
A69: =A68+1 -> 68 | B69: peso | C69: menino | D69: 68 | E69: -0.2758 | F69: 19.7607 | G69: 0.13246 | H69: 13.408 | I69: 14.701 | J69: 15.53 | K69: 15.992 | L69: 16.74 | M69: 17.27 | N69: 18.091 | O69: 19.761 | P69: 21.632 | Q69: 22.729 | R69: 23.513 | S69: 24.739 | T69: 25.58 | U69: 27.268 | V69: 30.509
A70: 69 | B70: peso | C70: menino | D70: 69 | E70: -0.2864 | F70: 19.9468 | G70: 0.13279 | H70: 13.532 | I70: 14.836 | J70: 15.672 | K70: 16.139 | L70: 16.893 | M70: 17.428 | N70: 18.259 | O70: 19.947 | P70: 21.841 | Q70: 22.954 | R70: 23.749 | S70: 24.994 | T70: 25.847 | U70: 27.564 | V70: 30.865
A71: 70 | B71: peso | C71: menino | D71: 70 | E71: -0.2969 | F71: 20.1344 | G71: 0.13311 | H71: 13.658 | I71: 14.972 | J71: 15.815 | K71: 16.286 | L71: 17.048 | M71: 17.588 | N71: 18.427 | O71: 20.134 | P71: 22.053 | Q71: 23.18 | R71: 23.986 | S71: 25.25 | T71: 26.117 | U71: 27.862 | V71: 31.223
A72: 71 | B72: peso | C72: menino | D72: 71 | E72: -0.3075 | F72: 20.3235 | G72: 0.13342 | H72: 13.785 | I72: 15.11 | J72: 15.959 | K72: 16.435 | L72: 17.204 | M72: 17.749 | N72: 18.597 | O72: 20.324 | P72: 22.265 | Q72: 23.408 | R72: 24.226 | S72: 25.508 | T72: 26.388 | U72: 28.162 | V72: 31.584
A73: 72 | B73: peso | C73: menino | D73: 72 | E73: -0.318 | F73: 20.5137 | G73: 0.13372 | H73: 13.913 | I73: 15.248 | J73: 16.105 | K73: 16.585 | L73: 17.361 | M73: 17.912 | N73: 18.768 | O73: 20.514 | P73: 22.48 | Q73: 23.637 | R73: 24.467 | S73: 25.767 | T73: 26.661 | U73: 28.464 | V73: 31.948
A74: 73 | B74: peso | C74: menino | D74: 73 | E74: -0.3285 | F74: 20.7052 | G74: 0.13402 | H74: 14.042 | I74: 15.388 | J74: 16.252 | K74: 16.736 | L74: 17.519 | M74: 18.076 | N74: 18.941 | O74: 20.705 | P74: 22.695 | Q74: 23.868 | R74: 24.709 | S74: 26.029 | T74: 26.937 | U74: 28.769 | V74: 32.316
A75: 74 | B75: peso | C75: menino | D75: 74 | E75: -0.339 | F75: 20.8979 | G75: 0.13432 | H75: 14.172 | I75: 15.528 | J75: 16.4 | K75: 16.888 | L75: 17.678 | M75: 18.24 | N75: 19.114 | O75: 20.898 | P75: 22.912 | Q75: 24.101 | R75: 24.953 | S75: 26.293 | T75: 27.215 | U75: 29.077 | V75: 32.688
A76: 75 | B76: peso | C76: menino | D76: 75 | E76: -0.3494 | F76: 21.0918 | G76: 0.13462 | H76: 14.303 | I76: 15.669 | J76: 16.548 | K76: 17.041 | L76: 17.839 | M76: 18.406 | N76: 19.288 | O76: 21.092 | P76: 23.131 | Q76: 24.335 | R76: 25.2 | S76: 26.558 | T76: 27.494 | U76: 29.387 | V76: 33.063
A77: 76 | B77: peso | C77: menino | D77: 76 | E77: -0.3598 | F77: 21.287 | G77: 0.13493 | H77: 14.434 | I77: 15.811 | J77: 16.697 | K77: 17.194 | L77: 17.999 | M77: 18.572 | N77: 19.464 | O77: 21.287 | P77: 23.351 | Q77: 24.571 | R77: 25.448 | S77: 26.827 | T77: 27.777 | U77: 29.701 | V77: 33.444
A78: 77 | B78: peso | C78: menino | D78: 77 | E78: -0.3701 | F78: 21.4833 | G78: 0.13523 | H78: 14.566 | I78: 15.954 | J78: 16.848 | K78: 17.349 | L78: 18.161 | M78: 18.739 | N78: 19.64 | O78: 21.483 | P78: 23.572 | Q78: 24.809 | R78: 25.697 | S78: 27.096 | T78: 28.061 | U78: 30.016 | V78: 33.827
A79: 78 | B79: peso | C79: menino | D79: 78 | E79: -0.3804 | F79: 21.681 | G79: 0.13554 | H79: 14.699 | I79: 16.097 | J79: 16.999 | K79: 17.504 | L79: 18.324 | M79: 18.908 | N79: 19.818 | O79: 21.681 | P79: 23.795 | Q79: 25.048 | R79: 25.949 | S79: 27.369 | T79: 28.349 | U79: 30.336 | V79: 34.216
A80: 79 | B80: peso | C80: menino | D80: 79 | E80: -0.3906 | F80: 21.8799 | G80: 0.13586 | H80: 14.832 | I80: 16.241 | J80: 17.15 | K80: 17.66 | L80: 18.488 | M80: 19.077 | N80: 19.996 | O80: 21.88 | P80: 24.02 | Q80: 25.29 | R80: 26.203 | S80: 27.644 | T80: 28.639 | U80: 30.658 | V80: 34.61
A81: 80 | B81: peso | C81: menino | D81: 80 | E81: -0.4007 | F81: 22.08 | G81: 0.13618 | H81: 14.966 | I81: 16.386 | J81: 17.303 | K81: 17.817 | L81: 18.653 | M81: 19.247 | N81: 20.176 | O81: 22.08 | P81: 24.246 | Q81: 25.533 | R81: 26.459 | S81: 27.921 | T81: 28.931 | U81: 30.984 | V81: 35.007
A82: 81 | B82: peso | C82: menino | D82: 81 | E82: -0.4107 | F82: 22.2813 | G82: 0.13652 | H82: 15.1 | I82: 16.531 | J82: 17.455 | K82: 17.974 | L82: 18.818 | M82: 19.418 | N82: 20.356 | O82: 22.281 | P82: 24.474 | Q82: 25.778 | R82: 26.717 | S82: 28.201 | T82: 29.227 | U82: 31.314 | V82: 35.411
A83: 82 | B83: peso | C83: menino | D83: 82 | E83: -0.4207 | F83: 22.4837 | G83: 0.13686 | H83: 15.234 | I83: 16.676 | J83: 17.609 | K83: 18.133 | L83: 18.983 | M83: 19.59 | N83: 20.537 | O83: 22.484 | P83: 24.703 | Q83: 26.025 | R83: 26.977 | S83: 28.483 | T83: 29.525 | U83: 31.646 | V83: 35.82
A84: 83 | B84: peso | C84: menino | D84: 83 | E84: -0.4305 | F84: 22.6872 | G84: 0.13722 | H84: 15.368 | I84: 16.822 | J84: 17.762 | K84: 18.291 | L84: 19.15 | M84: 19.762 | N84: 20.719 | O84: 22.687 | P84: 24.934 | Q84: 26.273 | R84: 27.24 | S84: 28.767 | T84: 29.826 | U84: 31.983 | V84: 36.235
A85: 84 | B85: peso | C85: menino | D85: 84 | E85: -0.4402 | F85: 22.8915 | G85: 0.13759 | H85: 15.503 | I85: 16.968 | J85: 17.916 | K85: 18.449 | L85: 19.316 | M85: 19.935 | N85: 20.901 | O85: 22.892 | P85: 25.167 | Q85: 26.524 | R85: 27.504 | S85: 29.054 | T85: 30.13 | U85: 32.323 | V85: 36.654
A86: 85 | B86: peso | C86: menino | D86: 85 | E86: -0.4499 | F86: 23.0968 | G86: 0.13797 | H86: 15.637 | I86: 17.114 | J86: 18.07 | K86: 18.608 | L86: 19.483 | M86: 20.108 | N86: 21.084 | O86: 23.097 | P86: 25.4 | Q86: 26.776 | R86: 27.77 | S86: 29.344 | T86: 30.436 | U86: 32.666 | V86: 37.08
A87: 86 | B87: peso | C87: menino | D87: 86 | E87: -0.4594 | F87: 23.3029 | G87: 0.13838 | H87: 15.771 | I87: 17.259 | J87: 18.224 | K87: 18.767 | L87: 19.65 | M87: 20.281 | N87: 21.268 | O87: 23.303 | P87: 25.635 | Q87: 27.03 | R87: 28.038 | S87: 29.636 | T87: 30.746 | U87: 33.014 | V87: 37.512
A88: 87 | B88: peso | C88: menino | D88: 87 | E88: -0.4688 | F88: 23.5101 | G88: 0.1388 | H88: 15.904 | I88: 17.405 | J88: 18.378 | K88: 18.926 | L88: 19.818 | M88: 20.455 | N88: 21.452 | O88: 23.51 | P88: 25.872 | Q88: 27.286 | R88: 28.309 | S88: 29.931 | T88: 31.059 | U88: 33.366 | V88: 37.951
A89: 88 | B89: peso | C89: menino | D89: 88 | E89: -0.4781 | F89: 23.7182 | G89: 0.13923 | H89: 16.038 | I89: 17.551 | J89: 18.532 | K89: 19.085 | L89: 19.986 | M89: 20.629 | N89: 21.636 | O89: 23.718 | P89: 26.11 | Q89: 27.543 | R89: 28.581 | S89: 30.229 | T89: 31.375 | U89: 33.722 | V89: 38.395
A90: 89 | B90: peso | C90: menino | D90: 89 | E90: -0.4873 | F90: 23.9272 | G90: 0.13969 | H90: 16.171 | I90: 17.696 | J90: 18.686 | K90: 19.244 | L90: 20.154 | M90: 20.803 | N90: 21.821 | O90: 23.927 | P90: 26.35 | Q90: 27.803 | R90: 28.856 | S90: 30.53 | T90: 31.695 | U90: 34.083 | V90: 38.849
A91: 90 | B91: peso | C91: menino | D91: 90 | E91: -0.4964 | F91: 24.1371 | G91: 0.14016 | H91: 16.304 | I91: 17.842 | J91: 18.841 | K91: 19.404 | L91: 20.322 | M91: 20.978 | N91: 22.007 | O91: 24.137 | P91: 26.591 | Q91: 28.065 | R91: 29.134 | S91: 30.833 | T91: 32.017 | U91: 34.448 | V91: 39.307
A92: 91 | B92: peso | C92: menino | D92: 91 | E92: -0.5053 | F92: 24.3479 | G92: 0.14065 | H92: 16.437 | I92: 17.987 | J92: 18.995 | K92: 19.563 | L92: 20.49 | M92: 21.153 | N92: 22.193 | O92: 24.348 | P92: 26.834 | Q92: 28.328 | R92: 29.413 | S92: 31.139 | T92: 32.343 | U92: 34.817 | V92: 39.774
A93: 92 | B93: peso | C93: menino | D93: 92 | E93: -0.5142 | F93: 24.5595 | G93: 0.14117 | H93: 16.569 | I93: 18.131 | J93: 19.148 | K93: 19.722 | L93: 20.658 | M93: 21.328 | N93: 22.379 | O93: 24.56 | P93: 27.078 | Q93: 28.594 | R93: 29.695 | S93: 31.449 | T93: 32.674 | U93: 35.192 | V93: 40.249
A94: 93 | B94: peso | C94: menino | D94: 93 | E94: -0.5229 | F94: 24.7722 | G94: 0.1417 | H94: 16.7 | I94: 18.276 | J94: 19.302 | K94: 19.882 | L94: 20.827 | M94: 21.504 | N94: 22.566 | O94: 24.772 | P94: 27.324 | Q94: 28.862 | R94: 29.98 | S94: 31.762 | T94: 33.007 | U94: 35.571 | V94: 40.732
A95: 94 | B95: peso | C95: menino | D95: 94 | E95: -0.5315 | F95: 24.9858 | G95: 0.14226 | H95: 16.831 | I95: 18.42 | J95: 19.456 | K95: 20.041 | L95: 20.995 | M95: 21.679 | N95: 22.754 | O95: 24.986 | P95: 27.572 | Q95: 29.132 | R95: 30.267 | S95: 32.079 | T95: 33.345 | U95: 35.956 | V95: 41.224
A96: 95 | B96: peso | C96: menino | D96: 95 | E96: -0.5399 | F96: 25.2005 | G96: 0.14284 | H96: 16.962 | I96: 18.564 | J96: 19.609 | K96: 20.2 | L96: 21.164 | M96: 21.855 | N96: 22.941 | O96: 25.2 | P96: 27.821 | Q96: 29.405 | R96: 30.558 | S96: 32.398 | T96: 33.687 | U96: 36.346 | V96: 41.724
A97: 96 | B97: peso | C97: menino | D97: 96 | E97: -0.5482 | F97: 25.4163 | G97: 0.14344 | H97: 17.092 | I97: 18.708 | J97: 19.763 | K97: 20.359 | L97: 21.333 | M97: 22.031 | N97: 23.13 | O97: 25.416 | P97: 28.073 | Q97: 29.68 | R97: 30.85 | S97: 32.722 | T97: 34.033 | U97: 36.742 | V97: 42.233
A98: 97 | B98: peso | C98: menino | D98: 97 | E98: -0.5564 | F98: 25.6332 | G98: 0.14407 | H98: 17.221 | I98: 18.851 | J98: 19.916 | K98: 20.518 | L98: 21.502 | M98: 22.208 | N98: 23.319 | O98: 25.633 | P98: 28.326 | Q98: 29.957 | R98: 31.147 | S98: 33.05 | T98: 34.384 | U98: 37.145 | V98: 42.754
A99: 98 | B99: peso | C99: menino | D99: 98 | E99: -0.5644 | F99: 25.8513 | G99: 0.14472 | H99: 17.35 | I99: 18.994 | J99: 20.069 | K99: 20.677 | L99: 21.671 | M99: 22.385 | N99: 23.508 | O99: 25.851 | P99: 28.582 | Q99: 30.238 | R99: 31.446 | S99: 33.381 | T99: 34.74 | U99: 37.553 | V99: 43.284
A100: 99 | B100: peso | C100: menino | D100: 99 | E100: -0.5722 | F100: 26.0706 | G100: 0.14539 | H100: 17.478 | I100: 19.137 | J100: 20.222 | K100: 20.836 | L100: 21.84 | M100: 22.562 | N100: 23.698 | O100: 26.071 | P100: 28.839 | Q100: 30.52 | R100: 31.748 | S100: 33.716 | T100: 35.099 | U100: 37.967 | V100: 43.823
A101: 100 | B101: peso | C101: menino | D101: 100 | E101: -0.5799 | F101: 26.2911 | G101: 0.14608 | H101: 17.606 | I101: 19.28 | J101: 20.375 | K101: 20.995 | L101: 22.01 | M101: 22.74 | N101: 23.889 | O101: 26.291 | P101: 29.099 | Q101: 30.806 | R101: 32.053 | S101: 34.055 | T101: 35.464 | U101: 38.387 | V101: 44.372
A102: 101 | B102: peso | C102: menino | D102: 101 | E102: -0.5873 | F102: 26.5128 | G102: 0.14679 | H102: 17.734 | I102: 19.422 | J102: 20.528 | K102: 21.154 | L102: 22.18 | M102: 22.918 | N102: 24.08 | O102: 26.513 | P102: 29.36 | Q102: 31.093 | R102: 32.362 | S102: 34.398 | T102: 35.832 | U102: 38.813 | V102: 44.931
A103: 102 | B103: peso | C103: menino | D103: 102 | E103: -0.5946 | F103: 26.7358 | G103: 0.14752 | H103: 17.861 | I103: 19.564 | J103: 20.681 | K103: 21.313 | L103: 22.35 | M103: 23.096 | N103: 24.272 | O103: 26.736 | P103: 29.624 | Q103: 31.384 | R103: 32.673 | S103: 34.745 | T103: 36.206 | U103: 39.245 | V103: 45.501
A104: 103 | B104: peso | C104: menino | D104: 103 | E104: -0.6017 | F104: 26.9602 | G104: 0.14828 | H104: 17.987 | I104: 19.706 | J104: 20.833 | K104: 21.473 | L104: 22.521 | M104: 23.275 | N104: 24.465 | O104: 26.96 | P104: 29.89 | Q104: 31.678 | R104: 32.989 | S104: 35.097 | T104: 36.585 | U104: 39.686 | V104: 46.083
A105: 104 | B105: peso | C105: menino | D105: 104 | E105: -0.6085 | F105: 27.1861 | G105: 0.14905 | H105: 18.114 | I105: 19.848 | J105: 20.986 | K105: 21.632 | L105: 22.692 | M105: 23.454 | N105: 24.659 | O105: 27.186 | P105: 30.158 | Q105: 31.974 | R105: 33.307 | S105: 35.453 | T105: 36.969 | U105: 40.131 | V105: 46.674
A106: 105 | B106: peso | C106: menino | D106: 105 | E106: -0.6152 | F106: 27.4137 | G106: 0.14984 | H106: 18.24 | I106: 19.99 | J106: 21.14 | K106: 21.793 | L106: 22.863 | M106: 23.635 | N106: 24.853 | O106: 27.414 | P106: 30.429 | Q106: 32.274 | R106: 33.629 | S106: 35.814 | T106: 37.358 | U106: 40.584 | V106: 47.278
A107: 106 | B107: peso | C107: menino | D107: 106 | E107: -0.6216 | F107: 27.6432 | G107: 0.15066 | H107: 18.365 | I107: 20.132 | J107: 21.293 | K107: 21.953 | L107: 23.036 | M107: 23.816 | N107: 25.049 | O107: 27.643 | P107: 30.703 | Q107: 32.578 | R107: 33.956 | S107: 36.18 | T107: 37.753 | U107: 41.046 | V107: 47.895
A108: 107 | B108: peso | C108: menino | D108: 107 | E108: -0.6278 | F108: 27.875 | G108: 0.15149 | H108: 18.492 | I108: 20.274 | J108: 21.448 | K108: 22.114 | L108: 23.209 | M108: 23.998 | N108: 25.247 | O108: 27.875 | P108: 30.98 | Q108: 32.885 | R108: 34.287 | S108: 36.551 | T108: 38.155 | U108: 41.515 | V108: 48.523
A109: 108 | B109: peso | C109: menino | D109: 108 | E109: -0.6337 | F109: 28.1092 | G109: 0.15233 | H109: 18.618 | I109: 20.418 | J109: 21.603 | K109: 22.277 | L109: 23.384 | M109: 24.182 | N109: 25.446 | O109: 28.109 | P109: 31.26 | Q109: 33.196 | R109: 34.622 | S109: 36.927 | T109: 38.562 | U109: 41.99 | V109: 49.162
A110: 109 | B110: peso | C110: menino | D110: 109 | E110: -0.6393 | F110: 28.3459 | G110: 0.15319 | H110: 18.745 | I110: 20.562 | J110: 21.759 | K110: 22.44 | L110: 23.56 | M110: 24.368 | N110: 25.647 | O110: 28.346 | P110: 31.544 | Q110: 33.512 | R110: 34.962 | S110: 37.309 | T110: 38.975 | U110: 42.475 | V110: 49.815
A111: 110 | B111: peso | C111: menino | D111: 110 | E111: -0.6446 | F111: 28.5854 | G111: 0.15406 | H111: 18.872 | I111: 20.707 | J111: 21.917 | K111: 22.605 | L111: 23.737 | M111: 24.555 | N111: 25.85 | O111: 28.585 | P111: 31.831 | Q111: 33.832 | R111: 35.307 | S111: 37.697 | T111: 39.395 | U111: 42.967 | V111: 50.479
A112: 111 | B112: peso | C112: menino | D112: 111 | E112: -0.6496 | F112: 28.8277 | G112: 0.15493 | H112: 19.001 | I112: 20.853 | J112: 22.076 | K112: 22.772 | L112: 23.917 | M112: 24.744 | N112: 26.056 | O112: 28.828 | P112: 32.122 | Q112: 34.155 | R112: 35.656 | S112: 38.089 | T112: 39.82 | U112: 43.465 | V112: 51.152
A113: 112 | B113: peso | C113: menino | D113: 112 | E113: -0.6543 | F113: 29.0731 | G113: 0.15581 | H113: 19.13 | I113: 21.001 | J113: 22.236 | K113: 22.94 | L113: 24.098 | M113: 24.936 | N113: 26.263 | O113: 29.073 | P113: 32.417 | Q113: 34.484 | R113: 36.01 | S113: 38.488 | T113: 40.252 | U113: 43.972 | V113: 51.838
A114: 113 | B114: peso | C114: menino | D114: 113 | E114: -0.6585 | F114: 29.3217 | G114: 0.1567 | H114: 19.26 | I114: 21.149 | J114: 22.398 | K114: 23.11 | L114: 24.282 | M114: 25.129 | N114: 26.474 | O114: 29.322 | P114: 32.716 | Q114: 34.817 | R114: 36.369 | S114: 38.892 | T114: 40.69 | U114: 44.487 | V114: 52.535
A115: 114 | B115: peso | C115: menino | D115: 114 | E115: -0.6624 | F115: 29.5736 | G115: 0.1576 | H115: 19.39 | I115: 21.299 | J115: 22.561 | K115: 23.281 | L115: 24.467 | M115: 25.325 | N115: 26.687 | O115: 29.574 | P115: 33.02 | Q115: 35.155 | R115: 36.734 | S115: 39.303 | T115: 41.135 | U115: 45.01 | V115: 53.244
A116: 115 | B116: peso | C116: menino | D116: 115 | E116: -0.6659 | F116: 29.8289 | G116: 0.1585 | H116: 19.522 | I116: 21.451 | J116: 22.727 | K116: 23.455 | L116: 24.655 | M116: 25.523 | N116: 26.902 | O116: 29.829 | P116: 33.327 | Q116: 35.497 | R116: 37.104 | S116: 39.719 | T116: 41.587 | U116: 45.54 | V116: 53.963
A117: 116 | B117: peso | C117: menino | D117: 116 | E117: -0.6689 | F117: 30.0877 | G117: 0.1594 | H117: 19.655 | I117: 21.604 | J117: 22.894 | K117: 23.631 | L117: 24.845 | M117: 25.724 | N117: 27.121 | O117: 30.088 | P117: 33.639 | Q117: 35.844 | R117: 37.479 | S117: 40.141 | T117: 42.044 | U117: 46.076 | V117: 54.69
A118: 117 | B118: peso | C118: menino | D118: 117 | E118: -0.6714 | F118: 30.3501 | G118: 0.16031 | H118: 19.789 | I118: 21.758 | J118: 23.063 | K118: 23.808 | L118: 25.037 | M118: 25.927 | N118: 27.342 | O118: 30.35 | P118: 33.956 | Q118: 36.197 | R118: 37.859 | S118: 40.569 | T118: 42.508 | U118: 46.621 | V118: 55.428
A119: 118 | B119: peso | C119: menino | D119: 118 | E119: -0.6735 | F119: 30.616 | G119: 0.16122 | H119: 19.924 | I119: 21.914 | J119: 23.234 | K119: 23.987 | L119: 25.231 | M119: 26.133 | N119: 27.566 | O119: 30.616 | P119: 34.276 | Q119: 36.554 | R119: 38.245 | S119: 41.003 | T119: 42.978 | U119: 47.173 | V119: 56.175
A120: 119 | B120: peso | C120: menino | D120: 119 | E120: -0.6752 | F120: 30.8854 | G120: 0.16213 | H120: 20.06 | I120: 22.071 | J120: 23.406 | K120: 24.169 | L120: 25.428 | M120: 26.341 | N120: 27.793 | O120: 30.885 | P120: 34.601 | Q120: 36.916 | R120: 38.635 | S120: 41.443 | T120: 43.455 | U120: 47.732 | V120: 56.931
A121: 120 | B121: peso | C121: menino | D121: 120 | E121: -0.6764 | F121: 31.1586 | G121: 0.16305 | H121: 20.196 | I121: 22.23 | J121: 23.581 | K121: 24.352 | L121: 25.627 | M121: 26.551 | N121: 28.023 | O121: 31.159 | P121: 34.931 | Q121: 37.283 | R121: 39.032 | S121: 41.889 | T121: 43.938 | U121: 48.299 | V121: 57.698

Sheet mlsBMI (hidden)
A1: idLMS | B1: variavel | C1: genero | D1: meses | E1: L | F1: M | G1: S | H1: SD4neg | I1: SD3neg | J1: SD2neg | K1: SD1neg | L1: SD0 | M1: SD1 | N1: SD2 | O1: SD3 | P1: SD4
A2: 1 | B2: bmi | C2: menina | D2: 61 | E2: -0.8886 | F2: 15.2441 | G2: 0.09692 | H2: 10.793 | I2: 11.77 | J2: 12.748 | K2: 13.891 | L2: 15.244 | M2: 16.87 | N2: 18.858 | O2: 21.34 | P2: 23.821
A3: =A2+1 -> 2 | B3: bmi | C3: menina | D3: 62 | E3: -0.9068 | F3: 15.2434 | G3: 0.09738 | H3: 10.786 | I3: 11.763 | J3: 12.741 | K3: 13.885 | L3: 15.243 | M3: 16.879 | N3: 18.886 | O3: 21.403 | P3: 23.92
A4: =A3+1 -> 3 | B4: bmi | C4: menina | D4: 63 | E4: -0.9248 | F4: 15.2433 | G4: 0.09783 | H4: 10.78 | I4: 11.757 | J4: 12.734 | K4: 13.881 | L4: 15.243 | M4: 16.889 | N4: 18.915 | O4: 21.468 | P4: 24.02
A5: 4 | B5: bmi | C5: menina | D5: 64 | E5: -0.9427 | F5: 15.2438 | G5: 0.09829 | H5: 10.775 | I5: 11.752 | J5: 12.728 | K5: 13.876 | L5: 15.244 | M5: 16.9 | N5: 18.946 | O5: 21.535 | P5: 24.123
A6: 5 | B6: bmi | C6: menina | D6: 65 | E6: -0.9605 | F6: 15.2448 | G6: 0.09875 | H6: 10.77 | I6: 11.746 | J6: 12.723 | K6: 13.872 | L6: 15.245 | M6: 16.911 | N6: 18.977 | O6: 21.603 | P6: 24.23
A7: 6 | B7: bmi | C7: menina | D7: 66 | E7: -0.978 | F7: 15.2464 | G7: 0.0992 | H7: 10.765 | I7: 11.742 | J7: 12.718 | K7: 13.869 | L7: 15.246 | M7: 16.923 | N7: 19.009 | O7: 21.673 | P7: 24.337
A8: 7 | B8: bmi | C8: menina | D8: 67 | E8: -0.9954 | F8: 15.2487 | G8: 0.09966 | H8: 10.761 | I8: 11.737 | J8: 12.714 | K8: 13.866 | L8: 15.249 | M8: 16.936 | N8: 19.042 | O8: 21.745 | P8: 24.448
A9: 8 | B9: bmi | C9: menina | D9: 68 | E9: -1.0126 | F9: 15.2516 | G9: 0.10012 | H9: 10.757 | I9: 11.733 | J9: 12.71 | K9: 13.864 | L9: 15.252 | M9: 16.95 | N9: 19.077 | O9: 21.819 | P9: 24.561
A10: 9 | B10: bmi | C10: menina | D10: 69 | E10: -1.0296 | F10: 15.2551 | G10: 0.10058 | H10: 10.754 | I10: 11.73 | J10: 12.706 | K10: 13.863 | L10: 15.255 | M10: 16.964 | N10: 19.112 | O10: 21.895 | P10: 24.678
A11: 10 | B11: bmi | C11: menina | D11: 70 | E11: -1.0464 | F11: 15.2592 | G11: 0.10104 | H11: 10.751 | I11: 11.727 | J11: 12.703 | K11: 13.862 | L11: 15.259 | M11: 16.979 | N11: 19.148 | O11: 21.973 | P11: 24.797
A12: 11 | B12: bmi | C12: menina | D12: 71 | E12: -1.063 | F12: 15.2641 | G12: 0.10149 | H12: 10.749 | I12: 11.725 | J12: 12.701 | K12: 13.862 | L12: 15.264 | M12: 16.995 | N12: 19.185 | O12: 22.051 | P12: 24.917
A13: 12 | B13: bmi | C13: menina | D13: 72 | E13: -1.0794 | F13: 15.2697 | G13: 0.10195 | H13: 10.747 | I13: 11.723 | J13: 12.7 | K13: 13.862 | L13: 15.27 | M13: 17.011 | N13: 19.224 | O13: 22.133 | P13: 25.042
A14: 13 | B14: bmi | C14: menina | D14: 73 | E14: -1.0956 | F14: 15.276 | G14: 0.10241 | H14: 10.745 | I14: 11.722 | J14: 12.699 | K14: 13.863 | L14: 15.276 | M14: 17.029 | N14: 19.264 | O14: 22.217 | P14: 25.17
A15: 14 | B15: bmi | C15: menina | D15: 74 | E15: -1.1115 | F15: 15.2831 | G15: 0.10287 | H15: 10.744 | I15: 11.721 | J15: 12.698 | K15: 13.865 | L15: 15.283 | M15: 17.047 | N15: 19.305 | O15: 22.303 | P15: 25.301
A16: 15 | B16: bmi | C16: menina | D16: 75 | E16: -1.1272 | F16: 15.2911 | G16: 0.10333 | H16: 10.744 | I16: 11.721 | J16: 12.699 | K16: 13.867 | L16: 15.291 | M16: 17.067 | N16: 19.347 | O16: 22.391 | P16: 25.435
A17: 16 | B17: bmi | C17: menina | D17: 76 | E17: -1.1427 | F17: 15.2998 | G17: 0.10379 | H17: 10.744 | I17: 11.722 | J17: 12.7 | K17: 13.87 | L17: 15.3 | M17: 17.087 | N17: 19.391 | O17: 22.481 | P17: 25.572
A18: 17 | B18: bmi | C18: menina | D18: 77 | E18: -1.1579 | F18: 15.3095 | G18: 0.10425 | H18: 10.745 | I18: 11.723 | J18: 12.701 | K18: 13.874 | L18: 15.31 | M18: 17.108 | N18: 19.436 | O18: 22.574 | P18: 25.712
A19: 18 | B19: bmi | C19: menina | D19: 78 | E19: -1.1728 | F19: 15.32 | G19: 0.10471 | H19: 10.746 | I19: 11.725 | J19: 12.704 | K19: 13.879 | L19: 15.32 | M19: 17.131 | N19: 19.482 | O19: 22.668 | P19: 25.855
A20: 19 | B20: bmi | C20: menina | D20: 79 | E20: -1.1875 | F20: 15.3314 | G20: 0.10517 | H20: 10.748 | I20: 11.727 | J20: 12.707 | K20: 13.885 | L20: 15.331 | M20: 17.154 | N20: 19.529 | O20: 22.766 | P20: 26.002
A21: 20 | B21: bmi | C21: menina | D21: 80 | E21: -1.2019 | F21: 15.3439 | G21: 0.10562 | H21: 10.751 | I21: 11.731 | J21: 12.711 | K21: 13.892 | L21: 15.344 | M21: 17.179 | N21: 19.578 | O21: 22.864 | P21: 26.15
A22: 21 | B22: bmi | C22: menina | D22: 81 | E22: -1.216 | F22: 15.3572 | G22: 0.10608 | H22: 10.754 | I22: 11.735 | J22: 12.716 | K22: 13.899 | L22: 15.357 | M22: 17.204 | N22: 19.628 | O22: 22.966 | P22: 26.304
A23: 22 | B23: bmi | C23: menina | D23: 82 | E23: -1.2298 | F23: 15.3717 | G23: 0.10654 | H23: 10.758 | I23: 11.74 | J23: 12.721 | K23: 13.907 | L23: 15.372 | M23: 17.231 | N23: 19.68 | O23: 23.071 | P23: 26.461
A24: 23 | B24: bmi | C24: menina | D24: 83 | E24: -1.2433 | F24: 15.3871 | G24: 0.107 | H24: 10.762 | I24: 11.745 | J24: 12.728 | K24: 13.916 | L24: 15.387 | M24: 17.259 | N24: 19.734 | O24: 23.178 | P24: 26.621
A25: 24 | B25: bmi | C25: menina | D25: 84 | E25: -1.2565 | F25: 15.4036 | G25: 0.10746 | H25: 10.767 | I25: 11.751 | J25: 12.735 | K25: 13.927 | L25: 15.404 | M25: 17.289 | N25: 19.789 | O25: 23.287 | P25: 26.785
A26: 25 | B26: bmi | C26: menina | D26: 85 | E26: -1.2693 | F26: 15.4211 | G26: 0.10792 | H26: 10.773 | I26: 11.758 | J26: 12.743 | K26: 13.938 | L26: 15.421 | M26: 17.319 | N26: 19.845 | O26: 23.399 | P26: 26.953
A27: 26 | B27: bmi | C27: menina | D27: 86 | E27: -1.2819 | F27: 15.4397 | G27: 0.10837 | H27: 10.779 | I27: 11.766 | J27: 12.752 | K27: 13.95 | L27: 15.44 | M27: 17.35 | N27: 19.903 | O27: 23.512 | P27: 27.122
A28: 27 | B28: bmi | C28: menina | D28: 87 | E28: -1.2941 | F28: 15.4593 | G28: 0.10883 | H28: 10.786 | I28: 11.774 | J28: 12.762 | K28: 13.963 | L28: 15.459 | M28: 17.383 | N28: 19.963 | O28: 23.629 | P28: 27.296
A29: 28 | B29: bmi | C29: menina | D29: 88 | E29: -1.306 | F29: 15.4798 | G29: 0.10929 | H29: 10.793 | I29: 11.783 | J29: 12.772 | K29: 13.976 | L29: 15.48 | M29: 17.417 | N29: 20.023 | O29: 23.749 | P29: 27.474
A30: 29 | B30: bmi | C30: menina | D30: 89 | E30: -1.3175 | F30: 15.5014 | G30: 0.10974 | H30: 10.802 | I30: 11.793 | J30: 12.783 | K30: 13.991 | L30: 15.501 | M30: 17.452 | N30: 20.085 | O30: 23.869 | P30: 27.653
A31: 30 | B31: bmi | C31: menina | D31: 90 | E31: -1.3287 | F31: 15.524 | G31: 0.1102 | H31: 10.81 | I31: 11.803 | J31: 12.795 | K31: 14.007 | L31: 15.524 | M31: 17.488 | N31: 20.149 | O31: 23.994 | P31: 27.838
A32: 31 | B32: bmi | C32: menina | D32: 91 | E32: -1.3395 | F32: 15.5476 | G32: 0.11065 | H32: 10.82 | I32: 11.814 | J32: 12.808 | K32: 14.023 | L32: 15.548 | M32: 17.526 | N32: 20.214 | O32: 24.119 | P32: 28.023
A33: 32 | B33: bmi | C33: menina | D33: 92 | E33: -1.3499 | F33: 15.5723 | G33: 0.1111 | H33: 10.83 | I33: 11.826 | J33: 12.822 | K33: 14.041 | L33: 15.572 | M33: 17.564 | N33: 20.281 | O33: 24.246 | P33: 28.212
A34: 33 | B34: bmi | C34: menina | D34: 93 | E34: -1.36 | F34: 15.5979 | G34: 0.11156 | H34: 10.84 | I34: 11.838 | J34: 12.836 | K34: 14.059 | L34: 15.598 | M34: 17.604 | N34: 20.349 | O34: 24.377 | P34: 28.406
A35: 34 | B35: bmi | C35: menina | D35: 94 | E35: -1.3697 | F35: 15.6246 | G35: 0.11201 | H35: 10.851 | I35: 11.851 | J35: 12.852 | K35: 14.078 | L35: 15.625 | M35: 17.645 | N35: 20.418 | O35: 24.51 | P35: 28.601
A36: 35 | B36: bmi | C36: menina | D36: 95 | E36: -1.379 | F36: 15.6523 | G36: 0.11246 | H36: 10.862 | I36: 11.865 | J36: 12.868 | K36: 14.099 | L36: 15.652 | M36: 17.687 | N36: 20.489 | O36: 24.644 | P36: 28.799
A37: 36 | B37: bmi | C37: menina | D37: 96 | E37: -1.388 | F37: 15.681 | G37: 0.11291 | H37: 10.874 | I37: 11.879 | J37: 12.884 | K37: 14.12 | L37: 15.681 | M37: 17.73 | N37: 20.561 | O37: 24.781 | P37: 29.001
A38: 37 | B38: bmi | C38: menina | D38: 97 | E38: -1.3966 | F38: 15.7107 | G38: 0.11335 | H38: 10.887 | I38: 11.895 | J38: 12.902 | K38: 14.142 | L38: 15.711 | M38: 17.774 | N38: 20.634 | O38: 24.918 | P38: 29.203
A39: 38 | B39: bmi | C39: menina | D39: 98 | E39: -1.4047 | F39: 15.7415 | G39: 0.1138 | H39: 10.9 | I39: 11.91 | J39: 12.92 | K39: 14.164 | L39: 15.742 | M39: 17.82 | N39: 20.709 | O39: 25.059 | P39: 29.409
A40: 39 | B40: bmi | C40: menina | D40: 99 | E40: -1.4125 | F40: 15.7732 | G40: 0.11424 | H40: 10.914 | I40: 11.927 | J40: 12.94 | K40: 14.188 | L40: 15.773 | M40: 17.866 | N40: 20.784 | O40: 25.2 | P40: 29.617
A41: 40 | B41: bmi | C41: menina | D41: 100 | E41: -1.4199 | F41: 15.8058 | G41: 0.11469 | H41: 10.928 | I41: 11.944 | J41: 12.959 | K41: 14.212 | L41: 15.806 | M41: 17.914 | N41: 20.862 | O41: 25.345 | P41: 29.829
A42: 41 | B42: bmi | C42: menina | D42: 101 | E42: -1.427 | F42: 15.8394 | G42: 0.11513 | H42: 10.943 | I42: 11.962 | J42: 12.98 | K42: 14.238 | L42: 15.839 | M42: 17.962 | N42: 20.94 | O42: 25.491 | P42: 30.042
A43: 42 | B43: bmi | C43: menina | D43: 102 | E43: -1.4336 | F43: 15.8738 | G43: 0.11557 | H43: 10.958 | I43: 11.98 | J43: 13.001 | K43: 14.264 | L43: 15.874 | M43: 18.012 | N43: 21.019 | O43: 25.638 | P43: 30.256
A44: 43 | B44: bmi | C44: menina | D44: 103 | E44: -1.4398 | F44: 15.909 | G44: 0.11601 | H44: 10.974 | I44: 11.998 | J44: 13.023 | K44: 14.291 | L44: 15.909 | M44: 18.062 | N44: 21.1 | O44: 25.786 | P44: 30.472
A45: 44 | B45: bmi | C45: menina | D45: 104 | E45: -1.4456 | F45: 15.9451 | G45: 0.11644 | H45: 10.99 | I45: 12.018 | J45: 13.045 | K45: 14.318 | L45: 15.945 | M45: 18.113 | N45: 21.181 | O45: 25.934 | P45: 30.688
A46: 45 | B46: bmi | C46: menina | D46: 105 | E46: -1.4511 | F46: 15.9818 | G46: 0.11688 | H46: 11.006 | I46: 12.037 | J46: 13.068 | K46: 14.346 | L46: 15.982 | M46: 18.166 | N46: 21.263 | O46: 26.085 | P46: 30.908
A47: 46 | B47: bmi | C47: menina | D47: 106 | E47: -1.4561 | F47: 16.0194 | G47: 0.11731 | H47: 11.023 | I47: 12.057 | J47: 13.092 | K47: 14.375 | L47: 16.019 | M47: 18.219 | N47: 21.346 | O47: 26.236 | P47: 31.127
A48: 47 | B48: bmi | C48: menina | D48: 107 | E48: -1.4607 | F48: 16.0575 | G48: 0.11774 | H48: 11.04 | I48: 12.078 | J48: 13.115 | K48: 14.404 | L48: 16.058 | M48: 18.272 | N48: 21.429 | O48: 26.388 | P48: 31.346
A49: 48 | B49: bmi | C49: menina | D49: 108 | E49: -1.465 | F49: 16.0964 | G49: 0.11816 | H49: 11.057 | I49: 12.099 | J49: 13.14 | K49: 14.434 | L49: 16.096 | M49: 18.326 | N49: 21.513 | O49: 26.539 | P49: 31.565
A50: 49 | B50: bmi | C50: menina | D50: 109 | E50: -1.4688 | F50: 16.1358 | G50: 0.11859 | H50: 11.075 | I50: 12.12 | J50: 13.165 | K50: 14.465 | L50: 16.136 | M50: 18.381 | N50: 21.599 | O50: 26.692 | P50: 31.786
A51: 50 | B51: bmi | C51: menina | D51: 110 | E51: -1.4723 | F51: 16.1759 | G51: 0.11901 | H51: 11.092 | I51: 12.141 | J51: 13.19 | K51: 14.496 | L51: 16.176 | M51: 18.437 | N51: 21.684 | O51: 26.845 | P51: 32.007
A52: 51 | B52: bmi | C52: menina | D52: 111 | E52: -1.4753 | F52: 16.2166 | G52: 0.11943 | H52: 11.11 | I52: 12.163 | J52: 13.216 | K52: 14.527 | L52: 16.217 | M52: 18.493 | N52: 21.77 | O52: 26.998 | P52: 32.227
A53: 52 | B53: bmi | C53: menina | D53: 112 | E53: -1.478 | F53: 16.258 | G53: 0.11985 | H53: 11.128 | I53: 12.185 | J53: 13.242 | K53: 14.559 | L53: 16.258 | M53: 18.551 | N53: 21.857 | O53: 27.152 | P53: 32.448
A54: 53 | B54: bmi | C54: menina | D54: 113 | E54: -1.4803 | F54: 16.2999 | G54: 0.12026 | H54: 11.147 | I54: 12.208 | J54: 13.269 | K54: 14.592 | L54: 16.3 | M54: 18.608 | N54: 21.944 | O54: 27.305 | P54: 32.666
A55: 54 | B55: bmi | C55: menina | D55: 114 | E55: -1.4823 | F55: 16.3425 | G55: 0.12067 | H55: 11.166 | I55: 12.231 | J55: 13.296 | K55: 14.625 | L55: 16.343 | M55: 18.666 | N55: 22.031 | O55: 27.459 | P55: 32.886
A56: 55 | B56: bmi | C56: menina | D56: 115 | E56: -1.4838 | F56: 16.3858 | G56: 0.12108 | H56: 11.185 | I56: 12.254 | J56: 13.323 | K56: 14.659 | L56: 16.386 | M56: 18.725 | N56: 22.12 | O56: 27.612 | P56: 33.104
A57: 56 | B57: bmi | C57: menina | D57: 116 | E57: -1.485 | F57: 16.4298 | G57: 0.12148 | H57: 11.204 | I57: 12.278 | J57: 13.352 | K57: 14.694 | L57: 16.43 | M57: 18.785 | N57: 22.208 | O57: 27.765 | P57: 33.321
A58: 57 | B58: bmi | C58: menina | D58: 117 | E58: -1.4859 | F58: 16.4746 | G58: 0.12188 | H58: 11.224 | I58: 12.302 | J58: 13.38 | K58: 14.729 | L58: 16.475 | M58: 18.846 | N58: 22.298 | O58: 27.918 | P58: 33.538
A59: 58 | B59: bmi | C59: menina | D59: 118 | E59: -1.4864 | F59: 16.52 | G59: 0.12228 | H59: 11.244 | I59: 12.327 | J59: 13.41 | K59: 14.764 | L59: 16.52 | M59: 18.907 | N59: 22.388 | O59: 28.071 | P59: 33.755
A60: 59 | B60: bmi | C60: menina | D60: 119 | E60: -1.4866 | F60: 16.5663 | G60: 0.12268 | H60: 11.265 | I60: 12.352 | J60: 13.439 | K60: 14.801 | L60: 16.566 | M60: 18.969 | N60: 22.479 | O60: 28.226 | P60: 33.972
A61: 60 | B61: bmi | C61: menina | D61: 120 | E61: -1.4864 | F61: 16.6133 | G61: 0.12307 | H61: 11.285 | I61: 12.378 | J61: 13.47 | K61: 14.838 | L61: 16.613 | M61: 19.032 | N61: 22.57 | O61: 28.378 | P61: 34.185
A62: 61 | B62: bmi | C62: menina | D62: 121 | E62: -1.4859 | F62: 16.6612 | G62: 0.12346 | H62: 11.307 | I62: 12.404 | J62: 13.501 | K62: 14.876 | L62: 16.661 | M62: 19.096 | N62: 22.663 | O62: 28.531 | P62: 34.399
A63: 62 | B63: bmi | C63: menina | D63: 122 | E63: -1.4851 | F63: 16.71 | G63: 0.12384 | H63: 11.328 | I63: 12.43 | J63: 13.533 | K63: 14.914 | L63: 16.71 | M63: 19.161 | N63: 22.755 | O63: 28.683 | P63: 34.61
A64: 63 | B64: bmi | C64: menina | D64: 123 | E64: -1.4839 | F64: 16.7595 | G64: 0.12422 | H64: 11.35 | I64: 12.458 | J64: 13.565 | K64: 14.954 | L64: 16.76 | M64: 19.226 | N64: 22.849 | O64: 28.834 | P64: 34.82
A65: 64 | B65: bmi | C65: menina | D65: 124 | E65: -1.4825 | F65: 16.81 | G65: 0.1246 | H65: 11.373 | I65: 12.485 | J65: 13.598 | K65: 14.994 | L65: 16.81 | M65: 19.293 | N65: 22.943 | O65: 28.987 | P65: 35.031
A66: 65 | B66: bmi | C66: menina | D66: 125 | E66: -1.4807 | F66: 16.8614 | G66: 0.12497 | H66: 11.396 | I66: 12.514 | J66: 13.631 | K66: 15.035 | L66: 16.861 | M66: 19.36 | N66: 23.038 | O66: 29.138 | P66: 35.238
A67: 66 | B67: bmi | C67: menina | D67: 126 | E67: -1.4787 | F67: 16.9136 | G67: 0.12534 | H67: 11.419 | I67: 12.542 | J67: 13.666 | K67: 15.076 | L67: 16.914 | M67: 19.429 | N67: 23.134 | O67: 29.29 | P67: 35.445
A68: =A67+1 -> 67 | B68: bmi | C68: menina | D68: 127 | E68: -1.4763 | F68: 16.9667 | G68: 0.12571 | H68: 11.443 | I68: 12.572 | J68: 13.7 | K68: 15.119 | L68: 16.967 | M68: 19.498 | N68: 23.231 | O68: 29.441 | P68: 35.651
A69: 68 | B69: bmi | C69: menina | D69: 128 | E69: -1.4737 | F69: 17.0208 | G69: 0.12607 | H69: 11.467 | I69: 12.602 | J69: 13.736 | K69: 15.162 | L69: 17.021 | M69: 19.568 | N69: 23.328 | O69: 29.591 | P69: 35.854
A70: 69 | B70: bmi | C70: menina | D70: 129 | E70: -1.4708 | F70: 17.0757 | G70: 0.12643 | H70: 11.492 | I70: 12.632 | J70: 13.772 | K70: 15.206 | L70: 17.076 | M70: 19.639 | N70: 23.426 | O70: 29.742 | P70: 36.057
A71: 70 | B71: bmi | C71: menina | D71: 130 | E71: -1.4677 | F71: 17.1316 | G71: 0.12678 | H71: 11.517 | I71: 12.663 | J71: 13.81 | K71: 15.251 | L71: 17.132 | M71: 19.712 | N71: 23.525 | O71: 29.891 | P71: 36.257
A72: 71 | B72: bmi | C72: menina | D72: 131 | E72: -1.4642 | F72: 17.1883 | G72: 0.12713 | H72: 11.543 | I72: 12.695 | J72: 13.847 | K72: 15.297 | L72: 17.188 | M72: 19.785 | N72: 23.624 | O72: 30.039 | P72: 36.454
A73: 72 | B73: bmi | C73: menina | D73: 132 | E73: -1.4606 | F73: 17.2459 | G73: 0.12748 | H73: 11.569 | I73: 12.727 | J73: 13.885 | K73: 15.343 | L73: 17.246 | M73: 19.859 | N73: 23.725 | O73: 30.189 | P73: 36.653
A74: 73 | B74: bmi | C74: menina | D74: 133 | E74: -1.4567 | F74: 17.3044 | G74: 0.12782 | H74: 11.595 | I74: 12.76 | J74: 13.925 | K74: 15.39 | L74: 17.304 | M74: 19.933 | N74: 23.825 | O74: 30.336 | P74: 36.847
A75: 74 | B75: bmi | C75: menina | D75: 134 | E75: -1.4526 | F75: 17.3637 | G75: 0.12816 | H75: 11.622 | I75: 12.793 | J75: 13.964 | K75: 15.438 | L75: 17.364 | M75: 20.009 | N75: 23.927 | O75: 30.484 | P75: 37.042
A76: 75 | B76: bmi | C76: menina | D76: 135 | E76: -1.4482 | F76: 17.4238 | G76: 0.12849 | H76: 11.65 | I76: 12.827 | J76: 14.004 | K76: 15.487 | L76: 17.424 | M76: 20.086 | N76: 24.029 | O76: 30.63 | P76: 37.231
A77: 76 | B77: bmi | C77: menina | D77: 136 | E77: -1.4436 | F77: 17.4847 | G77: 0.12882 | H77: 11.677 | I77: 12.861 | J77: 14.045 | K77: 15.536 | L77: 17.485 | M77: 20.163 | N77: 24.131 | O77: 30.776 | P77: 37.42
A78: 77 | B78: bmi | C78: menina | D78: 137 | E78: -1.4389 | F78: 17.5464 | G78: 0.12914 | H78: 11.706 | I78: 12.896 | J78: 14.087 | K78: 15.586 | L78: 17.546 | M78: 20.241 | N78: 24.234 | O78: 30.92 | P78: 37.606
A79: 78 | B79: bmi | C79: menina | D79: 138 | E79: -1.4339 | F79: 17.6088 | G79: 0.12946 | H79: 11.734 | I79: 12.931 | J79: 14.129 | K79: 15.637 | L79: 17.609 | M79: 20.32 | N79: 24.338 | O79: 31.064 | P79: 37.79
A80: 79 | B80: bmi | C80: menina | D80: 139 | E80: -1.4288 | F80: 17.6719 | G80: 0.12978 | H80: 11.763 | I80: 12.967 | J80: 14.171 | K80: 15.688 | L80: 17.672 | M80: 20.4 | N80: 24.442 | O80: 31.209 | P80: 37.975
A81: 80 | B81: bmi | C81: menina | D81: 140 | E81: -1.4235 | F81: 17.7357 | G81: 0.13009 | H81: 11.792 | I81: 13.003 | J81: 14.214 | K81: 15.74 | L81: 17.736 | M81: 20.48 | N81: 24.546 | O81: 31.351 | P81: 38.155
A82: 81 | B82: bmi | C82: menina | D82: 141 | E82: -1.418 | F82: 17.8001 | G82: 0.1304 | H82: 11.822 | I82: 13.04 | J82: 14.258 | K82: 15.793 | L82: 17.8 | M82: 20.561 | N82: 24.651 | O82: 31.493 | P82: 38.335
A83: 82 | B83: bmi | C83: menina | D83: 142 | E83: -1.4123 | F83: 17.8651 | G83: 0.1307 | H83: 11.852 | I83: 13.077 | J83: 14.302 | K83: 15.846 | L83: 17.865 | M83: 20.642 | N83: 24.756 | O83: 31.633 | P83: 38.509
A84: 83 | B84: bmi | C84: menina | D84: 143 | E84: -1.4065 | F84: 17.9306 | G84: 0.13099 | H84: 11.882 | I84: 13.114 | J84: 14.346 | K84: 15.899 | L84: 17.931 | M84: 20.724 | N84: 24.861 | O84: 31.77 | P84: 38.68
A85: 84 | B85: bmi | C85: menina | D85: 144 | E85: -1.4006 | F85: 17.9966 | G85: 0.13129 | H85: 11.912 | I85: 13.151 | J85: 14.391 | K85: 15.953 | L85: 17.997 | M85: 20.806 | N85: 24.967 | O85: 31.91 | P85: 38.854
A86: 85 | B86: bmi | C86: menina | D86: 145 | E86: -1.3945 | F86: 18.063 | G86: 0.13158 | H86: 11.942 | I86: 13.189 | J86: 14.436 | K86: 16.008 | L86: 18.063 | M86: 20.889 | N86: 25.072 | O86: 32.047 | P86: 39.023
A87: 86 | B87: bmi | C87: menina | D87: 146 | E87: -1.3883 | F87: 18.1297 | G87: 0.13186 | H87: 11.973 | I87: 13.227 | J87: 14.481 | K87: 16.062 | L87: 18.13 | M87: 20.972 | N87: 25.177 | O87: 32.182 | P87: 39.187
A88: 87 | B88: bmi | C88: menina | D88: 147 | E88: -1.3819 | F88: 18.1967 | G88: 0.13214 | H88: 12.003 | I88: 13.265 | J88: 14.526 | K88: 16.117 | L88: 18.197 | M88: 21.055 | N88: 25.282 | O88: 32.316 | P88: 39.35
A89: 88 | B89: bmi | C89: menina | D89: 148 | E89: -1.3755 | F89: 18.2639 | G89: 0.13241 | H89: 12.034 | I89: 13.303 | J89: 14.572 | K89: 16.172 | L89: 18.264 | M89: 21.138 | N89: 25.387 | O89: 32.448 | P89: 39.509
A90: 89 | B90: bmi | C90: menina | D90: 149 | E90: -1.3689 | F90: 18.3312 | G90: 0.13268 | H90: 12.065 | I90: 13.341 | J90: 14.618 | K90: 16.227 | L90: 18.331 | M90: 21.222 | N90: 25.491 | O90: 32.579 | P90: 39.666
A91: 90 | B91: bmi | C91: menina | D91: 150 | E91: -1.3621 | F91: 18.3986 | G91: 0.13295 | H91: 12.095 | I91: 13.379 | J91: 14.663 | K91: 16.282 | L91: 18.399 | M91: 21.305 | N91: 25.596 | O91: 32.708 | P91: 39.82
A92: 91 | B92: bmi | C92: menina | D92: 151 | E92: -1.3553 | F92: 18.466 | G92: 0.13321 | H92: 12.126 | I92: 13.418 | J92: 14.709 | K92: 16.338 | L92: 18.466 | M92: 21.388 | N92: 25.699 | O92: 32.835 | P92: 39.97
A93: 92 | B93: bmi | C93: menina | D93: 152 | E93: -1.3483 | F93: 18.5333 | G93: 0.13347 | H93: 12.156 | I93: 13.456 | J93: 14.755 | K93: 16.393 | L93: 18.533 | M93: 21.471 | N93: 25.802 | O93: 32.96 | P93: 40.118
A94: 93 | B94: bmi | C94: menina | D94: 153 | E94: -1.3413 | F94: 18.6006 | G94: 0.13372 | H94: 12.187 | I94: 13.494 | J94: 14.8 | K94: 16.448 | L94: 18.601 | M94: 21.554 | N94: 25.905 | O94: 33.083 | P94: 40.261
A95: 94 | B95: bmi | C95: menina | D95: 154 | E95: -1.3341 | F95: 18.6677 | G95: 0.13397 | H95: 12.217 | I95: 13.531 | J95: 14.846 | K95: 16.503 | L95: 18.668 | M95: 21.637 | N95: 26.007 | O95: 33.204 | P95: 40.402
A96: 95 | B96: bmi | C96: menina | D96: 155 | E96: -1.3269 | F96: 18.7346 | G96: 0.13421 | H96: 12.247 | I96: 13.569 | J96: 14.891 | K96: 16.558 | L96: 18.735 | M96: 21.719 | N96: 26.107 | O96: 33.322 | P96: 40.538
A97: 96 | B97: bmi | C97: menina | D97: 156 | E97: -1.3195 | F97: 18.8012 | G97: 0.13445 | H97: 12.276 | I97: 13.606 | J97: 14.936 | K97: 16.612 | L97: 18.801 | M97: 21.8 | N97: 26.207 | O97: 33.439 | P97: 40.67
A98: 97 | B98: bmi | C98: menina | D98: 157 | E98: -1.3121 | F98: 18.8675 | G98: 0.13469 | H98: 12.305 | I98: 13.643 | J98: 14.981 | K98: 16.667 | L98: 18.868 | M98: 21.882 | N98: 26.307 | O98: 33.554 | P98: 40.802
A99: 98 | B99: bmi | C99: menina | D99: 158 | E99: -1.3046 | F99: 18.9335 | G99: 0.13492 | H99: 12.335 | I99: 13.68 | J99: 15.025 | K99: 16.721 | L99: 18.934 | M99: 21.962 | N99: 26.405 | O99: 33.666 | P99: 40.928
A100: 99 | B100: bmi | C100: menina | D100: 159 | E100: -1.297 | F100: 18.9991 | G100: 0.13514 | H100: 12.364 | I100: 13.717 | J100: 15.07 | K100: 16.775 | L100: 18.999 | M100: 22.042 | N100: 26.501 | O100: 33.775 | P100: 41.048
A101: 100 | B101: bmi | C101: menina | D101: 160 | E101: -1.2894 | F101: 19.0642 | G101: 0.13537 | H101: 12.392 | I101: 13.753 | J101: 15.113 | K101: 16.828 | L101: 19.064 | M101: 22.122 | N101: 26.598 | O101: 33.884 | P101: 41.171
A102: 101 | B102: bmi | C102: menina | D102: 161 | E102: -1.2816 | F102: 19.1289 | G102: 0.13559 | H102: 12.42 | I102: 13.788 | J102: 15.157 | K102: 16.881 | L102: 19.129 | M102: 22.201 | N102: 26.693 | O102: 33.989 | P102: 41.286
A103: 102 | B103: bmi | C103: menina | D103: 162 | E103: -1.2739 | F103: 19.1931 | G103: 0.1358 | H103: 12.447 | I103: 13.824 | J103: 15.2 | K103: 16.934 | L103: 19.193 | M103: 22.279 | N103: 26.786 | O103: 34.092 | P103: 41.397
A104: 103 | B104: bmi | C104: menina | D104: 163 | E104: -1.2661 | F104: 19.2567 | G104: 0.13601 | H104: 12.475 | I104: 13.859 | J104: 15.243 | K104: 16.986 | L104: 19.257 | M104: 22.357 | N104: 26.879 | O104: 34.192 | P104: 41.506
A105: 104 | B105: bmi | C105: menina | D105: 164 | E105: -1.2583 | F105: 19.3197 | G105: 0.13622 | H105: 12.501 | I105: 13.893 | J105: 15.285 | K105: 17.037 | L105: 19.32 | M105: 22.433 | N105: 26.97 | O105: 34.292 | P105: 41.614
A106: 105 | B106: bmi | C106: menina | D106: 165 | E106: -1.2504 | F106: 19.382 | G106: 0.13642 | H106: 12.528 | I106: 13.927 | J106: 15.327 | K106: 17.088 | L106: 19.382 | M106: 22.509 | N106: 27.06 | O106: 34.387 | P106: 41.714
A107: 106 | B107: bmi | C107: menina | D107: 166 | E107: -1.2425 | F107: 19.4437 | G107: 0.13662 | H107: 12.554 | I107: 13.961 | J107: 15.368 | K107: 17.139 | L107: 19.444 | M107: 22.584 | N107: 27.149 | O107: 34.481 | P107: 41.814
A108: 107 | B108: bmi | C108: menina | D108: 167 | E108: -1.2345 | F108: 19.5045 | G108: 0.13681 | H108: 12.579 | I108: 13.994 | J108: 15.408 | K108: 17.188 | L108: 19.504 | M108: 22.658 | N108: 27.235 | O108: 34.571 | P108: 41.907
A109: 108 | B109: bmi | C109: menina | D109: 168 | E109: -1.2266 | F109: 19.5647 | G109: 0.137 | H109: 12.604 | I109: 14.026 | J109: 15.448 | K109: 17.238 | L109: 19.565 | M109: 22.731 | N109: 27.321 | O109: 34.66 | P109: 41.999
A110: 109 | B110: bmi | C110: menina | D110: 169 | E110: -1.2186 | F110: 19.624 | G110: 0.13719 | H110: 12.628 | I110: 14.058 | J110: 15.488 | K110: 17.286 | L110: 19.624 | M110: 22.803 | N110: 27.406 | O110: 34.747 | P110: 42.088
A111: 110 | B111: bmi | C111: menina | D111: 170 | E111: -1.2107 | F111: 19.6824 | G111: 0.13738 | H111: 12.652 | I111: 14.089 | J111: 15.526 | K111: 17.334 | L111: 19.682 | M111: 22.874 | N111: 27.489 | O111: 34.833 | P111: 42.176
A112: 111 | B112: bmi | C112: menina | D112: 171 | E112: -1.2027 | F112: 19.74 | G112: 0.13756 | H112: 12.675 | I112: 14.119 | J112: 15.564 | K112: 17.38 | L112: 19.74 | M112: 22.943 | N112: 27.57 | O112: 34.914 | P112: 42.258
A113: 112 | B113: bmi | C113: menina | D113: 172 | E113: -1.1947 | F113: 19.7966 | G113: 0.13774 | H113: 12.697 | I113: 14.149 | J113: 15.601 | K113: 17.427 | L113: 19.797 | M113: 23.012 | N113: 27.65 | O113: 34.994 | P113: 42.338
A114: 113 | B114: bmi | C114: menina | D114: 173 | E114: -1.1867 | F114: 19.8523 | G114: 0.13791 | H114: 12.719 | I114: 14.179 | J114: 15.638 | K114: 17.472 | L114: 19.852 | M114: 23.079 | N114: 27.727 | O114: 35.07 | P114: 42.412
A115: 114 | B115: bmi | C115: menina | D115: 174 | E115: -1.1788 | F115: 19.907 | G115: 0.13808 | H115: 12.74 | I115: 14.207 | J115: 15.674 | K115: 17.516 | L115: 19.907 | M115: 23.145 | N115: 27.804 | O115: 35.145 | P115: 42.485
A116: 115 | B116: bmi | C116: menina | D116: 175 | E116: -1.1708 | F116: 19.9607 | G116: 0.13825 | H116: 12.761 | I116: 14.235 | J116: 15.709 | K116: 17.56 | L116: 19.961 | M116: 23.21 | N116: 27.879 | O116: 35.217 | P116: 42.555
A117: 116 | B117: bmi | C117: menina | D117: 176 | E117: -1.1629 | F117: 20.0133 | G117: 0.13841 | H117: 12.781 | I117: 14.262 | J117: 15.743 | K117: 17.603 | L117: 20.013 | M117: 23.273 | N117: 27.951 | O117: 35.286 | P117: 42.621
A118: 117 | B118: bmi | C118: menina | D118: 177 | E118: -1.1549 | F118: 20.0648 | G118: 0.13858 | H118: 12.8 | I118: 14.288 | J118: 15.776 | K118: 17.644 | L118: 20.065 | M118: 23.336 | N118: 28.023 | O118: 35.354 | P118: 42.685
A119: 118 | B119: bmi | C119: menina | D119: 178 | E119: -1.147 | F119: 20.1152 | G119: 0.13873 | H119: 12.819 | I119: 14.314 | J119: 15.809 | K119: 17.685 | L119: 20.115 | M119: 23.396 | N119: 28.091 | O119: 35.417 | P119: 42.743
A120: 119 | B120: bmi | C120: menina | D120: 179 | E120: -1.139 | F120: 20.1644 | G120: 0.13889 | H120: 12.836 | I120: 14.338 | J120: 15.841 | K120: 17.725 | L120: 20.164 | M120: 23.456 | N120: 28.159 | O120: 35.479 | P120: 42.8
A121: 120 | B121: bmi | C121: menina | D121: 180 | E121: -1.1311 | F121: 20.2125 | G121: 0.13904 | H121: 12.853 | I121: 14.362 | J121: 15.871 | K121: 17.764 | L121: 20.212 | M121: 23.514 | N121: 28.224 | O121: 35.538 | P121: 42.852
A122: 121 | B122: bmi | C122: menina | D122: 181 | E122: -1.1232 | F122: 20.2595 | G122: 0.1392 | H122: 12.869 | I122: 14.385 | J122: 15.901 | K122: 17.802 | L122: 20.26 | M122: 23.57 | N122: 28.289 | O122: 35.597 | P122: 42.905
A123: 122 | B123: bmi | C123: menina | D123: 182 | E123: -1.1153 | F123: 20.3053 | G123: 0.13934 | H123: 12.885 | I123: 14.408 | J123: 15.93 | K123: 17.839 | L123: 20.305 | M123: 23.625 | N123: 28.35 | O123: 35.65 | P123: 42.95
A124: 123 | B124: bmi | C124: menina | D124: 183 | E124: -1.1074 | F124: 20.3499 | G124: 0.13949 | H124: 12.9 | I124: 14.429 | J124: 15.958 | K124: 17.874 | L124: 20.35 | M124: 23.679 | N124: 28.411 | O124: 35.703 | P124: 42.995
A125: 124 | B125: bmi | C125: menina | D125: 184 | E125: -1.0996 | F125: 20.3934 | G125: 0.13963 | H125: 12.914 | I125: 14.45 | J125: 15.985 | K125: 17.909 | L125: 20.393 | M125: 23.731 | N125: 28.469 | O125: 35.752 | P125: 43.036
A126: 125 | B126: bmi | C126: menina | D126: 185 | E126: -1.0917 | F126: 20.4357 | G126: 0.13977 | H126: 12.927 | I126: 14.469 | J126: 16.012 | K126: 17.943 | L126: 20.436 | M126: 23.782 | N126: 28.525 | O126: 35.799 | P126: 43.073
A127: 126 | B127: bmi | C127: menina | D127: 186 | E127: -1.0838 | F127: 20.4769 | G127: 0.13991 | H127: 12.94 | I127: 14.488 | J127: 16.037 | K127: 17.976 | L127: 20.477 | M127: 23.832 | N127: 28.58 | O127: 35.844 | P127: 43.108
A128: 127 | B128: bmi | C128: menina | D128: 187 | E128: -1.076 | F128: 20.517 | G128: 0.14005 | H128: 12.952 | I128: 14.507 | J128: 16.062 | K128: 18.008 | L128: 20.517 | M128: 23.88 | N128: 28.634 | O128: 35.887 | P128: 43.141
A129: 128 | B129: bmi | C129: menina | D129: 188 | E129: -1.0681 | F129: 20.556 | G129: 0.14018 | H129: 12.963 | I129: 14.524 | J129: 16.085 | K129: 18.039 | L129: 20.556 | M129: 23.927 | N129: 28.684 | O129: 35.927 | P129: 43.169
A130: 129 | B130: bmi | C130: menina | D130: 189 | E130: -1.0603 | F130: 20.5938 | G130: 0.14031 | H130: 12.973 | I130: 14.541 | J130: 16.108 | K130: 18.069 | L130: 20.594 | M130: 23.972 | N130: 28.734 | O130: 35.964 | P130: 43.195
A131: 130 | B131: bmi | C131: menina | D131: 190 | E131: -1.0525 | F131: 20.6306 | G131: 0.14044 | H131: 12.983 | I131: 14.557 | J131: 16.13 | K131: 18.098 | L131: 20.631 | M131: 24.017 | N131: 28.782 | O131: 36 | P131: 43.219
A132: =A131+1 -> 131 | B132: bmi | C132: menina | D132: 191 | E132: -1.0447 | F132: 20.6663 | G132: 0.14057 | H132: 12.992 | I132: 14.572 | J132: 16.151 | K132: 18.126 | L132: 20.666 | M132: 24.06 | N132: 28.828 | O132: 36.034 | P132: 43.241
A133: 132 | B133: bmi | C133: menina | D133: 192 | E133: -1.0368 | F133: 20.7008 | G133: 0.1407 | H133: 13 | I133: 14.586 | J133: 16.172 | K133: 18.153 | L133: 20.701 | M133: 24.101 | N133: 28.873 | O133: 36.066 | P133: 43.259
A134: 133 | B134: bmi | C134: menina | D134: 193 | E134: -1.029 | F134: 20.7344 | G134: 0.14082 | H134: 13.008 | I134: 14.6 | J134: 16.191 | K134: 18.179 | L134: 20.734 | M134: 24.141 | N134: 28.915 | O134: 36.094 | P134: 43.274
A135: 134 | B135: bmi | C135: menina | D135: 194 | E135: -1.0212 | F135: 20.7668 | G135: 0.14094 | H135: 13.015 | I135: 14.613 | J135: 16.21 | K135: 18.205 | L135: 20.767 | M135: 24.18 | N135: 28.956 | O135: 36.121 | P135: 43.286
A136: 135 | B136: bmi | C136: menina | D136: 195 | E136: -1.0134 | F136: 20.7982 | G136: 0.14106 | H136: 13.022 | I136: 14.625 | J136: 16.228 | K136: 18.229 | L136: 20.798 | M136: 24.218 | N136: 28.996 | O136: 36.146 | P136: 43.296
A137: 136 | B137: bmi | C137: menina | D137: 196 | E137: -1.0055 | F137: 20.8286 | G137: 0.14118 | H137: 13.027 | I137: 14.636 | J137: 16.245 | K137: 18.253 | L137: 20.829 | M137: 24.254 | N137: 29.034 | O137: 36.169 | P137: 43.304
A138: 137 | B138: bmi | C138: menina | D138: 197 | E138: -0.9977 | F138: 20.858 | G138: 0.1413 | H138: 13.032 | I138: 14.647 | J138: 16.261 | K138: 18.275 | L138: 20.858 | M138: 24.29 | N138: 29.07 | O138: 36.19 | P138: 43.31
A139: 138 | B139: bmi | C139: menina | D139: 198 | E139: -0.9898 | F139: 20.8863 | G139: 0.14142 | H139: 13.036 | I139: 14.656 | J139: 16.277 | K139: 18.297 | L139: 20.886 | M139: 24.324 | N139: 29.105 | O139: 36.209 | P139: 43.313
A140: 139 | B140: bmi | C140: menina | D140: 199 | E140: -0.9819 | F140: 20.9137 | G140: 0.14153 | H140: 13.04 | I140: 14.666 | J140: 16.291 | K140: 18.318 | L140: 20.914 | M140: 24.356 | N140: 29.138 | O140: 36.225 | P140: 43.312
A141: 140 | B141: bmi | C141: menina | D141: 200 | E141: -0.974 | F141: 20.9401 | G141: 0.14164 | H141: 13.043 | I141: 14.674 | J141: 16.305 | K141: 18.338 | L141: 20.94 | M141: 24.388 | N141: 29.17 | O141: 36.239 | P141: 43.309
A142: 141 | B142: bmi | C142: menina | D142: 201 | E142: -0.9661 | F142: 20.9656 | G142: 0.14176 | H142: 13.045 | I142: 14.682 | J142: 16.318 | K142: 18.357 | L142: 20.966 | M142: 24.418 | N142: 29.201 | O142: 36.254 | P142: 43.307
A143: 142 | B143: bmi | C143: menina | D143: 202 | E143: -0.9582 | F143: 20.9901 | G143: 0.14187 | H143: 13.047 | I143: 14.689 | J143: 16.331 | K143: 18.376 | L143: 20.99 | M143: 24.448 | N143: 29.23 | O143: 36.265 | P143: 43.3
A144: 143 | B144: bmi | C144: menina | D144: 203 | E144: -0.9503 | F144: 21.0138 | G144: 0.14198 | H144: 13.048 | I144: 14.695 | J144: 16.343 | K144: 18.393 | L144: 21.014 | M144: 24.476 | N144: 29.257 | O144: 36.275 | P144: 43.292
A145: 144 | B145: bmi | C145: menina | D145: 204 | E145: -0.9423 | F145: 21.0367 | G145: 0.14208 | H145: 13.049 | I145: 14.701 | J145: 16.354 | K145: 18.411 | L145: 21.037 | M145: 24.503 | N145: 29.283 | O145: 36.281 | P145: 43.279
A146: 145 | B146: bmi | C146: menina | D146: 205 | E146: -0.9344 | F146: 21.0587 | G146: 0.14219 | H146: 13.049 | I146: 14.707 | J146: 16.365 | K146: 18.427 | L146: 21.059 | M146: 24.53 | N146: 29.308 | O146: 36.288 | P146: 43.268
A147: 146 | B147: bmi | C147: menina | D147: 206 | E147: -0.9264 | F147: 21.0801 | G147: 0.1423 | H147: 13.048 | I147: 14.711 | J147: 16.375 | K147: 18.443 | L147: 21.08 | M147: 24.555 | N147: 29.333 | O147: 36.293 | P147: 43.254
A148: 147 | B148: bmi | C148: menina | D148: 207 | E148: -0.9184 | F148: 21.1007 | G148: 0.1424 | H148: 13.047 | I148: 14.716 | J148: 16.384 | K148: 18.458 | L148: 21.101 | M148: 24.58 | N148: 29.355 | O148: 36.296 | P148: 43.237
A149: 148 | B149: bmi | C149: menina | D149: 208 | E149: -0.9104 | F149: 21.1206 | G149: 0.1425 | H149: 13.046 | I149: 14.719 | J149: 16.393 | K149: 18.472 | L149: 21.121 | M149: 24.603 | N149: 29.376 | O149: 36.297 | P149: 43.218
A150: 149 | B150: bmi | C150: menina | D150: 209 | E150: -0.9024 | F150: 21.1399 | G150: 0.14261 | H150: 13.044 | I150: 14.722 | J150: 16.401 | K150: 18.486 | L150: 21.14 | M150: 24.626 | N150: 29.398 | O150: 36.3 | P150: 43.202
A151: 150 | B151: bmi | C151: menina | D151: 210 | E151: -0.8944 | F151: 21.1586 | G151: 0.14271 | H151: 13.042 | I151: 14.725 | J151: 16.409 | K151: 18.499 | L151: 21.159 | M151: 24.649 | N151: 29.418 | O151: 36.299 | P151: 43.181
A152: 151 | B152: bmi | C152: menina | D152: 211 | E152: -0.8863 | F152: 21.1768 | G152: 0.14281 | H152: 13.039 | I152: 14.728 | J152: 16.417 | K152: 18.512 | L152: 21.177 | M152: 24.67 | N152: 29.436 | O152: 36.298 | P152: 43.159
A153: 152 | B153: bmi | C153: menina | D153: 212 | E153: -0.8783 | F153: 21.1944 | G153: 0.14291 | H153: 13.036 | I153: 14.73 | J153: 16.424 | K153: 18.525 | L153: 21.194 | M153: 24.691 | N153: 29.455 | O153: 36.296 | P153: 43.137
A154: 153 | B154: bmi | C154: menina | D154: 213 | E154: -0.8703 | F154: 21.2116 | G154: 0.14301 | H154: 13.032 | I154: 14.731 | J154: 16.431 | K154: 18.537 | L154: 21.212 | M154: 24.712 | N154: 29.472 | O154: 36.293 | P154: 43.114
A155: 154 | B155: bmi | C155: menina | D155: 214 | E155: -0.8623 | F155: 21.2282 | G155: 0.14311 | H155: 13.029 | I155: 14.733 | J155: 16.437 | K155: 18.548 | L155: 21.228 | M155: 24.731 | N155: 29.489 | O155: 36.29 | P155: 43.09
A156: 155 | B156: bmi | C156: menina | D156: 215 | E156: -0.8542 | F156: 21.2444 | G156: 0.1432 | H156: 13.025 | I156: 14.734 | J156: 16.443 | K156: 18.56 | L156: 21.244 | M156: 24.75 | N156: 29.505 | O156: 36.284 | P156: 43.062
A157: 156 | B157: bmi | C157: menina | D157: 216 | E157: -0.8462 | F157: 21.2603 | G157: 0.1433 | H157: 13.02 | I157: 14.734 | J157: 16.448 | K157: 18.571 | L157: 21.26 | M157: 24.769 | N157: 29.52 | O157: 36.279 | P157: 43.038
A158: 157 | B158: bmi | C158: menina | D158: 217 | E158: -0.8382 | F158: 21.2757 | G158: 0.1434 | H158: 13.016 | I158: 14.735 | J158: 16.454 | K158: 18.581 | L158: 21.276 | M158: 24.788 | N158: 29.536 | O158: 36.274 | P158: 43.013
A159: 158 | B159: bmi | C159: menina | D159: 218 | E159: -0.8301 | F159: 21.2908 | G159: 0.14349 | H159: 13.011 | I159: 14.735 | J159: 16.459 | K159: 18.592 | L159: 21.291 | M159: 24.805 | N159: 29.55 | O159: 36.267 | P159: 42.984
A160: 159 | B160: bmi | C160: menina | D160: 219 | E160: -0.8221 | F160: 21.3055 | G160: 0.14359 | H160: 13.006 | I160: 14.735 | J160: 16.463 | K160: 18.601 | L160: 21.306 | M160: 24.823 | N160: 29.564 | O160: 36.261 | P160: 42.958
A161: 160 | B161: bmi | C161: menina | D161: 220 | E161: -0.814 | F161: 21.32 | G161: 0.14368 | H161: 13 | I161: 14.734 | J161: 16.468 | K161: 18.611 | L161: 21.32 | M161: 24.84 | N161: 29.577 | O161: 36.252 | P161: 42.928
A162: 161 | B162: bmi | C162: menina | D162: 221 | E162: -0.806 | F162: 21.3341 | G162: 0.14377 | H162: 12.995 | I162: 14.734 | J162: 16.473 | K162: 18.621 | L162: 21.334 | M162: 24.856 | N162: 29.589 | O162: 36.244 | P162: 42.899
A163: 162 | B163: bmi | C163: menina | D163: 222 | E163: -0.798 | F163: 21.348 | G163: 0.14386 | H163: 12.989 | I163: 14.733 | J163: 16.477 | K163: 18.63 | L163: 21.348 | M163: 24.873 | N163: 29.602 | O163: 36.235 | P163: 42.869
A164: 163 | B164: bmi | C164: menina | D164: 223 | E164: -0.7899 | F164: 21.3617 | G164: 0.14396 | H164: 12.983 | I164: 14.732 | J164: 16.48 | K164: 18.639 | L164: 21.362 | M164: 24.889 | N164: 29.614 | O164: 36.228 | P164: 42.841
A165: 164 | B165: bmi | C165: menina | D165: 224 | E165: -0.7819 | F165: 21.3752 | G165: 0.14405 | H165: 12.977 | I165: 14.731 | J165: 16.484 | K165: 18.648 | L165: 21.375 | M165: 24.905 | N165: 29.626 | O165: 36.219 | P165: 42.812
A166: 165 | B166: bmi | C166: menina | D166: 225 | E166: -0.7738 | F166: 21.3884 | G166: 0.14414 | H166: 12.971 | I166: 14.729 | J166: 16.488 | K166: 18.657 | L166: 21.388 | M166: 24.92 | N166: 29.637 | O166: 36.209 | P166: 42.781
A167: 166 | B167: bmi | C167: menina | D167: 226 | E167: -0.7658 | F167: 21.4014 | G167: 0.14423 | H167: 12.964 | I167: 14.728 | J167: 16.491 | K167: 18.665 | L167: 21.401 | M167: 24.935 | N167: 29.649 | O167: 36.2 | P167: 42.751
A168: 167 | B168: bmi | C168: menina | D168: 227 | E168: -0.7577 | F168: 21.4143 | G168: 0.14432 | H168: 12.958 | I168: 14.726 | J168: 16.494 | K168: 18.673 | L168: 21.414 | M168: 24.951 | N168: 29.659 | O168: 36.19 | P168: 42.72
A169: 168 | B169: bmi | C169: menina | D169: 228 | E169: -0.7496 | F169: 21.4269 | G169: 0.14441 | H169: 12.951 | I169: 14.724 | J169: 16.497 | K169: 18.681 | L169: 21.427 | M169: 24.965 | N169: 29.67 | O169: 36.179 | P169: 42.689
A170: 169 | B170: bmi | C170: menino | D170: 61 | E170: -0.7387 | F170: 15.2641 | G170: 0.0839 | H170: 11.204 | I170: 12.118 | J170: 13.031 | K170: 14.071 | L170: 15.264 | M170: 16.645 | N170: 18.259 | O170: 20.166 | P170: 22.072
A171: =A170+1 -> 170 | B171: bmi | C171: menino | D171: 62 | E171: -0.7621 | F171: 15.2616 | G171: 0.08414 | H171: 11.204 | I171: 12.115 | J171: 13.027 | K171: 14.066 | L171: 15.262 | M171: 16.648 | N171: 18.273 | O171: 20.2 | P171: 22.127
A172: 171 | B172: bmi | C172: menino | D172: 63 | E172: -0.7856 | F172: 15.2604 | G172: 0.08439 | H172: 11.204 | I172: 12.114 | J172: 13.024 | K172: 14.063 | L172: 15.26 | M172: 16.653 | N172: 18.29 | O172: 20.238 | P172: 22.186
A173: 172 | B173: bmi | C173: menino | D173: 64 | E173: -0.8089 | F173: 15.2605 | G173: 0.08464 | H173: 11.205 | I173: 12.114 | J173: 13.022 | K173: 14.061 | L173: 15.26 | M173: 16.659 | N173: 18.308 | O173: 20.277 | P173: 22.247
A174: 173 | B174: bmi | C174: menino | D174: 65 | E174: -0.8322 | F174: 15.2619 | G174: 0.0849 | H174: 11.207 | I174: 12.114 | J174: 13.021 | K174: 14.06 | L174: 15.262 | M174: 16.667 | N174: 18.328 | O174: 20.32 | P174: 22.312
A175: 174 | B175: bmi | C175: menino | D175: 66 | E175: -0.8554 | F175: 15.2645 | G175: 0.08516 | H175: 11.21 | I175: 12.115 | J175: 13.021 | K175: 14.06 | L175: 15.264 | M175: 16.676 | N175: 18.35 | O175: 20.365 | P175: 22.38
A176: 175 | B176: bmi | C176: menino | D176: 67 | E176: -0.8785 | F176: 15.2684 | G176: 0.08543 | H176: 11.213 | I176: 12.117 | J176: 13.021 | K176: 14.061 | L176: 15.268 | M176: 16.686 | N176: 18.374 | O176: 20.413 | P176: 22.452
A177: 176 | B177: bmi | C177: menino | D177: 68 | E177: -0.9015 | F177: 15.2737 | G177: 0.0857 | H177: 11.218 | I177: 12.121 | J177: 13.023 | K177: 14.063 | L177: 15.274 | M177: 16.699 | N177: 18.399 | O177: 20.463 | P177: 22.526
A178: 177 | B178: bmi | C178: menino | D178: 69 | E178: -0.9243 | F178: 15.2801 | G178: 0.08597 | H178: 11.223 | I178: 12.125 | J178: 13.026 | K178: 14.067 | L178: 15.28 | M178: 16.712 | N178: 18.427 | O178: 20.515 | P178: 22.604
A179: 178 | B179: bmi | C179: menino | D179: 70 | E179: -0.9471 | F179: 15.2877 | G179: 0.08625 | H179: 11.228 | I179: 12.129 | J179: 13.03 | K179: 14.071 | L179: 15.288 | M179: 16.727 | N179: 18.456 | O179: 20.571 | P179: 22.685
A180: 179 | B180: bmi | C180: menino | D180: 71 | E180: -0.9697 | F180: 15.2965 | G180: 0.08653 | H180: 11.235 | I180: 12.135 | J180: 13.035 | K180: 14.077 | L180: 15.296 | M180: 16.743 | N180: 18.487 | O180: 20.628 | P180: 22.77
A181: 180 | B181: bmi | C181: menino | D181: 72 | E181: -0.9921 | F181: 15.3062 | G181: 0.08682 | H181: 11.242 | I181: 12.141 | J181: 13.04 | K181: 14.083 | L181: 15.306 | M181: 16.761 | N181: 18.52 | O181: 20.689 | P181: 22.858
A182: 181 | B182: bmi | C182: menino | D182: 73 | E182: -1.0144 | F182: 15.3169 | G182: 0.08711 | H182: 11.249 | I182: 12.148 | J182: 13.047 | K182: 14.09 | L182: 15.317 | M182: 16.78 | N182: 18.554 | O182: 20.751 | P182: 22.948
A183: 182 | B183: bmi | C183: menino | D183: 74 | E183: -1.0365 | F183: 15.3285 | G183: 0.08741 | H183: 11.257 | I183: 12.155 | J183: 13.053 | K183: 14.098 | L183: 15.328 | M183: 16.799 | N183: 18.589 | O183: 20.816 | P183: 23.043
A184: 183 | B184: bmi | C184: menino | D184: 75 | E184: -1.0584 | F184: 15.3408 | G184: 0.08771 | H184: 11.265 | I184: 12.163 | J184: 13.061 | K184: 14.107 | L184: 15.341 | M184: 16.82 | N184: 18.626 | O184: 20.883 | P184: 23.139
A185: 184 | B185: bmi | C185: menino | D185: 76 | E185: -1.0801 | F185: 15.354 | G185: 0.08802 | H185: 11.274 | I185: 12.171 | J185: 13.069 | K185: 14.116 | L185: 15.354 | M185: 16.842 | N185: 18.665 | O185: 20.952 | P185: 23.24
A186: 185 | B186: bmi | C186: menino | D186: 77 | E186: -1.1017 | F186: 15.3679 | G186: 0.08833 | H186: 11.283 | I186: 12.18 | J186: 13.077 | K186: 14.126 | L186: 15.368 | M186: 16.864 | N186: 18.704 | O186: 21.023 | P186: 23.343
A187: 186 | B187: bmi | C187: menino | D187: 78 | E187: -1.123 | F187: 15.3825 | G187: 0.08865 | H187: 11.292 | I187: 12.189 | J187: 13.086 | K187: 14.136 | L187: 15.382 | M187: 16.888 | N187: 18.745 | O187: 21.097 | P187: 23.449
A188: 187 | B188: bmi | C188: menino | D188: 79 | E188: -1.1441 | F188: 15.3978 | G188: 0.08898 | H188: 11.301 | I188: 12.198 | J188: 13.095 | K188: 14.147 | L188: 15.398 | M188: 16.913 | N188: 18.788 | O188: 21.174 | P188: 23.559
A189: 188 | B189: bmi | C189: menino | D189: 80 | E189: -1.1649 | F189: 15.4137 | G189: 0.08931 | H189: 11.311 | I189: 12.208 | J189: 13.105 | K189: 14.158 | L189: 15.414 | M189: 16.938 | N189: 18.831 | O189: 21.251 | P189: 23.672
A190: 189 | B190: bmi | C190: menino | D190: 81 | E190: -1.1856 | F190: 15.4302 | G190: 0.08964 | H190: 11.321 | I190: 12.218 | J190: 13.115 | K190: 14.17 | L190: 15.43 | M190: 16.964 | N190: 18.876 | O190: 21.331 | P190: 23.786
A191: 190 | B191: bmi | C191: menino | D191: 82 | E191: -1.206 | F191: 15.4473 | G191: 0.08998 | H191: 11.331 | I191: 12.228 | J191: 13.126 | K191: 14.183 | L191: 15.447 | M191: 16.991 | N191: 18.922 | O191: 21.413 | P191: 23.905
A192: 191 | B192: bmi | C192: menino | D192: 83 | E192: -1.2261 | F192: 15.465 | G192: 0.09033 | H192: 11.341 | I192: 12.239 | J192: 13.136 | K192: 14.195 | L192: 15.465 | M192: 17.019 | N192: 18.969 | O192: 21.498 | P192: 24.027
A193: 192 | B193: bmi | C193: menino | D193: 84 | E193: -1.246 | F193: 15.4832 | G193: 0.09068 | H193: 11.351 | I193: 12.25 | J193: 13.148 | K193: 14.209 | L193: 15.483 | M193: 17.047 | N193: 19.017 | O193: 21.584 | P193: 24.152
A194: 193 | B194: bmi | C194: menino | D194: 85 | E194: -1.2656 | F194: 15.5019 | G194: 0.09103 | H194: 11.362 | I194: 12.261 | J194: 13.159 | K194: 14.222 | L194: 15.502 | M194: 17.076 | N194: 19.066 | O194: 21.672 | P194: 24.279
A195: 194 | B195: bmi | C195: menino | D195: 86 | E195: -1.2849 | F195: 15.521 | G195: 0.09139 | H195: 11.373 | I195: 12.272 | J195: 13.171 | K195: 14.236 | L195: 15.521 | M195: 17.106 | N195: 19.116 | O195: 21.763 | P195: 24.409
A196: 195 | B196: bmi | C196: menino | D196: 87 | E196: -1.304 | F196: 15.5407 | G196: 0.09176 | H196: 11.384 | I196: 12.283 | J196: 13.183 | K196: 14.25 | L196: 15.541 | M196: 17.136 | N196: 19.168 | O196: 21.856 | P196: 24.544
A197: 196 | B197: bmi | C197: menino | D197: 88 | E197: -1.3228 | F197: 15.5608 | G197: 0.09213 | H197: 11.395 | I197: 12.295 | J197: 13.195 | K197: 14.265 | L197: 15.561 | M197: 17.167 | N197: 19.22 | O197: 21.95 | P197: 24.681
A198: 197 | B198: bmi | C198: menino | D198: 89 | E198: -1.3414 | F198: 15.5814 | G198: 0.09251 | H198: 11.406 | I198: 12.307 | J198: 13.208 | K198: 14.28 | L198: 15.581 | M198: 17.199 | N198: 19.274 | O198: 22.048 | P198: 24.822
A199: 198 | B199: bmi | C199: menino | D199: 90 | E199: -1.3596 | F199: 15.6023 | G199: 0.09289 | H199: 11.417 | I199: 12.319 | J199: 13.221 | K199: 14.295 | L199: 15.602 | M199: 17.231 | N199: 19.328 | O199: 22.147 | P199: 24.966
A200: 199 | B200: bmi | C200: menino | D200: 91 | E200: -1.3776 | F200: 15.6237 | G200: 0.09327 | H200: 11.428 | I200: 12.331 | J200: 13.234 | K200: 14.311 | L200: 15.624 | M200: 17.264 | N200: 19.383 | O200: 22.247 | P200: 25.112
... 137 more rows
